Workbook

Sheet First (hidden)
A1: Do not delete sheet

Sheet Yearly Data (hidden)
A1: Year | B1: 2019 | E1: Yes
A2: Beginning of Year | B2: 2018-07-01 | E2: No
A5: The following information must be reviewed and updated as necessary annually:
A7: AGCY CODE | B7: AGENCY NAME | C7: FY Added
A8: A010 | B8: LEGISLATIVE DEPARTMENT - THE SENATE
A9: A050 | B9: LEGISLATIVE DEPARTMENT - HOUSE OF REPRESENTATIVES
A10: A150 | B10: LEGISLATIVE DEPARTMENT - CODIFICATION OF LAWS & LEGISLATIVE COUNCIL
A11: A170 | B11: LEGISLATIVE DEPARTMENT - LEGISLATIVE SERVICES AGENCY
A12: A200 | B12: LEGISLATIVE DEPARTMENT - LEGISLATIVE AUDIT COUNCIL
A13: A850 | B13: EDUCATION OVERSIGHT COMMITTEE
A14: B040 | B14: JUDICIAL DEPARTMENT
A15: C050 | B15: ADMINISTRATIVE LAW JUDGES
A16: D050 | B16: GOVERNOR'S OFFICE--EXECUTIVE CONTROL OF STATE
A17: D100 | B17: GOVERNOR'S OFFICE--STATE LAW ENFORCEMENT DIVISION
A18: D170 | B18: GOVERNOR'S OFFICE-- EXECUTIVE POLICY & PROGRAMS
A19: D200 | B19: GOVERNOR'S OFFICE--MANSION & GROUNDS
A20: D250 | B20: INSPECTOR GENERAL
A21: D500 | B21: DEPARTMENT OF ADMINSTRATION
A22: E040 | B22: LIEUTENANT GOVERNOR'S OFFICE
A23: E080 | B23: SECRETARY OF STATE'S OFFICE
A24: E120 | B24: COMPTROLLER GENERAL'S OFFICE
A25: E160 | B25: STATE TREASURER'S OFFICE
A26: E190 | B26: RETIREMENT SYSTEM INVESTMENT COMMISSION
A27: E200 | B27: ATTORNEY GENERAL'S OFFICE
A28: E210 | B28: PROSECUTION COORDINATION COMMISSION
A29: E230 | B29: COMMISSION ON INDIGENT DEFENSE
A30: E240 | B30: ADJUTANT GENERAL'S OFFICE
A31: E280 | B31: ELECTION COMMISSION
A32: E500 | B32: REVENUE AND FISCAL AFFAIRS OFFICE
A33: E550 | B33: STATE FISCAL ACCOUNTABILITY AUTHORITY
A34: F270 | B34: STATE AUDITOR
A35: H030 | B35: COMMISSION ON HIGHER EDUCATION
A36: H060 | B36: HIGHER EDUCATION TUITION GRANTS COMMISSION
A37: H590 | B37: BOARD FOR TECHNICAL & COMPREHENSIVE EDUCATION
A38: H630 | B38: DEPARTMENT OF EDUCATION
A39: H670 | B39: EDUCATIONAL TELEVISION COMMISSION (ETV)
A40: H710 | B40: WIL LOU GRAY OPPORTUNITY SCHOOL
A41: H730 | B41: VOCATIONAL REHABILITATION
A42: H750 | B42: SCHOOL FOR THE DEAF AND BLIND
A43: H790 | B43: DEPARTMENT OF ARCHIVES AND HISTORY
A44: H870 | B44: STATE LIBRARY
A45: H910 | B45: ARTS COMMISSION
A46: H950 | B46: MUSEUM COMMISSION
A47: H960 | B47: CONFEDERATE RELIC ROOM AND MILITARY MUSEUM COMMISSION
A48: J020 | B48: DEPARTMENT OF HEALTH AND HUMAN SERVICES
A49: J040 | B49: DEPARTMENT OF HEALTH AND ENVIRONMENTAL CONTROL
A50: J120 | B50: DEPARTMENT OF MENTAL HEALTH
A51: J160 | B51: DEPARTMENT OF DISABILITIES AND SPECIAL NEEDS
A52: J200 | B52: DEPARTMENT OF ALCOHOL AND OTHER DRUG ABUSE SERVICES
A53: K050 | B53: DEPARTMENT OF PUBLIC SAFETY
A54: L040 | B54: DEPARTMENT OF SOCIAL SERVICES
A55: L060 | B55: DIVISION ON AGING | C55: 2019
A56: L080 | B56: CHILDREN'S ADVOCACY | C56: 2019
A57: L120 | B57: JOHN DE LA HOWE SCHOOL
A58: L240 | B58: COMMISSION FOR THE BLIND
A59: L360 | B59: HUMAN AFFAIRS COMMISSION
A60: L460 | B60: STATE COMMISSION FOR MINORITY AFFAIRS
A61: N040 | B61: DEPARTMENT OF CORRECTIONS
A62: N080 | B62: DEPARTMENT OF PROBATION, PAROLE AND PARDON
A63: N120 | B63: DEPARTMENT OF JUVENILE JUSTICE
A64: N200 | B64: LAW ENFORCEMENT TRAINING COUNCIL
A65: P120 | B65: FORESTRY COMMISSION
A66: P160 | B66: DEPARTMENT OF AGRICULTURE
A67: P240 | B67: DEPARTMENT OF NATURAL RESOURCES
A68: P260 | B68: SEA GRANT CONSORTIUM
A69: P280 | B69: DEPARTMENT OF PARKS, RECREATION AND TOURISM
A70: P320 | B70: DEPARTMENT OF COMMERCE
A71: P400 | B71: SOUTH CAROLINA CONSERVATION BANK
A72: P450 | B72: RURAL INFASTRUCTURE AUTHORITY
A73: R040 | B73: PUBLIC SERVICE COMMISSION
A74: R060 | B74: OFFICE OF REGULATORY STAFF
A75: R080 | B75: WORKER'S COMPENSATION COMMISSION
A76: R200 | B76: DEPARTMENT OF INSURANCE
A77: R230 | B77: BOARD OF FINANCIAL INSTITUTIONS
A78: R280 | B78: DEPARTMENT OF CONSUMER AFFAIRS
A79: R360 | B79: DEPARTMENT OF LABOR, LICENSING, AND REGULATION
A80: R400 | B80: DEPARTMENT OF MOTOR VEHICLES
A81: R440 | B81: DEPARTMENT OF REVENUE AND TAXATION
A82: R520 | B82: STATE ETHICS COMMISSION
A83: R600 | B83: DEPARTMENT OF EMPLOYMENT WORKFORCE
A84: S600 | B84: PROCUREMENT REVIEW PANEL
A85: U300 | B85: AERONAUTICS DIVISION
A86: X440 | B86: AID TO SUBDIVISIONS--DEPARTMENT OF REVENUE (Note 2)

Sheet Instructions
A1: STATE OF SOUTH CAROLINA
A2: YEAR-END REPORTING PROCEDURES MANUAL
A3: SECTION 3.09, OPERATING LEASES REPORTING PACKAGE
B6: PURPOSE and OBJECTIVES:
B7: GAAP require the State disclose in the Notes to its financial statements the terms of noncancelable
B8: operating leases. In addition to total rental expenditures for the current year, future minimum rental
B9: payments are presented for each of the five succeeding fiscal years and in five year increments thereafter.
B10: Any payments for contingent rentals are required to be disclosed separately.
B12: New for FY19 reporting and in preparation of GASB 87, copies of ALL leases must be submitted to the CG's office with this closing packet. Those leases are to include contingent rental leases and long term future minimum lease payment leases reported on this packet.
B14: INSTRUCTIONS FOR COMPLETION OF FORMS:
B15: Operating Leases Summary Form - Lessee | H15: 3.09.1
B16: Use this form to report reconciled rent payments, contingent rents, and modifications of lease
B17: terms (scheduled, unscheduled, permanent, or temporary).
B18: ● Complete the information indicated by the descriptions on the form.
B19: ○ Features included in the form:
B20: ► The year for reporting is provided as a drop-down menu selection.
B21: ► Responses to Yes/No questions are provided as drop-down menu selection.
B22: ► Based on the responses to the Yes/No question, instructions for the completion
B23: of the remainder of the form will appear. Follow those instructions.
B24: ► Under Part II make sure a rate or rate range is provided for each contingent lease line.
B25: If the space provided for submission of identified leases with scheduled rent increases or rent holidays
B26: is insufficient to report all of your information, please create a list and attach it to the reporting package.
B27: Upon completion of the information requested:
B28: ● The individual completing the form should review the form for accuracy and completeness.
B29: ● The Finance Director or Executive Director should review the form indicating agreement
B30: with the information’s accuracy and completeness before sending it to the Comptroller General's
B31: Office.
B32: ● Both the preparer and approver certify that the information provided on this reporting package
B33: is complete and accurate to the best of their knowledge.
B34: ● Send the completed form to the Comptroller General's Office no later than August 23.
B35: ● The agency should retain a copy of the completed form as part of its year-end working papers. The
B36: Comptroller General's Office will contact the individual completing the form if there are any
B37: questions.
B39: Operating Leases Future Minimum Payment Schedule | H39: 3.09.1a
B40: Use this form to report required minimum lease payments and future minimum lease payments in accordance
B41: the terms of the lease agreement.
B42: ● Complete the information indicated by the descriptions on the form.
B43: ○ Features included in the form:
B44: ► The year for reporting is derived from the selection on 3.09.1.
B45: ► The Business Area and Name of the Agency is derived from the input on 3.09.1.
B46: ► Responses to Yes/No questions are provided as drop-down menu selection.
B47: ► The schedule of years for which information is requested is driven from the year for reporting.
C48: Critical this year- make sure effective date, expiration date, periodic minimum payment, frequency of payment, Does payment amount change, along with the is the lease prepaid columns are completed correctly because these columns are used in the calculation to derive the notes column.
B49: ► The total for each year is a calculated field, please confirm its accuracy. The notes column has been added to assist with accuracy of reporting.
B50: ► The total for each year is a calculated field, please confirm its accuracy. | C50: Make sure the column "Is the lease prepaid?" properly completed for each lease.
B51: ● Create as many copies of the form as is needed to report all of the active leases. Provide a count of
B52: the number of schedules in the Part ___ of ___ section.
B53: Upon completion of the information requested:
B54: ● The individual completing the form should review the form for accuracy and completeness.
B55: ● The Finance Director or Executive Director should review the form indicating agreement
B56: with the information’s accuracy and completeness before sending it to the Comptroller General's Office.
B57: ● Both the preparer and approver certify that the information provided on this reporting package
B58: is complete and accurate to the best of their knowledge.
B59: ● Send the completed form to the Comptroller General's Office no later than August 23.
B60: ● The agency should retain a copy of the completed form as part of its year-end working papers. The
B61: Comptroller General's Office will contact the individual completing the form if there are any
B62: questions.
B64: Operating Leases Summary Form - Lessor | H64: 3.09.2
B65: Use this form to report all lease transactions as the Lessor.
B66: ● Complete the information indicated by the descriptions on the form.
B67: ○ Features included in the form:
B68: ► The year for reporting is provided as a drop-down menu selection.
B69: ► A validation check is provided for keying errors in Fund Number.
B70: ► An edit check is provided to restrict entry to whole numbers only.
B71: ► The schedule of years for which information is requested is driven from the year for reporting.
B72: ► The totals are calculated fields, please confirm accuracy of the calculation.
B73: ► Responses to Yes/No questions are provided as drop-down menu selection.
B74: ► Based on the response to the Yes/No question, instructions for the completion
B75: of the remainder of the form will appear. Follow those instructions.
B76: Upon completion of the information requested:
B77: ● The individual completing the form should review the form for accuracy and completeness.
B78: ● The Finance Director or Executive Director should review the form indicating agreement
B79: with the information’s accuracy and completeness before sending it to the Comptroller General's
B80: Office.
B81: ● Both the preparer and approver certify that the information provided on this reporting package
B82: is complete and accurate to the best of their knowledge.
B83: ● Send the completed form to the Comptroller General's Office no later than August 23.
B84: ● The agency should retain a copy of the completed form as part of its year-end working papers. The
B85: Comptroller General's Office will contact the individual completing the form if there are any
B86: questions.
B88: Reviewer's Checklist | H88: 3.09.3
B89: Use this Checklist as a mechanism for review. It should be completed prior to reviewer's signature on
B90: the information forms. A No response indicates an error. If errors are identified, return the package
B91: to the preparer for correction prior to further review. A N/A response requires documentation in writing
B92: of an explanation why the question would not be applicable for the agency to be retained for audit purposes.
B93: ► The year for reporting has been derived from the selection made on 3.09.1 or 3.09.2
B94: Upon completion of the checklist:
B95: ● A completed reviewer's checklist must accompany the agency submitted packet.
B96: ● Retain a copy in the accounting records of the agency as documentation of the control procedure.
B97: ● An auditor may request to examine the completed document.
B99: Signature Sheet
B100: Please complete this form and submit via PDF format. It is the only form to be submitted in PDF format all other tabs are submitted in the excel format.

Sheet Signature
C1: 3.09 Operating Leases Reporting Packet
C4: CAFR Reporting Period: | E4: =Year -> 2019
C5: Agency Number:
C6: Agency Name | E6: =IF(ISERROR(VLOOKUP(AgencyCode,'Yearly Data'!A8:B86,2,FALSE))=TRUE,"",VLOOKUP(AgencyCode,'Yearly Data'!A8:B86,2,FALSE)) -> 
C12: Preparer | D12: Date:
D13: Name:
D14: Title:
D15: e-mail:
D16: Phone Number:
D17: Signature:
C19: =IF('3.09.3'!L66=TRUE,"The review of the closing package is incomplete.","") -> The review of the closing package is incomplete.
C20: Reviewer | D20: Date:
D21: Name:
D22: Title:
D23: e-mail:
D24: Phone Number:
D25: Signature:
C27: Signatures are an assertion of the accuracy and completeness of the information reported.
A31: Your signature on this form certifies that the information provided on the reporting packages is complete and accurate to the best of your knowledge.
A33: Representations made by signing as the approver:
B35: I acknowledge and have fulfilled the responsibility for implementation and maintenance of internal control relevant to the preparation and fair presentation of the year end packets that are free from material misstatement, whether due to fraud or error.
B37: We have recorded or disclosed all accounting estimates that could be material to the financial statements in accordance with the requirements of U.S. GAAP.
B39: Related party relationships and transactions, including, but not limited to, revenues, expenditures/expenses, loans, transfers, leasing arrangements, and guarantees, and amounts receivable from or payable to related parties have been appropriately accounted for and disclosed in accordance with the requirements of U.S. GAAP.
B41: All events occurring subsequent to the date of the financial statements and for which U.S. GAAP requires adjustment or disclosure have been adjusted or disclosed.
B43: Guarantees, whether written or oral, under which the State is contingently liable, if any, have been properly recorded or disclosed in accordance with U.S. GAAP.
B46: Note: This is the ONLY form from packet 3.09 that is to be submitted in pdf format, all others are submitted via excel format.

Sheet 3.09.1
B1: STATE OF SOUTH CAROLINA
B2: OPERATING LEASES SUMMARY FORM- LESSEE
B3: ="FOR THE FISCAL YEAR ENDED JUNE 30, "&Year -> FOR THE FISCAL YEAR ENDED JUNE 30, 2019
A6: Agency: | C6: =IF(AgencyCode="","",AgencyCode) ->  | F6: =IF(AgencyName="","",AgencyName) -> 
C7: Business Area | F7: Agency Name
A9: Typed Preparer name:
A11: Typed Reviewer name:
A14: I. | B14: CURRENT RENT EXPENSE
B15: Enter the total from the SCEIS report
B16: Reconciliaton of amounts reported:
B17: One time or unusual in nature rental payments
B18: Contingent Rental Payments (ties to Part II below) | AB18: =IF(S18=U59,"","Contingent Rental Payments does not agree to Part II below") -> 
B19: Other detailed rental charges:
C20: PO Box rentals
C21: Month to month rentals
C22: Cancelable leases as defined on page 72 & 85 of policy and procedure manual
C23: payment for supplies
C24: Other rental charges not classified above
B26: Items to be subtracted from the SCEIS report
B30: Items to be added to the SCEIS report
B36: Required minimum lease payments for operating leases (ties to column P on 3.09.1a) | S36: =S15-SUM(S17:V29)+SUM(S31:V34) -> 0 | AB36: =IF(S36=SUM(First:Last!V45),"","Balance does not agree to tabs 3.09.1a. Please investigate the difference of $"&S36-SUM(First:Last!V45)&".") -> 
A38: II. | B38: LEASES WITH CONTINGENT RENTS
B39: Do any of the lease agreements contain contingent rents (see Reporting Manual for key terms.)?
B41: Copies of all leases reported below must be submitted with the closing packet.
B42: Agency Lease
B43: ID Number | F43: Vendor Name/Number | L43: Effective | O43: Expiration | R43: Rate | U43: Current Yr Pmts
B59: Total | U59: =SUM(U44:X58) -> 0
A61: III. | B61: LEASES WITH SCHEDULED RENT INCREASES
B62: Were any of the payments made during the year affected by a rate increase?
E64: Agency Lease ID Number
E65: Agency Lease ID Number
E66: Agency Lease ID Number
E67: Agency Lease ID Number
E68: Agency Lease ID Number
B70: Will any of the future minimum lease payments be affected by rate increases?
E72: Agency Lease ID Number
E73: Agency Lease ID Number
E74: Agency Lease ID Number
E75: Agency Lease ID Number
E76: Agency Lease ID Number
A78: IV. | B78: LEASES WITH RENT HOLIDAY PROVISIONS
B79: Were the payments made during the year reduced by "rent holiday" (see Key Terms) provisions
B80: or other adjustments?
C82: Agency Lease ID Number | H82: Amount of rent holiday | O82: Describe occurrence & expected recurrence

Sheet 3.09.1a
A1: STATE OF SOUTH CAROLINA
A2: OPERATING LEASES FUTURE MINIMUM PAYMENT SCHEDULE
A3: ="FOR THE FISCAL YEAR ENDED JUNE 30, "&Year -> FOR THE FISCAL YEAR ENDED JUNE 30, 2019
B6: 2008 | C6: Agency: | D6: =IF(AgencyCode="","",AgencyCode) ->  | F6: =IF(AgencyName="","",AgencyName) ->  | AC6: =IF(($E$3-1)="","","Reporting Fiscal Year "&Year) -> Reporting Fiscal Year 2019
D7: Business Area | F7: Agency Name | AE7: Part | AG7: of
C9: Typed preparer name:
C11: Typed reviewer name:
B14: V. LEASES WITH FUTURE MINIMUM LEASE PAYMENTS
C15: Copies of all leases reported on this tab must be submitted with the closing packet.
C16: Agency | F16: Effective | G16: Expiration | H16: Periodic | I16: Frequency | J16: Does Pmt | K16: Number of | L16: Calculated | P16: Is lease | Q16: Current | S16: Future Minimum Payments for Fiscal Years Ending June 30,
C17: Lease ID | D17: Description of Leased Property | E17: Lessor (Vendor Pmts paid to) | F17: Date | G17: Date | H17: Min Pmt | I17: of Pmt | J17: Amount Change | K17: Payments | L17: Payments | M17: Variance | O17: Note | P17: prepaid? | Q17: Expense | S17: =IF((Year-1)="","",(Year)+1) -> 2020 | T17: =IF(S17="","",S17+1) -> 2021 | U17: =IF(T17="","",T17+1) -> 2022 | V17: =IF(U17="","",U17+1) -> 2023 | W17: =IF(V17="","",V17+1) -> 2024 | X17: =IF(W17="","",W17+1) -> 2025 | Y17: to | Z17: =IF(X17="","",X17+4) -> 2029 | AA17: =IF(Z17="","",Z17+1) -> 2030 | AB17: to | AC17: =IF(AA17="","",AA17+4) -> 2034 | AD17: =IF(AC17="","",AC17+1) -> 2035 | AE17: to | AF17: =IF(AD17="","",AD17+4) -> 2039 | AH17: Thereafter | AM17: Explanation of Note
B19: 1. | K19: =IF(ISERROR(IF(I19="","",IF(P19="No",IF(I19="Monthly",DATEDIF(MAX(F19,Beginning),G19,"m"),IF(I19="Quarterly",FLOOR(((YEAR(G19)*12+MONTH(G19))-(YEAR(MAX(F19,Beginning))*12+MONTH(MAX(F19,Beginning))))/3,1),IF(I19="Semi-Annually",FLOOR(((YEAR(G19)*12+MONTH(G19))-(YEAR(MAX(F19,Beginning))*12+MONTH(MAX(F19,Beginning))))/6,1),IF(I19="Annually",FLOOR(((YEAR(G19)*12+MONTH(G19))-(YEAR(MAX(F19,Beginning))*12+MONTH(MAX(F19,Beginning))))/12,1),"Please contact CG's Office")))),IF(I19="Monthly",DATEDIF(MAX(F19,Beginning),G19,"m"),IF(I19="Quarterly",FLOOR(((YEAR(G19)*12+MONTH(G19))-(YEAR(MAX(F19,Beginning))*12+MONTH(MAX(F19,Beginning))))/3,1),IF(I19="Semi-Annually",FLOOR(((YEAR(G19)*12+MONTH(G19))-(YEAR(MAX(F19,Beginning))*12+MONTH(MAX(F19,Beginning))))/6,1),IF(I19="Annually",FLOOR(((YEAR(G19)*12+MONTH(G19))-(YEAR(MAX(F19,Beginning))*12+MONTH(MAX(F19,Beginning))))/12,1),"Please contact CG's Office"))))-1))+1)=TRUE,"",IF(I19="","",IF(P19="No",IF(I19="Monthly",DATEDIF(MAX(F19,Beginning),G19,"m"),IF(I19="Quarterly",FLOOR(((YEAR(G19)*12+MONTH(G19))-(YEAR(MAX(F19,Beginning))*12+MONTH(MAX(F19,Beginning))))/3,1),IF(I19="Semi-Annually",FLOOR(((YEAR(G19)*12+MONTH(G19))-(YEAR(MAX(F19,Beginning))*12+MONTH(MAX(F19,Beginning))))/6,1),IF(I19="Annually",FLOOR(((YEAR(G19)*12+MONTH(G19))-(YEAR(MAX(F19,Beginning))*12+MONTH(MAX(F19,Beginning))))/12,1),"Please contact CG's Office")))),IF(I19="Monthly",DATEDIF(MAX(F19,Beginning),G19,"m"),IF(I19="Quarterly",FLOOR(((YEAR(G19)*12+MONTH(G19))-(YEAR(MAX(F19,Beginning))*12+MONTH(MAX(F19,Beginning))))/3,1),IF(I19="Semi-Annually",FLOOR(((YEAR(G19)*12+MONTH(G19))-(YEAR(MAX(F19,Beginning))*12+MONTH(MAX(F19,Beginning))))/6,1),IF(I19="Annually",FLOOR(((YEAR(G19)*12+MONTH(G19))-(YEAR(MAX(F19,Beginning))*12+MONTH(MAX(F19,Beginning))))/12,1),"Please contact CG's Office"))))-1))+1) ->  | L19: =IF(I19="",0,K19*H19) -> 0 | M19: =Q19+S19+T19+U19+V19+W19+X19+AA19+AD19+AH19-L19 -> 0 | O19: =IF(F19="","",IF(J19="Yes",IF(M19>=0,"A","B"),IF(Q19="","E",IF(M19=0,"C",IF(M19>0,"B","D"))))) ->  | R19: $ | AG19: $ | AM19: =IF(F19="","",IF(J19="Yes",IF(M19>=0,"Calculated payments are acceptable","Calculated payments are greater than recorded payments. Please verify the amounts. This should only occur if payments are decreasing in future years."),IF(M19=0,"Calculated payments equal reported payments","Please correct reported payments. Currently out of balance by "&M19&"."))) -> 
B20: 2. | L20: =IF(I20="",0,K20*H20) -> 0 | M20: =Q20+S20+T20+U20+V20+W20+X20+AA20+AD20+AH20-L20 -> 0 | O20: =IF(F20="","",IF(J20="Yes",IF(M20>=0,"A","B"),IF(Q20="","E",IF(M20=0,"C",IF(M20>0,"B","D"))))) ->  | R20: $ | AM20: =IF(F20="","",IF(J20="Yes",IF(M20>=0,"Calculated payments are acceptable","Calculated payments are greater than recorded payments. Please verify the amounts. This should only occur if payments are decreasing in future years."),IF(M20=0,"Calculated payments equal reported payments","Please correct reported payments. Currently out of balance by "&M20&"."))) -> 
B21: 3. | L21: 0 | M21: 0 | R21: $
B22: 4. | L22: 0 | M22: 0 | R22: $
B23: 5. | L23: 0 | M23: 0 | R23: $
B24: 6. | L24: 0 | M24: 0 | R24: $
B25: 7. | L25: 0 | M25: 0 | R25: $
B26: 8. | L26: 0 | M26: 0 | R26: $
B27: 9. | L27: 0 | M27: 0 | R27: $
B28: 10. | L28: 0 | M28: 0 | R28: $
B29: 11. | L29: 0 | M29: 0 | R29: $
B30: 12. | L30: 0 | M30: 0 | R30: $
B31: 13. | L31: 0 | M31: 0 | R31: $
B32: 14. | L32: 0 | M32: 0 | R32: $
B33: 15. | L33: 0 | M33: 0 | R33: $
B34: 16. | L34: 0 | M34: 0 | R34: $
B35: 17. | L35: 0 | M35: 0 | R35: $
B36: 18. | L36: 0 | M36: 0 | R36: $
B37: 19. | L37: 0 | M37: 0 | R37: $
B38: 20. | L38: 0 | M38: 0 | R38: $
B39: 21. | L39: 0 | M39: 0 | R39: $
B40: 22. | L40: 0 | M40: 0 | R40: $
B41: 23. | L41: 0 | M41: 0 | R41: $
B42: 24. | L42: 0 | M42: 0 | R42: $
B43: 25. | L43: 0 | M43: 0 | R43: $
C45: TOTAL (current year expense ties to Part I on 3.09.1) | Q45: =SUM(Q19:Q43) -> 0 | R45: $ | S45: =SUM(S19:S43) -> 0 | T45: =SUM(T19:T43) -> 0 | U45: =SUM(U19:U43) -> 0 | V45: =SUM(V19:V43) -> 0 | W45: =SUM(W19:W43) -> 0 | X45: =SUM(X19:Z44) -> 0 | AA45: =SUM(AA19:AC44) -> 0 | AD45: =SUM(AD19:AF44) -> 0 | AG45: $ | AH45: =SUM(AH19:AJ44) -> 0
C47: Explanation of Notes from above
C48: A | D48: Calculated payments are acceptable
C49: B | D49: Calculated payments are greater than recorded payments. Please verify the amounts.
C50: C | D50: Calculated payments equal reported payments
C51: D | D51: Calculated payments are less than recorded payments. Please review future payment amounts.
C52: E | D52: Please verify no current year expense.
D55: Note: For additional pages click the button to the right

Sheet 3.09.2
B1: STATE OF SOUTH CAROLINA
B2: OPERATING LEASE SUMMARY FORM- LESSOR
B3: ="FOR THE FISCAL YEAR ENDED JUNE 30, "&Year -> FOR THE FISCAL YEAR ENDED JUNE 30, 2019
C6: Agency: | D6: =IF(AgencyCode="","",AgencyCode) ->  | F6: =IF(AgencyName="","",AgencyName) -> 
D7: Business Area | F7: Agency Name
C9: Typed preparer name:
C11: Typed reviewer name:
C14: I. TOTAL COST OF PROPERTY LEASED TO OTHERS UNDER OPERATING LEASES:
C16: Please list the total cost of the property your agency leases to non-State entities (or holds for leasing) under
C17: operating leases by the following categories:
G19: if additional space is needed please, copy this form.
G20: Provide Fund Numbers in which the assets are recorded:
C23: Land | F23: $ | H23: $ | J23: $ | L23: $
C24: Buildings
C25: Equipment
C26: Less: Accumulated Depreciation
C27: Total Carrying Amount | F27: $ | G27: =SUM(G23:G25)-G26 -> 0 | H27: $ | I27: =SUM(I23:I25)-I26 -> 0 | J27: $ | K27: =SUM(K23:K25)-K26 -> 0 | L27: $ | M27: =SUM(M23:M25)-M26 -> 0
C29: II. FUTURE RENTAL PAYMENTS TO BE RECEIVED:
C31: Minimum future rental payments to be received from non-State entities under non-cancelable
C32: operating leases with future minimum rent payments as of June 30:
D34: Year | G34: if additional space is needed please, copy this form.
D35: Ending | G35: Provide Fund Numbers in which receipts are recorded:
D36: June 30
D38: =IF(J3="","",J3+1) ->  | F38: $ | H38: $ | J38: $ | L38: $
D39: =IF(D38="","",D38+1) -> 
D40: =IF(D39="","",D39+1) -> 
D41: =IF(D40="","",D40+1) -> 
D42: =IF(D41="","",D41+1) -> 
D43: =IF(D42="","",D42+1&" - "&D42+5) -> 
D44: =IF(D43="","",D42+6&" - "&D42+10) -> 
D45: =IF(D44="","",D42+11&" - "&D42+15) -> 
D46: Thereafter
C47: Total minimum future rentals | F47: $ | G47: =SUM(G38:G46) -> 0 | H47: $ | I47: =SUM(I38:I46) -> 0 | J47: $ | K47: =SUM(K38:K46) -> 0 | L47: $ | M47: =SUM(M38:M46) -> 0
C49: III. LEASES WITH SCHEDULED RATE INCREASES:
C51: Do any noncancelable operating leases contain a provision for scheduled rent
C52: increases?
D54: =IF(M52="","",IF(M52="Yes","Attach a sheet identifying the leases with rate increase and provide the provisions.","STOP. Sign the form and submit for review.")) -> 

Sheet 3.09.3
A1: STATE OF SOUTH CAROLINA
A2: OPERATING LEASES REPORTING PACKAGE
A3: REVIEWER CHECKLIST
A4: ="FISCAL YEAR "&Year -> FISCAL YEAR 2019
A6: Agency: | C6: =IF(AgencyCode="","",AgencyCode) -> 
E8: Date Last Review Step Was Completed:
A12: REVIEW STEP
A13: Responses for Lessee Reporting Package Form (Form 3.09.1):
A14: =COUNT(A$13:A13)+1 -> 1 | B14: Can all amounts reported on the form be traced to the agency's accounting
B15: records?
A17: =COUNT(A$13:A16)+1 -> 2 | B17: Was the rent expenditures reconciled to the SCEIS report provided by
B18: the Comptroller General's Office?
A20: =COUNT(A$13:A19)+1 -> 3 | B20: Was the rent expenditures reconciled to the terms included in the operating
B21: lease agreement?
A23: =COUNT(A$13:A22)+1 -> 4 | B23: Have all noncancelable operating leases effective on June 30 been included
B24: on the form?
A26: =COUNT(A$13:A25)+1 -> 5 | B26: Are all of the leases in effect at June 30 included in the schedule?
A28: =COUNT(A$13:A27)+1 -> 6 | B28: Have the annual amounts been tested for clerical accuracy based on the
B29: terms of the lease agreement?
A31: =COUNT(A$13:A30)+1 -> 7 | B31: Have the summations for the five-year intervals been tested for clerical
B32: accuracy?
A34: =COUNT(A$13:A33)+1 -> 8 | B34: Have the calculated fields (Totals) been examined for accuracy?
A36: =COUNT(A$13:A34)+1 -> 9 | B36: Has a copy of all leases been provided for those reported under Part II on 3.09.1 and all lease reported on 3.09.1a?
A38: Responses for Lessor Reporting Package Form (Form 3.09.2):
A39: =COUNT(A$13:A38)+1 -> 10 | B39: Can all amounts reported on form be traced to the agency's accounting
B40: records?
A42: =COUNT(A$13:A41)+1 -> 11 | B42: Are the funds numbers accurately reported?
A44: =COUNT(A$13:A43)+1 -> 12 | B44: Are all State-owned property for which the agency receives lease
B45: payments from non-State parties under operating leases and all
B46: State-owned property held specifically for leasing under operating
B47: leases to non-State parties, even if not currently leased, reported?
A49: =COUNT(A$13:A48)+1 -> 13 | B49: Have any cancelable leases been excluded from the reporting?
A51: =COUNT(A$13:A50)+1 -> 14 | B51: Have any leases entered after June 30 been excluded from the reporting?
A53: =COUNT(A$13:A52)+1 -> 15 | B53: Have contingent rental fees been excluded?
A55: =COUNT(A$13:A54)+1 -> 16 | B55: Have the calculated fields (Totals) been examined for accuracy?
A57: Responses for All Lease Reporting Package Forms:
A58: =COUNT(A$13:A57)+1 -> 17 | B58: Is the reviewer of the form someone other than the person who prepared it?
A60: =COUNT(A$13:A59)+1 -> 18 | B60: Has the balances and activity reporting been compared with the prior
B61: year, documenting causes for any large fluctuations that can be easily
B62: obtained and explained to individuals not familiar with the daily operations
B63: of the agency?
L66: =OR(C6="",F8="",L15="",L18="",L21="",L24="",L26="",L29="",L32="",L34="",L36="",L40="",L42="",L47="",L49="",L51="",L53="",L55="",L58="",L63="") -> TRUE

Sheet Summary (hidden)
A1: Business Area | B1: Form | C1: Line Numer | D1: Agency Lease ID | E1: Description of Leased Property | F1: Lessor (Vendor Pmts paid to) | G1: Effective Date | H1: Expiration Date | I1: Periodic Min Pmt | J1: Frequency of Pmt | K1: Does Pmt Amount Change | L1: Note | M1: Is Lease Prepaid | N1: Current Expense | O1: 2020 | P1: 2021 | Q1: 2022 | R1: 2023 | S1: 2024 | T1: 2025-2029 | U1: 2030-2034 | V1: 2035-2039 | W1: Thereafter | X1: Explanation of Note
A2: =AgencyCode -> 0 | B2: 3.09.1a | C2: =IF(ISERROR(INDIRECT("'3.09.1a'!b19"))=TRUE,"",INDIRECT("'3.09.1a'!b19")) -> 1. | D2: =IF(ISERROR(INDIRECT("'3.09.1a'!c19"))=TRUE,"",INDIRECT("'3.09.1a'!c19")) -> 0 | E2: =IF(ISERROR(INDIRECT("'3.09.1a'!D19"))=TRUE,"",INDIRECT("'3.09.1a'!D19")) -> 0 | F2: =IF(ISERROR(INDIRECT("'3.09.1a'!e19"))=TRUE,"",INDIRECT("'3.09.1a'!e19")) -> 0 | G2: =IF(ISERROR(INDIRECT("'3.09.1a'!f19"))=TRUE,"",INDIRECT("'3.09.1a'!f19")) -> 00:00:00 | H2: =IF(ISERROR(INDIRECT("'3.09.1a'!g19"))=TRUE,"",INDIRECT("'3.09.1a'!g19")) -> 00:00:00 | I2: =IF(ISERROR(INDIRECT("'3.09.1a'!h19"))=TRUE,"",INDIRECT("'3.09.1a'!h19")) -> 0 | J2: =IF(ISERROR(INDIRECT("'3.09.1a'!i19"))=TRUE,"",INDIRECT("'3.09.1a'!i19")) -> 0 | K2: =IF(ISERROR(INDIRECT("'3.09.1a'!j19"))=TRUE,"",INDIRECT("'3.09.1a'!j19")) -> 0 | L2: =IF(ISERROR(INDIRECT("'3.09.1a'!o19"))=TRUE,"",INDIRECT("'3.09.1a'!o19")) ->  | M2: =IF(ISERROR(INDIRECT("'3.09.1a'!p19"))=TRUE,"",INDIRECT("'3.09.1a'!p19")) -> 0 | N2: =IF(ISERROR(INDIRECT("'3.09.1a'!q19"))=TRUE,"",INDIRECT("'3.09.1a'!q19")) -> 0 | O2: =IF(ISERROR(INDIRECT("'3.09.1a'!s19"))=TRUE,"",INDIRECT("'3.09.1a'!s19")) -> 0 | P2: =IF(ISERROR(INDIRECT("'3.09.1a'!t19"))=TRUE,"",INDIRECT("'3.09.1a'!t19")) -> 0 | Q2: =IF(ISERROR(INDIRECT("'3.09.1a'!u19"))=TRUE,"",INDIRECT("'3.09.1a'!u19")) -> 0 | R2: =IF(ISERROR(INDIRECT("'3.09.1a'!v19"))=TRUE,"",INDIRECT("'3.09.1a'!v19")) -> 0 | S2: =IF(ISERROR(INDIRECT("'3.09.1a'!w19"))=TRUE,"",INDIRECT("'3.09.1a'!w19")) -> 0 | T2: =IF(ISERROR(INDIRECT("'3.09.1a'!x19"))=TRUE,"",INDIRECT("'3.09.1a'!x19")) -> 0 | U2: =IF(ISERROR(INDIRECT("'3.09.1a'!aa19"))=TRUE,"",INDIRECT("'3.09.1a'!aa19")) -> 0 | V2: =IF(ISERROR(INDIRECT("'3.09.1a'!ad19"))=TRUE,"",INDIRECT("'3.09.1a'!ad19")) -> 0 | W2: =IF(ISERROR(INDIRECT("'3.09.1a'!ah19"))=TRUE,"",INDIRECT("'3.09.1a'!ah19")) -> 0 | X2: =IF(ISERROR(INDIRECT("'3.09.1a'!am19"))=TRUE,"",INDIRECT("'3.09.1a'!am19")) -> 
A3: 0 | B3: 3.09.1a | C3: =IF(ISERROR(INDIRECT("'3.09.1a'!b20"))=TRUE,"",INDIRECT("'3.09.1a'!b20")) -> 2. | D3: =IF(ISERROR(INDIRECT("'3.09.1a'!c20"))=TRUE,"",INDIRECT("'3.09.1a'!c20")) -> 0 | E3: =IF(ISERROR(INDIRECT("'3.09.1a'!d20"))=TRUE,"",INDIRECT("'3.09.1a'!d20")) -> 0 | F3: =IF(ISERROR(INDIRECT("'3.09.1a'!e20"))=TRUE,"",INDIRECT("'3.09.1a'!e20")) -> 0 | G3: =IF(ISERROR(INDIRECT("'3.09.1a'!f20"))=TRUE,"",INDIRECT("'3.09.1a'!f20")) -> 00:00:00 | H3: =IF(ISERROR(INDIRECT("'3.09.1a'!g20"))=TRUE,"",INDIRECT("'3.09.1a'!g20")) -> 00:00:00 | I3: =IF(ISERROR(INDIRECT("'3.09.1a'!h20"))=TRUE,"",INDIRECT("'3.09.1a'!h20")) -> 0 | J3: =IF(ISERROR(INDIRECT("'3.09.1a'!i20"))=TRUE,"",INDIRECT("'3.09.1a'!i20")) -> 0 | K3: =IF(ISERROR(INDIRECT("'3.09.1a'!j20"))=TRUE,"",INDIRECT("'3.09.1a'!j20")) -> 0 | L3: =IF(ISERROR(INDIRECT("'3.09.1a'!o20"))=TRUE,"",INDIRECT("'3.09.1a'!o20")) ->  | M3: =IF(ISERROR(INDIRECT("'3.09.1a'!p20"))=TRUE,"",INDIRECT("'3.09.1a'!p20")) -> 0 | N3: =IF(ISERROR(INDIRECT("'3.09.1a'!q20"))=TRUE,"",INDIRECT("'3.09.1a'!q20")) -> 0 | O3: =IF(ISERROR(INDIRECT("'3.09.1a'!s20"))=TRUE,"",INDIRECT("'3.09.1a'!s20")) -> 0 | P3: =IF(ISERROR(INDIRECT("'3.09.1a'!t20"))=TRUE,"",INDIRECT("'3.09.1a'!t20")) -> 0 | Q3: =IF(ISERROR(INDIRECT("'3.09.1a'!u20"))=TRUE,"",INDIRECT("'3.09.1a'!u20")) -> 0 | R3: =IF(ISERROR(INDIRECT("'3.09.1a'!v20"))=TRUE,"",INDIRECT("'3.09.1a'!v20")) -> 0 | S3: =IF(ISERROR(INDIRECT("'3.09.1a'!w20"))=TRUE,"",INDIRECT("'3.09.1a'!w20")) -> 0 | T3: =IF(ISERROR(INDIRECT("'3.09.1a'!x20"))=TRUE,"",INDIRECT("'3.09.1a'!x20")) -> 0 | U3: =IF(ISERROR(INDIRECT("'3.09.1a'!aa20"))=TRUE,"",INDIRECT("'3.09.1a'!aa20")) -> 0 | V3: =IF(ISERROR(INDIRECT("'3.09.1a'!ad20"))=TRUE,"",INDIRECT("'3.09.1a'!ad20")) -> 0 | W3: =IF(ISERROR(INDIRECT("'3.09.1a'!ah20"))=TRUE,"",INDIRECT("'3.09.1a'!ah20")) -> 0 | X3: =IF(ISERROR(INDIRECT("'3.09.1a'!am20"))=TRUE,"",INDIRECT("'3.09.1a'!am20")) -> 
A4: 0 | B4: 3.09.1a | C4: =IF(ISERROR(INDIRECT("'3.09.1a'!b21"))=TRUE,"",INDIRECT("'3.09.1a'!b21")) -> 3. | D4: =IF(ISERROR(INDIRECT("'3.09.1a'!c21"))=TRUE,"",INDIRECT("'3.09.1a'!c21")) -> 0 | E4: =IF(ISERROR(INDIRECT("'3.09.1a'!d21"))=TRUE,"",INDIRECT("'3.09.1a'!d21")) -> 0 | F4: =IF(ISERROR(INDIRECT("'3.09.1a'!e21"))=TRUE,"",INDIRECT("'3.09.1a'!e21")) -> 0 | G4: =IF(ISERROR(INDIRECT("'3.09.1a'!f21"))=TRUE,"",INDIRECT("'3.09.1a'!f21")) -> 00:00:00 | H4: =IF(ISERROR(INDIRECT("'3.09.1a'!g21"))=TRUE,"",INDIRECT("'3.09.1a'!g21")) -> 00:00:00 | I4: =IF(ISERROR(INDIRECT("'3.09.1a'!h21"))=TRUE,"",INDIRECT("'3.09.1a'!h21")) -> 0 | J4: =IF(ISERROR(INDIRECT("'3.09.1a'!i21"))=TRUE,"",INDIRECT("'3.09.1a'!i21")) -> 0 | K4: =IF(ISERROR(INDIRECT("'3.09.1a'!j21"))=TRUE,"",INDIRECT("'3.09.1a'!j21")) -> 0 | L4: =IF(ISERROR(INDIRECT("'3.09.1a'!o21"))=TRUE,"",INDIRECT("'3.09.1a'!o21")) ->  | M4: =IF(ISERROR(INDIRECT("'3.09.1a'!p21"))=TRUE,"",INDIRECT("'3.09.1a'!p21")) -> 0 | N4: =IF(ISERROR(INDIRECT("'3.09.1a'!q21"))=TRUE,"",INDIRECT("'3.09.1a'!q21")) -> 0 | O4: =IF(ISERROR(INDIRECT("'3.09.1a'!s21"))=TRUE,"",INDIRECT("'3.09.1a'!s21")) -> 0 | P4: =IF(ISERROR(INDIRECT("'3.09.1a'!t21"))=TRUE,"",INDIRECT("'3.09.1a'!t21")) -> 0 | Q4: =IF(ISERROR(INDIRECT("'3.09.1a'!u21"))=TRUE,"",INDIRECT("'3.09.1a'!u21")) -> 0 | R4: =IF(ISERROR(INDIRECT("'3.09.1a'!v21"))=TRUE,"",INDIRECT("'3.09.1a'!v21")) -> 0 | S4: =IF(ISERROR(INDIRECT("'3.09.1a'!w21"))=TRUE,"",INDIRECT("'3.09.1a'!w21")) -> 0 | T4: =IF(ISERROR(INDIRECT("'3.09.1a'!x21"))=TRUE,"",INDIRECT("'3.09.1a'!x21")) -> 0 | U4: =IF(ISERROR(INDIRECT("'3.09.1a'!aa21"))=TRUE,"",INDIRECT("'3.09.1a'!aa21")) -> 0 | V4: =IF(ISERROR(INDIRECT("'3.09.1a'!ad21"))=TRUE,"",INDIRECT("'3.09.1a'!ad21")) -> 0 | W4: =IF(ISERROR(INDIRECT("'3.09.1a'!ah21"))=TRUE,"",INDIRECT("'3.09.1a'!ah21")) -> 0 | X4: =IF(ISERROR(INDIRECT("'3.09.1a'!am21"))=TRUE,"",INDIRECT("'3.09.1a'!am21")) -> 
A5: 0 | B5: 3.09.1a | C5: =IF(ISERROR(INDIRECT("'3.09.1a'!b22"))=TRUE,"",INDIRECT("'3.09.1a'!b22")) -> 4. | D5: =IF(ISERROR(INDIRECT("'3.09.1a'!c22"))=TRUE,"",INDIRECT("'3.09.1a'!c22")) -> 0 | E5: =IF(ISERROR(INDIRECT("'3.09.1a'!d22"))=TRUE,"",INDIRECT("'3.09.1a'!d22")) -> 0 | F5: =IF(ISERROR(INDIRECT("'3.09.1a'!e22"))=TRUE,"",INDIRECT("'3.09.1a'!e22")) -> 0 | G5: =IF(ISERROR(INDIRECT("'3.09.1a'!f22"))=TRUE,"",INDIRECT("'3.09.1a'!f22")) -> 00:00:00 | H5: =IF(ISERROR(INDIRECT("'3.09.1a'!g22"))=TRUE,"",INDIRECT("'3.09.1a'!g22")) -> 00:00:00 | I5: =IF(ISERROR(INDIRECT("'3.09.1a'!h22"))=TRUE,"",INDIRECT("'3.09.1a'!h22")) -> 0 | J5: =IF(ISERROR(INDIRECT("'3.09.1a'!i22"))=TRUE,"",INDIRECT("'3.09.1a'!i22")) -> 0 | K5: =IF(ISERROR(INDIRECT("'3.09.1a'!j22"))=TRUE,"",INDIRECT("'3.09.1a'!j22")) -> 0 | L5: =IF(ISERROR(INDIRECT("'3.09.1a'!o22"))=TRUE,"",INDIRECT("'3.09.1a'!o22")) ->  | M5: =IF(ISERROR(INDIRECT("'3.09.1a'!p22"))=TRUE,"",INDIRECT("'3.09.1a'!p22")) -> 0 | N5: =IF(ISERROR(INDIRECT("'3.09.1a'!q22"))=TRUE,"",INDIRECT("'3.09.1a'!q22")) -> 0 | O5: =IF(ISERROR(INDIRECT("'3.09.1a'!s22"))=TRUE,"",INDIRECT("'3.09.1a'!s22")) -> 0 | P5: =IF(ISERROR(INDIRECT("'3.09.1a'!t22"))=TRUE,"",INDIRECT("'3.09.1a'!t22")) -> 0 | Q5: =IF(ISERROR(INDIRECT("'3.09.1a'!u22"))=TRUE,"",INDIRECT("'3.09.1a'!u22")) -> 0 | R5: =IF(ISERROR(INDIRECT("'3.09.1a'!v22"))=TRUE,"",INDIRECT("'3.09.1a'!v22")) -> 0 | S5: =IF(ISERROR(INDIRECT("'3.09.1a'!w22"))=TRUE,"",INDIRECT("'3.09.1a'!w22")) -> 0 | T5: =IF(ISERROR(INDIRECT("'3.09.1a'!x22"))=TRUE,"",INDIRECT("'3.09.1a'!x22")) -> 0 | U5: =IF(ISERROR(INDIRECT("'3.09.1a'!aa22"))=TRUE,"",INDIRECT("'3.09.1a'!aa22")) -> 0 | V5: =IF(ISERROR(INDIRECT("'3.09.1a'!ad22"))=TRUE,"",INDIRECT("'3.09.1a'!ad22")) -> 0 | W5: =IF(ISERROR(INDIRECT("'3.09.1a'!ah22"))=TRUE,"",INDIRECT("'3.09.1a'!ah22")) -> 0 | X5: =IF(ISERROR(INDIRECT("'3.09.1a'!am22"))=TRUE,"",INDIRECT("'3.09.1a'!am22")) -> 
A6: 0 | B6: 3.09.1a | C6: =IF(ISERROR(INDIRECT("'3.09.1a'!b23"))=TRUE,"",INDIRECT("'3.09.1a'!b23")) -> 5. | D6: =IF(ISERROR(INDIRECT("'3.09.1a'!c23"))=TRUE,"",INDIRECT("'3.09.1a'!c23")) -> 0 | E6: =IF(ISERROR(INDIRECT("'3.09.1a'!d23"))=TRUE,"",INDIRECT("'3.09.1a'!d23")) -> 0 | F6: =IF(ISERROR(INDIRECT("'3.09.1a'!e23"))=TRUE,"",INDIRECT("'3.09.1a'!e23")) -> 0 | G6: =IF(ISERROR(INDIRECT("'3.09.1a'!f23"))=TRUE,"",INDIRECT("'3.09.1a'!f23")) -> 00:00:00 | H6: =IF(ISERROR(INDIRECT("'3.09.1a'!g23"))=TRUE,"",INDIRECT("'3.09.1a'!g23")) -> 00:00:00 | I6: =IF(ISERROR(INDIRECT("'3.09.1a'!h23"))=TRUE,"",INDIRECT("'3.09.1a'!h23")) -> 0 | J6: =IF(ISERROR(INDIRECT("'3.09.1a'!i23"))=TRUE,"",INDIRECT("'3.09.1a'!i23")) -> 0 | K6: =IF(ISERROR(INDIRECT("'3.09.1a'!j23"))=TRUE,"",INDIRECT("'3.09.1a'!j23")) -> 0 | L6: =IF(ISERROR(INDIRECT("'3.09.1a'!o23"))=TRUE,"",INDIRECT("'3.09.1a'!o23")) ->  | M6: =IF(ISERROR(INDIRECT("'3.09.1a'!p23"))=TRUE,"",INDIRECT("'3.09.1a'!p23")) -> 0 | N6: =IF(ISERROR(INDIRECT("'3.09.1a'!q23"))=TRUE,"",INDIRECT("'3.09.1a'!q23")) -> 0 | O6: =IF(ISERROR(INDIRECT("'3.09.1a'!s23"))=TRUE,"",INDIRECT("'3.09.1a'!s23")) -> 0 | P6: =IF(ISERROR(INDIRECT("'3.09.1a'!t23"))=TRUE,"",INDIRECT("'3.09.1a'!t23")) -> 0 | Q6: =IF(ISERROR(INDIRECT("'3.09.1a'!u23"))=TRUE,"",INDIRECT("'3.09.1a'!u23")) -> 0 | R6: =IF(ISERROR(INDIRECT("'3.09.1a'!v23"))=TRUE,"",INDIRECT("'3.09.1a'!v23")) -> 0 | S6: =IF(ISERROR(INDIRECT("'3.09.1a'!w23"))=TRUE,"",INDIRECT("'3.09.1a'!w23")) -> 0 | T6: =IF(ISERROR(INDIRECT("'3.09.1a'!x23"))=TRUE,"",INDIRECT("'3.09.1a'!x23")) -> 0 | U6: =IF(ISERROR(INDIRECT("'3.09.1a'!aa23"))=TRUE,"",INDIRECT("'3.09.1a'!aa23")) -> 0 | V6: =IF(ISERROR(INDIRECT("'3.09.1a'!ad23"))=TRUE,"",INDIRECT("'3.09.1a'!ad23")) -> 0 | W6: =IF(ISERROR(INDIRECT("'3.09.1a'!ah23"))=TRUE,"",INDIRECT("'3.09.1a'!ah23")) -> 0 | X6: =IF(ISERROR(INDIRECT("'3.09.1a'!am23"))=TRUE,"",INDIRECT("'3.09.1a'!am23")) -> 
A7: 0 | B7: 3.09.1a | C7: =IF(ISERROR(INDIRECT("'3.09.1a'!b24"))=TRUE,"",INDIRECT("'3.09.1a'!b24")) -> 6. | D7: =IF(ISERROR(INDIRECT("'3.09.1a'!c24"))=TRUE,"",INDIRECT("'3.09.1a'!c24")) -> 0 | E7: =IF(ISERROR(INDIRECT("'3.09.1a'!d24"))=TRUE,"",INDIRECT("'3.09.1a'!d24")) -> 0 | F7: =IF(ISERROR(INDIRECT("'3.09.1a'!e24"))=TRUE,"",INDIRECT("'3.09.1a'!e24")) -> 0 | G7: =IF(ISERROR(INDIRECT("'3.09.1a'!f24"))=TRUE,"",INDIRECT("'3.09.1a'!f24")) -> 00:00:00 | H7: =IF(ISERROR(INDIRECT("'3.09.1a'!g24"))=TRUE,"",INDIRECT("'3.09.1a'!g24")) -> 00:00:00 | I7: =IF(ISERROR(INDIRECT("'3.09.1a'!h24"))=TRUE,"",INDIRECT("'3.09.1a'!h24")) -> 0 | J7: =IF(ISERROR(INDIRECT("'3.09.1a'!i24"))=TRUE,"",INDIRECT("'3.09.1a'!i24")) -> 0 | K7: =IF(ISERROR(INDIRECT("'3.09.1a'!j24"))=TRUE,"",INDIRECT("'3.09.1a'!j24")) -> 0 | L7: =IF(ISERROR(INDIRECT("'3.09.1a'!o24"))=TRUE,"",INDIRECT("'3.09.1a'!o24")) ->  | M7: =IF(ISERROR(INDIRECT("'3.09.1a'!p24"))=TRUE,"",INDIRECT("'3.09.1a'!p24")) -> 0 | N7: =IF(ISERROR(INDIRECT("'3.09.1a'!q24"))=TRUE,"",INDIRECT("'3.09.1a'!q24")) -> 0 | O7: =IF(ISERROR(INDIRECT("'3.09.1a'!s24"))=TRUE,"",INDIRECT("'3.09.1a'!s24")) -> 0 | P7: =IF(ISERROR(INDIRECT("'3.09.1a'!t24"))=TRUE,"",INDIRECT("'3.09.1a'!t24")) -> 0 | Q7: =IF(ISERROR(INDIRECT("'3.09.1a'!u24"))=TRUE,"",INDIRECT("'3.09.1a'!u24")) -> 0 | R7: =IF(ISERROR(INDIRECT("'3.09.1a'!v24"))=TRUE,"",INDIRECT("'3.09.1a'!v24")) -> 0 | S7: =IF(ISERROR(INDIRECT("'3.09.1a'!w24"))=TRUE,"",INDIRECT("'3.09.1a'!w24")) -> 0 | T7: =IF(ISERROR(INDIRECT("'3.09.1a'!x24"))=TRUE,"",INDIRECT("'3.09.1a'!x24")) -> 0 | U7: =IF(ISERROR(INDIRECT("'3.09.1a'!aa24"))=TRUE,"",INDIRECT("'3.09.1a'!aa24")) -> 0 | V7: =IF(ISERROR(INDIRECT("'3.09.1a'!ad24"))=TRUE,"",INDIRECT("'3.09.1a'!ad24")) -> 0 | W7: =IF(ISERROR(INDIRECT("'3.09.1a'!ah24"))=TRUE,"",INDIRECT("'3.09.1a'!ah24")) -> 0 | X7: =IF(ISERROR(INDIRECT("'3.09.1a'!am24"))=TRUE,"",INDIRECT("'3.09.1a'!am24")) -> 
A8: 0 | B8: 3.09.1a | C8: =IF(ISERROR(INDIRECT("'3.09.1a'!b25"))=TRUE,"",INDIRECT("'3.09.1a'!b25")) -> 7. | D8: =IF(ISERROR(INDIRECT("'3.09.1a'!c25"))=TRUE,"",INDIRECT("'3.09.1a'!c25")) -> 0 | E8: =IF(ISERROR(INDIRECT("'3.09.1a'!d25"))=TRUE,"",INDIRECT("'3.09.1a'!d25")) -> 0 | F8: =IF(ISERROR(INDIRECT("'3.09.1a'!e25"))=TRUE,"",INDIRECT("'3.09.1a'!e25")) -> 0 | G8: =IF(ISERROR(INDIRECT("'3.09.1a'!f25"))=TRUE,"",INDIRECT("'3.09.1a'!f25")) -> 00:00:00 | H8: =IF(ISERROR(INDIRECT("'3.09.1a'!g25"))=TRUE,"",INDIRECT("'3.09.1a'!g25")) -> 00:00:00 | I8: =IF(ISERROR(INDIRECT("'3.09.1a'!h25"))=TRUE,"",INDIRECT("'3.09.1a'!h25")) -> 0 | J8: =IF(ISERROR(INDIRECT("'3.09.1a'!i25"))=TRUE,"",INDIRECT("'3.09.1a'!i25")) -> 0 | K8: =IF(ISERROR(INDIRECT("'3.09.1a'!j25"))=TRUE,"",INDIRECT("'3.09.1a'!j25")) -> 0 | L8: =IF(ISERROR(INDIRECT("'3.09.1a'!o25"))=TRUE,"",INDIRECT("'3.09.1a'!o25")) ->  | M8: =IF(ISERROR(INDIRECT("'3.09.1a'!p25"))=TRUE,"",INDIRECT("'3.09.1a'!p25")) -> 0 | N8: =IF(ISERROR(INDIRECT("'3.09.1a'!q25"))=TRUE,"",INDIRECT("'3.09.1a'!q25")) -> 0 | O8: =IF(ISERROR(INDIRECT("'3.09.1a'!s25"))=TRUE,"",INDIRECT("'3.09.1a'!s25")) -> 0 | P8: =IF(ISERROR(INDIRECT("'3.09.1a'!t25"))=TRUE,"",INDIRECT("'3.09.1a'!t25")) -> 0 | Q8: =IF(ISERROR(INDIRECT("'3.09.1a'!u25"))=TRUE,"",INDIRECT("'3.09.1a'!u25")) -> 0 | R8: =IF(ISERROR(INDIRECT("'3.09.1a'!v25"))=TRUE,"",INDIRECT("'3.09.1a'!v25")) -> 0 | S8: =IF(ISERROR(INDIRECT("'3.09.1a'!w25"))=TRUE,"",INDIRECT("'3.09.1a'!w25")) -> 0 | T8: =IF(ISERROR(INDIRECT("'3.09.1a'!x25"))=TRUE,"",INDIRECT("'3.09.1a'!x25")) -> 0 | U8: =IF(ISERROR(INDIRECT("'3.09.1a'!aa25"))=TRUE,"",INDIRECT("'3.09.1a'!aa25")) -> 0 | V8: =IF(ISERROR(INDIRECT("'3.09.1a'!ad25"))=TRUE,"",INDIRECT("'3.09.1a'!ad25")) -> 0 | W8: =IF(ISERROR(INDIRECT("'3.09.1a'!ah25"))=TRUE,"",INDIRECT("'3.09.1a'!ah25")) -> 0 | X8: =IF(ISERROR(INDIRECT("'3.09.1a'!am25"))=TRUE,"",INDIRECT("'3.09.1a'!am25")) -> 
A9: 0 | B9: 3.09.1a | C9: =IF(ISERROR(INDIRECT("'3.09.1a'!b26"))=TRUE,"",INDIRECT("'3.09.1a'!b26")) -> 8. | D9: =IF(ISERROR(INDIRECT("'3.09.1a'!c26"))=TRUE,"",INDIRECT("'3.09.1a'!c26")) -> 0 | E9: =IF(ISERROR(INDIRECT("'3.09.1a'!d26"))=TRUE,"",INDIRECT("'3.09.1a'!d26")) -> 0 | F9: =IF(ISERROR(INDIRECT("'3.09.1a'!e26"))=TRUE,"",INDIRECT("'3.09.1a'!e26")) -> 0 | G9: =IF(ISERROR(INDIRECT("'3.09.1a'!f26"))=TRUE,"",INDIRECT("'3.09.1a'!f26")) -> 00:00:00 | H9: =IF(ISERROR(INDIRECT("'3.09.1a'!g26"))=TRUE,"",INDIRECT("'3.09.1a'!g26")) -> 00:00:00 | I9: =IF(ISERROR(INDIRECT("'3.09.1a'!h26"))=TRUE,"",INDIRECT("'3.09.1a'!h26")) -> 0 | J9: =IF(ISERROR(INDIRECT("'3.09.1a'!i26"))=TRUE,"",INDIRECT("'3.09.1a'!i26")) -> 0 | K9: =IF(ISERROR(INDIRECT("'3.09.1a'!j26"))=TRUE,"",INDIRECT("'3.09.1a'!j26")) -> 0 | L9: =IF(ISERROR(INDIRECT("'3.09.1a'!o26"))=TRUE,"",INDIRECT("'3.09.1a'!o26")) ->  | M9: =IF(ISERROR(INDIRECT("'3.09.1a'!p26"))=TRUE,"",INDIRECT("'3.09.1a'!p26")) -> 0 | N9: =IF(ISERROR(INDIRECT("'3.09.1a'!q26"))=TRUE,"",INDIRECT("'3.09.1a'!q26")) -> 0 | O9: =IF(ISERROR(INDIRECT("'3.09.1a'!s26"))=TRUE,"",INDIRECT("'3.09.1a'!s26")) -> 0 | P9: =IF(ISERROR(INDIRECT("'3.09.1a'!t26"))=TRUE,"",INDIRECT("'3.09.1a'!t26")) -> 0 | Q9: =IF(ISERROR(INDIRECT("'3.09.1a'!u26"))=TRUE,"",INDIRECT("'3.09.1a'!u26")) -> 0 | R9: =IF(ISERROR(INDIRECT("'3.09.1a'!v26"))=TRUE,"",INDIRECT("'3.09.1a'!v26")) -> 0 | S9: =IF(ISERROR(INDIRECT("'3.09.1a'!w26"))=TRUE,"",INDIRECT("'3.09.1a'!w26")) -> 0 | T9: =IF(ISERROR(INDIRECT("'3.09.1a'!x26"))=TRUE,"",INDIRECT("'3.09.1a'!x26")) -> 0 | U9: =IF(ISERROR(INDIRECT("'3.09.1a'!aa26"))=TRUE,"",INDIRECT("'3.09.1a'!aa26")) -> 0 | V9: =IF(ISERROR(INDIRECT("'3.09.1a'!ad26"))=TRUE,"",INDIRECT("'3.09.1a'!ad26")) -> 0 | W9: =IF(ISERROR(INDIRECT("'3.09.1a'!ah26"))=TRUE,"",INDIRECT("'3.09.1a'!ah26")) -> 0 | X9: =IF(ISERROR(INDIRECT("'3.09.1a'!am26"))=TRUE,"",INDIRECT("'3.09.1a'!am26")) -> 
A10: 0 | B10: 3.09.1a | C10: =IF(ISERROR(INDIRECT("'3.09.1a'!b27"))=TRUE,"",INDIRECT("'3.09.1a'!b27")) -> 9. | D10: =IF(ISERROR(INDIRECT("'3.09.1a'!c27"))=TRUE,"",INDIRECT("'3.09.1a'!c27")) -> 0 | E10: =IF(ISERROR(INDIRECT("'3.09.1a'!d27"))=TRUE,"",INDIRECT("'3.09.1a'!d27")) -> 0 | F10: =IF(ISERROR(INDIRECT("'3.09.1a'!e27"))=TRUE,"",INDIRECT("'3.09.1a'!e27")) -> 0 | G10: =IF(ISERROR(INDIRECT("'3.09.1a'!f27"))=TRUE,"",INDIRECT("'3.09.1a'!f27")) -> 00:00:00 | H10: =IF(ISERROR(INDIRECT("'3.09.1a'!g27"))=TRUE,"",INDIRECT("'3.09.1a'!g27")) -> 00:00:00 | I10: =IF(ISERROR(INDIRECT("'3.09.1a'!h27"))=TRUE,"",INDIRECT("'3.09.1a'!h27")) -> 0 | J10: =IF(ISERROR(INDIRECT("'3.09.1a'!i27"))=TRUE,"",INDIRECT("'3.09.1a'!i27")) -> 0 | K10: =IF(ISERROR(INDIRECT("'3.09.1a'!j27"))=TRUE,"",INDIRECT("'3.09.1a'!j27")) -> 0 | L10: =IF(ISERROR(INDIRECT("'3.09.1a'!o27"))=TRUE,"",INDIRECT("'3.09.1a'!o27")) ->  | M10: =IF(ISERROR(INDIRECT("'3.09.1a'!p27"))=TRUE,"",INDIRECT("'3.09.1a'!p27")) -> 0 | N10: =IF(ISERROR(INDIRECT("'3.09.1a'!q27"))=TRUE,"",INDIRECT("'3.09.1a'!q27")) -> 0 | O10: =IF(ISERROR(INDIRECT("'3.09.1a'!s27"))=TRUE,"",INDIRECT("'3.09.1a'!s27")) -> 0 | P10: =IF(ISERROR(INDIRECT("'3.09.1a'!t27"))=TRUE,"",INDIRECT("'3.09.1a'!t27")) -> 0 | Q10: =IF(ISERROR(INDIRECT("'3.09.1a'!u27"))=TRUE,"",INDIRECT("'3.09.1a'!u27")) -> 0 | R10: =IF(ISERROR(INDIRECT("'3.09.1a'!v27"))=TRUE,"",INDIRECT("'3.09.1a'!v27")) -> 0 | S10: =IF(ISERROR(INDIRECT("'3.09.1a'!w27"))=TRUE,"",INDIRECT("'3.09.1a'!w27")) -> 0 | T10: =IF(ISERROR(INDIRECT("'3.09.1a'!x27"))=TRUE,"",INDIRECT("'3.09.1a'!x27")) -> 0 | U10: =IF(ISERROR(INDIRECT("'3.09.1a'!aa27"))=TRUE,"",INDIRECT("'3.09.1a'!aa27")) -> 0 | V10: =IF(ISERROR(INDIRECT("'3.09.1a'!ad27"))=TRUE,"",INDIRECT("'3.09.1a'!ad27")) -> 0 | W10: =IF(ISERROR(INDIRECT("'3.09.1a'!ah27"))=TRUE,"",INDIRECT("'3.09.1a'!ah27")) -> 0 | X10: =IF(ISERROR(INDIRECT("'3.09.1a'!am27"))=TRUE,"",INDIRECT("'3.09.1a'!am27")) -> 
A11: 0 | B11: 3.09.1a | C11: =IF(ISERROR(INDIRECT("'3.09.1a'!b28"))=TRUE,"",INDIRECT("'3.09.1a'!b28")) -> 10. | D11: =IF(ISERROR(INDIRECT("'3.09.1a'!c28"))=TRUE,"",INDIRECT("'3.09.1a'!c28")) -> 0 | E11: =IF(ISERROR(INDIRECT("'3.09.1a'!d28"))=TRUE,"",INDIRECT("'3.09.1a'!d28")) -> 0 | F11: =IF(ISERROR(INDIRECT("'3.09.1a'!e28"))=TRUE,"",INDIRECT("'3.09.1a'!e28")) -> 0 | G11: =IF(ISERROR(INDIRECT("'3.09.1a'!f28"))=TRUE,"",INDIRECT("'3.09.1a'!f28")) -> 00:00:00 | H11: =IF(ISERROR(INDIRECT("'3.09.1a'!g28"))=TRUE,"",INDIRECT("'3.09.1a'!g28")) -> 00:00:00 | I11: =IF(ISERROR(INDIRECT("'3.09.1a'!h28"))=TRUE,"",INDIRECT("'3.09.1a'!h28")) -> 0 | J11: =IF(ISERROR(INDIRECT("'3.09.1a'!i28"))=TRUE,"",INDIRECT("'3.09.1a'!i28")) -> 0 | K11: =IF(ISERROR(INDIRECT("'3.09.1a'!j28"))=TRUE,"",INDIRECT("'3.09.1a'!j28")) -> 0 | L11: =IF(ISERROR(INDIRECT("'3.09.1a'!o28"))=TRUE,"",INDIRECT("'3.09.1a'!o28")) ->  | M11: =IF(ISERROR(INDIRECT("'3.09.1a'!p28"))=TRUE,"",INDIRECT("'3.09.1a'!p28")) -> 0 | N11: =IF(ISERROR(INDIRECT("'3.09.1a'!q28"))=TRUE,"",INDIRECT("'3.09.1a'!q28")) -> 0 | O11: =IF(ISERROR(INDIRECT("'3.09.1a'!s28"))=TRUE,"",INDIRECT("'3.09.1a'!s28")) -> 0 | P11: =IF(ISERROR(INDIRECT("'3.09.1a'!t28"))=TRUE,"",INDIRECT("'3.09.1a'!t28")) -> 0 | Q11: =IF(ISERROR(INDIRECT("'3.09.1a'!u28"))=TRUE,"",INDIRECT("'3.09.1a'!u28")) -> 0 | R11: =IF(ISERROR(INDIRECT("'3.09.1a'!v28"))=TRUE,"",INDIRECT("'3.09.1a'!v28")) -> 0 | S11: =IF(ISERROR(INDIRECT("'3.09.1a'!w28"))=TRUE,"",INDIRECT("'3.09.1a'!w28")) -> 0 | T11: =IF(ISERROR(INDIRECT("'3.09.1a'!x28"))=TRUE,"",INDIRECT("'3.09.1a'!x28")) -> 0 | U11: =IF(ISERROR(INDIRECT("'3.09.1a'!aa28"))=TRUE,"",INDIRECT("'3.09.1a'!aa28")) -> 0 | V11: =IF(ISERROR(INDIRECT("'3.09.1a'!ad28"))=TRUE,"",INDIRECT("'3.09.1a'!ad28")) -> 0 | W11: =IF(ISERROR(INDIRECT("'3.09.1a'!ah28"))=TRUE,"",INDIRECT("'3.09.1a'!ah28")) -> 0 | X11: =IF(ISERROR(INDIRECT("'3.09.1a'!am28"))=TRUE,"",INDIRECT("'3.09.1a'!am28")) -> 
A12: 0 | B12: 3.09.1a | C12: =IF(ISERROR(INDIRECT("'3.09.1a'!b29"))=TRUE,"",INDIRECT("'3.09.1a'!b29")) -> 11. | D12: =IF(ISERROR(INDIRECT("'3.09.1a'!c29"))=TRUE,"",INDIRECT("'3.09.1a'!c29")) -> 0 | E12: =IF(ISERROR(INDIRECT("'3.09.1a'!d29"))=TRUE,"",INDIRECT("'3.09.1a'!d29")) -> 0 | F12: =IF(ISERROR(INDIRECT("'3.09.1a'!e29"))=TRUE,"",INDIRECT("'3.09.1a'!e29")) -> 0 | G12: =IF(ISERROR(INDIRECT("'3.09.1a'!f29"))=TRUE,"",INDIRECT("'3.09.1a'!f29")) -> 00:00:00 | H12: =IF(ISERROR(INDIRECT("'3.09.1a'!g29"))=TRUE,"",INDIRECT("'3.09.1a'!g29")) -> 00:00:00 | I12: =IF(ISERROR(INDIRECT("'3.09.1a'!h29"))=TRUE,"",INDIRECT("'3.09.1a'!h29")) -> 0 | J12: =IF(ISERROR(INDIRECT("'3.09.1a'!i29"))=TRUE,"",INDIRECT("'3.09.1a'!i29")) -> 0 | K12: =IF(ISERROR(INDIRECT("'3.09.1a'!j29"))=TRUE,"",INDIRECT("'3.09.1a'!j29")) -> 0 | L12: =IF(ISERROR(INDIRECT("'3.09.1a'!o29"))=TRUE,"",INDIRECT("'3.09.1a'!o29")) ->  | M12: =IF(ISERROR(INDIRECT("'3.09.1a'!p29"))=TRUE,"",INDIRECT("'3.09.1a'!p29")) -> 0 | N12: =IF(ISERROR(INDIRECT("'3.09.1a'!q29"))=TRUE,"",INDIRECT("'3.09.1a'!q29")) -> 0 | O12: =IF(ISERROR(INDIRECT("'3.09.1a'!s29"))=TRUE,"",INDIRECT("'3.09.1a'!s29")) -> 0 | P12: =IF(ISERROR(INDIRECT("'3.09.1a'!t29"))=TRUE,"",INDIRECT("'3.09.1a'!t29")) -> 0 | Q12: =IF(ISERROR(INDIRECT("'3.09.1a'!u29"))=TRUE,"",INDIRECT("'3.09.1a'!u29")) -> 0 | R12: =IF(ISERROR(INDIRECT("'3.09.1a'!v29"))=TRUE,"",INDIRECT("'3.09.1a'!v29")) -> 0 | S12: =IF(ISERROR(INDIRECT("'3.09.1a'!w29"))=TRUE,"",INDIRECT("'3.09.1a'!w29")) -> 0 | T12: =IF(ISERROR(INDIRECT("'3.09.1a'!x29"))=TRUE,"",INDIRECT("'3.09.1a'!x29")) -> 0 | U12: =IF(ISERROR(INDIRECT("'3.09.1a'!aa29"))=TRUE,"",INDIRECT("'3.09.1a'!aa29")) -> 0 | V12: =IF(ISERROR(INDIRECT("'3.09.1a'!ad29"))=TRUE,"",INDIRECT("'3.09.1a'!ad29")) -> 0 | W12: =IF(ISERROR(INDIRECT("'3.09.1a'!ah29"))=TRUE,"",INDIRECT("'3.09.1a'!ah29")) -> 0 | X12: =IF(ISERROR(INDIRECT("'3.09.1a'!am29"))=TRUE,"",INDIRECT("'3.09.1a'!am29")) -> 
A13: 0 | B13: 3.09.1a | C13: =IF(ISERROR(INDIRECT("'3.09.1a'!b30"))=TRUE,"",INDIRECT("'3.09.1a'!b30")) -> 12. | D13: =IF(ISERROR(INDIRECT("'3.09.1a'!c30"))=TRUE,"",INDIRECT("'3.09.1a'!c30")) -> 0 | E13: =IF(ISERROR(INDIRECT("'3.09.1a'!d30"))=TRUE,"",INDIRECT("'3.09.1a'!d30")) -> 0 | F13: =IF(ISERROR(INDIRECT("'3.09.1a'!e30"))=TRUE,"",INDIRECT("'3.09.1a'!e30")) -> 0 | G13: =IF(ISERROR(INDIRECT("'3.09.1a'!f30"))=TRUE,"",INDIRECT("'3.09.1a'!f30")) -> 00:00:00 | H13: =IF(ISERROR(INDIRECT("'3.09.1a'!g30"))=TRUE,"",INDIRECT("'3.09.1a'!g30")) -> 00:00:00 | I13: =IF(ISERROR(INDIRECT("'3.09.1a'!h30"))=TRUE,"",INDIRECT("'3.09.1a'!h30")) -> 0 | J13: =IF(ISERROR(INDIRECT("'3.09.1a'!i30"))=TRUE,"",INDIRECT("'3.09.1a'!i30")) -> 0 | K13: =IF(ISERROR(INDIRECT("'3.09.1a'!j30"))=TRUE,"",INDIRECT("'3.09.1a'!j30")) -> 0 | L13: =IF(ISERROR(INDIRECT("'3.09.1a'!o30"))=TRUE,"",INDIRECT("'3.09.1a'!o30")) ->  | M13: =IF(ISERROR(INDIRECT("'3.09.1a'!p30"))=TRUE,"",INDIRECT("'3.09.1a'!p30")) -> 0 | N13: =IF(ISERROR(INDIRECT("'3.09.1a'!q30"))=TRUE,"",INDIRECT("'3.09.1a'!q30")) -> 0 | O13: =IF(ISERROR(INDIRECT("'3.09.1a'!s30"))=TRUE,"",INDIRECT("'3.09.1a'!s30")) -> 0 | P13: =IF(ISERROR(INDIRECT("'3.09.1a'!t30"))=TRUE,"",INDIRECT("'3.09.1a'!t30")) -> 0 | Q13: =IF(ISERROR(INDIRECT("'3.09.1a'!u30"))=TRUE,"",INDIRECT("'3.09.1a'!u30")) -> 0 | R13: =IF(ISERROR(INDIRECT("'3.09.1a'!v30"))=TRUE,"",INDIRECT("'3.09.1a'!v30")) -> 0 | S13: =IF(ISERROR(INDIRECT("'3.09.1a'!w30"))=TRUE,"",INDIRECT("'3.09.1a'!w30")) -> 0 | T13: =IF(ISERROR(INDIRECT("'3.09.1a'!x30"))=TRUE,"",INDIRECT("'3.09.1a'!x30")) -> 0 | U13: =IF(ISERROR(INDIRECT("'3.09.1a'!aa30"))=TRUE,"",INDIRECT("'3.09.1a'!aa30")) -> 0 | V13: =IF(ISERROR(INDIRECT("'3.09.1a'!ad30"))=TRUE,"",INDIRECT("'3.09.1a'!ad30")) -> 0 | W13: =IF(ISERROR(INDIRECT("'3.09.1a'!ah30"))=TRUE,"",INDIRECT("'3.09.1a'!ah30")) -> 0 | X13: =IF(ISERROR(INDIRECT("'3.09.1a'!am30"))=TRUE,"",INDIRECT("'3.09.1a'!am30")) -> 
A14: 0 | B14: 3.09.1a | C14: =IF(ISERROR(INDIRECT("'3.09.1a'!b31"))=TRUE,"",INDIRECT("'3.09.1a'!b31")) -> 13. | D14: =IF(ISERROR(INDIRECT("'3.09.1a'!c31"))=TRUE,"",INDIRECT("'3.09.1a'!c31")) -> 0 | E14: =IF(ISERROR(INDIRECT("'3.09.1a'!d31"))=TRUE,"",INDIRECT("'3.09.1a'!d31")) -> 0 | F14: =IF(ISERROR(INDIRECT("'3.09.1a'!e31"))=TRUE,"",INDIRECT("'3.09.1a'!e31")) -> 0 | G14: =IF(ISERROR(INDIRECT("'3.09.1a'!f31"))=TRUE,"",INDIRECT("'3.09.1a'!f31")) -> 00:00:00 | H14: =IF(ISERROR(INDIRECT("'3.09.1a'!g31"))=TRUE,"",INDIRECT("'3.09.1a'!g31")) -> 00:00:00 | I14: =IF(ISERROR(INDIRECT("'3.09.1a'!h31"))=TRUE,"",INDIRECT("'3.09.1a'!h31")) -> 0 | J14: =IF(ISERROR(INDIRECT("'3.09.1a'!i31"))=TRUE,"",INDIRECT("'3.09.1a'!i31")) -> 0 | K14: =IF(ISERROR(INDIRECT("'3.09.1a'!j31"))=TRUE,"",INDIRECT("'3.09.1a'!j31")) -> 0 | L14: =IF(ISERROR(INDIRECT("'3.09.1a'!o31"))=TRUE,"",INDIRECT("'3.09.1a'!o31")) ->  | M14: =IF(ISERROR(INDIRECT("'3.09.1a'!p31"))=TRUE,"",INDIRECT("'3.09.1a'!p31")) -> 0 | N14: =IF(ISERROR(INDIRECT("'3.09.1a'!q31"))=TRUE,"",INDIRECT("'3.09.1a'!q31")) -> 0 | O14: =IF(ISERROR(INDIRECT("'3.09.1a'!s31"))=TRUE,"",INDIRECT("'3.09.1a'!s31")) -> 0 | P14: =IF(ISERROR(INDIRECT("'3.09.1a'!t31"))=TRUE,"",INDIRECT("'3.09.1a'!t31")) -> 0 | Q14: =IF(ISERROR(INDIRECT("'3.09.1a'!u31"))=TRUE,"",INDIRECT("'3.09.1a'!u31")) -> 0 | R14: =IF(ISERROR(INDIRECT("'3.09.1a'!v31"))=TRUE,"",INDIRECT("'3.09.1a'!v31")) -> 0 | S14: =IF(ISERROR(INDIRECT("'3.09.1a'!w31"))=TRUE,"",INDIRECT("'3.09.1a'!w31")) -> 0 | T14: =IF(ISERROR(INDIRECT("'3.09.1a'!x31"))=TRUE,"",INDIRECT("'3.09.1a'!x31")) -> 0 | U14: =IF(ISERROR(INDIRECT("'3.09.1a'!aa31"))=TRUE,"",INDIRECT("'3.09.1a'!aa31")) -> 0 | V14: =IF(ISERROR(INDIRECT("'3.09.1a'!ad31"))=TRUE,"",INDIRECT("'3.09.1a'!ad31")) -> 0 | W14: =IF(ISERROR(INDIRECT("'3.09.1a'!ah31"))=TRUE,"",INDIRECT("'3.09.1a'!ah31")) -> 0 | X14: =IF(ISERROR(INDIRECT("'3.09.1a'!am31"))=TRUE,"",INDIRECT("'3.09.1a'!am31")) -> 
A15: 0 | B15: 3.09.1a | C15: =IF(ISERROR(INDIRECT("'3.09.1a'!b32"))=TRUE,"",INDIRECT("'3.09.1a'!b32")) -> 14. | D15: =IF(ISERROR(INDIRECT("'3.09.1a'!c32"))=TRUE,"",INDIRECT("'3.09.1a'!c32")) -> 0 | E15: =IF(ISERROR(INDIRECT("'3.09.1a'!d32"))=TRUE,"",INDIRECT("'3.09.1a'!d32")) -> 0 | F15: =IF(ISERROR(INDIRECT("'3.09.1a'!e32"))=TRUE,"",INDIRECT("'3.09.1a'!e32")) -> 0 | G15: =IF(ISERROR(INDIRECT("'3.09.1a'!f32"))=TRUE,"",INDIRECT("'3.09.1a'!f32")) -> 00:00:00 | H15: =IF(ISERROR(INDIRECT("'3.09.1a'!g32"))=TRUE,"",INDIRECT("'3.09.1a'!g32")) -> 00:00:00 | I15: =IF(ISERROR(INDIRECT("'3.09.1a'!h32"))=TRUE,"",INDIRECT("'3.09.1a'!h32")) -> 0 | J15: =IF(ISERROR(INDIRECT("'3.09.1a'!i32"))=TRUE,"",INDIRECT("'3.09.1a'!i32")) -> 0 | K15: =IF(ISERROR(INDIRECT("'3.09.1a'!j32"))=TRUE,"",INDIRECT("'3.09.1a'!j32")) -> 0 | L15: =IF(ISERROR(INDIRECT("'3.09.1a'!o32"))=TRUE,"",INDIRECT("'3.09.1a'!o32")) ->  | M15: =IF(ISERROR(INDIRECT("'3.09.1a'!p32"))=TRUE,"",INDIRECT("'3.09.1a'!p32")) -> 0 | N15: =IF(ISERROR(INDIRECT("'3.09.1a'!q32"))=TRUE,"",INDIRECT("'3.09.1a'!q32")) -> 0 | O15: =IF(ISERROR(INDIRECT("'3.09.1a'!s32"))=TRUE,"",INDIRECT("'3.09.1a'!s32")) -> 0 | P15: =IF(ISERROR(INDIRECT("'3.09.1a'!t32"))=TRUE,"",INDIRECT("'3.09.1a'!t32")) -> 0 | Q15: =IF(ISERROR(INDIRECT("'3.09.1a'!u32"))=TRUE,"",INDIRECT("'3.09.1a'!u32")) -> 0 | R15: =IF(ISERROR(INDIRECT("'3.09.1a'!v32"))=TRUE,"",INDIRECT("'3.09.1a'!v32")) -> 0 | S15: =IF(ISERROR(INDIRECT("'3.09.1a'!w32"))=TRUE,"",INDIRECT("'3.09.1a'!w32")) -> 0 | T15: =IF(ISERROR(INDIRECT("'3.09.1a'!x32"))=TRUE,"",INDIRECT("'3.09.1a'!x32")) -> 0 | U15: =IF(ISERROR(INDIRECT("'3.09.1a'!aa32"))=TRUE,"",INDIRECT("'3.09.1a'!aa32")) -> 0 | V15: =IF(ISERROR(INDIRECT("'3.09.1a'!ad32"))=TRUE,"",INDIRECT("'3.09.1a'!ad32")) -> 0 | W15: =IF(ISERROR(INDIRECT("'3.09.1a'!ah32"))=TRUE,"",INDIRECT("'3.09.1a'!ah32")) -> 0 | X15: =IF(ISERROR(INDIRECT("'3.09.1a'!am32"))=TRUE,"",INDIRECT("'3.09.1a'!am32")) -> 
A16: 0 | B16: 3.09.1a | C16: =IF(ISERROR(INDIRECT("'3.09.1a'!b33"))=TRUE,"",INDIRECT("'3.09.1a'!b33")) -> 15. | D16: =IF(ISERROR(INDIRECT("'3.09.1a'!c33"))=TRUE,"",INDIRECT("'3.09.1a'!c33")) -> 0 | E16: =IF(ISERROR(INDIRECT("'3.09.1a'!d33"))=TRUE,"",INDIRECT("'3.09.1a'!d33")) -> 0 | F16: =IF(ISERROR(INDIRECT("'3.09.1a'!e33"))=TRUE,"",INDIRECT("'3.09.1a'!e33")) -> 0 | G16: =IF(ISERROR(INDIRECT("'3.09.1a'!f33"))=TRUE,"",INDIRECT("'3.09.1a'!f33")) -> 00:00:00 | H16: =IF(ISERROR(INDIRECT("'3.09.1a'!g33"))=TRUE,"",INDIRECT("'3.09.1a'!g33")) -> 00:00:00 | I16: =IF(ISERROR(INDIRECT("'3.09.1a'!h33"))=TRUE,"",INDIRECT("'3.09.1a'!h33")) -> 0 | J16: =IF(ISERROR(INDIRECT("'3.09.1a'!i33"))=TRUE,"",INDIRECT("'3.09.1a'!i33")) -> 0 | K16: =IF(ISERROR(INDIRECT("'3.09.1a'!j33"))=TRUE,"",INDIRECT("'3.09.1a'!j33")) -> 0 | L16: =IF(ISERROR(INDIRECT("'3.09.1a'!o33"))=TRUE,"",INDIRECT("'3.09.1a'!o33")) ->  | M16: =IF(ISERROR(INDIRECT("'3.09.1a'!p33"))=TRUE,"",INDIRECT("'3.09.1a'!p33")) -> 0 | N16: =IF(ISERROR(INDIRECT("'3.09.1a'!q33"))=TRUE,"",INDIRECT("'3.09.1a'!q33")) -> 0 | O16: =IF(ISERROR(INDIRECT("'3.09.1a'!s33"))=TRUE,"",INDIRECT("'3.09.1a'!s33")) -> 0 | P16: =IF(ISERROR(INDIRECT("'3.09.1a'!t33"))=TRUE,"",INDIRECT("'3.09.1a'!t33")) -> 0 | Q16: =IF(ISERROR(INDIRECT("'3.09.1a'!u33"))=TRUE,"",INDIRECT("'3.09.1a'!u33")) -> 0 | R16: =IF(ISERROR(INDIRECT("'3.09.1a'!v33"))=TRUE,"",INDIRECT("'3.09.1a'!v33")) -> 0 | S16: =IF(ISERROR(INDIRECT("'3.09.1a'!w33"))=TRUE,"",INDIRECT("'3.09.1a'!w33")) -> 0 | T16: =IF(ISERROR(INDIRECT("'3.09.1a'!x33"))=TRUE,"",INDIRECT("'3.09.1a'!x33")) -> 0 | U16: =IF(ISERROR(INDIRECT("'3.09.1a'!aa33"))=TRUE,"",INDIRECT("'3.09.1a'!aa33")) -> 0 | V16: =IF(ISERROR(INDIRECT("'3.09.1a'!ad33"))=TRUE,"",INDIRECT("'3.09.1a'!ad33")) -> 0 | W16: =IF(ISERROR(INDIRECT("'3.09.1a'!ah33"))=TRUE,"",INDIRECT("'3.09.1a'!ah33")) -> 0 | X16: =IF(ISERROR(INDIRECT("'3.09.1a'!am33"))=TRUE,"",INDIRECT("'3.09.1a'!am33")) -> 
A17: 0 | B17: 3.09.1a | C17: =IF(ISERROR(INDIRECT("'3.09.1a'!b34"))=TRUE,"",INDIRECT("'3.09.1a'!b34")) -> 16. | D17: =IF(ISERROR(INDIRECT("'3.09.1a'!c34"))=TRUE,"",INDIRECT("'3.09.1a'!c34")) -> 0 | E17: =IF(ISERROR(INDIRECT("'3.09.1a'!d34"))=TRUE,"",INDIRECT("'3.09.1a'!d34")) -> 0 | F17: =IF(ISERROR(INDIRECT("'3.09.1a'!e34"))=TRUE,"",INDIRECT("'3.09.1a'!e34")) -> 0 | G17: =IF(ISERROR(INDIRECT("'3.09.1a'!f34"))=TRUE,"",INDIRECT("'3.09.1a'!f34")) -> 00:00:00 | H17: =IF(ISERROR(INDIRECT("'3.09.1a'!g34"))=TRUE,"",INDIRECT("'3.09.1a'!g34")) -> 00:00:00 | I17: =IF(ISERROR(INDIRECT("'3.09.1a'!h34"))=TRUE,"",INDIRECT("'3.09.1a'!h34")) -> 0 | J17: =IF(ISERROR(INDIRECT("'3.09.1a'!i34"))=TRUE,"",INDIRECT("'3.09.1a'!i34")) -> 0 | K17: =IF(ISERROR(INDIRECT("'3.09.1a'!j34"))=TRUE,"",INDIRECT("'3.09.1a'!j34")) -> 0 | L17: =IF(ISERROR(INDIRECT("'3.09.1a'!o34"))=TRUE,"",INDIRECT("'3.09.1a'!o34")) ->  | M17: =IF(ISERROR(INDIRECT("'3.09.1a'!p34"))=TRUE,"",INDIRECT("'3.09.1a'!p34")) -> 0 | N17: =IF(ISERROR(INDIRECT("'3.09.1a'!q34"))=TRUE,"",INDIRECT("'3.09.1a'!q34")) -> 0 | O17: =IF(ISERROR(INDIRECT("'3.09.1a'!s34"))=TRUE,"",INDIRECT("'3.09.1a'!s34")) -> 0 | P17: =IF(ISERROR(INDIRECT("'3.09.1a'!t34"))=TRUE,"",INDIRECT("'3.09.1a'!t34")) -> 0 | Q17: =IF(ISERROR(INDIRECT("'3.09.1a'!u34"))=TRUE,"",INDIRECT("'3.09.1a'!u34")) -> 0 | R17: =IF(ISERROR(INDIRECT("'3.09.1a'!v34"))=TRUE,"",INDIRECT("'3.09.1a'!v34")) -> 0 | S17: =IF(ISERROR(INDIRECT("'3.09.1a'!w34"))=TRUE,"",INDIRECT("'3.09.1a'!w34")) -> 0 | T17: =IF(ISERROR(INDIRECT("'3.09.1a'!x34"))=TRUE,"",INDIRECT("'3.09.1a'!x34")) -> 0 | U17: =IF(ISERROR(INDIRECT("'3.09.1a'!aa34"))=TRUE,"",INDIRECT("'3.09.1a'!aa34")) -> 0 | V17: =IF(ISERROR(INDIRECT("'3.09.1a'!ad34"))=TRUE,"",INDIRECT("'3.09.1a'!ad34")) -> 0 | W17: =IF(ISERROR(INDIRECT("'3.09.1a'!ah34"))=TRUE,"",INDIRECT("'3.09.1a'!ah34")) -> 0 | X17: =IF(ISERROR(INDIRECT("'3.09.1a'!am34"))=TRUE,"",INDIRECT("'3.09.1a'!am34")) -> 
A18: 0 | B18: 3.09.1a | C18: =IF(ISERROR(INDIRECT("'3.09.1a'!b35"))=TRUE,"",INDIRECT("'3.09.1a'!b35")) -> 17. | D18: =IF(ISERROR(INDIRECT("'3.09.1a'!c35"))=TRUE,"",INDIRECT("'3.09.1a'!c35")) -> 0 | E18: =IF(ISERROR(INDIRECT("'3.09.1a'!d35"))=TRUE,"",INDIRECT("'3.09.1a'!d35")) -> 0 | F18: =IF(ISERROR(INDIRECT("'3.09.1a'!e35"))=TRUE,"",INDIRECT("'3.09.1a'!e35")) -> 0 | G18: =IF(ISERROR(INDIRECT("'3.09.1a'!f35"))=TRUE,"",INDIRECT("'3.09.1a'!f35")) -> 00:00:00 | H18: =IF(ISERROR(INDIRECT("'3.09.1a'!g35"))=TRUE,"",INDIRECT("'3.09.1a'!g35")) -> 00:00:00 | I18: =IF(ISERROR(INDIRECT("'3.09.1a'!h35"))=TRUE,"",INDIRECT("'3.09.1a'!h35")) -> 0 | J18: =IF(ISERROR(INDIRECT("'3.09.1a'!i35"))=TRUE,"",INDIRECT("'3.09.1a'!i35")) -> 0 | K18: =IF(ISERROR(INDIRECT("'3.09.1a'!j35"))=TRUE,"",INDIRECT("'3.09.1a'!j35")) -> 0 | L18: =IF(ISERROR(INDIRECT("'3.09.1a'!o35"))=TRUE,"",INDIRECT("'3.09.1a'!o35")) ->  | M18: =IF(ISERROR(INDIRECT("'3.09.1a'!p35"))=TRUE,"",INDIRECT("'3.09.1a'!p35")) -> 0 | N18: =IF(ISERROR(INDIRECT("'3.09.1a'!q35"))=TRUE,"",INDIRECT("'3.09.1a'!q35")) -> 0 | O18: =IF(ISERROR(INDIRECT("'3.09.1a'!s35"))=TRUE,"",INDIRECT("'3.09.1a'!s35")) -> 0 | P18: =IF(ISERROR(INDIRECT("'3.09.1a'!t35"))=TRUE,"",INDIRECT("'3.09.1a'!t35")) -> 0 | Q18: =IF(ISERROR(INDIRECT("'3.09.1a'!u35"))=TRUE,"",INDIRECT("'3.09.1a'!u35")) -> 0 | R18: =IF(ISERROR(INDIRECT("'3.09.1a'!v35"))=TRUE,"",INDIRECT("'3.09.1a'!v35")) -> 0 | S18: =IF(ISERROR(INDIRECT("'3.09.1a'!w35"))=TRUE,"",INDIRECT("'3.09.1a'!w35")) -> 0 | T18: =IF(ISERROR(INDIRECT("'3.09.1a'!x35"))=TRUE,"",INDIRECT("'3.09.1a'!x35")) -> 0 | U18: =IF(ISERROR(INDIRECT("'3.09.1a'!aa35"))=TRUE,"",INDIRECT("'3.09.1a'!aa35")) -> 0 | V18: =IF(ISERROR(INDIRECT("'3.09.1a'!ad35"))=TRUE,"",INDIRECT("'3.09.1a'!ad35")) -> 0 | W18: =IF(ISERROR(INDIRECT("'3.09.1a'!ah35"))=TRUE,"",INDIRECT("'3.09.1a'!ah35")) -> 0 | X18: =IF(ISERROR(INDIRECT("'3.09.1a'!am35"))=TRUE,"",INDIRECT("'3.09.1a'!am35")) -> 
A19: 0 | B19: 3.09.1a | C19: =IF(ISERROR(INDIRECT("'3.09.1a'!b36"))=TRUE,"",INDIRECT("'3.09.1a'!b36")) -> 18. | D19: =IF(ISERROR(INDIRECT("'3.09.1a'!c36"))=TRUE,"",INDIRECT("'3.09.1a'!c36")) -> 0 | E19: =IF(ISERROR(INDIRECT("'3.09.1a'!d36"))=TRUE,"",INDIRECT("'3.09.1a'!d36")) -> 0 | F19: =IF(ISERROR(INDIRECT("'3.09.1a'!e36"))=TRUE,"",INDIRECT("'3.09.1a'!e36")) -> 0 | G19: =IF(ISERROR(INDIRECT("'3.09.1a'!f36"))=TRUE,"",INDIRECT("'3.09.1a'!f36")) -> 00:00:00 | H19: =IF(ISERROR(INDIRECT("'3.09.1a'!g36"))=TRUE,"",INDIRECT("'3.09.1a'!g36")) -> 00:00:00 | I19: =IF(ISERROR(INDIRECT("'3.09.1a'!h36"))=TRUE,"",INDIRECT("'3.09.1a'!h36")) -> 0 | J19: =IF(ISERROR(INDIRECT("'3.09.1a'!i36"))=TRUE,"",INDIRECT("'3.09.1a'!i36")) -> 0 | K19: =IF(ISERROR(INDIRECT("'3.09.1a'!j36"))=TRUE,"",INDIRECT("'3.09.1a'!j36")) -> 0 | L19: =IF(ISERROR(INDIRECT("'3.09.1a'!o36"))=TRUE,"",INDIRECT("'3.09.1a'!o36")) ->  | M19: =IF(ISERROR(INDIRECT("'3.09.1a'!p36"))=TRUE,"",INDIRECT("'3.09.1a'!p36")) -> 0 | N19: =IF(ISERROR(INDIRECT("'3.09.1a'!q36"))=TRUE,"",INDIRECT("'3.09.1a'!q36")) -> 0 | O19: =IF(ISERROR(INDIRECT("'3.09.1a'!s36"))=TRUE,"",INDIRECT("'3.09.1a'!s36")) -> 0 | P19: =IF(ISERROR(INDIRECT("'3.09.1a'!t36"))=TRUE,"",INDIRECT("'3.09.1a'!t36")) -> 0 | Q19: =IF(ISERROR(INDIRECT("'3.09.1a'!u36"))=TRUE,"",INDIRECT("'3.09.1a'!u36")) -> 0 | R19: =IF(ISERROR(INDIRECT("'3.09.1a'!v36"))=TRUE,"",INDIRECT("'3.09.1a'!v36")) -> 0 | S19: =IF(ISERROR(INDIRECT("'3.09.1a'!w36"))=TRUE,"",INDIRECT("'3.09.1a'!w36")) -> 0 | T19: =IF(ISERROR(INDIRECT("'3.09.1a'!x36"))=TRUE,"",INDIRECT("'3.09.1a'!x36")) -> 0 | U19: =IF(ISERROR(INDIRECT("'3.09.1a'!aa36"))=TRUE,"",INDIRECT("'3.09.1a'!aa36")) -> 0 | V19: =IF(ISERROR(INDIRECT("'3.09.1a'!ad36"))=TRUE,"",INDIRECT("'3.09.1a'!ad36")) -> 0 | W19: =IF(ISERROR(INDIRECT("'3.09.1a'!ah36"))=TRUE,"",INDIRECT("'3.09.1a'!ah36")) -> 0 | X19: =IF(ISERROR(INDIRECT("'3.09.1a'!am36"))=TRUE,"",INDIRECT("'3.09.1a'!am36")) -> 
A20: 0 | B20: 3.09.1a | C20: =IF(ISERROR(INDIRECT("'3.09.1a'!b37"))=TRUE,"",INDIRECT("'3.09.1a'!b37")) -> 19. | D20: =IF(ISERROR(INDIRECT("'3.09.1a'!c37"))=TRUE,"",INDIRECT("'3.09.1a'!c37")) -> 0 | E20: =IF(ISERROR(INDIRECT("'3.09.1a'!d37"))=TRUE,"",INDIRECT("'3.09.1a'!d37")) -> 0 | F20: =IF(ISERROR(INDIRECT("'3.09.1a'!e37"))=TRUE,"",INDIRECT("'3.09.1a'!e37")) -> 0 | G20: =IF(ISERROR(INDIRECT("'3.09.1a'!f37"))=TRUE,"",INDIRECT("'3.09.1a'!f37")) -> 00:00:00 | H20: =IF(ISERROR(INDIRECT("'3.09.1a'!g37"))=TRUE,"",INDIRECT("'3.09.1a'!g37")) -> 00:00:00 | I20: =IF(ISERROR(INDIRECT("'3.09.1a'!h37"))=TRUE,"",INDIRECT("'3.09.1a'!h37")) -> 0 | J20: =IF(ISERROR(INDIRECT("'3.09.1a'!i37"))=TRUE,"",INDIRECT("'3.09.1a'!i37")) -> 0 | K20: =IF(ISERROR(INDIRECT("'3.09.1a'!j37"))=TRUE,"",INDIRECT("'3.09.1a'!j37")) -> 0 | L20: =IF(ISERROR(INDIRECT("'3.09.1a'!o37"))=TRUE,"",INDIRECT("'3.09.1a'!o37")) ->  | M20: =IF(ISERROR(INDIRECT("'3.09.1a'!p37"))=TRUE,"",INDIRECT("'3.09.1a'!p37")) -> 0 | N20: =IF(ISERROR(INDIRECT("'3.09.1a'!q37"))=TRUE,"",INDIRECT("'3.09.1a'!q37")) -> 0 | O20: =IF(ISERROR(INDIRECT("'3.09.1a'!s37"))=TRUE,"",INDIRECT("'3.09.1a'!s37")) -> 0 | P20: =IF(ISERROR(INDIRECT("'3.09.1a'!t37"))=TRUE,"",INDIRECT("'3.09.1a'!t37")) -> 0 | Q20: =IF(ISERROR(INDIRECT("'3.09.1a'!u37"))=TRUE,"",INDIRECT("'3.09.1a'!u37")) -> 0 | R20: =IF(ISERROR(INDIRECT("'3.09.1a'!v37"))=TRUE,"",INDIRECT("'3.09.1a'!v37")) -> 0 | S20: =IF(ISERROR(INDIRECT("'3.09.1a'!w37"))=TRUE,"",INDIRECT("'3.09.1a'!w37")) -> 0 | T20: =IF(ISERROR(INDIRECT("'3.09.1a'!x37"))=TRUE,"",INDIRECT("'3.09.1a'!x37")) -> 0 | U20: =IF(ISERROR(INDIRECT("'3.09.1a'!aa37"))=TRUE,"",INDIRECT("'3.09.1a'!aa37")) -> 0 | V20: =IF(ISERROR(INDIRECT("'3.09.1a'!ad37"))=TRUE,"",INDIRECT("'3.09.1a'!ad37")) -> 0 | W20: =IF(ISERROR(INDIRECT("'3.09.1a'!ah37"))=TRUE,"",INDIRECT("'3.09.1a'!ah37")) -> 0 | X20: =IF(ISERROR(INDIRECT("'3.09.1a'!am37"))=TRUE,"",INDIRECT("'3.09.1a'!am37")) -> 
A21: 0 | B21: 3.09.1a | C21: =IF(ISERROR(INDIRECT("'3.09.1a'!b38"))=TRUE,"",INDIRECT("'3.09.1a'!b38")) -> 20. | D21: =IF(ISERROR(INDIRECT("'3.09.1a'!c38"))=TRUE,"",INDIRECT("'3.09.1a'!c38")) -> 0 | E21: =IF(ISERROR(INDIRECT("'3.09.1a'!d38"))=TRUE,"",INDIRECT("'3.09.1a'!d38")) -> 0 | F21: =IF(ISERROR(INDIRECT("'3.09.1a'!e38"))=TRUE,"",INDIRECT("'3.09.1a'!e38")) -> 0 | G21: =IF(ISERROR(INDIRECT("'3.09.1a'!f38"))=TRUE,"",INDIRECT("'3.09.1a'!f38")) -> 00:00:00 | H21: =IF(ISERROR(INDIRECT("'3.09.1a'!g38"))=TRUE,"",INDIRECT("'3.09.1a'!g38")) -> 00:00:00 | I21: =IF(ISERROR(INDIRECT("'3.09.1a'!h38"))=TRUE,"",INDIRECT("'3.09.1a'!h38")) -> 0 | J21: =IF(ISERROR(INDIRECT("'3.09.1a'!i38"))=TRUE,"",INDIRECT("'3.09.1a'!i38")) -> 0 | K21: =IF(ISERROR(INDIRECT("'3.09.1a'!j38"))=TRUE,"",INDIRECT("'3.09.1a'!j38")) -> 0 | L21: =IF(ISERROR(INDIRECT("'3.09.1a'!o38"))=TRUE,"",INDIRECT("'3.09.1a'!o38")) ->  | M21: =IF(ISERROR(INDIRECT("'3.09.1a'!p38"))=TRUE,"",INDIRECT("'3.09.1a'!p38")) -> 0 | N21: =IF(ISERROR(INDIRECT("'3.09.1a'!q38"))=TRUE,"",INDIRECT("'3.09.1a'!q38")) -> 0 | O21: =IF(ISERROR(INDIRECT("'3.09.1a'!s38"))=TRUE,"",INDIRECT("'3.09.1a'!s38")) -> 0 | P21: =IF(ISERROR(INDIRECT("'3.09.1a'!t38"))=TRUE,"",INDIRECT("'3.09.1a'!t38")) -> 0 | Q21: =IF(ISERROR(INDIRECT("'3.09.1a'!u38"))=TRUE,"",INDIRECT("'3.09.1a'!u38")) -> 0 | R21: =IF(ISERROR(INDIRECT("'3.09.1a'!v38"))=TRUE,"",INDIRECT("'3.09.1a'!v38")) -> 0 | S21: =IF(ISERROR(INDIRECT("'3.09.1a'!w38"))=TRUE,"",INDIRECT("'3.09.1a'!w38")) -> 0 | T21: =IF(ISERROR(INDIRECT("'3.09.1a'!x38"))=TRUE,"",INDIRECT("'3.09.1a'!x38")) -> 0 | U21: =IF(ISERROR(INDIRECT("'3.09.1a'!aa38"))=TRUE,"",INDIRECT("'3.09.1a'!aa38")) -> 0 | V21: =IF(ISERROR(INDIRECT("'3.09.1a'!ad38"))=TRUE,"",INDIRECT("'3.09.1a'!ad38")) -> 0 | W21: =IF(ISERROR(INDIRECT("'3.09.1a'!ah38"))=TRUE,"",INDIRECT("'3.09.1a'!ah38")) -> 0 | X21: =IF(ISERROR(INDIRECT("'3.09.1a'!am38"))=TRUE,"",INDIRECT("'3.09.1a'!am38")) -> 
A22: 0 | B22: 3.09.1a | C22: =IF(ISERROR(INDIRECT("'3.09.1a'!b39"))=TRUE,"",INDIRECT("'3.09.1a'!b39")) -> 21. | D22: =IF(ISERROR(INDIRECT("'3.09.1a'!c39"))=TRUE,"",INDIRECT("'3.09.1a'!c39")) -> 0 | E22: =IF(ISERROR(INDIRECT("'3.09.1a'!d39"))=TRUE,"",INDIRECT("'3.09.1a'!d39")) -> 0 | F22: =IF(ISERROR(INDIRECT("'3.09.1a'!e39"))=TRUE,"",INDIRECT("'3.09.1a'!e39")) -> 0 | G22: =IF(ISERROR(INDIRECT("'3.09.1a'!f39"))=TRUE,"",INDIRECT("'3.09.1a'!f39")) -> 00:00:00 | H22: =IF(ISERROR(INDIRECT("'3.09.1a'!g39"))=TRUE,"",INDIRECT("'3.09.1a'!g39")) -> 00:00:00 | I22: =IF(ISERROR(INDIRECT("'3.09.1a'!h39"))=TRUE,"",INDIRECT("'3.09.1a'!h39")) -> 0 | J22: =IF(ISERROR(INDIRECT("'3.09.1a'!i39"))=TRUE,"",INDIRECT("'3.09.1a'!i39")) -> 0 | K22: =IF(ISERROR(INDIRECT("'3.09.1a'!j39"))=TRUE,"",INDIRECT("'3.09.1a'!j39")) -> 0 | L22: =IF(ISERROR(INDIRECT("'3.09.1a'!o39"))=TRUE,"",INDIRECT("'3.09.1a'!o39")) ->  | M22: =IF(ISERROR(INDIRECT("'3.09.1a'!p39"))=TRUE,"",INDIRECT("'3.09.1a'!p39")) -> 0 | N22: =IF(ISERROR(INDIRECT("'3.09.1a'!q39"))=TRUE,"",INDIRECT("'3.09.1a'!q39")) -> 0 | O22: =IF(ISERROR(INDIRECT("'3.09.1a'!s39"))=TRUE,"",INDIRECT("'3.09.1a'!s39")) -> 0 | P22: =IF(ISERROR(INDIRECT("'3.09.1a'!t39"))=TRUE,"",INDIRECT("'3.09.1a'!t39")) -> 0 | Q22: =IF(ISERROR(INDIRECT("'3.09.1a'!u39"))=TRUE,"",INDIRECT("'3.09.1a'!u39")) -> 0 | R22: =IF(ISERROR(INDIRECT("'3.09.1a'!v39"))=TRUE,"",INDIRECT("'3.09.1a'!v39")) -> 0 | S22: =IF(ISERROR(INDIRECT("'3.09.1a'!w39"))=TRUE,"",INDIRECT("'3.09.1a'!w39")) -> 0 | T22: =IF(ISERROR(INDIRECT("'3.09.1a'!x39"))=TRUE,"",INDIRECT("'3.09.1a'!x39")) -> 0 | U22: =IF(ISERROR(INDIRECT("'3.09.1a'!aa39"))=TRUE,"",INDIRECT("'3.09.1a'!aa39")) -> 0 | V22: =IF(ISERROR(INDIRECT("'3.09.1a'!ad39"))=TRUE,"",INDIRECT("'3.09.1a'!ad39")) -> 0 | W22: =IF(ISERROR(INDIRECT("'3.09.1a'!ah39"))=TRUE,"",INDIRECT("'3.09.1a'!ah39")) -> 0 | X22: =IF(ISERROR(INDIRECT("'3.09.1a'!am39"))=TRUE,"",INDIRECT("'3.09.1a'!am39")) -> 
A23: 0 | B23: 3.09.1a | C23: =IF(ISERROR(INDIRECT("'3.09.1a'!b40"))=TRUE,"",INDIRECT("'3.09.1a'!b40")) -> 22. | D23: =IF(ISERROR(INDIRECT("'3.09.1a'!c40"))=TRUE,"",INDIRECT("'3.09.1a'!c40")) -> 0 | E23: =IF(ISERROR(INDIRECT("'3.09.1a'!d40"))=TRUE,"",INDIRECT("'3.09.1a'!d40")) -> 0 | F23: =IF(ISERROR(INDIRECT("'3.09.1a'!e40"))=TRUE,"",INDIRECT("'3.09.1a'!e40")) -> 0 | G23: =IF(ISERROR(INDIRECT("'3.09.1a'!f40"))=TRUE,"",INDIRECT("'3.09.1a'!f40")) -> 00:00:00 | H23: =IF(ISERROR(INDIRECT("'3.09.1a'!g40"))=TRUE,"",INDIRECT("'3.09.1a'!g40")) -> 00:00:00 | I23: =IF(ISERROR(INDIRECT("'3.09.1a'!h40"))=TRUE,"",INDIRECT("'3.09.1a'!h40")) -> 0 | J23: =IF(ISERROR(INDIRECT("'3.09.1a'!i40"))=TRUE,"",INDIRECT("'3.09.1a'!i40")) -> 0 | K23: =IF(ISERROR(INDIRECT("'3.09.1a'!j40"))=TRUE,"",INDIRECT("'3.09.1a'!j40")) -> 0 | L23: =IF(ISERROR(INDIRECT("'3.09.1a'!o40"))=TRUE,"",INDIRECT("'3.09.1a'!o40")) ->  | M23: =IF(ISERROR(INDIRECT("'3.09.1a'!p40"))=TRUE,"",INDIRECT("'3.09.1a'!p40")) -> 0 | N23: =IF(ISERROR(INDIRECT("'3.09.1a'!q40"))=TRUE,"",INDIRECT("'3.09.1a'!q40")) -> 0 | O23: =IF(ISERROR(INDIRECT("'3.09.1a'!s40"))=TRUE,"",INDIRECT("'3.09.1a'!s40")) -> 0 | P23: =IF(ISERROR(INDIRECT("'3.09.1a'!t40"))=TRUE,"",INDIRECT("'3.09.1a'!t40")) -> 0 | Q23: =IF(ISERROR(INDIRECT("'3.09.1a'!u40"))=TRUE,"",INDIRECT("'3.09.1a'!u40")) -> 0 | R23: =IF(ISERROR(INDIRECT("'3.09.1a'!v40"))=TRUE,"",INDIRECT("'3.09.1a'!v40")) -> 0 | S23: =IF(ISERROR(INDIRECT("'3.09.1a'!w40"))=TRUE,"",INDIRECT("'3.09.1a'!w40")) -> 0 | T23: =IF(ISERROR(INDIRECT("'3.09.1a'!x40"))=TRUE,"",INDIRECT("'3.09.1a'!x40")) -> 0 | U23: =IF(ISERROR(INDIRECT("'3.09.1a'!aa40"))=TRUE,"",INDIRECT("'3.09.1a'!aa40")) -> 0 | V23: =IF(ISERROR(INDIRECT("'3.09.1a'!ad40"))=TRUE,"",INDIRECT("'3.09.1a'!ad40")) -> 0 | W23: =IF(ISERROR(INDIRECT("'3.09.1a'!ah40"))=TRUE,"",INDIRECT("'3.09.1a'!ah40")) -> 0 | X23: =IF(ISERROR(INDIRECT("'3.09.1a'!am40"))=TRUE,"",INDIRECT("'3.09.1a'!am40")) -> 
A24: 0 | B24: 3.09.1a | C24: =IF(ISERROR(INDIRECT("'3.09.1a'!b41"))=TRUE,"",INDIRECT("'3.09.1a'!b41")) -> 23. | D24: =IF(ISERROR(INDIRECT("'3.09.1a'!c41"))=TRUE,"",INDIRECT("'3.09.1a'!c41")) -> 0 | E24: =IF(ISERROR(INDIRECT("'3.09.1a'!d41"))=TRUE,"",INDIRECT("'3.09.1a'!d41")) -> 0 | F24: =IF(ISERROR(INDIRECT("'3.09.1a'!e41"))=TRUE,"",INDIRECT("'3.09.1a'!e41")) -> 0 | G24: =IF(ISERROR(INDIRECT("'3.09.1a'!f41"))=TRUE,"",INDIRECT("'3.09.1a'!f41")) -> 00:00:00 | H24: =IF(ISERROR(INDIRECT("'3.09.1a'!g41"))=TRUE,"",INDIRECT("'3.09.1a'!g41")) -> 00:00:00 | I24: =IF(ISERROR(INDIRECT("'3.09.1a'!h41"))=TRUE,"",INDIRECT("'3.09.1a'!h41")) -> 0 | J24: =IF(ISERROR(INDIRECT("'3.09.1a'!i41"))=TRUE,"",INDIRECT("'3.09.1a'!i41")) -> 0 | K24: =IF(ISERROR(INDIRECT("'3.09.1a'!j41"))=TRUE,"",INDIRECT("'3.09.1a'!j41")) -> 0 | L24: =IF(ISERROR(INDIRECT("'3.09.1a'!o41"))=TRUE,"",INDIRECT("'3.09.1a'!o41")) ->  | M24: =IF(ISERROR(INDIRECT("'3.09.1a'!p41"))=TRUE,"",INDIRECT("'3.09.1a'!p41")) -> 0 | N24: =IF(ISERROR(INDIRECT("'3.09.1a'!q41"))=TRUE,"",INDIRECT("'3.09.1a'!q41")) -> 0 | O24: =IF(ISERROR(INDIRECT("'3.09.1a'!s41"))=TRUE,"",INDIRECT("'3.09.1a'!s41")) -> 0 | P24: =IF(ISERROR(INDIRECT("'3.09.1a'!t41"))=TRUE,"",INDIRECT("'3.09.1a'!t41")) -> 0 | Q24: =IF(ISERROR(INDIRECT("'3.09.1a'!u41"))=TRUE,"",INDIRECT("'3.09.1a'!u41")) -> 0 | R24: =IF(ISERROR(INDIRECT("'3.09.1a'!v41"))=TRUE,"",INDIRECT("'3.09.1a'!v41")) -> 0 | S24: =IF(ISERROR(INDIRECT("'3.09.1a'!w41"))=TRUE,"",INDIRECT("'3.09.1a'!w41")) -> 0 | T24: =IF(ISERROR(INDIRECT("'3.09.1a'!x41"))=TRUE,"",INDIRECT("'3.09.1a'!x41")) -> 0 | U24: =IF(ISERROR(INDIRECT("'3.09.1a'!aa41"))=TRUE,"",INDIRECT("'3.09.1a'!aa41")) -> 0 | V24: =IF(ISERROR(INDIRECT("'3.09.1a'!ad41"))=TRUE,"",INDIRECT("'3.09.1a'!ad41")) -> 0 | W24: =IF(ISERROR(INDIRECT("'3.09.1a'!ah41"))=TRUE,"",INDIRECT("'3.09.1a'!ah41")) -> 0 | X24: =IF(ISERROR(INDIRECT("'3.09.1a'!am41"))=TRUE,"",INDIRECT("'3.09.1a'!am41")) -> 
A25: 0 | B25: 3.09.1a | C25: =IF(ISERROR(INDIRECT("'3.09.1a'!b42"))=TRUE,"",INDIRECT("'3.09.1a'!b42")) -> 24. | D25: =IF(ISERROR(INDIRECT("'3.09.1a'!c42"))=TRUE,"",INDIRECT("'3.09.1a'!c42")) -> 0 | E25: =IF(ISERROR(INDIRECT("'3.09.1a'!d42"))=TRUE,"",INDIRECT("'3.09.1a'!d42")) -> 0 | F25: =IF(ISERROR(INDIRECT("'3.09.1a'!e42"))=TRUE,"",INDIRECT("'3.09.1a'!e42")) -> 0 | G25: =IF(ISERROR(INDIRECT("'3.09.1a'!f42"))=TRUE,"",INDIRECT("'3.09.1a'!f42")) -> 00:00:00 | H25: =IF(ISERROR(INDIRECT("'3.09.1a'!g42"))=TRUE,"",INDIRECT("'3.09.1a'!g42")) -> 00:00:00 | I25: =IF(ISERROR(INDIRECT("'3.09.1a'!h42"))=TRUE,"",INDIRECT("'3.09.1a'!h42")) -> 0 | J25: =IF(ISERROR(INDIRECT("'3.09.1a'!i42"))=TRUE,"",INDIRECT("'3.09.1a'!i42")) -> 0 | K25: =IF(ISERROR(INDIRECT("'3.09.1a'!j42"))=TRUE,"",INDIRECT("'3.09.1a'!j42")) -> 0 | L25: =IF(ISERROR(INDIRECT("'3.09.1a'!o42"))=TRUE,"",INDIRECT("'3.09.1a'!o42")) ->  | M25: =IF(ISERROR(INDIRECT("'3.09.1a'!p42"))=TRUE,"",INDIRECT("'3.09.1a'!p42")) -> 0 | N25: =IF(ISERROR(INDIRECT("'3.09.1a'!q42"))=TRUE,"",INDIRECT("'3.09.1a'!q42")) -> 0 | O25: =IF(ISERROR(INDIRECT("'3.09.1a'!s42"))=TRUE,"",INDIRECT("'3.09.1a'!s42")) -> 0 | P25: =IF(ISERROR(INDIRECT("'3.09.1a'!t42"))=TRUE,"",INDIRECT("'3.09.1a'!t42")) -> 0 | Q25: =IF(ISERROR(INDIRECT("'3.09.1a'!u42"))=TRUE,"",INDIRECT("'3.09.1a'!u42")) -> 0 | R25: =IF(ISERROR(INDIRECT("'3.09.1a'!v42"))=TRUE,"",INDIRECT("'3.09.1a'!v42")) -> 0 | S25: =IF(ISERROR(INDIRECT("'3.09.1a'!w42"))=TRUE,"",INDIRECT("'3.09.1a'!w42")) -> 0 | T25: =IF(ISERROR(INDIRECT("'3.09.1a'!x42"))=TRUE,"",INDIRECT("'3.09.1a'!x42")) -> 0 | U25: =IF(ISERROR(INDIRECT("'3.09.1a'!aa42"))=TRUE,"",INDIRECT("'3.09.1a'!aa42")) -> 0 | V25: =IF(ISERROR(INDIRECT("'3.09.1a'!ad42"))=TRUE,"",INDIRECT("'3.09.1a'!ad42")) -> 0 | W25: =IF(ISERROR(INDIRECT("'3.09.1a'!ah42"))=TRUE,"",INDIRECT("'3.09.1a'!ah42")) -> 0 | X25: =IF(ISERROR(INDIRECT("'3.09.1a'!am42"))=TRUE,"",INDIRECT("'3.09.1a'!am42")) -> 
A26: 0 | B26: 3.09.1a | C26: =IF(ISERROR(INDIRECT("'3.09.1a'!b43"))=TRUE,"",INDIRECT("'3.09.1a'!b43")) -> 25. | D26: =IF(ISERROR(INDIRECT("'3.09.1a'!c43"))=TRUE,"",INDIRECT("'3.09.1a'!c43")) -> 0 | E26: =IF(ISERROR(INDIRECT("'3.09.1a'!d43"))=TRUE,"",INDIRECT("'3.09.1a'!d43")) -> 0 | F26: =IF(ISERROR(INDIRECT("'3.09.1a'!e43"))=TRUE,"",INDIRECT("'3.09.1a'!e43")) -> 0 | G26: =IF(ISERROR(INDIRECT("'3.09.1a'!f43"))=TRUE,"",INDIRECT("'3.09.1a'!f43")) -> 00:00:00 | H26: =IF(ISERROR(INDIRECT("'3.09.1a'!g43"))=TRUE,"",INDIRECT("'3.09.1a'!g43")) -> 00:00:00 | I26: =IF(ISERROR(INDIRECT("'3.09.1a'!h43"))=TRUE,"",INDIRECT("'3.09.1a'!h43")) -> 0 | J26: =IF(ISERROR(INDIRECT("'3.09.1a'!i43"))=TRUE,"",INDIRECT("'3.09.1a'!i43")) -> 0 | K26: =IF(ISERROR(INDIRECT("'3.09.1a'!j43"))=TRUE,"",INDIRECT("'3.09.1a'!j43")) -> 0 | L26: =IF(ISERROR(INDIRECT("'3.09.1a'!o43"))=TRUE,"",INDIRECT("'3.09.1a'!o43")) ->  | M26: =IF(ISERROR(INDIRECT("'3.09.1a'!p43"))=TRUE,"",INDIRECT("'3.09.1a'!p43")) -> 0 | N26: =IF(ISERROR(INDIRECT("'3.09.1a'!q43"))=TRUE,"",INDIRECT("'3.09.1a'!q43")) -> 0 | O26: =IF(ISERROR(INDIRECT("'3.09.1a'!s43"))=TRUE,"",INDIRECT("'3.09.1a'!s43")) -> 0 | P26: =IF(ISERROR(INDIRECT("'3.09.1a'!t43"))=TRUE,"",INDIRECT("'3.09.1a'!t43")) -> 0 | Q26: =IF(ISERROR(INDIRECT("'3.09.1a'!u43"))=TRUE,"",INDIRECT("'3.09.1a'!u43")) -> 0 | R26: =IF(ISERROR(INDIRECT("'3.09.1a'!v43"))=TRUE,"",INDIRECT("'3.09.1a'!v43")) -> 0 | S26: =IF(ISERROR(INDIRECT("'3.09.1a'!w43"))=TRUE,"",INDIRECT("'3.09.1a'!w43")) -> 0 | T26: =IF(ISERROR(INDIRECT("'3.09.1a'!x43"))=TRUE,"",INDIRECT("'3.09.1a'!x43")) -> 0 | U26: =IF(ISERROR(INDIRECT("'3.09.1a'!aa43"))=TRUE,"",INDIRECT("'3.09.1a'!aa43")) -> 0 | V26: =IF(ISERROR(INDIRECT("'3.09.1a'!ad43"))=TRUE,"",INDIRECT("'3.09.1a'!ad43")) -> 0 | W26: =IF(ISERROR(INDIRECT("'3.09.1a'!ah43"))=TRUE,"",INDIRECT("'3.09.1a'!ah43")) -> 0 | X26: =IF(ISERROR(INDIRECT("'3.09.1a'!am43"))=TRUE,"",INDIRECT("'3.09.1a'!am43")) -> 
A27: =AgencyCode -> 0 | B27: 3.09.1a (2) | C27: =IF(ISERROR(INDIRECT("'3.09.1a (2)'!b19"))=TRUE,"",INDIRECT("'3.09.1a (2)'!b19")) ->  | D27: =IF(ISERROR(INDIRECT("'3.09.1a (2)'!c19"))=TRUE,"",INDIRECT("'3.09.1a (2)'!c19")) ->  | E27: =IF(ISERROR(INDIRECT("'3.09.1a (2)'!D19"))=TRUE,"",INDIRECT("'3.09.1a (2)'!D19")) ->  | F27: =IF(ISERROR(INDIRECT("'3.09.1a (2)'!e19"))=TRUE,"",INDIRECT("'3.09.1a (2)'!e19")) ->  | G27: =IF(ISERROR(INDIRECT("'3.09.1a (2)'!f19"))=TRUE,"",INDIRECT("'3.09.1a (2)'!f19")) ->  | H27: =IF(ISERROR(INDIRECT("'3.09.1a (2)'!g19"))=TRUE,"",INDIRECT("'3.09.1a (2)'!g19")) ->  | I27: =IF(ISERROR(INDIRECT("'3.09.1a (2)'!h19"))=TRUE,"",INDIRECT("'3.09.1a (2)'!h19")) ->  | J27: =IF(ISERROR(INDIRECT("'3.09.1a (2)'!i19"))=TRUE,"",INDIRECT("'3.09.1a (2)'!i19")) ->  | K27: =IF(ISERROR(INDIRECT("'3.09.1a (2)'!j19"))=TRUE,"",INDIRECT("'3.09.1a (2)'!j19")) ->  | L27: =IF(ISERROR(INDIRECT("'3.09.1a (2)'!o19"))=TRUE,"",INDIRECT("'3.09.1a (2)'!o19")) ->  | M27: =IF(ISERROR(INDIRECT("'3.09.1a (2)'!p19"))=TRUE,"",INDIRECT("'3.09.1a (2)'!p19")) ->  | N27: =IF(ISERROR(INDIRECT("'3.09.1a (2)'!q19"))=TRUE,"",INDIRECT("'3.09.1a (2)'!q19")) ->  | O27: =IF(ISERROR(INDIRECT("'3.09.1a (2)'!s19"))=TRUE,"",INDIRECT("'3.09.1a (2)'!s19")) ->  | P27: =IF(ISERROR(INDIRECT("'3.09.1a (2)'!t19"))=TRUE,"",INDIRECT("'3.09.1a (2)'!t19")) ->  | Q27: =IF(ISERROR(INDIRECT("'3.09.1a (2)'!u19"))=TRUE,"",INDIRECT("'3.09.1a (2)'!u19")) ->  | R27: =IF(ISERROR(INDIRECT("'3.09.1a (2)'!v19"))=TRUE,"",INDIRECT("'3.09.1a (2)'!v19")) ->  | S27: =IF(ISERROR(INDIRECT("'3.09.1a (2)'!w19"))=TRUE,"",INDIRECT("'3.09.1a (2)'!w19")) ->  | T27: =IF(ISERROR(INDIRECT("'3.09.1a (2)'!x19"))=TRUE,"",INDIRECT("'3.09.1a (2)'!x19")) ->  | U27: =IF(ISERROR(INDIRECT("'3.09.1a (2)'!aa19"))=TRUE,"",INDIRECT("'3.09.1a (2)'!aa19")) ->  | V27: =IF(ISERROR(INDIRECT("'3.09.1a (2)'!ad19"))=TRUE,"",INDIRECT("'3.09.1a (2)'!ad19")) ->  | W27: =IF(ISERROR(INDIRECT("'3.09.1a (2)'!ah19"))=TRUE,"",INDIRECT("'3.09.1a (2)'!ah19")) ->  | X27: =IF(ISERROR(INDIRECT("'3.09.1a (2)'!am19"))=TRUE,"",INDIRECT("'3.09.1a (2)'!am19")) -> 
A28: 0 | B28: 3.09.1a (2) | C28: =IF(ISERROR(INDIRECT("'3.09.1a (2)'!b20"))=TRUE,"",INDIRECT("'3.09.1a (2)'!b20")) ->  | D28: =IF(ISERROR(INDIRECT("'3.09.1a (2)'!c20"))=TRUE,"",INDIRECT("'3.09.1a (2)'!c20")) ->  | E28: =IF(ISERROR(INDIRECT("'3.09.1a (2)'!d20"))=TRUE,"",INDIRECT("'3.09.1a (2)'!d20")) ->  | F28: =IF(ISERROR(INDIRECT("'3.09.1a (2)'!e20"))=TRUE,"",INDIRECT("'3.09.1a (2)'!e20")) ->  | G28: =IF(ISERROR(INDIRECT("'3.09.1a (2)'!f20"))=TRUE,"",INDIRECT("'3.09.1a (2)'!f20")) ->  | H28: =IF(ISERROR(INDIRECT("'3.09.1a (2)'!g20"))=TRUE,"",INDIRECT("'3.09.1a (2)'!g20")) ->  | I28: =IF(ISERROR(INDIRECT("'3.09.1a (2)'!h20"))=TRUE,"",INDIRECT("'3.09.1a (2)'!h20")) ->  | J28: =IF(ISERROR(INDIRECT("'3.09.1a (2)'!i20"))=TRUE,"",INDIRECT("'3.09.1a (2)'!i20")) ->  | K28: =IF(ISERROR(INDIRECT("'3.09.1a (2)'!j20"))=TRUE,"",INDIRECT("'3.09.1a (2)'!j20")) ->  | L28: =IF(ISERROR(INDIRECT("'3.09.1a (2)'!o20"))=TRUE,"",INDIRECT("'3.09.1a (2)'!o20")) ->  | M28: =IF(ISERROR(INDIRECT("'3.09.1a (2)'!p20"))=TRUE,"",INDIRECT("'3.09.1a (2)'!p20")) ->  | N28: =IF(ISERROR(INDIRECT("'3.09.1a (2)'!q20"))=TRUE,"",INDIRECT("'3.09.1a (2)'!q20")) ->  | O28: =IF(ISERROR(INDIRECT("'3.09.1a (2)'!s20"))=TRUE,"",INDIRECT("'3.09.1a (2)'!s20")) ->  | P28: =IF(ISERROR(INDIRECT("'3.09.1a (2)'!t20"))=TRUE,"",INDIRECT("'3.09.1a (2)'!t20")) ->  | Q28: =IF(ISERROR(INDIRECT("'3.09.1a (2)'!u20"))=TRUE,"",INDIRECT("'3.09.1a (2)'!u20")) ->  | R28: =IF(ISERROR(INDIRECT("'3.09.1a (2)'!v20"))=TRUE,"",INDIRECT("'3.09.1a (2)'!v20")) ->  | S28: =IF(ISERROR(INDIRECT("'3.09.1a (2)'!w20"))=TRUE,"",INDIRECT("'3.09.1a (2)'!w20")) ->  | T28: =IF(ISERROR(INDIRECT("'3.09.1a (2)'!x20"))=TRUE,"",INDIRECT("'3.09.1a (2)'!x20")) ->  | U28: =IF(ISERROR(INDIRECT("'3.09.1a (2)'!aa20"))=TRUE,"",INDIRECT("'3.09.1a (2)'!aa20")) ->  | V28: =IF(ISERROR(INDIRECT("'3.09.1a (2)'!ad20"))=TRUE,"",INDIRECT("'3.09.1a (2)'!ad20")) ->  | W28: =IF(ISERROR(INDIRECT("'3.09.1a (2)'!ah20"))=TRUE,"",INDIRECT("'3.09.1a (2)'!ah20")) ->  | X28: =IF(ISERROR(INDIRECT("'3.09.1a (2)'!am20"))=TRUE,"",INDIRECT("'3.09.1a (2)'!am20")) -> 
A29: 0 | B29: 3.09.1a (2) | C29: =IF(ISERROR(INDIRECT("'3.09.1a (2)'!b21"))=TRUE,"",INDIRECT("'3.09.1a (2)'!b21")) ->  | D29: =IF(ISERROR(INDIRECT("'3.09.1a (2)'!c21"))=TRUE,"",INDIRECT("'3.09.1a (2)'!c21")) ->  | E29: =IF(ISERROR(INDIRECT("'3.09.1a (2)'!d21"))=TRUE,"",INDIRECT("'3.09.1a (2)'!d21")) ->  | F29: =IF(ISERROR(INDIRECT("'3.09.1a (2)'!e21"))=TRUE,"",INDIRECT("'3.09.1a (2)'!e21")) ->  | G29: =IF(ISERROR(INDIRECT("'3.09.1a (2)'!f21"))=TRUE,"",INDIRECT("'3.09.1a (2)'!f21")) ->  | H29: =IF(ISERROR(INDIRECT("'3.09.1a (2)'!g21"))=TRUE,"",INDIRECT("'3.09.1a (2)'!g21")) ->  | I29: =IF(ISERROR(INDIRECT("'3.09.1a (2)'!h21"))=TRUE,"",INDIRECT("'3.09.1a (2)'!h21")) ->  | J29: =IF(ISERROR(INDIRECT("'3.09.1a (2)'!i21"))=TRUE,"",INDIRECT("'3.09.1a (2)'!i21")) ->  | K29: =IF(ISERROR(INDIRECT("'3.09.1a (2)'!j21"))=TRUE,"",INDIRECT("'3.09.1a (2)'!j21")) ->  | L29: =IF(ISERROR(INDIRECT("'3.09.1a (2)'!o21"))=TRUE,"",INDIRECT("'3.09.1a (2)'!o21")) ->  | M29: =IF(ISERROR(INDIRECT("'3.09.1a (2)'!p21"))=TRUE,"",INDIRECT("'3.09.1a (2)'!p21")) ->  | N29: =IF(ISERROR(INDIRECT("'3.09.1a (2)'!q21"))=TRUE,"",INDIRECT("'3.09.1a (2)'!q21")) ->  | O29: =IF(ISERROR(INDIRECT("'3.09.1a (2)'!s21"))=TRUE,"",INDIRECT("'3.09.1a (2)'!s21")) ->  | P29: =IF(ISERROR(INDIRECT("'3.09.1a (2)'!t21"))=TRUE,"",INDIRECT("'3.09.1a (2)'!t21")) ->  | Q29: =IF(ISERROR(INDIRECT("'3.09.1a (2)'!u21"))=TRUE,"",INDIRECT("'3.09.1a (2)'!u21")) ->  | R29: =IF(ISERROR(INDIRECT("'3.09.1a (2)'!v21"))=TRUE,"",INDIRECT("'3.09.1a (2)'!v21")) ->  | S29: =IF(ISERROR(INDIRECT("'3.09.1a (2)'!w21"))=TRUE,"",INDIRECT("'3.09.1a (2)'!w21")) ->  | T29: =IF(ISERROR(INDIRECT("'3.09.1a (2)'!x21"))=TRUE,"",INDIRECT("'3.09.1a (2)'!x21")) ->  | U29: =IF(ISERROR(INDIRECT("'3.09.1a (2)'!aa21"))=TRUE,"",INDIRECT("'3.09.1a (2)'!aa21")) ->  | V29: =IF(ISERROR(INDIRECT("'3.09.1a (2)'!ad21"))=TRUE,"",INDIRECT("'3.09.1a (2)'!ad21")) ->  | W29: =IF(ISERROR(INDIRECT("'3.09.1a (2)'!ah21"))=TRUE,"",INDIRECT("'3.09.1a (2)'!ah21")) ->  | X29: =IF(ISERROR(INDIRECT("'3.09.1a (2)'!am21"))=TRUE,"",INDIRECT("'3.09.1a (2)'!am21")) -> 
A30: 0 | B30: 3.09.1a (2) | C30: =IF(ISERROR(INDIRECT("'3.09.1a (2)'!b22"))=TRUE,"",INDIRECT("'3.09.1a (2)'!b22")) ->  | D30: =IF(ISERROR(INDIRECT("'3.09.1a (2)'!c22"))=TRUE,"",INDIRECT("'3.09.1a (2)'!c22")) ->  | E30: =IF(ISERROR(INDIRECT("'3.09.1a (2)'!d22"))=TRUE,"",INDIRECT("'3.09.1a (2)'!d22")) ->  | F30: =IF(ISERROR(INDIRECT("'3.09.1a (2)'!e22"))=TRUE,"",INDIRECT("'3.09.1a (2)'!e22")) ->  | G30: =IF(ISERROR(INDIRECT("'3.09.1a (2)'!f22"))=TRUE,"",INDIRECT("'3.09.1a (2)'!f22")) ->  | H30: =IF(ISERROR(INDIRECT("'3.09.1a (2)'!g22"))=TRUE,"",INDIRECT("'3.09.1a (2)'!g22")) ->  | I30: =IF(ISERROR(INDIRECT("'3.09.1a (2)'!h22"))=TRUE,"",INDIRECT("'3.09.1a (2)'!h22")) ->  | J30: =IF(ISERROR(INDIRECT("'3.09.1a (2)'!i22"))=TRUE,"",INDIRECT("'3.09.1a (2)'!i22")) ->  | K30: =IF(ISERROR(INDIRECT("'3.09.1a (2)'!j22"))=TRUE,"",INDIRECT("'3.09.1a (2)'!j22")) ->  | L30: =IF(ISERROR(INDIRECT("'3.09.1a (2)'!o22"))=TRUE,"",INDIRECT("'3.09.1a (2)'!o22")) ->  | M30: =IF(ISERROR(INDIRECT("'3.09.1a (2)'!p22"))=TRUE,"",INDIRECT("'3.09.1a (2)'!p22")) ->  | N30: =IF(ISERROR(INDIRECT("'3.09.1a (2)'!q22"))=TRUE,"",INDIRECT("'3.09.1a (2)'!q22")) ->  | O30: =IF(ISERROR(INDIRECT("'3.09.1a (2)'!s22"))=TRUE,"",INDIRECT("'3.09.1a (2)'!s22")) ->  | P30: =IF(ISERROR(INDIRECT("'3.09.1a (2)'!t22"))=TRUE,"",INDIRECT("'3.09.1a (2)'!t22")) ->  | Q30: =IF(ISERROR(INDIRECT("'3.09.1a (2)'!u22"))=TRUE,"",INDIRECT("'3.09.1a (2)'!u22")) ->  | R30: =IF(ISERROR(INDIRECT("'3.09.1a (2)'!v22"))=TRUE,"",INDIRECT("'3.09.1a (2)'!v22")) ->  | S30: =IF(ISERROR(INDIRECT("'3.09.1a (2)'!w22"))=TRUE,"",INDIRECT("'3.09.1a (2)'!w22")) ->  | T30: =IF(ISERROR(INDIRECT("'3.09.1a (2)'!x22"))=TRUE,"",INDIRECT("'3.09.1a (2)'!x22")) ->  | U30: =IF(ISERROR(INDIRECT("'3.09.1a (2)'!aa22"))=TRUE,"",INDIRECT("'3.09.1a (2)'!aa22")) ->  | V30: =IF(ISERROR(INDIRECT("'3.09.1a (2)'!ad22"))=TRUE,"",INDIRECT("'3.09.1a (2)'!ad22")) ->  | W30: =IF(ISERROR(INDIRECT("'3.09.1a (2)'!ah22"))=TRUE,"",INDIRECT("'3.09.1a (2)'!ah22")) ->  | X30: =IF(ISERROR(INDIRECT("'3.09.1a (2)'!am22"))=TRUE,"",INDIRECT("'3.09.1a (2)'!am22")) -> 
A31: 0 | B31: 3.09.1a (2) | C31: =IF(ISERROR(INDIRECT("'3.09.1a (2)'!b23"))=TRUE,"",INDIRECT("'3.09.1a (2)'!b23")) ->  | D31: =IF(ISERROR(INDIRECT("'3.09.1a (2)'!c23"))=TRUE,"",INDIRECT("'3.09.1a (2)'!c23")) ->  | E31: =IF(ISERROR(INDIRECT("'3.09.1a (2)'!d23"))=TRUE,"",INDIRECT("'3.09.1a (2)'!d23")) ->  | F31: =IF(ISERROR(INDIRECT("'3.09.1a (2)'!e23"))=TRUE,"",INDIRECT("'3.09.1a (2)'!e23")) ->  | G31: =IF(ISERROR(INDIRECT("'3.09.1a (2)'!f23"))=TRUE,"",INDIRECT("'3.09.1a (2)'!f23")) ->  | H31: =IF(ISERROR(INDIRECT("'3.09.1a (2)'!g23"))=TRUE,"",INDIRECT("'3.09.1a (2)'!g23")) ->  | I31: =IF(ISERROR(INDIRECT("'3.09.1a (2)'!h23"))=TRUE,"",INDIRECT("'3.09.1a (2)'!h23")) ->  | J31: =IF(ISERROR(INDIRECT("'3.09.1a (2)'!i23"))=TRUE,"",INDIRECT("'3.09.1a (2)'!i23")) ->  | K31: =IF(ISERROR(INDIRECT("'3.09.1a (2)'!j23"))=TRUE,"",INDIRECT("'3.09.1a (2)'!j23")) ->  | L31: =IF(ISERROR(INDIRECT("'3.09.1a (2)'!o23"))=TRUE,"",INDIRECT("'3.09.1a (2)'!o23")) ->  | M31: =IF(ISERROR(INDIRECT("'3.09.1a (2)'!p23"))=TRUE,"",INDIRECT("'3.09.1a (2)'!p23")) ->  | N31: =IF(ISERROR(INDIRECT("'3.09.1a (2)'!q23"))=TRUE,"",INDIRECT("'3.09.1a (2)'!q23")) ->  | O31: =IF(ISERROR(INDIRECT("'3.09.1a (2)'!s23"))=TRUE,"",INDIRECT("'3.09.1a (2)'!s23")) ->  | P31: =IF(ISERROR(INDIRECT("'3.09.1a (2)'!t23"))=TRUE,"",INDIRECT("'3.09.1a (2)'!t23")) ->  | Q31: =IF(ISERROR(INDIRECT("'3.09.1a (2)'!u23"))=TRUE,"",INDIRECT("'3.09.1a (2)'!u23")) ->  | R31: =IF(ISERROR(INDIRECT("'3.09.1a (2)'!v23"))=TRUE,"",INDIRECT("'3.09.1a (2)'!v23")) ->  | S31: =IF(ISERROR(INDIRECT("'3.09.1a (2)'!w23"))=TRUE,"",INDIRECT("'3.09.1a (2)'!w23")) ->  | T31: =IF(ISERROR(INDIRECT("'3.09.1a (2)'!x23"))=TRUE,"",INDIRECT("'3.09.1a (2)'!x23")) ->  | U31: =IF(ISERROR(INDIRECT("'3.09.1a (2)'!aa23"))=TRUE,"",INDIRECT("'3.09.1a (2)'!aa23")) ->  | V31: =IF(ISERROR(INDIRECT("'3.09.1a (2)'!ad23"))=TRUE,"",INDIRECT("'3.09.1a (2)'!ad23")) ->  | W31: =IF(ISERROR(INDIRECT("'3.09.1a (2)'!ah23"))=TRUE,"",INDIRECT("'3.09.1a (2)'!ah23")) ->  | X31: =IF(ISERROR(INDIRECT("'3.09.1a (2)'!am23"))=TRUE,"",INDIRECT("'3.09.1a (2)'!am23")) -> 
A32: 0 | B32: 3.09.1a (2) | C32: =IF(ISERROR(INDIRECT("'3.09.1a (2)'!b24"))=TRUE,"",INDIRECT("'3.09.1a (2)'!b24")) ->  | D32: =IF(ISERROR(INDIRECT("'3.09.1a (2)'!c24"))=TRUE,"",INDIRECT("'3.09.1a (2)'!c24")) ->  | E32: =IF(ISERROR(INDIRECT("'3.09.1a (2)'!d24"))=TRUE,"",INDIRECT("'3.09.1a (2)'!d24")) ->  | F32: =IF(ISERROR(INDIRECT("'3.09.1a (2)'!e24"))=TRUE,"",INDIRECT("'3.09.1a (2)'!e24")) ->  | G32: =IF(ISERROR(INDIRECT("'3.09.1a (2)'!f24"))=TRUE,"",INDIRECT("'3.09.1a (2)'!f24")) ->  | H32: =IF(ISERROR(INDIRECT("'3.09.1a (2)'!g24"))=TRUE,"",INDIRECT("'3.09.1a (2)'!g24")) ->  | I32: =IF(ISERROR(INDIRECT("'3.09.1a (2)'!h24"))=TRUE,"",INDIRECT("'3.09.1a (2)'!h24")) ->  | J32: =IF(ISERROR(INDIRECT("'3.09.1a (2)'!i24"))=TRUE,"",INDIRECT("'3.09.1a (2)'!i24")) ->  | K32: =IF(ISERROR(INDIRECT("'3.09.1a (2)'!j24"))=TRUE,"",INDIRECT("'3.09.1a (2)'!j24")) ->  | L32: =IF(ISERROR(INDIRECT("'3.09.1a (2)'!o24"))=TRUE,"",INDIRECT("'3.09.1a (2)'!o24")) ->  | M32: =IF(ISERROR(INDIRECT("'3.09.1a (2)'!p24"))=TRUE,"",INDIRECT("'3.09.1a (2)'!p24")) ->  | N32: =IF(ISERROR(INDIRECT("'3.09.1a (2)'!q24"))=TRUE,"",INDIRECT("'3.09.1a (2)'!q24")) ->  | O32: =IF(ISERROR(INDIRECT("'3.09.1a (2)'!s24"))=TRUE,"",INDIRECT("'3.09.1a (2)'!s24")) ->  | P32: =IF(ISERROR(INDIRECT("'3.09.1a (2)'!t24"))=TRUE,"",INDIRECT("'3.09.1a (2)'!t24")) ->  | Q32: =IF(ISERROR(INDIRECT("'3.09.1a (2)'!u24"))=TRUE,"",INDIRECT("'3.09.1a (2)'!u24")) ->  | R32: =IF(ISERROR(INDIRECT("'3.09.1a (2)'!v24"))=TRUE,"",INDIRECT("'3.09.1a (2)'!v24")) ->  | S32: =IF(ISERROR(INDIRECT("'3.09.1a (2)'!w24"))=TRUE,"",INDIRECT("'3.09.1a (2)'!w24")) ->  | T32: =IF(ISERROR(INDIRECT("'3.09.1a (2)'!x24"))=TRUE,"",INDIRECT("'3.09.1a (2)'!x24")) ->  | U32: =IF(ISERROR(INDIRECT("'3.09.1a (2)'!aa24"))=TRUE,"",INDIRECT("'3.09.1a (2)'!aa24")) ->  | V32: =IF(ISERROR(INDIRECT("'3.09.1a (2)'!ad24"))=TRUE,"",INDIRECT("'3.09.1a (2)'!ad24")) ->  | W32: =IF(ISERROR(INDIRECT("'3.09.1a (2)'!ah24"))=TRUE,"",INDIRECT("'3.09.1a (2)'!ah24")) ->  | X32: =IF(ISERROR(INDIRECT("'3.09.1a (2)'!am24"))=TRUE,"",INDIRECT("'3.09.1a (2)'!am24")) -> 
A33: 0 | B33: 3.09.1a (2) | C33: =IF(ISERROR(INDIRECT("'3.09.1a (2)'!b25"))=TRUE,"",INDIRECT("'3.09.1a (2)'!b25")) ->  | D33: =IF(ISERROR(INDIRECT("'3.09.1a (2)'!c25"))=TRUE,"",INDIRECT("'3.09.1a (2)'!c25")) ->  | E33: =IF(ISERROR(INDIRECT("'3.09.1a (2)'!d25"))=TRUE,"",INDIRECT("'3.09.1a (2)'!d25")) ->  | F33: =IF(ISERROR(INDIRECT("'3.09.1a (2)'!e25"))=TRUE,"",INDIRECT("'3.09.1a (2)'!e25")) ->  | G33: =IF(ISERROR(INDIRECT("'3.09.1a (2)'!f25"))=TRUE,"",INDIRECT("'3.09.1a (2)'!f25")) ->  | H33: =IF(ISERROR(INDIRECT("'3.09.1a (2)'!g25"))=TRUE,"",INDIRECT("'3.09.1a (2)'!g25")) ->  | I33: =IF(ISERROR(INDIRECT("'3.09.1a (2)'!h25"))=TRUE,"",INDIRECT("'3.09.1a (2)'!h25")) ->  | J33: =IF(ISERROR(INDIRECT("'3.09.1a (2)'!i25"))=TRUE,"",INDIRECT("'3.09.1a (2)'!i25")) ->  | K33: =IF(ISERROR(INDIRECT("'3.09.1a (2)'!j25"))=TRUE,"",INDIRECT("'3.09.1a (2)'!j25")) ->  | L33: =IF(ISERROR(INDIRECT("'3.09.1a (2)'!o25"))=TRUE,"",INDIRECT("'3.09.1a (2)'!o25")) ->  | M33: =IF(ISERROR(INDIRECT("'3.09.1a (2)'!p25"))=TRUE,"",INDIRECT("'3.09.1a (2)'!p25")) ->  | N33: =IF(ISERROR(INDIRECT("'3.09.1a (2)'!q25"))=TRUE,"",INDIRECT("'3.09.1a (2)'!q25")) ->  | O33: =IF(ISERROR(INDIRECT("'3.09.1a (2)'!s25"))=TRUE,"",INDIRECT("'3.09.1a (2)'!s25")) ->  | P33: =IF(ISERROR(INDIRECT("'3.09.1a (2)'!t25"))=TRUE,"",INDIRECT("'3.09.1a (2)'!t25")) ->  | Q33: =IF(ISERROR(INDIRECT("'3.09.1a (2)'!u25"))=TRUE,"",INDIRECT("'3.09.1a (2)'!u25")) ->  | R33: =IF(ISERROR(INDIRECT("'3.09.1a (2)'!v25"))=TRUE,"",INDIRECT("'3.09.1a (2)'!v25")) ->  | S33: =IF(ISERROR(INDIRECT("'3.09.1a (2)'!w25"))=TRUE,"",INDIRECT("'3.09.1a (2)'!w25")) ->  | T33: =IF(ISERROR(INDIRECT("'3.09.1a (2)'!x25"))=TRUE,"",INDIRECT("'3.09.1a (2)'!x25")) ->  | U33: =IF(ISERROR(INDIRECT("'3.09.1a (2)'!aa25"))=TRUE,"",INDIRECT("'3.09.1a (2)'!aa25")) ->  | V33: =IF(ISERROR(INDIRECT("'3.09.1a (2)'!ad25"))=TRUE,"",INDIRECT("'3.09.1a (2)'!ad25")) ->  | W33: =IF(ISERROR(INDIRECT("'3.09.1a (2)'!ah25"))=TRUE,"",INDIRECT("'3.09.1a (2)'!ah25")) ->  | X33: =IF(ISERROR(INDIRECT("'3.09.1a (2)'!am25"))=TRUE,"",INDIRECT("'3.09.1a (2)'!am25")) -> 
A34: 0 | B34: 3.09.1a (2) | C34: =IF(ISERROR(INDIRECT("'3.09.1a (2)'!b26"))=TRUE,"",INDIRECT("'3.09.1a (2)'!b26")) ->  | D34: =IF(ISERROR(INDIRECT("'3.09.1a (2)'!c26"))=TRUE,"",INDIRECT("'3.09.1a (2)'!c26")) ->  | E34: =IF(ISERROR(INDIRECT("'3.09.1a (2)'!d26"))=TRUE,"",INDIRECT("'3.09.1a (2)'!d26")) ->  | F34: =IF(ISERROR(INDIRECT("'3.09.1a (2)'!e26"))=TRUE,"",INDIRECT("'3.09.1a (2)'!e26")) ->  | G34: =IF(ISERROR(INDIRECT("'3.09.1a (2)'!f26"))=TRUE,"",INDIRECT("'3.09.1a (2)'!f26")) ->  | H34: =IF(ISERROR(INDIRECT("'3.09.1a (2)'!g26"))=TRUE,"",INDIRECT("'3.09.1a (2)'!g26")) ->  | I34: =IF(ISERROR(INDIRECT("'3.09.1a (2)'!h26"))=TRUE,"",INDIRECT("'3.09.1a (2)'!h26")) ->  | J34: =IF(ISERROR(INDIRECT("'3.09.1a (2)'!i26"))=TRUE,"",INDIRECT("'3.09.1a (2)'!i26")) ->  | K34: =IF(ISERROR(INDIRECT("'3.09.1a (2)'!j26"))=TRUE,"",INDIRECT("'3.09.1a (2)'!j26")) ->  | L34: =IF(ISERROR(INDIRECT("'3.09.1a (2)'!o26"))=TRUE,"",INDIRECT("'3.09.1a (2)'!o26")) ->  | M34: =IF(ISERROR(INDIRECT("'3.09.1a (2)'!p26"))=TRUE,"",INDIRECT("'3.09.1a (2)'!p26")) ->  | N34: =IF(ISERROR(INDIRECT("'3.09.1a (2)'!q26"))=TRUE,"",INDIRECT("'3.09.1a (2)'!q26")) ->  | O34: =IF(ISERROR(INDIRECT("'3.09.1a (2)'!s26"))=TRUE,"",INDIRECT("'3.09.1a (2)'!s26")) ->  | P34: =IF(ISERROR(INDIRECT("'3.09.1a (2)'!t26"))=TRUE,"",INDIRECT("'3.09.1a (2)'!t26")) ->  | Q34: =IF(ISERROR(INDIRECT("'3.09.1a (2)'!u26"))=TRUE,"",INDIRECT("'3.09.1a (2)'!u26")) ->  | R34: =IF(ISERROR(INDIRECT("'3.09.1a (2)'!v26"))=TRUE,"",INDIRECT("'3.09.1a (2)'!v26")) ->  | S34: =IF(ISERROR(INDIRECT("'3.09.1a (2)'!w26"))=TRUE,"",INDIRECT("'3.09.1a (2)'!w26")) ->  | T34: =IF(ISERROR(INDIRECT("'3.09.1a (2)'!x26"))=TRUE,"",INDIRECT("'3.09.1a (2)'!x26")) ->  | U34: =IF(ISERROR(INDIRECT("'3.09.1a (2)'!aa26"))=TRUE,"",INDIRECT("'3.09.1a (2)'!aa26")) ->  | V34: =IF(ISERROR(INDIRECT("'3.09.1a (2)'!ad26"))=TRUE,"",INDIRECT("'3.09.1a (2)'!ad26")) ->  | W34: =IF(ISERROR(INDIRECT("'3.09.1a (2)'!ah26"))=TRUE,"",INDIRECT("'3.09.1a (2)'!ah26")) ->  | X34: =IF(ISERROR(INDIRECT("'3.09.1a (2)'!am26"))=TRUE,"",INDIRECT("'3.09.1a (2)'!am26")) -> 
A35: 0 | B35: 3.09.1a (2) | C35: =IF(ISERROR(INDIRECT("'3.09.1a (2)'!b27"))=TRUE,"",INDIRECT("'3.09.1a (2)'!b27")) ->  | D35: =IF(ISERROR(INDIRECT("'3.09.1a (2)'!c27"))=TRUE,"",INDIRECT("'3.09.1a (2)'!c27")) ->  | E35: =IF(ISERROR(INDIRECT("'3.09.1a (2)'!d27"))=TRUE,"",INDIRECT("'3.09.1a (2)'!d27")) ->  | F35: =IF(ISERROR(INDIRECT("'3.09.1a (2)'!e27"))=TRUE,"",INDIRECT("'3.09.1a (2)'!e27")) ->  | G35: =IF(ISERROR(INDIRECT("'3.09.1a (2)'!f27"))=TRUE,"",INDIRECT("'3.09.1a (2)'!f27")) ->  | H35: =IF(ISERROR(INDIRECT("'3.09.1a (2)'!g27"))=TRUE,"",INDIRECT("'3.09.1a (2)'!g27")) ->  | I35: =IF(ISERROR(INDIRECT("'3.09.1a (2)'!h27"))=TRUE,"",INDIRECT("'3.09.1a (2)'!h27")) ->  | J35: =IF(ISERROR(INDIRECT("'3.09.1a (2)'!i27"))=TRUE,"",INDIRECT("'3.09.1a (2)'!i27")) ->  | K35: =IF(ISERROR(INDIRECT("'3.09.1a (2)'!j27"))=TRUE,"",INDIRECT("'3.09.1a (2)'!j27")) ->  | L35: =IF(ISERROR(INDIRECT("'3.09.1a (2)'!o27"))=TRUE,"",INDIRECT("'3.09.1a (2)'!o27")) ->  | M35: =IF(ISERROR(INDIRECT("'3.09.1a (2)'!p27"))=TRUE,"",INDIRECT("'3.09.1a (2)'!p27")) ->  | N35: =IF(ISERROR(INDIRECT("'3.09.1a (2)'!q27"))=TRUE,"",INDIRECT("'3.09.1a (2)'!q27")) ->  | O35: =IF(ISERROR(INDIRECT("'3.09.1a (2)'!s27"))=TRUE,"",INDIRECT("'3.09.1a (2)'!s27")) ->  | P35: =IF(ISERROR(INDIRECT("'3.09.1a (2)'!t27"))=TRUE,"",INDIRECT("'3.09.1a (2)'!t27")) ->  | Q35: =IF(ISERROR(INDIRECT("'3.09.1a (2)'!u27"))=TRUE,"",INDIRECT("'3.09.1a (2)'!u27")) ->  | R35: =IF(ISERROR(INDIRECT("'3.09.1a (2)'!v27"))=TRUE,"",INDIRECT("'3.09.1a (2)'!v27")) ->  | S35: =IF(ISERROR(INDIRECT("'3.09.1a (2)'!w27"))=TRUE,"",INDIRECT("'3.09.1a (2)'!w27")) ->  | T35: =IF(ISERROR(INDIRECT("'3.09.1a (2)'!x27"))=TRUE,"",INDIRECT("'3.09.1a (2)'!x27")) ->  | U35: =IF(ISERROR(INDIRECT("'3.09.1a (2)'!aa27"))=TRUE,"",INDIRECT("'3.09.1a (2)'!aa27")) ->  | V35: =IF(ISERROR(INDIRECT("'3.09.1a (2)'!ad27"))=TRUE,"",INDIRECT("'3.09.1a (2)'!ad27")) ->  | W35: =IF(ISERROR(INDIRECT("'3.09.1a (2)'!ah27"))=TRUE,"",INDIRECT("'3.09.1a (2)'!ah27")) ->  | X35: =IF(ISERROR(INDIRECT("'3.09.1a (2)'!am27"))=TRUE,"",INDIRECT("'3.09.1a (2)'!am27")) -> 
A36: 0 | B36: 3.09.1a (2) | C36: =IF(ISERROR(INDIRECT("'3.09.1a (2)'!b28"))=TRUE,"",INDIRECT("'3.09.1a (2)'!b28")) ->  | D36: =IF(ISERROR(INDIRECT("'3.09.1a (2)'!c28"))=TRUE,"",INDIRECT("'3.09.1a (2)'!c28")) ->  | E36: =IF(ISERROR(INDIRECT("'3.09.1a (2)'!d28"))=TRUE,"",INDIRECT("'3.09.1a (2)'!d28")) ->  | F36: =IF(ISERROR(INDIRECT("'3.09.1a (2)'!e28"))=TRUE,"",INDIRECT("'3.09.1a (2)'!e28")) ->  | G36: =IF(ISERROR(INDIRECT("'3.09.1a (2)'!f28"))=TRUE,"",INDIRECT("'3.09.1a (2)'!f28")) ->  | H36: =IF(ISERROR(INDIRECT("'3.09.1a (2)'!g28"))=TRUE,"",INDIRECT("'3.09.1a (2)'!g28")) ->  | I36: =IF(ISERROR(INDIRECT("'3.09.1a (2)'!h28"))=TRUE,"",INDIRECT("'3.09.1a (2)'!h28")) ->  | J36: =IF(ISERROR(INDIRECT("'3.09.1a (2)'!i28"))=TRUE,"",INDIRECT("'3.09.1a (2)'!i28")) ->  | K36: =IF(ISERROR(INDIRECT("'3.09.1a (2)'!j28"))=TRUE,"",INDIRECT("'3.09.1a (2)'!j28")) ->  | L36: =IF(ISERROR(INDIRECT("'3.09.1a (2)'!o28"))=TRUE,"",INDIRECT("'3.09.1a (2)'!o28")) ->  | M36: =IF(ISERROR(INDIRECT("'3.09.1a (2)'!p28"))=TRUE,"",INDIRECT("'3.09.1a (2)'!p28")) ->  | N36: =IF(ISERROR(INDIRECT("'3.09.1a (2)'!q28"))=TRUE,"",INDIRECT("'3.09.1a (2)'!q28")) ->  | O36: =IF(ISERROR(INDIRECT("'3.09.1a (2)'!s28"))=TRUE,"",INDIRECT("'3.09.1a (2)'!s28")) ->  | P36: =IF(ISERROR(INDIRECT("'3.09.1a (2)'!t28"))=TRUE,"",INDIRECT("'3.09.1a (2)'!t28")) ->  | Q36: =IF(ISERROR(INDIRECT("'3.09.1a (2)'!u28"))=TRUE,"",INDIRECT("'3.09.1a (2)'!u28")) ->  | R36: =IF(ISERROR(INDIRECT("'3.09.1a (2)'!v28"))=TRUE,"",INDIRECT("'3.09.1a (2)'!v28")) ->  | S36: =IF(ISERROR(INDIRECT("'3.09.1a (2)'!w28"))=TRUE,"",INDIRECT("'3.09.1a (2)'!w28")) ->  | T36: =IF(ISERROR(INDIRECT("'3.09.1a (2)'!x28"))=TRUE,"",INDIRECT("'3.09.1a (2)'!x28")) ->  | U36: =IF(ISERROR(INDIRECT("'3.09.1a (2)'!aa28"))=TRUE,"",INDIRECT("'3.09.1a (2)'!aa28")) ->  | V36: =IF(ISERROR(INDIRECT("'3.09.1a (2)'!ad28"))=TRUE,"",INDIRECT("'3.09.1a (2)'!ad28")) ->  | W36: =IF(ISERROR(INDIRECT("'3.09.1a (2)'!ah28"))=TRUE,"",INDIRECT("'3.09.1a (2)'!ah28")) ->  | X36: =IF(ISERROR(INDIRECT("'3.09.1a (2)'!am28"))=TRUE,"",INDIRECT("'3.09.1a (2)'!am28")) -> 
A37: 0 | B37: 3.09.1a (2) | C37: =IF(ISERROR(INDIRECT("'3.09.1a (2)'!b29"))=TRUE,"",INDIRECT("'3.09.1a (2)'!b29")) ->  | D37: =IF(ISERROR(INDIRECT("'3.09.1a (2)'!c29"))=TRUE,"",INDIRECT("'3.09.1a (2)'!c29")) ->  | E37: =IF(ISERROR(INDIRECT("'3.09.1a (2)'!d29"))=TRUE,"",INDIRECT("'3.09.1a (2)'!d29")) ->  | F37: =IF(ISERROR(INDIRECT("'3.09.1a (2)'!e29"))=TRUE,"",INDIRECT("'3.09.1a (2)'!e29")) ->  | G37: =IF(ISERROR(INDIRECT("'3.09.1a (2)'!f29"))=TRUE,"",INDIRECT("'3.09.1a (2)'!f29")) ->  | H37: =IF(ISERROR(INDIRECT("'3.09.1a (2)'!g29"))=TRUE,"",INDIRECT("'3.09.1a (2)'!g29")) ->  | I37: =IF(ISERROR(INDIRECT("'3.09.1a (2)'!h29"))=TRUE,"",INDIRECT("'3.09.1a (2)'!h29")) ->  | J37: =IF(ISERROR(INDIRECT("'3.09.1a (2)'!i29"))=TRUE,"",INDIRECT("'3.09.1a (2)'!i29")) ->  | K37: =IF(ISERROR(INDIRECT("'3.09.1a (2)'!j29"))=TRUE,"",INDIRECT("'3.09.1a (2)'!j29")) ->  | L37: =IF(ISERROR(INDIRECT("'3.09.1a (2)'!o29"))=TRUE,"",INDIRECT("'3.09.1a (2)'!o29")) ->  | M37: =IF(ISERROR(INDIRECT("'3.09.1a (2)'!p29"))=TRUE,"",INDIRECT("'3.09.1a (2)'!p29")) ->  | N37: =IF(ISERROR(INDIRECT("'3.09.1a (2)'!q29"))=TRUE,"",INDIRECT("'3.09.1a (2)'!q29")) ->  | O37: =IF(ISERROR(INDIRECT("'3.09.1a (2)'!s29"))=TRUE,"",INDIRECT("'3.09.1a (2)'!s29")) ->  | P37: =IF(ISERROR(INDIRECT("'3.09.1a (2)'!t29"))=TRUE,"",INDIRECT("'3.09.1a (2)'!t29")) ->  | Q37: =IF(ISERROR(INDIRECT("'3.09.1a (2)'!u29"))=TRUE,"",INDIRECT("'3.09.1a (2)'!u29")) ->  | R37: =IF(ISERROR(INDIRECT("'3.09.1a (2)'!v29"))=TRUE,"",INDIRECT("'3.09.1a (2)'!v29")) ->  | S37: =IF(ISERROR(INDIRECT("'3.09.1a (2)'!w29"))=TRUE,"",INDIRECT("'3.09.1a (2)'!w29")) ->  | T37: =IF(ISERROR(INDIRECT("'3.09.1a (2)'!x29"))=TRUE,"",INDIRECT("'3.09.1a (2)'!x29")) ->  | U37: =IF(ISERROR(INDIRECT("'3.09.1a (2)'!aa29"))=TRUE,"",INDIRECT("'3.09.1a (2)'!aa29")) ->  | V37: =IF(ISERROR(INDIRECT("'3.09.1a (2)'!ad29"))=TRUE,"",INDIRECT("'3.09.1a (2)'!ad29")) ->  | W37: =IF(ISERROR(INDIRECT("'3.09.1a (2)'!ah29"))=TRUE,"",INDIRECT("'3.09.1a (2)'!ah29")) ->  | X37: =IF(ISERROR(INDIRECT("'3.09.1a (2)'!am29"))=TRUE,"",INDIRECT("'3.09.1a (2)'!am29")) -> 
A38: 0 | B38: 3.09.1a (2) | C38: =IF(ISERROR(INDIRECT("'3.09.1a (2)'!b30"))=TRUE,"",INDIRECT("'3.09.1a (2)'!b30")) ->  | D38: =IF(ISERROR(INDIRECT("'3.09.1a (2)'!c30"))=TRUE,"",INDIRECT("'3.09.1a (2)'!c30")) ->  | E38: =IF(ISERROR(INDIRECT("'3.09.1a (2)'!d30"))=TRUE,"",INDIRECT("'3.09.1a (2)'!d30")) ->  | F38: =IF(ISERROR(INDIRECT("'3.09.1a (2)'!e30"))=TRUE,"",INDIRECT("'3.09.1a (2)'!e30")) ->  | G38: =IF(ISERROR(INDIRECT("'3.09.1a (2)'!f30"))=TRUE,"",INDIRECT("'3.09.1a (2)'!f30")) ->  | H38: =IF(ISERROR(INDIRECT("'3.09.1a (2)'!g30"))=TRUE,"",INDIRECT("'3.09.1a (2)'!g30")) ->  | I38: =IF(ISERROR(INDIRECT("'3.09.1a (2)'!h30"))=TRUE,"",INDIRECT("'3.09.1a (2)'!h30")) ->  | J38: =IF(ISERROR(INDIRECT("'3.09.1a (2)'!i30"))=TRUE,"",INDIRECT("'3.09.1a (2)'!i30")) ->  | K38: =IF(ISERROR(INDIRECT("'3.09.1a (2)'!j30"))=TRUE,"",INDIRECT("'3.09.1a (2)'!j30")) ->  | L38: =IF(ISERROR(INDIRECT("'3.09.1a (2)'!o30"))=TRUE,"",INDIRECT("'3.09.1a (2)'!o30")) ->  | M38: =IF(ISERROR(INDIRECT("'3.09.1a (2)'!p30"))=TRUE,"",INDIRECT("'3.09.1a (2)'!p30")) ->  | N38: =IF(ISERROR(INDIRECT("'3.09.1a (2)'!q30"))=TRUE,"",INDIRECT("'3.09.1a (2)'!q30")) ->  | O38: =IF(ISERROR(INDIRECT("'3.09.1a (2)'!s30"))=TRUE,"",INDIRECT("'3.09.1a (2)'!s30")) ->  | P38: =IF(ISERROR(INDIRECT("'3.09.1a (2)'!t30"))=TRUE,"",INDIRECT("'3.09.1a (2)'!t30")) ->  | Q38: =IF(ISERROR(INDIRECT("'3.09.1a (2)'!u30"))=TRUE,"",INDIRECT("'3.09.1a (2)'!u30")) ->  | R38: =IF(ISERROR(INDIRECT("'3.09.1a (2)'!v30"))=TRUE,"",INDIRECT("'3.09.1a (2)'!v30")) ->  | S38: =IF(ISERROR(INDIRECT("'3.09.1a (2)'!w30"))=TRUE,"",INDIRECT("'3.09.1a (2)'!w30")) ->  | T38: =IF(ISERROR(INDIRECT("'3.09.1a (2)'!x30"))=TRUE,"",INDIRECT("'3.09.1a (2)'!x30")) ->  | U38: =IF(ISERROR(INDIRECT("'3.09.1a (2)'!aa30"))=TRUE,"",INDIRECT("'3.09.1a (2)'!aa30")) ->  | V38: =IF(ISERROR(INDIRECT("'3.09.1a (2)'!ad30"))=TRUE,"",INDIRECT("'3.09.1a (2)'!ad30")) ->  | W38: =IF(ISERROR(INDIRECT("'3.09.1a (2)'!ah30"))=TRUE,"",INDIRECT("'3.09.1a (2)'!ah30")) ->  | X38: =IF(ISERROR(INDIRECT("'3.09.1a (2)'!am30"))=TRUE,"",INDIRECT("'3.09.1a (2)'!am30")) -> 
A39: 0 | B39: 3.09.1a (2) | C39: =IF(ISERROR(INDIRECT("'3.09.1a (2)'!b31"))=TRUE,"",INDIRECT("'3.09.1a (2)'!b31")) ->  | D39: =IF(ISERROR(INDIRECT("'3.09.1a (2)'!c31"))=TRUE,"",INDIRECT("'3.09.1a (2)'!c31")) ->  | E39: =IF(ISERROR(INDIRECT("'3.09.1a (2)'!d31"))=TRUE,"",INDIRECT("'3.09.1a (2)'!d31")) ->  | F39: =IF(ISERROR(INDIRECT("'3.09.1a (2)'!e31"))=TRUE,"",INDIRECT("'3.09.1a (2)'!e31")) ->  | G39: =IF(ISERROR(INDIRECT("'3.09.1a (2)'!f31"))=TRUE,"",INDIRECT("'3.09.1a (2)'!f31")) ->  | H39: =IF(ISERROR(INDIRECT("'3.09.1a (2)'!g31"))=TRUE,"",INDIRECT("'3.09.1a (2)'!g31")) ->  | I39: =IF(ISERROR(INDIRECT("'3.09.1a (2)'!h31"))=TRUE,"",INDIRECT("'3.09.1a (2)'!h31")) ->  | J39: =IF(ISERROR(INDIRECT("'3.09.1a (2)'!i31"))=TRUE,"",INDIRECT("'3.09.1a (2)'!i31")) ->  | K39: =IF(ISERROR(INDIRECT("'3.09.1a (2)'!j31"))=TRUE,"",INDIRECT("'3.09.1a (2)'!j31")) ->  | L39: =IF(ISERROR(INDIRECT("'3.09.1a (2)'!o31"))=TRUE,"",INDIRECT("'3.09.1a (2)'!o31")) ->  | M39: =IF(ISERROR(INDIRECT("'3.09.1a (2)'!p31"))=TRUE,"",INDIRECT("'3.09.1a (2)'!p31")) ->  | N39: =IF(ISERROR(INDIRECT("'3.09.1a (2)'!q31"))=TRUE,"",INDIRECT("'3.09.1a (2)'!q31")) ->  | O39: =IF(ISERROR(INDIRECT("'3.09.1a (2)'!s31"))=TRUE,"",INDIRECT("'3.09.1a (2)'!s31")) ->  | P39: =IF(ISERROR(INDIRECT("'3.09.1a (2)'!t31"))=TRUE,"",INDIRECT("'3.09.1a (2)'!t31")) ->  | Q39: =IF(ISERROR(INDIRECT("'3.09.1a (2)'!u31"))=TRUE,"",INDIRECT("'3.09.1a (2)'!u31")) ->  | R39: =IF(ISERROR(INDIRECT("'3.09.1a (2)'!v31"))=TRUE,"",INDIRECT("'3.09.1a (2)'!v31")) ->  | S39: =IF(ISERROR(INDIRECT("'3.09.1a (2)'!w31"))=TRUE,"",INDIRECT("'3.09.1a (2)'!w31")) ->  | T39: =IF(ISERROR(INDIRECT("'3.09.1a (2)'!x31"))=TRUE,"",INDIRECT("'3.09.1a (2)'!x31")) ->  | U39: =IF(ISERROR(INDIRECT("'3.09.1a (2)'!aa31"))=TRUE,"",INDIRECT("'3.09.1a (2)'!aa31")) ->  | V39: =IF(ISERROR(INDIRECT("'3.09.1a (2)'!ad31"))=TRUE,"",INDIRECT("'3.09.1a (2)'!ad31")) ->  | W39: =IF(ISERROR(INDIRECT("'3.09.1a (2)'!ah31"))=TRUE,"",INDIRECT("'3.09.1a (2)'!ah31")) ->  | X39: =IF(ISERROR(INDIRECT("'3.09.1a (2)'!am31"))=TRUE,"",INDIRECT("'3.09.1a (2)'!am31")) -> 
A40: 0 | B40: 3.09.1a (2) | C40: =IF(ISERROR(INDIRECT("'3.09.1a (2)'!b32"))=TRUE,"",INDIRECT("'3.09.1a (2)'!b32")) ->  | D40: =IF(ISERROR(INDIRECT("'3.09.1a (2)'!c32"))=TRUE,"",INDIRECT("'3.09.1a (2)'!c32")) ->  | E40: =IF(ISERROR(INDIRECT("'3.09.1a (2)'!d32"))=TRUE,"",INDIRECT("'3.09.1a (2)'!d32")) ->  | F40: =IF(ISERROR(INDIRECT("'3.09.1a (2)'!e32"))=TRUE,"",INDIRECT("'3.09.1a (2)'!e32")) ->  | G40: =IF(ISERROR(INDIRECT("'3.09.1a (2)'!f32"))=TRUE,"",INDIRECT("'3.09.1a (2)'!f32")) ->  | H40: =IF(ISERROR(INDIRECT("'3.09.1a (2)'!g32"))=TRUE,"",INDIRECT("'3.09.1a (2)'!g32")) ->  | I40: =IF(ISERROR(INDIRECT("'3.09.1a (2)'!h32"))=TRUE,"",INDIRECT("'3.09.1a (2)'!h32")) ->  | J40: =IF(ISERROR(INDIRECT("'3.09.1a (2)'!i32"))=TRUE,"",INDIRECT("'3.09.1a (2)'!i32")) ->  | K40: =IF(ISERROR(INDIRECT("'3.09.1a (2)'!j32"))=TRUE,"",INDIRECT("'3.09.1a (2)'!j32")) ->  | L40: =IF(ISERROR(INDIRECT("'3.09.1a (2)'!o32"))=TRUE,"",INDIRECT("'3.09.1a (2)'!o32")) ->  | M40: =IF(ISERROR(INDIRECT("'3.09.1a (2)'!p32"))=TRUE,"",INDIRECT("'3.09.1a (2)'!p32")) ->  | N40: =IF(ISERROR(INDIRECT("'3.09.1a (2)'!q32"))=TRUE,"",INDIRECT("'3.09.1a (2)'!q32")) ->  | O40: =IF(ISERROR(INDIRECT("'3.09.1a (2)'!s32"))=TRUE,"",INDIRECT("'3.09.1a (2)'!s32")) ->  | P40: =IF(ISERROR(INDIRECT("'3.09.1a (2)'!t32"))=TRUE,"",INDIRECT("'3.09.1a (2)'!t32")) ->  | Q40: =IF(ISERROR(INDIRECT("'3.09.1a (2)'!u32"))=TRUE,"",INDIRECT("'3.09.1a (2)'!u32")) ->  | R40: =IF(ISERROR(INDIRECT("'3.09.1a (2)'!v32"))=TRUE,"",INDIRECT("'3.09.1a (2)'!v32")) ->  | S40: =IF(ISERROR(INDIRECT("'3.09.1a (2)'!w32"))=TRUE,"",INDIRECT("'3.09.1a (2)'!w32")) ->  | T40: =IF(ISERROR(INDIRECT("'3.09.1a (2)'!x32"))=TRUE,"",INDIRECT("'3.09.1a (2)'!x32")) ->  | U40: =IF(ISERROR(INDIRECT("'3.09.1a (2)'!aa32"))=TRUE,"",INDIRECT("'3.09.1a (2)'!aa32")) ->  | V40: =IF(ISERROR(INDIRECT("'3.09.1a (2)'!ad32"))=TRUE,"",INDIRECT("'3.09.1a (2)'!ad32")) ->  | W40: =IF(ISERROR(INDIRECT("'3.09.1a (2)'!ah32"))=TRUE,"",INDIRECT("'3.09.1a (2)'!ah32")) ->  | X40: =IF(ISERROR(INDIRECT("'3.09.1a (2)'!am32"))=TRUE,"",INDIRECT("'3.09.1a (2)'!am32")) -> 
A41: 0 | B41: 3.09.1a (2) | C41: =IF(ISERROR(INDIRECT("'3.09.1a (2)'!b33"))=TRUE,"",INDIRECT("'3.09.1a (2)'!b33")) ->  | D41: =IF(ISERROR(INDIRECT("'3.09.1a (2)'!c33"))=TRUE,"",INDIRECT("'3.09.1a (2)'!c33")) ->  | E41: =IF(ISERROR(INDIRECT("'3.09.1a (2)'!d33"))=TRUE,"",INDIRECT("'3.09.1a (2)'!d33")) ->  | F41: =IF(ISERROR(INDIRECT("'3.09.1a (2)'!e33"))=TRUE,"",INDIRECT("'3.09.1a (2)'!e33")) ->  | G41: =IF(ISERROR(INDIRECT("'3.09.1a (2)'!f33"))=TRUE,"",INDIRECT("'3.09.1a (2)'!f33")) ->  | H41: =IF(ISERROR(INDIRECT("'3.09.1a (2)'!g33"))=TRUE,"",INDIRECT("'3.09.1a (2)'!g33")) ->  | I41: =IF(ISERROR(INDIRECT("'3.09.1a (2)'!h33"))=TRUE,"",INDIRECT("'3.09.1a (2)'!h33")) ->  | J41: =IF(ISERROR(INDIRECT("'3.09.1a (2)'!i33"))=TRUE,"",INDIRECT("'3.09.1a (2)'!i33")) ->  | K41: =IF(ISERROR(INDIRECT("'3.09.1a (2)'!j33"))=TRUE,"",INDIRECT("'3.09.1a (2)'!j33")) ->  | L41: =IF(ISERROR(INDIRECT("'3.09.1a (2)'!o33"))=TRUE,"",INDIRECT("'3.09.1a (2)'!o33")) ->  | M41: =IF(ISERROR(INDIRECT("'3.09.1a (2)'!p33"))=TRUE,"",INDIRECT("'3.09.1a (2)'!p33")) ->  | N41: =IF(ISERROR(INDIRECT("'3.09.1a (2)'!q33"))=TRUE,"",INDIRECT("'3.09.1a (2)'!q33")) ->  | O41: =IF(ISERROR(INDIRECT("'3.09.1a (2)'!s33"))=TRUE,"",INDIRECT("'3.09.1a (2)'!s33")) ->  | P41: =IF(ISERROR(INDIRECT("'3.09.1a (2)'!t33"))=TRUE,"",INDIRECT("'3.09.1a (2)'!t33")) ->  | Q41: =IF(ISERROR(INDIRECT("'3.09.1a (2)'!u33"))=TRUE,"",INDIRECT("'3.09.1a (2)'!u33")) ->  | R41: =IF(ISERROR(INDIRECT("'3.09.1a (2)'!v33"))=TRUE,"",INDIRECT("'3.09.1a (2)'!v33")) ->  | S41: =IF(ISERROR(INDIRECT("'3.09.1a (2)'!w33"))=TRUE,"",INDIRECT("'3.09.1a (2)'!w33")) ->  | T41: =IF(ISERROR(INDIRECT("'3.09.1a (2)'!x33"))=TRUE,"",INDIRECT("'3.09.1a (2)'!x33")) ->  | U41: =IF(ISERROR(INDIRECT("'3.09.1a (2)'!aa33"))=TRUE,"",INDIRECT("'3.09.1a (2)'!aa33")) ->  | V41: =IF(ISERROR(INDIRECT("'3.09.1a (2)'!ad33"))=TRUE,"",INDIRECT("'3.09.1a (2)'!ad33")) ->  | W41: =IF(ISERROR(INDIRECT("'3.09.1a (2)'!ah33"))=TRUE,"",INDIRECT("'3.09.1a (2)'!ah33")) ->  | X41: =IF(ISERROR(INDIRECT("'3.09.1a (2)'!am33"))=TRUE,"",INDIRECT("'3.09.1a (2)'!am33")) -> 
A42: 0 | B42: 3.09.1a (2) | C42: =IF(ISERROR(INDIRECT("'3.09.1a (2)'!b34"))=TRUE,"",INDIRECT("'3.09.1a (2)'!b34")) ->  | D42: =IF(ISERROR(INDIRECT("'3.09.1a (2)'!c34"))=TRUE,"",INDIRECT("'3.09.1a (2)'!c34")) ->  | E42: =IF(ISERROR(INDIRECT("'3.09.1a (2)'!d34"))=TRUE,"",INDIRECT("'3.09.1a (2)'!d34")) ->  | F42: =IF(ISERROR(INDIRECT("'3.09.1a (2)'!e34"))=TRUE,"",INDIRECT("'3.09.1a (2)'!e34")) ->  | G42: =IF(ISERROR(INDIRECT("'3.09.1a (2)'!f34"))=TRUE,"",INDIRECT("'3.09.1a (2)'!f34")) ->  | H42: =IF(ISERROR(INDIRECT("'3.09.1a (2)'!g34"))=TRUE,"",INDIRECT("'3.09.1a (2)'!g34")) ->  | I42: =IF(ISERROR(INDIRECT("'3.09.1a (2)'!h34"))=TRUE,"",INDIRECT("'3.09.1a (2)'!h34")) ->  | J42: =IF(ISERROR(INDIRECT("'3.09.1a (2)'!i34"))=TRUE,"",INDIRECT("'3.09.1a (2)'!i34")) ->  | K42: =IF(ISERROR(INDIRECT("'3.09.1a (2)'!j34"))=TRUE,"",INDIRECT("'3.09.1a (2)'!j34")) ->  | L42: =IF(ISERROR(INDIRECT("'3.09.1a (2)'!o34"))=TRUE,"",INDIRECT("'3.09.1a (2)'!o34")) ->  | M42: =IF(ISERROR(INDIRECT("'3.09.1a (2)'!p34"))=TRUE,"",INDIRECT("'3.09.1a (2)'!p34")) ->  | N42: =IF(ISERROR(INDIRECT("'3.09.1a (2)'!q34"))=TRUE,"",INDIRECT("'3.09.1a (2)'!q34")) ->  | O42: =IF(ISERROR(INDIRECT("'3.09.1a (2)'!s34"))=TRUE,"",INDIRECT("'3.09.1a (2)'!s34")) ->  | P42: =IF(ISERROR(INDIRECT("'3.09.1a (2)'!t34"))=TRUE,"",INDIRECT("'3.09.1a (2)'!t34")) ->  | Q42: =IF(ISERROR(INDIRECT("'3.09.1a (2)'!u34"))=TRUE,"",INDIRECT("'3.09.1a (2)'!u34")) ->  | R42: =IF(ISERROR(INDIRECT("'3.09.1a (2)'!v34"))=TRUE,"",INDIRECT("'3.09.1a (2)'!v34")) ->  | S42: =IF(ISERROR(INDIRECT("'3.09.1a (2)'!w34"))=TRUE,"",INDIRECT("'3.09.1a (2)'!w34")) ->  | T42: =IF(ISERROR(INDIRECT("'3.09.1a (2)'!x34"))=TRUE,"",INDIRECT("'3.09.1a (2)'!x34")) ->  | U42: =IF(ISERROR(INDIRECT("'3.09.1a (2)'!aa34"))=TRUE,"",INDIRECT("'3.09.1a (2)'!aa34")) ->  | V42: =IF(ISERROR(INDIRECT("'3.09.1a (2)'!ad34"))=TRUE,"",INDIRECT("'3.09.1a (2)'!ad34")) ->  | W42: =IF(ISERROR(INDIRECT("'3.09.1a (2)'!ah34"))=TRUE,"",INDIRECT("'3.09.1a (2)'!ah34")) ->  | X42: =IF(ISERROR(INDIRECT("'3.09.1a (2)'!am34"))=TRUE,"",INDIRECT("'3.09.1a (2)'!am34")) -> 
A43: 0 | B43: 3.09.1a (2) | C43: =IF(ISERROR(INDIRECT("'3.09.1a (2)'!b35"))=TRUE,"",INDIRECT("'3.09.1a (2)'!b35")) ->  | D43: =IF(ISERROR(INDIRECT("'3.09.1a (2)'!c35"))=TRUE,"",INDIRECT("'3.09.1a (2)'!c35")) ->  | E43: =IF(ISERROR(INDIRECT("'3.09.1a (2)'!d35"))=TRUE,"",INDIRECT("'3.09.1a (2)'!d35")) ->  | F43: =IF(ISERROR(INDIRECT("'3.09.1a (2)'!e35"))=TRUE,"",INDIRECT("'3.09.1a (2)'!e35")) ->  | G43: =IF(ISERROR(INDIRECT("'3.09.1a (2)'!f35"))=TRUE,"",INDIRECT("'3.09.1a (2)'!f35")) ->  | H43: =IF(ISERROR(INDIRECT("'3.09.1a (2)'!g35"))=TRUE,"",INDIRECT("'3.09.1a (2)'!g35")) ->  | I43: =IF(ISERROR(INDIRECT("'3.09.1a (2)'!h35"))=TRUE,"",INDIRECT("'3.09.1a (2)'!h35")) ->  | J43: =IF(ISERROR(INDIRECT("'3.09.1a (2)'!i35"))=TRUE,"",INDIRECT("'3.09.1a (2)'!i35")) ->  | K43: =IF(ISERROR(INDIRECT("'3.09.1a (2)'!j35"))=TRUE,"",INDIRECT("'3.09.1a (2)'!j35")) ->  | L43: =IF(ISERROR(INDIRECT("'3.09.1a (2)'!o35"))=TRUE,"",INDIRECT("'3.09.1a (2)'!o35")) ->  | M43: =IF(ISERROR(INDIRECT("'3.09.1a (2)'!p35"))=TRUE,"",INDIRECT("'3.09.1a (2)'!p35")) ->  | N43: =IF(ISERROR(INDIRECT("'3.09.1a (2)'!q35"))=TRUE,"",INDIRECT("'3.09.1a (2)'!q35")) ->  | O43: =IF(ISERROR(INDIRECT("'3.09.1a (2)'!s35"))=TRUE,"",INDIRECT("'3.09.1a (2)'!s35")) ->  | P43: =IF(ISERROR(INDIRECT("'3.09.1a (2)'!t35"))=TRUE,"",INDIRECT("'3.09.1a (2)'!t35")) ->  | Q43: =IF(ISERROR(INDIRECT("'3.09.1a (2)'!u35"))=TRUE,"",INDIRECT("'3.09.1a (2)'!u35")) ->  | R43: =IF(ISERROR(INDIRECT("'3.09.1a (2)'!v35"))=TRUE,"",INDIRECT("'3.09.1a (2)'!v35")) ->  | S43: =IF(ISERROR(INDIRECT("'3.09.1a (2)'!w35"))=TRUE,"",INDIRECT("'3.09.1a (2)'!w35")) ->  | T43: =IF(ISERROR(INDIRECT("'3.09.1a (2)'!x35"))=TRUE,"",INDIRECT("'3.09.1a (2)'!x35")) ->  | U43: =IF(ISERROR(INDIRECT("'3.09.1a (2)'!aa35"))=TRUE,"",INDIRECT("'3.09.1a (2)'!aa35")) ->  | V43: =IF(ISERROR(INDIRECT("'3.09.1a (2)'!ad35"))=TRUE,"",INDIRECT("'3.09.1a (2)'!ad35")) ->  | W43: =IF(ISERROR(INDIRECT("'3.09.1a (2)'!ah35"))=TRUE,"",INDIRECT("'3.09.1a (2)'!ah35")) ->  | X43: =IF(ISERROR(INDIRECT("'3.09.1a (2)'!am35"))=TRUE,"",INDIRECT("'3.09.1a (2)'!am35")) -> 
A44: 0 | B44: 3.09.1a (2) | C44: =IF(ISERROR(INDIRECT("'3.09.1a (2)'!b36"))=TRUE,"",INDIRECT("'3.09.1a (2)'!b36")) ->  | D44: =IF(ISERROR(INDIRECT("'3.09.1a (2)'!c36"))=TRUE,"",INDIRECT("'3.09.1a (2)'!c36")) ->  | E44: =IF(ISERROR(INDIRECT("'3.09.1a (2)'!d36"))=TRUE,"",INDIRECT("'3.09.1a (2)'!d36")) ->  | F44: =IF(ISERROR(INDIRECT("'3.09.1a (2)'!e36"))=TRUE,"",INDIRECT("'3.09.1a (2)'!e36")) ->  | G44: =IF(ISERROR(INDIRECT("'3.09.1a (2)'!f36"))=TRUE,"",INDIRECT("'3.09.1a (2)'!f36")) ->  | H44: =IF(ISERROR(INDIRECT("'3.09.1a (2)'!g36"))=TRUE,"",INDIRECT("'3.09.1a (2)'!g36")) ->  | I44: =IF(ISERROR(INDIRECT("'3.09.1a (2)'!h36"))=TRUE,"",INDIRECT("'3.09.1a (2)'!h36")) ->  | J44: =IF(ISERROR(INDIRECT("'3.09.1a (2)'!i36"))=TRUE,"",INDIRECT("'3.09.1a (2)'!i36")) ->  | K44: =IF(ISERROR(INDIRECT("'3.09.1a (2)'!j36"))=TRUE,"",INDIRECT("'3.09.1a (2)'!j36")) ->  | L44: =IF(ISERROR(INDIRECT("'3.09.1a (2)'!o36"))=TRUE,"",INDIRECT("'3.09.1a (2)'!o36")) ->  | M44: =IF(ISERROR(INDIRECT("'3.09.1a (2)'!p36"))=TRUE,"",INDIRECT("'3.09.1a (2)'!p36")) ->  | N44: =IF(ISERROR(INDIRECT("'3.09.1a (2)'!q36"))=TRUE,"",INDIRECT("'3.09.1a (2)'!q36")) ->  | O44: =IF(ISERROR(INDIRECT("'3.09.1a (2)'!s36"))=TRUE,"",INDIRECT("'3.09.1a (2)'!s36")) ->  | P44: =IF(ISERROR(INDIRECT("'3.09.1a (2)'!t36"))=TRUE,"",INDIRECT("'3.09.1a (2)'!t36")) ->  | Q44: =IF(ISERROR(INDIRECT("'3.09.1a (2)'!u36"))=TRUE,"",INDIRECT("'3.09.1a (2)'!u36")) ->  | R44: =IF(ISERROR(INDIRECT("'3.09.1a (2)'!v36"))=TRUE,"",INDIRECT("'3.09.1a (2)'!v36")) ->  | S44: =IF(ISERROR(INDIRECT("'3.09.1a (2)'!w36"))=TRUE,"",INDIRECT("'3.09.1a (2)'!w36")) ->  | T44: =IF(ISERROR(INDIRECT("'3.09.1a (2)'!x36"))=TRUE,"",INDIRECT("'3.09.1a (2)'!x36")) ->  | U44: =IF(ISERROR(INDIRECT("'3.09.1a (2)'!aa36"))=TRUE,"",INDIRECT("'3.09.1a (2)'!aa36")) ->  | V44: =IF(ISERROR(INDIRECT("'3.09.1a (2)'!ad36"))=TRUE,"",INDIRECT("'3.09.1a (2)'!ad36")) ->  | W44: =IF(ISERROR(INDIRECT("'3.09.1a (2)'!ah36"))=TRUE,"",INDIRECT("'3.09.1a (2)'!ah36")) ->  | X44: =IF(ISERROR(INDIRECT("'3.09.1a (2)'!am36"))=TRUE,"",INDIRECT("'3.09.1a (2)'!am36")) -> 
A45: 0 | B45: 3.09.1a (2) | C45: =IF(ISERROR(INDIRECT("'3.09.1a (2)'!b37"))=TRUE,"",INDIRECT("'3.09.1a (2)'!b37")) ->  | D45: =IF(ISERROR(INDIRECT("'3.09.1a (2)'!c37"))=TRUE,"",INDIRECT("'3.09.1a (2)'!c37")) ->  | E45: =IF(ISERROR(INDIRECT("'3.09.1a (2)'!d37"))=TRUE,"",INDIRECT("'3.09.1a (2)'!d37")) ->  | F45: =IF(ISERROR(INDIRECT("'3.09.1a (2)'!e37"))=TRUE,"",INDIRECT("'3.09.1a (2)'!e37")) ->  | G45: =IF(ISERROR(INDIRECT("'3.09.1a (2)'!f37"))=TRUE,"",INDIRECT("'3.09.1a (2)'!f37")) ->  | H45: =IF(ISERROR(INDIRECT("'3.09.1a (2)'!g37"))=TRUE,"",INDIRECT("'3.09.1a (2)'!g37")) ->  | I45: =IF(ISERROR(INDIRECT("'3.09.1a (2)'!h37"))=TRUE,"",INDIRECT("'3.09.1a (2)'!h37")) ->  | J45: =IF(ISERROR(INDIRECT("'3.09.1a (2)'!i37"))=TRUE,"",INDIRECT("'3.09.1a (2)'!i37")) ->  | K45: =IF(ISERROR(INDIRECT("'3.09.1a (2)'!j37"))=TRUE,"",INDIRECT("'3.09.1a (2)'!j37")) ->  | L45: =IF(ISERROR(INDIRECT("'3.09.1a (2)'!o37"))=TRUE,"",INDIRECT("'3.09.1a (2)'!o37")) ->  | M45: =IF(ISERROR(INDIRECT("'3.09.1a (2)'!p37"))=TRUE,"",INDIRECT("'3.09.1a (2)'!p37")) ->  | N45: =IF(ISERROR(INDIRECT("'3.09.1a (2)'!q37"))=TRUE,"",INDIRECT("'3.09.1a (2)'!q37")) ->  | O45: =IF(ISERROR(INDIRECT("'3.09.1a (2)'!s37"))=TRUE,"",INDIRECT("'3.09.1a (2)'!s37")) ->  | P45: =IF(ISERROR(INDIRECT("'3.09.1a (2)'!t37"))=TRUE,"",INDIRECT("'3.09.1a (2)'!t37")) ->  | Q45: =IF(ISERROR(INDIRECT("'3.09.1a (2)'!u37"))=TRUE,"",INDIRECT("'3.09.1a (2)'!u37")) ->  | R45: =IF(ISERROR(INDIRECT("'3.09.1a (2)'!v37"))=TRUE,"",INDIRECT("'3.09.1a (2)'!v37")) ->  | S45: =IF(ISERROR(INDIRECT("'3.09.1a (2)'!w37"))=TRUE,"",INDIRECT("'3.09.1a (2)'!w37")) ->  | T45: =IF(ISERROR(INDIRECT("'3.09.1a (2)'!x37"))=TRUE,"",INDIRECT("'3.09.1a (2)'!x37")) ->  | U45: =IF(ISERROR(INDIRECT("'3.09.1a (2)'!aa37"))=TRUE,"",INDIRECT("'3.09.1a (2)'!aa37")) ->  | V45: =IF(ISERROR(INDIRECT("'3.09.1a (2)'!ad37"))=TRUE,"",INDIRECT("'3.09.1a (2)'!ad37")) ->  | W45: =IF(ISERROR(INDIRECT("'3.09.1a (2)'!ah37"))=TRUE,"",INDIRECT("'3.09.1a (2)'!ah37")) ->  | X45: =IF(ISERROR(INDIRECT("'3.09.1a (2)'!am37"))=TRUE,"",INDIRECT("'3.09.1a (2)'!am37")) -> 
A46: 0 | B46: 3.09.1a (2) | C46: =IF(ISERROR(INDIRECT("'3.09.1a (2)'!b38"))=TRUE,"",INDIRECT("'3.09.1a (2)'!b38")) ->  | D46: =IF(ISERROR(INDIRECT("'3.09.1a (2)'!c38"))=TRUE,"",INDIRECT("'3.09.1a (2)'!c38")) ->  | E46: =IF(ISERROR(INDIRECT("'3.09.1a (2)'!d38"))=TRUE,"",INDIRECT("'3.09.1a (2)'!d38")) ->  | F46: =IF(ISERROR(INDIRECT("'3.09.1a (2)'!e38"))=TRUE,"",INDIRECT("'3.09.1a (2)'!e38")) ->  | G46: =IF(ISERROR(INDIRECT("'3.09.1a (2)'!f38"))=TRUE,"",INDIRECT("'3.09.1a (2)'!f38")) ->  | H46: =IF(ISERROR(INDIRECT("'3.09.1a (2)'!g38"))=TRUE,"",INDIRECT("'3.09.1a (2)'!g38")) ->  | I46: =IF(ISERROR(INDIRECT("'3.09.1a (2)'!h38"))=TRUE,"",INDIRECT("'3.09.1a (2)'!h38")) ->  | J46: =IF(ISERROR(INDIRECT("'3.09.1a (2)'!i38"))=TRUE,"",INDIRECT("'3.09.1a (2)'!i38")) ->  | K46: =IF(ISERROR(INDIRECT("'3.09.1a (2)'!j38"))=TRUE,"",INDIRECT("'3.09.1a (2)'!j38")) ->  | L46: =IF(ISERROR(INDIRECT("'3.09.1a (2)'!o38"))=TRUE,"",INDIRECT("'3.09.1a (2)'!o38")) ->  | M46: =IF(ISERROR(INDIRECT("'3.09.1a (2)'!p38"))=TRUE,"",INDIRECT("'3.09.1a (2)'!p38")) ->  | N46: =IF(ISERROR(INDIRECT("'3.09.1a (2)'!q38"))=TRUE,"",INDIRECT("'3.09.1a (2)'!q38")) ->  | O46: =IF(ISERROR(INDIRECT("'3.09.1a (2)'!s38"))=TRUE,"",INDIRECT("'3.09.1a (2)'!s38")) ->  | P46: =IF(ISERROR(INDIRECT("'3.09.1a (2)'!t38"))=TRUE,"",INDIRECT("'3.09.1a (2)'!t38")) ->  | Q46: =IF(ISERROR(INDIRECT("'3.09.1a (2)'!u38"))=TRUE,"",INDIRECT("'3.09.1a (2)'!u38")) ->  | R46: =IF(ISERROR(INDIRECT("'3.09.1a (2)'!v38"))=TRUE,"",INDIRECT("'3.09.1a (2)'!v38")) ->  | S46: =IF(ISERROR(INDIRECT("'3.09.1a (2)'!w38"))=TRUE,"",INDIRECT("'3.09.1a (2)'!w38")) ->  | T46: =IF(ISERROR(INDIRECT("'3.09.1a (2)'!x38"))=TRUE,"",INDIRECT("'3.09.1a (2)'!x38")) ->  | U46: =IF(ISERROR(INDIRECT("'3.09.1a (2)'!aa38"))=TRUE,"",INDIRECT("'3.09.1a (2)'!aa38")) ->  | V46: =IF(ISERROR(INDIRECT("'3.09.1a (2)'!ad38"))=TRUE,"",INDIRECT("'3.09.1a (2)'!ad38")) ->  | W46: =IF(ISERROR(INDIRECT("'3.09.1a (2)'!ah38"))=TRUE,"",INDIRECT("'3.09.1a (2)'!ah38")) ->  | X46: =IF(ISERROR(INDIRECT("'3.09.1a (2)'!am38"))=TRUE,"",INDIRECT("'3.09.1a (2)'!am38")) -> 
A47: 0 | B47: 3.09.1a (2) | C47: =IF(ISERROR(INDIRECT("'3.09.1a (2)'!b39"))=TRUE,"",INDIRECT("'3.09.1a (2)'!b39")) ->  | D47: =IF(ISERROR(INDIRECT("'3.09.1a (2)'!c39"))=TRUE,"",INDIRECT("'3.09.1a (2)'!c39")) ->  | E47: =IF(ISERROR(INDIRECT("'3.09.1a (2)'!d39"))=TRUE,"",INDIRECT("'3.09.1a (2)'!d39")) ->  | F47: =IF(ISERROR(INDIRECT("'3.09.1a (2)'!e39"))=TRUE,"",INDIRECT("'3.09.1a (2)'!e39")) ->  | G47: =IF(ISERROR(INDIRECT("'3.09.1a (2)'!f39"))=TRUE,"",INDIRECT("'3.09.1a (2)'!f39")) ->  | H47: =IF(ISERROR(INDIRECT("'3.09.1a (2)'!g39"))=TRUE,"",INDIRECT("'3.09.1a (2)'!g39")) ->  | I47: =IF(ISERROR(INDIRECT("'3.09.1a (2)'!h39"))=TRUE,"",INDIRECT("'3.09.1a (2)'!h39")) ->  | J47: =IF(ISERROR(INDIRECT("'3.09.1a (2)'!i39"))=TRUE,"",INDIRECT("'3.09.1a (2)'!i39")) ->  | K47: =IF(ISERROR(INDIRECT("'3.09.1a (2)'!j39"))=TRUE,"",INDIRECT("'3.09.1a (2)'!j39")) ->  | L47: =IF(ISERROR(INDIRECT("'3.09.1a (2)'!o39"))=TRUE,"",INDIRECT("'3.09.1a (2)'!o39")) ->  | M47: =IF(ISERROR(INDIRECT("'3.09.1a (2)'!p39"))=TRUE,"",INDIRECT("'3.09.1a (2)'!p39")) ->  | N47: =IF(ISERROR(INDIRECT("'3.09.1a (2)'!q39"))=TRUE,"",INDIRECT("'3.09.1a (2)'!q39")) ->  | O47: =IF(ISERROR(INDIRECT("'3.09.1a (2)'!s39"))=TRUE,"",INDIRECT("'3.09.1a (2)'!s39")) ->  | P47: =IF(ISERROR(INDIRECT("'3.09.1a (2)'!t39"))=TRUE,"",INDIRECT("'3.09.1a (2)'!t39")) ->  | Q47: =IF(ISERROR(INDIRECT("'3.09.1a (2)'!u39"))=TRUE,"",INDIRECT("'3.09.1a (2)'!u39")) ->  | R47: =IF(ISERROR(INDIRECT("'3.09.1a (2)'!v39"))=TRUE,"",INDIRECT("'3.09.1a (2)'!v39")) ->  | S47: =IF(ISERROR(INDIRECT("'3.09.1a (2)'!w39"))=TRUE,"",INDIRECT("'3.09.1a (2)'!w39")) ->  | T47: =IF(ISERROR(INDIRECT("'3.09.1a (2)'!x39"))=TRUE,"",INDIRECT("'3.09.1a (2)'!x39")) ->  | U47: =IF(ISERROR(INDIRECT("'3.09.1a (2)'!aa39"))=TRUE,"",INDIRECT("'3.09.1a (2)'!aa39")) ->  | V47: =IF(ISERROR(INDIRECT("'3.09.1a (2)'!ad39"))=TRUE,"",INDIRECT("'3.09.1a (2)'!ad39")) ->  | W47: =IF(ISERROR(INDIRECT("'3.09.1a (2)'!ah39"))=TRUE,"",INDIRECT("'3.09.1a (2)'!ah39")) ->  | X47: =IF(ISERROR(INDIRECT("'3.09.1a (2)'!am39"))=TRUE,"",INDIRECT("'3.09.1a (2)'!am39")) -> 
A48: 0 | B48: 3.09.1a (2) | C48: =IF(ISERROR(INDIRECT("'3.09.1a (2)'!b40"))=TRUE,"",INDIRECT("'3.09.1a (2)'!b40")) ->  | D48: =IF(ISERROR(INDIRECT("'3.09.1a (2)'!c40"))=TRUE,"",INDIRECT("'3.09.1a (2)'!c40")) ->  | E48: =IF(ISERROR(INDIRECT("'3.09.1a (2)'!d40"))=TRUE,"",INDIRECT("'3.09.1a (2)'!d40")) ->  | F48: =IF(ISERROR(INDIRECT("'3.09.1a (2)'!e40"))=TRUE,"",INDIRECT("'3.09.1a (2)'!e40")) ->  | G48: =IF(ISERROR(INDIRECT("'3.09.1a (2)'!f40"))=TRUE,"",INDIRECT("'3.09.1a (2)'!f40")) ->  | H48: =IF(ISERROR(INDIRECT("'3.09.1a (2)'!g40"))=TRUE,"",INDIRECT("'3.09.1a (2)'!g40")) ->  | I48: =IF(ISERROR(INDIRECT("'3.09.1a (2)'!h40"))=TRUE,"",INDIRECT("'3.09.1a (2)'!h40")) ->  | J48: =IF(ISERROR(INDIRECT("'3.09.1a (2)'!i40"))=TRUE,"",INDIRECT("'3.09.1a (2)'!i40")) ->  | K48: =IF(ISERROR(INDIRECT("'3.09.1a (2)'!j40"))=TRUE,"",INDIRECT("'3.09.1a (2)'!j40")) ->  | L48: =IF(ISERROR(INDIRECT("'3.09.1a (2)'!o40"))=TRUE,"",INDIRECT("'3.09.1a (2)'!o40")) ->  | M48: =IF(ISERROR(INDIRECT("'3.09.1a (2)'!p40"))=TRUE,"",INDIRECT("'3.09.1a (2)'!p40")) ->  | N48: =IF(ISERROR(INDIRECT("'3.09.1a (2)'!q40"))=TRUE,"",INDIRECT("'3.09.1a (2)'!q40")) ->  | O48: =IF(ISERROR(INDIRECT("'3.09.1a (2)'!s40"))=TRUE,"",INDIRECT("'3.09.1a (2)'!s40")) ->  | P48: =IF(ISERROR(INDIRECT("'3.09.1a (2)'!t40"))=TRUE,"",INDIRECT("'3.09.1a (2)'!t40")) ->  | Q48: =IF(ISERROR(INDIRECT("'3.09.1a (2)'!u40"))=TRUE,"",INDIRECT("'3.09.1a (2)'!u40")) ->  | R48: =IF(ISERROR(INDIRECT("'3.09.1a (2)'!v40"))=TRUE,"",INDIRECT("'3.09.1a (2)'!v40")) ->  | S48: =IF(ISERROR(INDIRECT("'3.09.1a (2)'!w40"))=TRUE,"",INDIRECT("'3.09.1a (2)'!w40")) ->  | T48: =IF(ISERROR(INDIRECT("'3.09.1a (2)'!x40"))=TRUE,"",INDIRECT("'3.09.1a (2)'!x40")) ->  | U48: =IF(ISERROR(INDIRECT("'3.09.1a (2)'!aa40"))=TRUE,"",INDIRECT("'3.09.1a (2)'!aa40")) ->  | V48: =IF(ISERROR(INDIRECT("'3.09.1a (2)'!ad40"))=TRUE,"",INDIRECT("'3.09.1a (2)'!ad40")) ->  | W48: =IF(ISERROR(INDIRECT("'3.09.1a (2)'!ah40"))=TRUE,"",INDIRECT("'3.09.1a (2)'!ah40")) ->  | X48: =IF(ISERROR(INDIRECT("'3.09.1a (2)'!am40"))=TRUE,"",INDIRECT("'3.09.1a (2)'!am40")) -> 
A49: 0 | B49: 3.09.1a (2) | C49: =IF(ISERROR(INDIRECT("'3.09.1a (2)'!b41"))=TRUE,"",INDIRECT("'3.09.1a (2)'!b41")) ->  | D49: =IF(ISERROR(INDIRECT("'3.09.1a (2)'!c41"))=TRUE,"",INDIRECT("'3.09.1a (2)'!c41")) ->  | E49: =IF(ISERROR(INDIRECT("'3.09.1a (2)'!d41"))=TRUE,"",INDIRECT("'3.09.1a (2)'!d41")) ->  | F49: =IF(ISERROR(INDIRECT("'3.09.1a (2)'!e41"))=TRUE,"",INDIRECT("'3.09.1a (2)'!e41")) ->  | G49: =IF(ISERROR(INDIRECT("'3.09.1a (2)'!f41"))=TRUE,"",INDIRECT("'3.09.1a (2)'!f41")) ->  | H49: =IF(ISERROR(INDIRECT("'3.09.1a (2)'!g41"))=TRUE,"",INDIRECT("'3.09.1a (2)'!g41")) ->  | I49: =IF(ISERROR(INDIRECT("'3.09.1a (2)'!h41"))=TRUE,"",INDIRECT("'3.09.1a (2)'!h41")) ->  | J49: =IF(ISERROR(INDIRECT("'3.09.1a (2)'!i41"))=TRUE,"",INDIRECT("'3.09.1a (2)'!i41")) ->  | K49: =IF(ISERROR(INDIRECT("'3.09.1a (2)'!j41"))=TRUE,"",INDIRECT("'3.09.1a (2)'!j41")) ->  | L49: =IF(ISERROR(INDIRECT("'3.09.1a (2)'!o41"))=TRUE,"",INDIRECT("'3.09.1a (2)'!o41")) ->  | M49: =IF(ISERROR(INDIRECT("'3.09.1a (2)'!p41"))=TRUE,"",INDIRECT("'3.09.1a (2)'!p41")) ->  | N49: =IF(ISERROR(INDIRECT("'3.09.1a (2)'!q41"))=TRUE,"",INDIRECT("'3.09.1a (2)'!q41")) ->  | O49: =IF(ISERROR(INDIRECT("'3.09.1a (2)'!s41"))=TRUE,"",INDIRECT("'3.09.1a (2)'!s41")) ->  | P49: =IF(ISERROR(INDIRECT("'3.09.1a (2)'!t41"))=TRUE,"",INDIRECT("'3.09.1a (2)'!t41")) ->  | Q49: =IF(ISERROR(INDIRECT("'3.09.1a (2)'!u41"))=TRUE,"",INDIRECT("'3.09.1a (2)'!u41")) ->  | R49: =IF(ISERROR(INDIRECT("'3.09.1a (2)'!v41"))=TRUE,"",INDIRECT("'3.09.1a (2)'!v41")) ->  | S49: =IF(ISERROR(INDIRECT("'3.09.1a (2)'!w41"))=TRUE,"",INDIRECT("'3.09.1a (2)'!w41")) ->  | T49: =IF(ISERROR(INDIRECT("'3.09.1a (2)'!x41"))=TRUE,"",INDIRECT("'3.09.1a (2)'!x41")) ->  | U49: =IF(ISERROR(INDIRECT("'3.09.1a (2)'!aa41"))=TRUE,"",INDIRECT("'3.09.1a (2)'!aa41")) ->  | V49: =IF(ISERROR(INDIRECT("'3.09.1a (2)'!ad41"))=TRUE,"",INDIRECT("'3.09.1a (2)'!ad41")) ->  | W49: =IF(ISERROR(INDIRECT("'3.09.1a (2)'!ah41"))=TRUE,"",INDIRECT("'3.09.1a (2)'!ah41")) ->  | X49: =IF(ISERROR(INDIRECT("'3.09.1a (2)'!am41"))=TRUE,"",INDIRECT("'3.09.1a (2)'!am41")) -> 
A50: 0 | B50: 3.09.1a (2) | C50: =IF(ISERROR(INDIRECT("'3.09.1a (2)'!b42"))=TRUE,"",INDIRECT("'3.09.1a (2)'!b42")) ->  | D50: =IF(ISERROR(INDIRECT("'3.09.1a (2)'!c42"))=TRUE,"",INDIRECT("'3.09.1a (2)'!c42")) ->  | E50: =IF(ISERROR(INDIRECT("'3.09.1a (2)'!d42"))=TRUE,"",INDIRECT("'3.09.1a (2)'!d42")) ->  | F50: =IF(ISERROR(INDIRECT("'3.09.1a (2)'!e42"))=TRUE,"",INDIRECT("'3.09.1a (2)'!e42")) ->  | G50: =IF(ISERROR(INDIRECT("'3.09.1a (2)'!f42"))=TRUE,"",INDIRECT("'3.09.1a (2)'!f42")) ->  | H50: =IF(ISERROR(INDIRECT("'3.09.1a (2)'!g42"))=TRUE,"",INDIRECT("'3.09.1a (2)'!g42")) ->  | I50: =IF(ISERROR(INDIRECT("'3.09.1a (2)'!h42"))=TRUE,"",INDIRECT("'3.09.1a (2)'!h42")) ->  | J50: =IF(ISERROR(INDIRECT("'3.09.1a (2)'!i42"))=TRUE,"",INDIRECT("'3.09.1a (2)'!i42")) ->  | K50: =IF(ISERROR(INDIRECT("'3.09.1a (2)'!j42"))=TRUE,"",INDIRECT("'3.09.1a (2)'!j42")) ->  | L50: =IF(ISERROR(INDIRECT("'3.09.1a (2)'!o42"))=TRUE,"",INDIRECT("'3.09.1a (2)'!o42")) ->  | M50: =IF(ISERROR(INDIRECT("'3.09.1a (2)'!p42"))=TRUE,"",INDIRECT("'3.09.1a (2)'!p42")) ->  | N50: =IF(ISERROR(INDIRECT("'3.09.1a (2)'!q42"))=TRUE,"",INDIRECT("'3.09.1a (2)'!q42")) ->  | O50: =IF(ISERROR(INDIRECT("'3.09.1a (2)'!s42"))=TRUE,"",INDIRECT("'3.09.1a (2)'!s42")) ->  | P50: =IF(ISERROR(INDIRECT("'3.09.1a (2)'!t42"))=TRUE,"",INDIRECT("'3.09.1a (2)'!t42")) ->  | Q50: =IF(ISERROR(INDIRECT("'3.09.1a (2)'!u42"))=TRUE,"",INDIRECT("'3.09.1a (2)'!u42")) ->  | R50: =IF(ISERROR(INDIRECT("'3.09.1a (2)'!v42"))=TRUE,"",INDIRECT("'3.09.1a (2)'!v42")) ->  | S50: =IF(ISERROR(INDIRECT("'3.09.1a (2)'!w42"))=TRUE,"",INDIRECT("'3.09.1a (2)'!w42")) ->  | T50: =IF(ISERROR(INDIRECT("'3.09.1a (2)'!x42"))=TRUE,"",INDIRECT("'3.09.1a (2)'!x42")) ->  | U50: =IF(ISERROR(INDIRECT("'3.09.1a (2)'!aa42"))=TRUE,"",INDIRECT("'3.09.1a (2)'!aa42")) ->  | V50: =IF(ISERROR(INDIRECT("'3.09.1a (2)'!ad42"))=TRUE,"",INDIRECT("'3.09.1a (2)'!ad42")) ->  | W50: =IF(ISERROR(INDIRECT("'3.09.1a (2)'!ah42"))=TRUE,"",INDIRECT("'3.09.1a (2)'!ah42")) ->  | X50: =IF(ISERROR(INDIRECT("'3.09.1a (2)'!am42"))=TRUE,"",INDIRECT("'3.09.1a (2)'!am42")) -> 
A51: 0 | B51: 3.09.1a (2) | C51: =IF(ISERROR(INDIRECT("'3.09.1a (2)'!b43"))=TRUE,"",INDIRECT("'3.09.1a (2)'!b43")) ->  | D51: =IF(ISERROR(INDIRECT("'3.09.1a (2)'!c43"))=TRUE,"",INDIRECT("'3.09.1a (2)'!c43")) ->  | E51: =IF(ISERROR(INDIRECT("'3.09.1a (2)'!d43"))=TRUE,"",INDIRECT("'3.09.1a (2)'!d43")) ->  | F51: =IF(ISERROR(INDIRECT("'3.09.1a (2)'!e43"))=TRUE,"",INDIRECT("'3.09.1a (2)'!e43")) ->  | G51: =IF(ISERROR(INDIRECT("'3.09.1a (2)'!f43"))=TRUE,"",INDIRECT("'3.09.1a (2)'!f43")) ->  | H51: =IF(ISERROR(INDIRECT("'3.09.1a (2)'!g43"))=TRUE,"",INDIRECT("'3.09.1a (2)'!g43")) ->  | I51: =IF(ISERROR(INDIRECT("'3.09.1a (2)'!h43"))=TRUE,"",INDIRECT("'3.09.1a (2)'!h43")) ->  | J51: =IF(ISERROR(INDIRECT("'3.09.1a (2)'!i43"))=TRUE,"",INDIRECT("'3.09.1a (2)'!i43")) ->  | K51: =IF(ISERROR(INDIRECT("'3.09.1a (2)'!j43"))=TRUE,"",INDIRECT("'3.09.1a (2)'!j43")) ->  | L51: =IF(ISERROR(INDIRECT("'3.09.1a (2)'!o43"))=TRUE,"",INDIRECT("'3.09.1a (2)'!o43")) ->  | M51: =IF(ISERROR(INDIRECT("'3.09.1a (2)'!p43"))=TRUE,"",INDIRECT("'3.09.1a (2)'!p43")) ->  | N51: =IF(ISERROR(INDIRECT("'3.09.1a (2)'!q43"))=TRUE,"",INDIRECT("'3.09.1a (2)'!q43")) ->  | O51: =IF(ISERROR(INDIRECT("'3.09.1a (2)'!s43"))=TRUE,"",INDIRECT("'3.09.1a (2)'!s43")) ->  | P51: =IF(ISERROR(INDIRECT("'3.09.1a (2)'!t43"))=TRUE,"",INDIRECT("'3.09.1a (2)'!t43")) ->  | Q51: =IF(ISERROR(INDIRECT("'3.09.1a (2)'!u43"))=TRUE,"",INDIRECT("'3.09.1a (2)'!u43")) ->  | R51: =IF(ISERROR(INDIRECT("'3.09.1a (2)'!v43"))=TRUE,"",INDIRECT("'3.09.1a (2)'!v43")) ->  | S51: =IF(ISERROR(INDIRECT("'3.09.1a (2)'!w43"))=TRUE,"",INDIRECT("'3.09.1a (2)'!w43")) ->  | T51: =IF(ISERROR(INDIRECT("'3.09.1a (2)'!x43"))=TRUE,"",INDIRECT("'3.09.1a (2)'!x43")) ->  | U51: =IF(ISERROR(INDIRECT("'3.09.1a (2)'!aa43"))=TRUE,"",INDIRECT("'3.09.1a (2)'!aa43")) ->  | V51: =IF(ISERROR(INDIRECT("'3.09.1a (2)'!ad43"))=TRUE,"",INDIRECT("'3.09.1a (2)'!ad43")) ->  | W51: =IF(ISERROR(INDIRECT("'3.09.1a (2)'!ah43"))=TRUE,"",INDIRECT("'3.09.1a (2)'!ah43")) ->  | X51: =IF(ISERROR(INDIRECT("'3.09.1a (2)'!am43"))=TRUE,"",INDIRECT("'3.09.1a (2)'!am43")) -> 
A52: =AgencyCode -> 0 | B52: 3.09.1a (3) | C52: =IF(ISERROR(INDIRECT("'3.09.1a (3)'!b19"))=TRUE,"",INDIRECT("'3.09.1a (3)'!b19")) ->  | D52: =IF(ISERROR(INDIRECT("'3.09.1a (3)'!c19"))=TRUE,"",INDIRECT("'3.09.1a (3)'!c19")) ->  | E52: =IF(ISERROR(INDIRECT("'3.09.1a (3)'!D19"))=TRUE,"",INDIRECT("'3.09.1a (3)'!D19")) ->  | F52: =IF(ISERROR(INDIRECT("'3.09.1a (3)'!e19"))=TRUE,"",INDIRECT("'3.09.1a (3)'!e19")) ->  | G52: =IF(ISERROR(INDIRECT("'3.09.1a (3)'!f19"))=TRUE,"",INDIRECT("'3.09.1a (3)'!f19")) ->  | H52: =IF(ISERROR(INDIRECT("'3.09.1a (3)'!g19"))=TRUE,"",INDIRECT("'3.09.1a (3)'!g19")) ->  | I52: =IF(ISERROR(INDIRECT("'3.09.1a (3)'!h19"))=TRUE,"",INDIRECT("'3.09.1a (3)'!h19")) ->  | J52: =IF(ISERROR(INDIRECT("'3.09.1a (3)'!i19"))=TRUE,"",INDIRECT("'3.09.1a (3)'!i19")) ->  | K52: =IF(ISERROR(INDIRECT("'3.09.1a (3)'!j19"))=TRUE,"",INDIRECT("'3.09.1a (3)'!j19")) ->  | L52: =IF(ISERROR(INDIRECT("'3.09.1a (3)'!o19"))=TRUE,"",INDIRECT("'3.09.1a (3)'!o19")) ->  | M52: =IF(ISERROR(INDIRECT("'3.09.1a (3)'!p19"))=TRUE,"",INDIRECT("'3.09.1a (3)'!p19")) ->  | N52: =IF(ISERROR(INDIRECT("'3.09.1a (3)'!q19"))=TRUE,"",INDIRECT("'3.09.1a (3)'!q19")) ->  | O52: =IF(ISERROR(INDIRECT("'3.09.1a (3)'!s19"))=TRUE,"",INDIRECT("'3.09.1a (3)'!s19")) ->  | P52: =IF(ISERROR(INDIRECT("'3.09.1a (3)'!t19"))=TRUE,"",INDIRECT("'3.09.1a (3)'!t19")) ->  | Q52: =IF(ISERROR(INDIRECT("'3.09.1a (3)'!u19"))=TRUE,"",INDIRECT("'3.09.1a (3)'!u19")) ->  | R52: =IF(ISERROR(INDIRECT("'3.09.1a (3)'!v19"))=TRUE,"",INDIRECT("'3.09.1a (3)'!v19")) ->  | S52: =IF(ISERROR(INDIRECT("'3.09.1a (3)'!w19"))=TRUE,"",INDIRECT("'3.09.1a (3)'!w19")) ->  | T52: =IF(ISERROR(INDIRECT("'3.09.1a (3)'!x19"))=TRUE,"",INDIRECT("'3.09.1a (3)'!x19")) ->  | U52: =IF(ISERROR(INDIRECT("'3.09.1a (3)'!aa19"))=TRUE,"",INDIRECT("'3.09.1a (3)'!aa19")) ->  | V52: =IF(ISERROR(INDIRECT("'3.09.1a (3)'!ad19"))=TRUE,"",INDIRECT("'3.09.1a (3)'!ad19")) ->  | W52: =IF(ISERROR(INDIRECT("'3.09.1a (3)'!ah19"))=TRUE,"",INDIRECT("'3.09.1a (3)'!ah19")) ->  | X52: =IF(ISERROR(INDIRECT("'3.09.1a (3)'!am19"))=TRUE,"",INDIRECT("'3.09.1a (3)'!am19")) -> 
A53: 0 | B53: 3.09.1a (3) | C53: =IF(ISERROR(INDIRECT("'3.09.1a (3)'!b20"))=TRUE,"",INDIRECT("'3.09.1a (3)'!b20")) ->  | D53: =IF(ISERROR(INDIRECT("'3.09.1a (3)'!c20"))=TRUE,"",INDIRECT("'3.09.1a (3)'!c20")) ->  | E53: =IF(ISERROR(INDIRECT("'3.09.1a (3)'!d20"))=TRUE,"",INDIRECT("'3.09.1a (3)'!d20")) ->  | F53: =IF(ISERROR(INDIRECT("'3.09.1a (3)'!e20"))=TRUE,"",INDIRECT("'3.09.1a (3)'!e20")) ->  | G53: =IF(ISERROR(INDIRECT("'3.09.1a (3)'!f20"))=TRUE,"",INDIRECT("'3.09.1a (3)'!f20")) ->  | H53: =IF(ISERROR(INDIRECT("'3.09.1a (3)'!g20"))=TRUE,"",INDIRECT("'3.09.1a (3)'!g20")) ->  | I53: =IF(ISERROR(INDIRECT("'3.09.1a (3)'!h20"))=TRUE,"",INDIRECT("'3.09.1a (3)'!h20")) ->  | J53: =IF(ISERROR(INDIRECT("'3.09.1a (3)'!i20"))=TRUE,"",INDIRECT("'3.09.1a (3)'!i20")) ->  | K53: =IF(ISERROR(INDIRECT("'3.09.1a (3)'!j20"))=TRUE,"",INDIRECT("'3.09.1a (3)'!j20")) ->  | L53: =IF(ISERROR(INDIRECT("'3.09.1a (3)'!o20"))=TRUE,"",INDIRECT("'3.09.1a (3)'!o20")) ->  | M53: =IF(ISERROR(INDIRECT("'3.09.1a (3)'!p20"))=TRUE,"",INDIRECT("'3.09.1a (3)'!p20")) ->  | N53: =IF(ISERROR(INDIRECT("'3.09.1a (3)'!q20"))=TRUE,"",INDIRECT("'3.09.1a (3)'!q20")) ->  | O53: =IF(ISERROR(INDIRECT("'3.09.1a (3)'!s20"))=TRUE,"",INDIRECT("'3.09.1a (3)'!s20")) ->  | P53: =IF(ISERROR(INDIRECT("'3.09.1a (3)'!t20"))=TRUE,"",INDIRECT("'3.09.1a (3)'!t20")) ->  | Q53: =IF(ISERROR(INDIRECT("'3.09.1a (3)'!u20"))=TRUE,"",INDIRECT("'3.09.1a (3)'!u20")) ->  | R53: =IF(ISERROR(INDIRECT("'3.09.1a (3)'!v20"))=TRUE,"",INDIRECT("'3.09.1a (3)'!v20")) ->  | S53: =IF(ISERROR(INDIRECT("'3.09.1a (3)'!w20"))=TRUE,"",INDIRECT("'3.09.1a (3)'!w20")) ->  | T53: =IF(ISERROR(INDIRECT("'3.09.1a (3)'!x20"))=TRUE,"",INDIRECT("'3.09.1a (3)'!x20")) ->  | U53: =IF(ISERROR(INDIRECT("'3.09.1a (3)'!aa20"))=TRUE,"",INDIRECT("'3.09.1a (3)'!aa20")) ->  | V53: =IF(ISERROR(INDIRECT("'3.09.1a (3)'!ad20"))=TRUE,"",INDIRECT("'3.09.1a (3)'!ad20")) ->  | W53: =IF(ISERROR(INDIRECT("'3.09.1a (3)'!ah20"))=TRUE,"",INDIRECT("'3.09.1a (3)'!ah20")) ->  | X53: =IF(ISERROR(INDIRECT("'3.09.1a (3)'!am20"))=TRUE,"",INDIRECT("'3.09.1a (3)'!am20")) -> 
A54: 0 | B54: 3.09.1a (3) | C54: =IF(ISERROR(INDIRECT("'3.09.1a (3)'!b21"))=TRUE,"",INDIRECT("'3.09.1a (3)'!b21")) ->  | D54: =IF(ISERROR(INDIRECT("'3.09.1a (3)'!c21"))=TRUE,"",INDIRECT("'3.09.1a (3)'!c21")) ->  | E54: =IF(ISERROR(INDIRECT("'3.09.1a (3)'!d21"))=TRUE,"",INDIRECT("'3.09.1a (3)'!d21")) ->  | F54: =IF(ISERROR(INDIRECT("'3.09.1a (3)'!e21"))=TRUE,"",INDIRECT("'3.09.1a (3)'!e21")) ->  | G54: =IF(ISERROR(INDIRECT("'3.09.1a (3)'!f21"))=TRUE,"",INDIRECT("'3.09.1a (3)'!f21")) ->  | H54: =IF(ISERROR(INDIRECT("'3.09.1a (3)'!g21"))=TRUE,"",INDIRECT("'3.09.1a (3)'!g21")) ->  | I54: =IF(ISERROR(INDIRECT("'3.09.1a (3)'!h21"))=TRUE,"",INDIRECT("'3.09.1a (3)'!h21")) ->  | J54: =IF(ISERROR(INDIRECT("'3.09.1a (3)'!i21"))=TRUE,"",INDIRECT("'3.09.1a (3)'!i21")) ->  | K54: =IF(ISERROR(INDIRECT("'3.09.1a (3)'!j21"))=TRUE,"",INDIRECT("'3.09.1a (3)'!j21")) ->  | L54: =IF(ISERROR(INDIRECT("'3.09.1a (3)'!o21"))=TRUE,"",INDIRECT("'3.09.1a (3)'!o21")) ->  | M54: =IF(ISERROR(INDIRECT("'3.09.1a (3)'!p21"))=TRUE,"",INDIRECT("'3.09.1a (3)'!p21")) ->  | N54: =IF(ISERROR(INDIRECT("'3.09.1a (3)'!q21"))=TRUE,"",INDIRECT("'3.09.1a (3)'!q21")) ->  | O54: =IF(ISERROR(INDIRECT("'3.09.1a (3)'!s21"))=TRUE,"",INDIRECT("'3.09.1a (3)'!s21")) ->  | P54: =IF(ISERROR(INDIRECT("'3.09.1a (3)'!t21"))=TRUE,"",INDIRECT("'3.09.1a (3)'!t21")) ->  | Q54: =IF(ISERROR(INDIRECT("'3.09.1a (3)'!u21"))=TRUE,"",INDIRECT("'3.09.1a (3)'!u21")) ->  | R54: =IF(ISERROR(INDIRECT("'3.09.1a (3)'!v21"))=TRUE,"",INDIRECT("'3.09.1a (3)'!v21")) ->  | S54: =IF(ISERROR(INDIRECT("'3.09.1a (3)'!w21"))=TRUE,"",INDIRECT("'3.09.1a (3)'!w21")) ->  | T54: =IF(ISERROR(INDIRECT("'3.09.1a (3)'!x21"))=TRUE,"",INDIRECT("'3.09.1a (3)'!x21")) ->  | U54: =IF(ISERROR(INDIRECT("'3.09.1a (3)'!aa21"))=TRUE,"",INDIRECT("'3.09.1a (3)'!aa21")) ->  | V54: =IF(ISERROR(INDIRECT("'3.09.1a (3)'!ad21"))=TRUE,"",INDIRECT("'3.09.1a (3)'!ad21")) ->  | W54: =IF(ISERROR(INDIRECT("'3.09.1a (3)'!ah21"))=TRUE,"",INDIRECT("'3.09.1a (3)'!ah21")) ->  | X54: =IF(ISERROR(INDIRECT("'3.09.1a (3)'!am21"))=TRUE,"",INDIRECT("'3.09.1a (3)'!am21")) -> 
A55: 0 | B55: 3.09.1a (3) | C55: =IF(ISERROR(INDIRECT("'3.09.1a (3)'!b22"))=TRUE,"",INDIRECT("'3.09.1a (3)'!b22")) ->  | D55: =IF(ISERROR(INDIRECT("'3.09.1a (3)'!c22"))=TRUE,"",INDIRECT("'3.09.1a (3)'!c22")) ->  | E55: =IF(ISERROR(INDIRECT("'3.09.1a (3)'!d22"))=TRUE,"",INDIRECT("'3.09.1a (3)'!d22")) ->  | F55: =IF(ISERROR(INDIRECT("'3.09.1a (3)'!e22"))=TRUE,"",INDIRECT("'3.09.1a (3)'!e22")) ->  | G55: =IF(ISERROR(INDIRECT("'3.09.1a (3)'!f22"))=TRUE,"",INDIRECT("'3.09.1a (3)'!f22")) ->  | H55: =IF(ISERROR(INDIRECT("'3.09.1a (3)'!g22"))=TRUE,"",INDIRECT("'3.09.1a (3)'!g22")) ->  | I55: =IF(ISERROR(INDIRECT("'3.09.1a (3)'!h22"))=TRUE,"",INDIRECT("'3.09.1a (3)'!h22")) ->  | J55: =IF(ISERROR(INDIRECT("'3.09.1a (3)'!i22"))=TRUE,"",INDIRECT("'3.09.1a (3)'!i22")) ->  | K55: =IF(ISERROR(INDIRECT("'3.09.1a (3)'!j22"))=TRUE,"",INDIRECT("'3.09.1a (3)'!j22")) ->  | L55: =IF(ISERROR(INDIRECT("'3.09.1a (3)'!o22"))=TRUE,"",INDIRECT("'3.09.1a (3)'!o22")) ->  | M55: =IF(ISERROR(INDIRECT("'3.09.1a (3)'!p22"))=TRUE,"",INDIRECT("'3.09.1a (3)'!p22")) ->  | N55: =IF(ISERROR(INDIRECT("'3.09.1a (3)'!q22"))=TRUE,"",INDIRECT("'3.09.1a (3)'!q22")) ->  | O55: =IF(ISERROR(INDIRECT("'3.09.1a (3)'!s22"))=TRUE,"",INDIRECT("'3.09.1a (3)'!s22")) ->  | P55: =IF(ISERROR(INDIRECT("'3.09.1a (3)'!t22"))=TRUE,"",INDIRECT("'3.09.1a (3)'!t22")) ->  | Q55: =IF(ISERROR(INDIRECT("'3.09.1a (3)'!u22"))=TRUE,"",INDIRECT("'3.09.1a (3)'!u22")) ->  | R55: =IF(ISERROR(INDIRECT("'3.09.1a (3)'!v22"))=TRUE,"",INDIRECT("'3.09.1a (3)'!v22")) ->  | S55: =IF(ISERROR(INDIRECT("'3.09.1a (3)'!w22"))=TRUE,"",INDIRECT("'3.09.1a (3)'!w22")) ->  | T55: =IF(ISERROR(INDIRECT("'3.09.1a (3)'!x22"))=TRUE,"",INDIRECT("'3.09.1a (3)'!x22")) ->  | U55: =IF(ISERROR(INDIRECT("'3.09.1a (3)'!aa22"))=TRUE,"",INDIRECT("'3.09.1a (3)'!aa22")) ->  | V55: =IF(ISERROR(INDIRECT("'3.09.1a (3)'!ad22"))=TRUE,"",INDIRECT("'3.09.1a (3)'!ad22")) ->  | W55: =IF(ISERROR(INDIRECT("'3.09.1a (3)'!ah22"))=TRUE,"",INDIRECT("'3.09.1a (3)'!ah22")) ->  | X55: =IF(ISERROR(INDIRECT("'3.09.1a (3)'!am22"))=TRUE,"",INDIRECT("'3.09.1a (3)'!am22")) -> 
A56: 0 | B56: 3.09.1a (3) | C56: =IF(ISERROR(INDIRECT("'3.09.1a (3)'!b23"))=TRUE,"",INDIRECT("'3.09.1a (3)'!b23")) ->  | D56: =IF(ISERROR(INDIRECT("'3.09.1a (3)'!c23"))=TRUE,"",INDIRECT("'3.09.1a (3)'!c23")) ->  | E56: =IF(ISERROR(INDIRECT("'3.09.1a (3)'!d23"))=TRUE,"",INDIRECT("'3.09.1a (3)'!d23")) ->  | F56: =IF(ISERROR(INDIRECT("'3.09.1a (3)'!e23"))=TRUE,"",INDIRECT("'3.09.1a (3)'!e23")) ->  | G56: =IF(ISERROR(INDIRECT("'3.09.1a (3)'!f23"))=TRUE,"",INDIRECT("'3.09.1a (3)'!f23")) ->  | H56: =IF(ISERROR(INDIRECT("'3.09.1a (3)'!g23"))=TRUE,"",INDIRECT("'3.09.1a (3)'!g23")) ->  | I56: =IF(ISERROR(INDIRECT("'3.09.1a (3)'!h23"))=TRUE,"",INDIRECT("'3.09.1a (3)'!h23")) ->  | J56: =IF(ISERROR(INDIRECT("'3.09.1a (3)'!i23"))=TRUE,"",INDIRECT("'3.09.1a (3)'!i23")) ->  | K56: =IF(ISERROR(INDIRECT("'3.09.1a (3)'!j23"))=TRUE,"",INDIRECT("'3.09.1a (3)'!j23")) ->  | L56: =IF(ISERROR(INDIRECT("'3.09.1a (3)'!o23"))=TRUE,"",INDIRECT("'3.09.1a (3)'!o23")) ->  | M56: =IF(ISERROR(INDIRECT("'3.09.1a (3)'!p23"))=TRUE,"",INDIRECT("'3.09.1a (3)'!p23")) ->  | N56: =IF(ISERROR(INDIRECT("'3.09.1a (3)'!q23"))=TRUE,"",INDIRECT("'3.09.1a (3)'!q23")) ->  | O56: =IF(ISERROR(INDIRECT("'3.09.1a (3)'!s23"))=TRUE,"",INDIRECT("'3.09.1a (3)'!s23")) ->  | P56: =IF(ISERROR(INDIRECT("'3.09.1a (3)'!t23"))=TRUE,"",INDIRECT("'3.09.1a (3)'!t23")) ->  | Q56: =IF(ISERROR(INDIRECT("'3.09.1a (3)'!u23"))=TRUE,"",INDIRECT("'3.09.1a (3)'!u23")) ->  | R56: =IF(ISERROR(INDIRECT("'3.09.1a (3)'!v23"))=TRUE,"",INDIRECT("'3.09.1a (3)'!v23")) ->  | S56: =IF(ISERROR(INDIRECT("'3.09.1a (3)'!w23"))=TRUE,"",INDIRECT("'3.09.1a (3)'!w23")) ->  | T56: =IF(ISERROR(INDIRECT("'3.09.1a (3)'!x23"))=TRUE,"",INDIRECT("'3.09.1a (3)'!x23")) ->  | U56: =IF(ISERROR(INDIRECT("'3.09.1a (3)'!aa23"))=TRUE,"",INDIRECT("'3.09.1a (3)'!aa23")) ->  | V56: =IF(ISERROR(INDIRECT("'3.09.1a (3)'!ad23"))=TRUE,"",INDIRECT("'3.09.1a (3)'!ad23")) ->  | W56: =IF(ISERROR(INDIRECT("'3.09.1a (3)'!ah23"))=TRUE,"",INDIRECT("'3.09.1a (3)'!ah23")) ->  | X56: =IF(ISERROR(INDIRECT("'3.09.1a (3)'!am23"))=TRUE,"",INDIRECT("'3.09.1a (3)'!am23")) -> 
A57: 0 | B57: 3.09.1a (3) | C57: =IF(ISERROR(INDIRECT("'3.09.1a (3)'!b24"))=TRUE,"",INDIRECT("'3.09.1a (3)'!b24")) ->  | D57: =IF(ISERROR(INDIRECT("'3.09.1a (3)'!c24"))=TRUE,"",INDIRECT("'3.09.1a (3)'!c24")) ->  | E57: =IF(ISERROR(INDIRECT("'3.09.1a (3)'!d24"))=TRUE,"",INDIRECT("'3.09.1a (3)'!d24")) ->  | F57: =IF(ISERROR(INDIRECT("'3.09.1a (3)'!e24"))=TRUE,"",INDIRECT("'3.09.1a (3)'!e24")) ->  | G57: =IF(ISERROR(INDIRECT("'3.09.1a (3)'!f24"))=TRUE,"",INDIRECT("'3.09.1a (3)'!f24")) ->  | H57: =IF(ISERROR(INDIRECT("'3.09.1a (3)'!g24"))=TRUE,"",INDIRECT("'3.09.1a (3)'!g24")) ->  | I57: =IF(ISERROR(INDIRECT("'3.09.1a (3)'!h24"))=TRUE,"",INDIRECT("'3.09.1a (3)'!h24")) ->  | J57: =IF(ISERROR(INDIRECT("'3.09.1a (3)'!i24"))=TRUE,"",INDIRECT("'3.09.1a (3)'!i24")) ->  | K57: =IF(ISERROR(INDIRECT("'3.09.1a (3)'!j24"))=TRUE,"",INDIRECT("'3.09.1a (3)'!j24")) ->  | L57: =IF(ISERROR(INDIRECT("'3.09.1a (3)'!o24"))=TRUE,"",INDIRECT("'3.09.1a (3)'!o24")) ->  | M57: =IF(ISERROR(INDIRECT("'3.09.1a (3)'!p24"))=TRUE,"",INDIRECT("'3.09.1a (3)'!p24")) ->  | N57: =IF(ISERROR(INDIRECT("'3.09.1a (3)'!q24"))=TRUE,"",INDIRECT("'3.09.1a (3)'!q24")) ->  | O57: =IF(ISERROR(INDIRECT("'3.09.1a (3)'!s24"))=TRUE,"",INDIRECT("'3.09.1a (3)'!s24")) ->  | P57: =IF(ISERROR(INDIRECT("'3.09.1a (3)'!t24"))=TRUE,"",INDIRECT("'3.09.1a (3)'!t24")) ->  | Q57: =IF(ISERROR(INDIRECT("'3.09.1a (3)'!u24"))=TRUE,"",INDIRECT("'3.09.1a (3)'!u24")) ->  | R57: =IF(ISERROR(INDIRECT("'3.09.1a (3)'!v24"))=TRUE,"",INDIRECT("'3.09.1a (3)'!v24")) ->  | S57: =IF(ISERROR(INDIRECT("'3.09.1a (3)'!w24"))=TRUE,"",INDIRECT("'3.09.1a (3)'!w24")) ->  | T57: =IF(ISERROR(INDIRECT("'3.09.1a (3)'!x24"))=TRUE,"",INDIRECT("'3.09.1a (3)'!x24")) ->  | U57: =IF(ISERROR(INDIRECT("'3.09.1a (3)'!aa24"))=TRUE,"",INDIRECT("'3.09.1a (3)'!aa24")) ->  | V57: =IF(ISERROR(INDIRECT("'3.09.1a (3)'!ad24"))=TRUE,"",INDIRECT("'3.09.1a (3)'!ad24")) ->  | W57: =IF(ISERROR(INDIRECT("'3.09.1a (3)'!ah24"))=TRUE,"",INDIRECT("'3.09.1a (3)'!ah24")) ->  | X57: =IF(ISERROR(INDIRECT("'3.09.1a (3)'!am24"))=TRUE,"",INDIRECT("'3.09.1a (3)'!am24")) -> 
A58: 0 | B58: 3.09.1a (3) | C58: =IF(ISERROR(INDIRECT("'3.09.1a (3)'!b25"))=TRUE,"",INDIRECT("'3.09.1a (3)'!b25")) ->  | D58: =IF(ISERROR(INDIRECT("'3.09.1a (3)'!c25"))=TRUE,"",INDIRECT("'3.09.1a (3)'!c25")) ->  | E58: =IF(ISERROR(INDIRECT("'3.09.1a (3)'!d25"))=TRUE,"",INDIRECT("'3.09.1a (3)'!d25")) ->  | F58: =IF(ISERROR(INDIRECT("'3.09.1a (3)'!e25"))=TRUE,"",INDIRECT("'3.09.1a (3)'!e25")) ->  | G58: =IF(ISERROR(INDIRECT("'3.09.1a (3)'!f25"))=TRUE,"",INDIRECT("'3.09.1a (3)'!f25")) ->  | H58: =IF(ISERROR(INDIRECT("'3.09.1a (3)'!g25"))=TRUE,"",INDIRECT("'3.09.1a (3)'!g25")) ->  | I58: =IF(ISERROR(INDIRECT("'3.09.1a (3)'!h25"))=TRUE,"",INDIRECT("'3.09.1a (3)'!h25")) ->  | J58: =IF(ISERROR(INDIRECT("'3.09.1a (3)'!i25"))=TRUE,"",INDIRECT("'3.09.1a (3)'!i25")) ->  | K58: =IF(ISERROR(INDIRECT("'3.09.1a (3)'!j25"))=TRUE,"",INDIRECT("'3.09.1a (3)'!j25")) ->  | L58: =IF(ISERROR(INDIRECT("'3.09.1a (3)'!o25"))=TRUE,"",INDIRECT("'3.09.1a (3)'!o25")) ->  | M58: =IF(ISERROR(INDIRECT("'3.09.1a (3)'!p25"))=TRUE,"",INDIRECT("'3.09.1a (3)'!p25")) ->  | N58: =IF(ISERROR(INDIRECT("'3.09.1a (3)'!q25"))=TRUE,"",INDIRECT("'3.09.1a (3)'!q25")) ->  | O58: =IF(ISERROR(INDIRECT("'3.09.1a (3)'!s25"))=TRUE,"",INDIRECT("'3.09.1a (3)'!s25")) ->  | P58: =IF(ISERROR(INDIRECT("'3.09.1a (3)'!t25"))=TRUE,"",INDIRECT("'3.09.1a (3)'!t25")) ->  | Q58: =IF(ISERROR(INDIRECT("'3.09.1a (3)'!u25"))=TRUE,"",INDIRECT("'3.09.1a (3)'!u25")) ->  | R58: =IF(ISERROR(INDIRECT("'3.09.1a (3)'!v25"))=TRUE,"",INDIRECT("'3.09.1a (3)'!v25")) ->  | S58: =IF(ISERROR(INDIRECT("'3.09.1a (3)'!w25"))=TRUE,"",INDIRECT("'3.09.1a (3)'!w25")) ->  | T58: =IF(ISERROR(INDIRECT("'3.09.1a (3)'!x25"))=TRUE,"",INDIRECT("'3.09.1a (3)'!x25")) ->  | U58: =IF(ISERROR(INDIRECT("'3.09.1a (3)'!aa25"))=TRUE,"",INDIRECT("'3.09.1a (3)'!aa25")) ->  | V58: =IF(ISERROR(INDIRECT("'3.09.1a (3)'!ad25"))=TRUE,"",INDIRECT("'3.09.1a (3)'!ad25")) ->  | W58: =IF(ISERROR(INDIRECT("'3.09.1a (3)'!ah25"))=TRUE,"",INDIRECT("'3.09.1a (3)'!ah25")) ->  | X58: =IF(ISERROR(INDIRECT("'3.09.1a (3)'!am25"))=TRUE,"",INDIRECT("'3.09.1a (3)'!am25")) -> 
A59: 0 | B59: 3.09.1a (3) | C59: =IF(ISERROR(INDIRECT("'3.09.1a (3)'!b26"))=TRUE,"",INDIRECT("'3.09.1a (3)'!b26")) ->  | D59: =IF(ISERROR(INDIRECT("'3.09.1a (3)'!c26"))=TRUE,"",INDIRECT("'3.09.1a (3)'!c26")) ->  | E59: =IF(ISERROR(INDIRECT("'3.09.1a (3)'!d26"))=TRUE,"",INDIRECT("'3.09.1a (3)'!d26")) ->  | F59: =IF(ISERROR(INDIRECT("'3.09.1a (3)'!e26"))=TRUE,"",INDIRECT("'3.09.1a (3)'!e26")) ->  | G59: =IF(ISERROR(INDIRECT("'3.09.1a (3)'!f26"))=TRUE,"",INDIRECT("'3.09.1a (3)'!f26")) ->  | H59: =IF(ISERROR(INDIRECT("'3.09.1a (3)'!g26"))=TRUE,"",INDIRECT("'3.09.1a (3)'!g26")) ->  | I59: =IF(ISERROR(INDIRECT("'3.09.1a (3)'!h26"))=TRUE,"",INDIRECT("'3.09.1a (3)'!h26")) ->  | J59: =IF(ISERROR(INDIRECT("'3.09.1a (3)'!i26"))=TRUE,"",INDIRECT("'3.09.1a (3)'!i26")) ->  | K59: =IF(ISERROR(INDIRECT("'3.09.1a (3)'!j26"))=TRUE,"",INDIRECT("'3.09.1a (3)'!j26")) ->  | L59: =IF(ISERROR(INDIRECT("'3.09.1a (3)'!o26"))=TRUE,"",INDIRECT("'3.09.1a (3)'!o26")) ->  | M59: =IF(ISERROR(INDIRECT("'3.09.1a (3)'!p26"))=TRUE,"",INDIRECT("'3.09.1a (3)'!p26")) ->  | N59: =IF(ISERROR(INDIRECT("'3.09.1a (3)'!q26"))=TRUE,"",INDIRECT("'3.09.1a (3)'!q26")) ->  | O59: =IF(ISERROR(INDIRECT("'3.09.1a (3)'!s26"))=TRUE,"",INDIRECT("'3.09.1a (3)'!s26")) ->  | P59: =IF(ISERROR(INDIRECT("'3.09.1a (3)'!t26"))=TRUE,"",INDIRECT("'3.09.1a (3)'!t26")) ->  | Q59: =IF(ISERROR(INDIRECT("'3.09.1a (3)'!u26"))=TRUE,"",INDIRECT("'3.09.1a (3)'!u26")) ->  | R59: =IF(ISERROR(INDIRECT("'3.09.1a (3)'!v26"))=TRUE,"",INDIRECT("'3.09.1a (3)'!v26")) ->  | S59: =IF(ISERROR(INDIRECT("'3.09.1a (3)'!w26"))=TRUE,"",INDIRECT("'3.09.1a (3)'!w26")) ->  | T59: =IF(ISERROR(INDIRECT("'3.09.1a (3)'!x26"))=TRUE,"",INDIRECT("'3.09.1a (3)'!x26")) ->  | U59: =IF(ISERROR(INDIRECT("'3.09.1a (3)'!aa26"))=TRUE,"",INDIRECT("'3.09.1a (3)'!aa26")) ->  | V59: =IF(ISERROR(INDIRECT("'3.09.1a (3)'!ad26"))=TRUE,"",INDIRECT("'3.09.1a (3)'!ad26")) ->  | W59: =IF(ISERROR(INDIRECT("'3.09.1a (3)'!ah26"))=TRUE,"",INDIRECT("'3.09.1a (3)'!ah26")) ->  | X59: =IF(ISERROR(INDIRECT("'3.09.1a (3)'!am26"))=TRUE,"",INDIRECT("'3.09.1a (3)'!am26")) -> 
A60: 0 | B60: 3.09.1a (3) | C60: =IF(ISERROR(INDIRECT("'3.09.1a (3)'!b27"))=TRUE,"",INDIRECT("'3.09.1a (3)'!b27")) ->  | D60: =IF(ISERROR(INDIRECT("'3.09.1a (3)'!c27"))=TRUE,"",INDIRECT("'3.09.1a (3)'!c27")) ->  | E60: =IF(ISERROR(INDIRECT("'3.09.1a (3)'!d27"))=TRUE,"",INDIRECT("'3.09.1a (3)'!d27")) ->  | F60: =IF(ISERROR(INDIRECT("'3.09.1a (3)'!e27"))=TRUE,"",INDIRECT("'3.09.1a (3)'!e27")) ->  | G60: =IF(ISERROR(INDIRECT("'3.09.1a (3)'!f27"))=TRUE,"",INDIRECT("'3.09.1a (3)'!f27")) ->  | H60: =IF(ISERROR(INDIRECT("'3.09.1a (3)'!g27"))=TRUE,"",INDIRECT("'3.09.1a (3)'!g27")) ->  | I60: =IF(ISERROR(INDIRECT("'3.09.1a (3)'!h27"))=TRUE,"",INDIRECT("'3.09.1a (3)'!h27")) ->  | J60: =IF(ISERROR(INDIRECT("'3.09.1a (3)'!i27"))=TRUE,"",INDIRECT("'3.09.1a (3)'!i27")) ->  | K60: =IF(ISERROR(INDIRECT("'3.09.1a (3)'!j27"))=TRUE,"",INDIRECT("'3.09.1a (3)'!j27")) ->  | L60: =IF(ISERROR(INDIRECT("'3.09.1a (3)'!o27"))=TRUE,"",INDIRECT("'3.09.1a (3)'!o27")) ->  | M60: =IF(ISERROR(INDIRECT("'3.09.1a (3)'!p27"))=TRUE,"",INDIRECT("'3.09.1a (3)'!p27")) ->  | N60: =IF(ISERROR(INDIRECT("'3.09.1a (3)'!q27"))=TRUE,"",INDIRECT("'3.09.1a (3)'!q27")) ->  | O60: =IF(ISERROR(INDIRECT("'3.09.1a (3)'!s27"))=TRUE,"",INDIRECT("'3.09.1a (3)'!s27")) ->  | P60: =IF(ISERROR(INDIRECT("'3.09.1a (3)'!t27"))=TRUE,"",INDIRECT("'3.09.1a (3)'!t27")) ->  | Q60: =IF(ISERROR(INDIRECT("'3.09.1a (3)'!u27"))=TRUE,"",INDIRECT("'3.09.1a (3)'!u27")) ->  | R60: =IF(ISERROR(INDIRECT("'3.09.1a (3)'!v27"))=TRUE,"",INDIRECT("'3.09.1a (3)'!v27")) ->  | S60: =IF(ISERROR(INDIRECT("'3.09.1a (3)'!w27"))=TRUE,"",INDIRECT("'3.09.1a (3)'!w27")) ->  | T60: =IF(ISERROR(INDIRECT("'3.09.1a (3)'!x27"))=TRUE,"",INDIRECT("'3.09.1a (3)'!x27")) ->  | U60: =IF(ISERROR(INDIRECT("'3.09.1a (3)'!aa27"))=TRUE,"",INDIRECT("'3.09.1a (3)'!aa27")) ->  | V60: =IF(ISERROR(INDIRECT("'3.09.1a (3)'!ad27"))=TRUE,"",INDIRECT("'3.09.1a (3)'!ad27")) ->  | W60: =IF(ISERROR(INDIRECT("'3.09.1a (3)'!ah27"))=TRUE,"",INDIRECT("'3.09.1a (3)'!ah27")) ->  | X60: =IF(ISERROR(INDIRECT("'3.09.1a (3)'!am27"))=TRUE,"",INDIRECT("'3.09.1a (3)'!am27")) -> 
A61: 0 | B61: 3.09.1a (3) | C61: =IF(ISERROR(INDIRECT("'3.09.1a (3)'!b28"))=TRUE,"",INDIRECT("'3.09.1a (3)'!b28")) ->  | D61: =IF(ISERROR(INDIRECT("'3.09.1a (3)'!c28"))=TRUE,"",INDIRECT("'3.09.1a (3)'!c28")) ->  | E61: =IF(ISERROR(INDIRECT("'3.09.1a (3)'!d28"))=TRUE,"",INDIRECT("'3.09.1a (3)'!d28")) ->  | F61: =IF(ISERROR(INDIRECT("'3.09.1a (3)'!e28"))=TRUE,"",INDIRECT("'3.09.1a (3)'!e28")) ->  | G61: =IF(ISERROR(INDIRECT("'3.09.1a (3)'!f28"))=TRUE,"",INDIRECT("'3.09.1a (3)'!f28")) ->  | H61: =IF(ISERROR(INDIRECT("'3.09.1a (3)'!g28"))=TRUE,"",INDIRECT("'3.09.1a (3)'!g28")) ->  | I61: =IF(ISERROR(INDIRECT("'3.09.1a (3)'!h28"))=TRUE,"",INDIRECT("'3.09.1a (3)'!h28")) ->  | J61: =IF(ISERROR(INDIRECT("'3.09.1a (3)'!i28"))=TRUE,"",INDIRECT("'3.09.1a (3)'!i28")) ->  | K61: =IF(ISERROR(INDIRECT("'3.09.1a (3)'!j28"))=TRUE,"",INDIRECT("'3.09.1a (3)'!j28")) ->  | L61: =IF(ISERROR(INDIRECT("'3.09.1a (3)'!o28"))=TRUE,"",INDIRECT("'3.09.1a (3)'!o28")) ->  | M61: =IF(ISERROR(INDIRECT("'3.09.1a (3)'!p28"))=TRUE,"",INDIRECT("'3.09.1a (3)'!p28")) ->  | N61: =IF(ISERROR(INDIRECT("'3.09.1a (3)'!q28"))=TRUE,"",INDIRECT("'3.09.1a (3)'!q28")) ->  | O61: =IF(ISERROR(INDIRECT("'3.09.1a (3)'!s28"))=TRUE,"",INDIRECT("'3.09.1a (3)'!s28")) ->  | P61: =IF(ISERROR(INDIRECT("'3.09.1a (3)'!t28"))=TRUE,"",INDIRECT("'3.09.1a (3)'!t28")) ->  | Q61: =IF(ISERROR(INDIRECT("'3.09.1a (3)'!u28"))=TRUE,"",INDIRECT("'3.09.1a (3)'!u28")) ->  | R61: =IF(ISERROR(INDIRECT("'3.09.1a (3)'!v28"))=TRUE,"",INDIRECT("'3.09.1a (3)'!v28")) ->  | S61: =IF(ISERROR(INDIRECT("'3.09.1a (3)'!w28"))=TRUE,"",INDIRECT("'3.09.1a (3)'!w28")) ->  | T61: =IF(ISERROR(INDIRECT("'3.09.1a (3)'!x28"))=TRUE,"",INDIRECT("'3.09.1a (3)'!x28")) ->  | U61: =IF(ISERROR(INDIRECT("'3.09.1a (3)'!aa28"))=TRUE,"",INDIRECT("'3.09.1a (3)'!aa28")) ->  | V61: =IF(ISERROR(INDIRECT("'3.09.1a (3)'!ad28"))=TRUE,"",INDIRECT("'3.09.1a (3)'!ad28")) ->  | W61: =IF(ISERROR(INDIRECT("'3.09.1a (3)'!ah28"))=TRUE,"",INDIRECT("'3.09.1a (3)'!ah28")) ->  | X61: =IF(ISERROR(INDIRECT("'3.09.1a (3)'!am28"))=TRUE,"",INDIRECT("'3.09.1a (3)'!am28")) -> 
A62: 0 | B62: 3.09.1a (3) | C62: =IF(ISERROR(INDIRECT("'3.09.1a (3)'!b29"))=TRUE,"",INDIRECT("'3.09.1a (3)'!b29")) ->  | D62: =IF(ISERROR(INDIRECT("'3.09.1a (3)'!c29"))=TRUE,"",INDIRECT("'3.09.1a (3)'!c29")) ->  | E62: =IF(ISERROR(INDIRECT("'3.09.1a (3)'!d29"))=TRUE,"",INDIRECT("'3.09.1a (3)'!d29")) ->  | F62: =IF(ISERROR(INDIRECT("'3.09.1a (3)'!e29"))=TRUE,"",INDIRECT("'3.09.1a (3)'!e29")) ->  | G62: =IF(ISERROR(INDIRECT("'3.09.1a (3)'!f29"))=TRUE,"",INDIRECT("'3.09.1a (3)'!f29")) ->  | H62: =IF(ISERROR(INDIRECT("'3.09.1a (3)'!g29"))=TRUE,"",INDIRECT("'3.09.1a (3)'!g29")) ->  | I62: =IF(ISERROR(INDIRECT("'3.09.1a (3)'!h29"))=TRUE,"",INDIRECT("'3.09.1a (3)'!h29")) ->  | J62: =IF(ISERROR(INDIRECT("'3.09.1a (3)'!i29"))=TRUE,"",INDIRECT("'3.09.1a (3)'!i29")) ->  | K62: =IF(ISERROR(INDIRECT("'3.09.1a (3)'!j29"))=TRUE,"",INDIRECT("'3.09.1a (3)'!j29")) ->  | L62: =IF(ISERROR(INDIRECT("'3.09.1a (3)'!o29"))=TRUE,"",INDIRECT("'3.09.1a (3)'!o29")) ->  | M62: =IF(ISERROR(INDIRECT("'3.09.1a (3)'!p29"))=TRUE,"",INDIRECT("'3.09.1a (3)'!p29")) ->  | N62: =IF(ISERROR(INDIRECT("'3.09.1a (3)'!q29"))=TRUE,"",INDIRECT("'3.09.1a (3)'!q29")) ->  | O62: =IF(ISERROR(INDIRECT("'3.09.1a (3)'!s29"))=TRUE,"",INDIRECT("'3.09.1a (3)'!s29")) ->  | P62: =IF(ISERROR(INDIRECT("'3.09.1a (3)'!t29"))=TRUE,"",INDIRECT("'3.09.1a (3)'!t29")) ->  | Q62: =IF(ISERROR(INDIRECT("'3.09.1a (3)'!u29"))=TRUE,"",INDIRECT("'3.09.1a (3)'!u29")) ->  | R62: =IF(ISERROR(INDIRECT("'3.09.1a (3)'!v29"))=TRUE,"",INDIRECT("'3.09.1a (3)'!v29")) ->  | S62: =IF(ISERROR(INDIRECT("'3.09.1a (3)'!w29"))=TRUE,"",INDIRECT("'3.09.1a (3)'!w29")) ->  | T62: =IF(ISERROR(INDIRECT("'3.09.1a (3)'!x29"))=TRUE,"",INDIRECT("'3.09.1a (3)'!x29")) ->  | U62: =IF(ISERROR(INDIRECT("'3.09.1a (3)'!aa29"))=TRUE,"",INDIRECT("'3.09.1a (3)'!aa29")) ->  | V62: =IF(ISERROR(INDIRECT("'3.09.1a (3)'!ad29"))=TRUE,"",INDIRECT("'3.09.1a (3)'!ad29")) ->  | W62: =IF(ISERROR(INDIRECT("'3.09.1a (3)'!ah29"))=TRUE,"",INDIRECT("'3.09.1a (3)'!ah29")) ->  | X62: =IF(ISERROR(INDIRECT("'3.09.1a (3)'!am29"))=TRUE,"",INDIRECT("'3.09.1a (3)'!am29")) -> 
A63: 0 | B63: 3.09.1a (3) | C63: =IF(ISERROR(INDIRECT("'3.09.1a (3)'!b30"))=TRUE,"",INDIRECT("'3.09.1a (3)'!b30")) ->  | D63: =IF(ISERROR(INDIRECT("'3.09.1a (3)'!c30"))=TRUE,"",INDIRECT("'3.09.1a (3)'!c30")) ->  | E63: =IF(ISERROR(INDIRECT("'3.09.1a (3)'!d30"))=TRUE,"",INDIRECT("'3.09.1a (3)'!d30")) ->  | F63: =IF(ISERROR(INDIRECT("'3.09.1a (3)'!e30"))=TRUE,"",INDIRECT("'3.09.1a (3)'!e30")) ->  | G63: =IF(ISERROR(INDIRECT("'3.09.1a (3)'!f30"))=TRUE,"",INDIRECT("'3.09.1a (3)'!f30")) ->  | H63: =IF(ISERROR(INDIRECT("'3.09.1a (3)'!g30"))=TRUE,"",INDIRECT("'3.09.1a (3)'!g30")) ->  | I63: =IF(ISERROR(INDIRECT("'3.09.1a (3)'!h30"))=TRUE,"",INDIRECT("'3.09.1a (3)'!h30")) ->  | J63: =IF(ISERROR(INDIRECT("'3.09.1a (3)'!i30"))=TRUE,"",INDIRECT("'3.09.1a (3)'!i30")) ->  | K63: =IF(ISERROR(INDIRECT("'3.09.1a (3)'!j30"))=TRUE,"",INDIRECT("'3.09.1a (3)'!j30")) ->  | L63: =IF(ISERROR(INDIRECT("'3.09.1a (3)'!o30"))=TRUE,"",INDIRECT("'3.09.1a (3)'!o30")) ->  | M63: =IF(ISERROR(INDIRECT("'3.09.1a (3)'!p30"))=TRUE,"",INDIRECT("'3.09.1a (3)'!p30")) ->  | N63: =IF(ISERROR(INDIRECT("'3.09.1a (3)'!q30"))=TRUE,"",INDIRECT("'3.09.1a (3)'!q30")) ->  | O63: =IF(ISERROR(INDIRECT("'3.09.1a (3)'!s30"))=TRUE,"",INDIRECT("'3.09.1a (3)'!s30")) ->  | P63: =IF(ISERROR(INDIRECT("'3.09.1a (3)'!t30"))=TRUE,"",INDIRECT("'3.09.1a (3)'!t30")) ->  | Q63: =IF(ISERROR(INDIRECT("'3.09.1a (3)'!u30"))=TRUE,"",INDIRECT("'3.09.1a (3)'!u30")) ->  | R63: =IF(ISERROR(INDIRECT("'3.09.1a (3)'!v30"))=TRUE,"",INDIRECT("'3.09.1a (3)'!v30")) ->  | S63: =IF(ISERROR(INDIRECT("'3.09.1a (3)'!w30"))=TRUE,"",INDIRECT("'3.09.1a (3)'!w30")) ->  | T63: =IF(ISERROR(INDIRECT("'3.09.1a (3)'!x30"))=TRUE,"",INDIRECT("'3.09.1a (3)'!x30")) ->  | U63: =IF(ISERROR(INDIRECT("'3.09.1a (3)'!aa30"))=TRUE,"",INDIRECT("'3.09.1a (3)'!aa30")) ->  | V63: =IF(ISERROR(INDIRECT("'3.09.1a (3)'!ad30"))=TRUE,"",INDIRECT("'3.09.1a (3)'!ad30")) ->  | W63: =IF(ISERROR(INDIRECT("'3.09.1a (3)'!ah30"))=TRUE,"",INDIRECT("'3.09.1a (3)'!ah30")) ->  | X63: =IF(ISERROR(INDIRECT("'3.09.1a (3)'!am30"))=TRUE,"",INDIRECT("'3.09.1a (3)'!am30")) -> 
A64: 0 | B64: 3.09.1a (3) | C64: =IF(ISERROR(INDIRECT("'3.09.1a (3)'!b31"))=TRUE,"",INDIRECT("'3.09.1a (3)'!b31")) ->  | D64: =IF(ISERROR(INDIRECT("'3.09.1a (3)'!c31"))=TRUE,"",INDIRECT("'3.09.1a (3)'!c31")) ->  | E64: =IF(ISERROR(INDIRECT("'3.09.1a (3)'!d31"))=TRUE,"",INDIRECT("'3.09.1a (3)'!d31")) ->  | F64: =IF(ISERROR(INDIRECT("'3.09.1a (3)'!e31"))=TRUE,"",INDIRECT("'3.09.1a (3)'!e31")) ->  | G64: =IF(ISERROR(INDIRECT("'3.09.1a (3)'!f31"))=TRUE,"",INDIRECT("'3.09.1a (3)'!f31")) ->  | H64: =IF(ISERROR(INDIRECT("'3.09.1a (3)'!g31"))=TRUE,"",INDIRECT("'3.09.1a (3)'!g31")) ->  | I64: =IF(ISERROR(INDIRECT("'3.09.1a (3)'!h31"))=TRUE,"",INDIRECT("'3.09.1a (3)'!h31")) ->  | J64: =IF(ISERROR(INDIRECT("'3.09.1a (3)'!i31"))=TRUE,"",INDIRECT("'3.09.1a (3)'!i31")) ->  | K64: =IF(ISERROR(INDIRECT("'3.09.1a (3)'!j31"))=TRUE,"",INDIRECT("'3.09.1a (3)'!j31")) ->  | L64: =IF(ISERROR(INDIRECT("'3.09.1a (3)'!o31"))=TRUE,"",INDIRECT("'3.09.1a (3)'!o31")) ->  | M64: =IF(ISERROR(INDIRECT("'3.09.1a (3)'!p31"))=TRUE,"",INDIRECT("'3.09.1a (3)'!p31")) ->  | N64: =IF(ISERROR(INDIRECT("'3.09.1a (3)'!q31"))=TRUE,"",INDIRECT("'3.09.1a (3)'!q31")) ->  | O64: =IF(ISERROR(INDIRECT("'3.09.1a (3)'!s31"))=TRUE,"",INDIRECT("'3.09.1a (3)'!s31")) ->  | P64: =IF(ISERROR(INDIRECT("'3.09.1a (3)'!t31"))=TRUE,"",INDIRECT("'3.09.1a (3)'!t31")) ->  | Q64: =IF(ISERROR(INDIRECT("'3.09.1a (3)'!u31"))=TRUE,"",INDIRECT("'3.09.1a (3)'!u31")) ->  | R64: =IF(ISERROR(INDIRECT("'3.09.1a (3)'!v31"))=TRUE,"",INDIRECT("'3.09.1a (3)'!v31")) ->  | S64: =IF(ISERROR(INDIRECT("'3.09.1a (3)'!w31"))=TRUE,"",INDIRECT("'3.09.1a (3)'!w31")) ->  | T64: =IF(ISERROR(INDIRECT("'3.09.1a (3)'!x31"))=TRUE,"",INDIRECT("'3.09.1a (3)'!x31")) ->  | U64: =IF(ISERROR(INDIRECT("'3.09.1a (3)'!aa31"))=TRUE,"",INDIRECT("'3.09.1a (3)'!aa31")) ->  | V64: =IF(ISERROR(INDIRECT("'3.09.1a (3)'!ad31"))=TRUE,"",INDIRECT("'3.09.1a (3)'!ad31")) ->  | W64: =IF(ISERROR(INDIRECT("'3.09.1a (3)'!ah31"))=TRUE,"",INDIRECT("'3.09.1a (3)'!ah31")) ->  | X64: =IF(ISERROR(INDIRECT("'3.09.1a (3)'!am31"))=TRUE,"",INDIRECT("'3.09.1a (3)'!am31")) -> 
A65: 0 | B65: 3.09.1a (3) | C65: =IF(ISERROR(INDIRECT("'3.09.1a (3)'!b32"))=TRUE,"",INDIRECT("'3.09.1a (3)'!b32")) ->  | D65: =IF(ISERROR(INDIRECT("'3.09.1a (3)'!c32"))=TRUE,"",INDIRECT("'3.09.1a (3)'!c32")) ->  | E65: =IF(ISERROR(INDIRECT("'3.09.1a (3)'!d32"))=TRUE,"",INDIRECT("'3.09.1a (3)'!d32")) ->  | F65: =IF(ISERROR(INDIRECT("'3.09.1a (3)'!e32"))=TRUE,"",INDIRECT("'3.09.1a (3)'!e32")) ->  | G65: =IF(ISERROR(INDIRECT("'3.09.1a (3)'!f32"))=TRUE,"",INDIRECT("'3.09.1a (3)'!f32")) ->  | H65: =IF(ISERROR(INDIRECT("'3.09.1a (3)'!g32"))=TRUE,"",INDIRECT("'3.09.1a (3)'!g32")) ->  | I65: =IF(ISERROR(INDIRECT("'3.09.1a (3)'!h32"))=TRUE,"",INDIRECT("'3.09.1a (3)'!h32")) ->  | J65: =IF(ISERROR(INDIRECT("'3.09.1a (3)'!i32"))=TRUE,"",INDIRECT("'3.09.1a (3)'!i32")) ->  | K65: =IF(ISERROR(INDIRECT("'3.09.1a (3)'!j32"))=TRUE,"",INDIRECT("'3.09.1a (3)'!j32")) ->  | L65: =IF(ISERROR(INDIRECT("'3.09.1a (3)'!o32"))=TRUE,"",INDIRECT("'3.09.1a (3)'!o32")) ->  | M65: =IF(ISERROR(INDIRECT("'3.09.1a (3)'!p32"))=TRUE,"",INDIRECT("'3.09.1a (3)'!p32")) ->  | N65: =IF(ISERROR(INDIRECT("'3.09.1a (3)'!q32"))=TRUE,"",INDIRECT("'3.09.1a (3)'!q32")) ->  | O65: =IF(ISERROR(INDIRECT("'3.09.1a (3)'!s32"))=TRUE,"",INDIRECT("'3.09.1a (3)'!s32")) ->  | P65: =IF(ISERROR(INDIRECT("'3.09.1a (3)'!t32"))=TRUE,"",INDIRECT("'3.09.1a (3)'!t32")) ->  | Q65: =IF(ISERROR(INDIRECT("'3.09.1a (3)'!u32"))=TRUE,"",INDIRECT("'3.09.1a (3)'!u32")) ->  | R65: =IF(ISERROR(INDIRECT("'3.09.1a (3)'!v32"))=TRUE,"",INDIRECT("'3.09.1a (3)'!v32")) ->  | S65: =IF(ISERROR(INDIRECT("'3.09.1a (3)'!w32"))=TRUE,"",INDIRECT("'3.09.1a (3)'!w32")) ->  | T65: =IF(ISERROR(INDIRECT("'3.09.1a (3)'!x32"))=TRUE,"",INDIRECT("'3.09.1a (3)'!x32")) ->  | U65: =IF(ISERROR(INDIRECT("'3.09.1a (3)'!aa32"))=TRUE,"",INDIRECT("'3.09.1a (3)'!aa32")) ->  | V65: =IF(ISERROR(INDIRECT("'3.09.1a (3)'!ad32"))=TRUE,"",INDIRECT("'3.09.1a (3)'!ad32")) ->  | W65: =IF(ISERROR(INDIRECT("'3.09.1a (3)'!ah32"))=TRUE,"",INDIRECT("'3.09.1a (3)'!ah32")) ->  | X65: =IF(ISERROR(INDIRECT("'3.09.1a (3)'!am32"))=TRUE,"",INDIRECT("'3.09.1a (3)'!am32")) -> 
A66: 0 | B66: 3.09.1a (3) | C66: =IF(ISERROR(INDIRECT("'3.09.1a (3)'!b33"))=TRUE,"",INDIRECT("'3.09.1a (3)'!b33")) ->  | D66: =IF(ISERROR(INDIRECT("'3.09.1a (3)'!c33"))=TRUE,"",INDIRECT("'3.09.1a (3)'!c33")) ->  | E66: =IF(ISERROR(INDIRECT("'3.09.1a (3)'!d33"))=TRUE,"",INDIRECT("'3.09.1a (3)'!d33")) ->  | F66: =IF(ISERROR(INDIRECT("'3.09.1a (3)'!e33"))=TRUE,"",INDIRECT("'3.09.1a (3)'!e33")) ->  | G66: =IF(ISERROR(INDIRECT("'3.09.1a (3)'!f33"))=TRUE,"",INDIRECT("'3.09.1a (3)'!f33")) ->  | H66: =IF(ISERROR(INDIRECT("'3.09.1a (3)'!g33"))=TRUE,"",INDIRECT("'3.09.1a (3)'!g33")) ->  | I66: =IF(ISERROR(INDIRECT("'3.09.1a (3)'!h33"))=TRUE,"",INDIRECT("'3.09.1a (3)'!h33")) ->  | J66: =IF(ISERROR(INDIRECT("'3.09.1a (3)'!i33"))=TRUE,"",INDIRECT("'3.09.1a (3)'!i33")) ->  | K66: =IF(ISERROR(INDIRECT("'3.09.1a (3)'!j33"))=TRUE,"",INDIRECT("'3.09.1a (3)'!j33")) ->  | L66: =IF(ISERROR(INDIRECT("'3.09.1a (3)'!o33"))=TRUE,"",INDIRECT("'3.09.1a (3)'!o33")) ->  | M66: =IF(ISERROR(INDIRECT("'3.09.1a (3)'!p33"))=TRUE,"",INDIRECT("'3.09.1a (3)'!p33")) ->  | N66: =IF(ISERROR(INDIRECT("'3.09.1a (3)'!q33"))=TRUE,"",INDIRECT("'3.09.1a (3)'!q33")) ->  | O66: =IF(ISERROR(INDIRECT("'3.09.1a (3)'!s33"))=TRUE,"",INDIRECT("'3.09.1a (3)'!s33")) ->  | P66: =IF(ISERROR(INDIRECT("'3.09.1a (3)'!t33"))=TRUE,"",INDIRECT("'3.09.1a (3)'!t33")) ->  | Q66: =IF(ISERROR(INDIRECT("'3.09.1a (3)'!u33"))=TRUE,"",INDIRECT("'3.09.1a (3)'!u33")) ->  | R66: =IF(ISERROR(INDIRECT("'3.09.1a (3)'!v33"))=TRUE,"",INDIRECT("'3.09.1a (3)'!v33")) ->  | S66: =IF(ISERROR(INDIRECT("'3.09.1a (3)'!w33"))=TRUE,"",INDIRECT("'3.09.1a (3)'!w33")) ->  | T66: =IF(ISERROR(INDIRECT("'3.09.1a (3)'!x33"))=TRUE,"",INDIRECT("'3.09.1a (3)'!x33")) ->  | U66: =IF(ISERROR(INDIRECT("'3.09.1a (3)'!aa33"))=TRUE,"",INDIRECT("'3.09.1a (3)'!aa33")) ->  | V66: =IF(ISERROR(INDIRECT("'3.09.1a (3)'!ad33"))=TRUE,"",INDIRECT("'3.09.1a (3)'!ad33")) ->  | W66: =IF(ISERROR(INDIRECT("'3.09.1a (3)'!ah33"))=TRUE,"",INDIRECT("'3.09.1a (3)'!ah33")) ->  | X66: =IF(ISERROR(INDIRECT("'3.09.1a (3)'!am33"))=TRUE,"",INDIRECT("'3.09.1a (3)'!am33")) -> 
A67: 0 | B67: 3.09.1a (3) | C67: =IF(ISERROR(INDIRECT("'3.09.1a (3)'!b34"))=TRUE,"",INDIRECT("'3.09.1a (3)'!b34")) ->  | D67: =IF(ISERROR(INDIRECT("'3.09.1a (3)'!c34"))=TRUE,"",INDIRECT("'3.09.1a (3)'!c34")) ->  | E67: =IF(ISERROR(INDIRECT("'3.09.1a (3)'!d34"))=TRUE,"",INDIRECT("'3.09.1a (3)'!d34")) ->  | F67: =IF(ISERROR(INDIRECT("'3.09.1a (3)'!e34"))=TRUE,"",INDIRECT("'3.09.1a (3)'!e34")) ->  | G67: =IF(ISERROR(INDIRECT("'3.09.1a (3)'!f34"))=TRUE,"",INDIRECT("'3.09.1a (3)'!f34")) ->  | H67: =IF(ISERROR(INDIRECT("'3.09.1a (3)'!g34"))=TRUE,"",INDIRECT("'3.09.1a (3)'!g34")) ->  | I67: =IF(ISERROR(INDIRECT("'3.09.1a (3)'!h34"))=TRUE,"",INDIRECT("'3.09.1a (3)'!h34")) ->  | J67: =IF(ISERROR(INDIRECT("'3.09.1a (3)'!i34"))=TRUE,"",INDIRECT("'3.09.1a (3)'!i34")) ->  | K67: =IF(ISERROR(INDIRECT("'3.09.1a (3)'!j34"))=TRUE,"",INDIRECT("'3.09.1a (3)'!j34")) ->  | L67: =IF(ISERROR(INDIRECT("'3.09.1a (3)'!o34"))=TRUE,"",INDIRECT("'3.09.1a (3)'!o34")) ->  | M67: =IF(ISERROR(INDIRECT("'3.09.1a (3)'!p34"))=TRUE,"",INDIRECT("'3.09.1a (3)'!p34")) ->  | N67: =IF(ISERROR(INDIRECT("'3.09.1a (3)'!q34"))=TRUE,"",INDIRECT("'3.09.1a (3)'!q34")) ->  | O67: =IF(ISERROR(INDIRECT("'3.09.1a (3)'!s34"))=TRUE,"",INDIRECT("'3.09.1a (3)'!s34")) ->  | P67: =IF(ISERROR(INDIRECT("'3.09.1a (3)'!t34"))=TRUE,"",INDIRECT("'3.09.1a (3)'!t34")) ->  | Q67: =IF(ISERROR(INDIRECT("'3.09.1a (3)'!u34"))=TRUE,"",INDIRECT("'3.09.1a (3)'!u34")) ->  | R67: =IF(ISERROR(INDIRECT("'3.09.1a (3)'!v34"))=TRUE,"",INDIRECT("'3.09.1a (3)'!v34")) ->  | S67: =IF(ISERROR(INDIRECT("'3.09.1a (3)'!w34"))=TRUE,"",INDIRECT("'3.09.1a (3)'!w34")) ->  | T67: =IF(ISERROR(INDIRECT("'3.09.1a (3)'!x34"))=TRUE,"",INDIRECT("'3.09.1a (3)'!x34")) ->  | U67: =IF(ISERROR(INDIRECT("'3.09.1a (3)'!aa34"))=TRUE,"",INDIRECT("'3.09.1a (3)'!aa34")) ->  | V67: =IF(ISERROR(INDIRECT("'3.09.1a (3)'!ad34"))=TRUE,"",INDIRECT("'3.09.1a (3)'!ad34")) ->  | W67: =IF(ISERROR(INDIRECT("'3.09.1a (3)'!ah34"))=TRUE,"",INDIRECT("'3.09.1a (3)'!ah34")) ->  | X67: =IF(ISERROR(INDIRECT("'3.09.1a (3)'!am34"))=TRUE,"",INDIRECT("'3.09.1a (3)'!am34")) -> 
A68: 0 | B68: 3.09.1a (3) | C68: =IF(ISERROR(INDIRECT("'3.09.1a (3)'!b35"))=TRUE,"",INDIRECT("'3.09.1a (3)'!b35")) ->  | D68: =IF(ISERROR(INDIRECT("'3.09.1a (3)'!c35"))=TRUE,"",INDIRECT("'3.09.1a (3)'!c35")) ->  | E68: =IF(ISERROR(INDIRECT("'3.09.1a (3)'!d35"))=TRUE,"",INDIRECT("'3.09.1a (3)'!d35")) ->  | F68: =IF(ISERROR(INDIRECT("'3.09.1a (3)'!e35"))=TRUE,"",INDIRECT("'3.09.1a (3)'!e35")) ->  | G68: =IF(ISERROR(INDIRECT("'3.09.1a (3)'!f35"))=TRUE,"",INDIRECT("'3.09.1a (3)'!f35")) ->  | H68: =IF(ISERROR(INDIRECT("'3.09.1a (3)'!g35"))=TRUE,"",INDIRECT("'3.09.1a (3)'!g35")) ->  | I68: =IF(ISERROR(INDIRECT("'3.09.1a (3)'!h35"))=TRUE,"",INDIRECT("'3.09.1a (3)'!h35")) ->  | J68: =IF(ISERROR(INDIRECT("'3.09.1a (3)'!i35"))=TRUE,"",INDIRECT("'3.09.1a (3)'!i35")) ->  | K68: =IF(ISERROR(INDIRECT("'3.09.1a (3)'!j35"))=TRUE,"",INDIRECT("'3.09.1a (3)'!j35")) ->  | L68: =IF(ISERROR(INDIRECT("'3.09.1a (3)'!o35"))=TRUE,"",INDIRECT("'3.09.1a (3)'!o35")) ->  | M68: =IF(ISERROR(INDIRECT("'3.09.1a (3)'!p35"))=TRUE,"",INDIRECT("'3.09.1a (3)'!p35")) ->  | N68: =IF(ISERROR(INDIRECT("'3.09.1a (3)'!q35"))=TRUE,"",INDIRECT("'3.09.1a (3)'!q35")) ->  | O68: =IF(ISERROR(INDIRECT("'3.09.1a (3)'!s35"))=TRUE,"",INDIRECT("'3.09.1a (3)'!s35")) ->  | P68: =IF(ISERROR(INDIRECT("'3.09.1a (3)'!t35"))=TRUE,"",INDIRECT("'3.09.1a (3)'!t35")) ->  | Q68: =IF(ISERROR(INDIRECT("'3.09.1a (3)'!u35"))=TRUE,"",INDIRECT("'3.09.1a (3)'!u35")) ->  | R68: =IF(ISERROR(INDIRECT("'3.09.1a (3)'!v35"))=TRUE,"",INDIRECT("'3.09.1a (3)'!v35")) ->  | S68: =IF(ISERROR(INDIRECT("'3.09.1a (3)'!w35"))=TRUE,"",INDIRECT("'3.09.1a (3)'!w35")) ->  | T68: =IF(ISERROR(INDIRECT("'3.09.1a (3)'!x35"))=TRUE,"",INDIRECT("'3.09.1a (3)'!x35")) ->  | U68: =IF(ISERROR(INDIRECT("'3.09.1a (3)'!aa35"))=TRUE,"",INDIRECT("'3.09.1a (3)'!aa35")) ->  | V68: =IF(ISERROR(INDIRECT("'3.09.1a (3)'!ad35"))=TRUE,"",INDIRECT("'3.09.1a (3)'!ad35")) ->  | W68: =IF(ISERROR(INDIRECT("'3.09.1a (3)'!ah35"))=TRUE,"",INDIRECT("'3.09.1a (3)'!ah35")) ->  | X68: =IF(ISERROR(INDIRECT("'3.09.1a (3)'!am35"))=TRUE,"",INDIRECT("'3.09.1a (3)'!am35")) -> 
A69: 0 | B69: 3.09.1a (3) | C69: =IF(ISERROR(INDIRECT("'3.09.1a (3)'!b36"))=TRUE,"",INDIRECT("'3.09.1a (3)'!b36")) ->  | D69: =IF(ISERROR(INDIRECT("'3.09.1a (3)'!c36"))=TRUE,"",INDIRECT("'3.09.1a (3)'!c36")) ->  | E69: =IF(ISERROR(INDIRECT("'3.09.1a (3)'!d36"))=TRUE,"",INDIRECT("'3.09.1a (3)'!d36")) ->  | F69: =IF(ISERROR(INDIRECT("'3.09.1a (3)'!e36"))=TRUE,"",INDIRECT("'3.09.1a (3)'!e36")) ->  | G69: =IF(ISERROR(INDIRECT("'3.09.1a (3)'!f36"))=TRUE,"",INDIRECT("'3.09.1a (3)'!f36")) ->  | H69: =IF(ISERROR(INDIRECT("'3.09.1a (3)'!g36"))=TRUE,"",INDIRECT("'3.09.1a (3)'!g36")) ->  | I69: =IF(ISERROR(INDIRECT("'3.09.1a (3)'!h36"))=TRUE,"",INDIRECT("'3.09.1a (3)'!h36")) ->  | J69: =IF(ISERROR(INDIRECT("'3.09.1a (3)'!i36"))=TRUE,"",INDIRECT("'3.09.1a (3)'!i36")) ->  | K69: =IF(ISERROR(INDIRECT("'3.09.1a (3)'!j36"))=TRUE,"",INDIRECT("'3.09.1a (3)'!j36")) ->  | L69: =IF(ISERROR(INDIRECT("'3.09.1a (3)'!o36"))=TRUE,"",INDIRECT("'3.09.1a (3)'!o36")) ->  | M69: =IF(ISERROR(INDIRECT("'3.09.1a (3)'!p36"))=TRUE,"",INDIRECT("'3.09.1a (3)'!p36")) ->  | N69: =IF(ISERROR(INDIRECT("'3.09.1a (3)'!q36"))=TRUE,"",INDIRECT("'3.09.1a (3)'!q36")) ->  | O69: =IF(ISERROR(INDIRECT("'3.09.1a (3)'!s36"))=TRUE,"",INDIRECT("'3.09.1a (3)'!s36")) ->  | P69: =IF(ISERROR(INDIRECT("'3.09.1a (3)'!t36"))=TRUE,"",INDIRECT("'3.09.1a (3)'!t36")) ->  | Q69: =IF(ISERROR(INDIRECT("'3.09.1a (3)'!u36"))=TRUE,"",INDIRECT("'3.09.1a (3)'!u36")) ->  | R69: =IF(ISERROR(INDIRECT("'3.09.1a (3)'!v36"))=TRUE,"",INDIRECT("'3.09.1a (3)'!v36")) ->  | S69: =IF(ISERROR(INDIRECT("'3.09.1a (3)'!w36"))=TRUE,"",INDIRECT("'3.09.1a (3)'!w36")) ->  | T69: =IF(ISERROR(INDIRECT("'3.09.1a (3)'!x36"))=TRUE,"",INDIRECT("'3.09.1a (3)'!x36")) ->  | U69: =IF(ISERROR(INDIRECT("'3.09.1a (3)'!aa36"))=TRUE,"",INDIRECT("'3.09.1a (3)'!aa36")) ->  | V69: =IF(ISERROR(INDIRECT("'3.09.1a (3)'!ad36"))=TRUE,"",INDIRECT("'3.09.1a (3)'!ad36")) ->  | W69: =IF(ISERROR(INDIRECT("'3.09.1a (3)'!ah36"))=TRUE,"",INDIRECT("'3.09.1a (3)'!ah36")) ->  | X69: =IF(ISERROR(INDIRECT("'3.09.1a (3)'!am36"))=TRUE,"",INDIRECT("'3.09.1a (3)'!am36")) -> 
A70: 0 | B70: 3.09.1a (3) | C70: =IF(ISERROR(INDIRECT("'3.09.1a (3)'!b37"))=TRUE,"",INDIRECT("'3.09.1a (3)'!b37")) ->  | D70: =IF(ISERROR(INDIRECT("'3.09.1a (3)'!c37"))=TRUE,"",INDIRECT("'3.09.1a (3)'!c37")) ->  | E70: =IF(ISERROR(INDIRECT("'3.09.1a (3)'!d37"))=TRUE,"",INDIRECT("'3.09.1a (3)'!d37")) ->  | F70: =IF(ISERROR(INDIRECT("'3.09.1a (3)'!e37"))=TRUE,"",INDIRECT("'3.09.1a (3)'!e37")) ->  | G70: =IF(ISERROR(INDIRECT("'3.09.1a (3)'!f37"))=TRUE,"",INDIRECT("'3.09.1a (3)'!f37")) ->  | H70: =IF(ISERROR(INDIRECT("'3.09.1a (3)'!g37"))=TRUE,"",INDIRECT("'3.09.1a (3)'!g37")) ->  | I70: =IF(ISERROR(INDIRECT("'3.09.1a (3)'!h37"))=TRUE,"",INDIRECT("'3.09.1a (3)'!h37")) ->  | J70: =IF(ISERROR(INDIRECT("'3.09.1a (3)'!i37"))=TRUE,"",INDIRECT("'3.09.1a (3)'!i37")) ->  | K70: =IF(ISERROR(INDIRECT("'3.09.1a (3)'!j37"))=TRUE,"",INDIRECT("'3.09.1a (3)'!j37")) ->  | L70: =IF(ISERROR(INDIRECT("'3.09.1a (3)'!o37"))=TRUE,"",INDIRECT("'3.09.1a (3)'!o37")) ->  | M70: =IF(ISERROR(INDIRECT("'3.09.1a (3)'!p37"))=TRUE,"",INDIRECT("'3.09.1a (3)'!p37")) ->  | N70: =IF(ISERROR(INDIRECT("'3.09.1a (3)'!q37"))=TRUE,"",INDIRECT("'3.09.1a (3)'!q37")) ->  | O70: =IF(ISERROR(INDIRECT("'3.09.1a (3)'!s37"))=TRUE,"",INDIRECT("'3.09.1a (3)'!s37")) ->  | P70: =IF(ISERROR(INDIRECT("'3.09.1a (3)'!t37"))=TRUE,"",INDIRECT("'3.09.1a (3)'!t37")) ->  | Q70: =IF(ISERROR(INDIRECT("'3.09.1a (3)'!u37"))=TRUE,"",INDIRECT("'3.09.1a (3)'!u37")) ->  | R70: =IF(ISERROR(INDIRECT("'3.09.1a (3)'!v37"))=TRUE,"",INDIRECT("'3.09.1a (3)'!v37")) ->  | S70: =IF(ISERROR(INDIRECT("'3.09.1a (3)'!w37"))=TRUE,"",INDIRECT("'3.09.1a (3)'!w37")) ->  | T70: =IF(ISERROR(INDIRECT("'3.09.1a (3)'!x37"))=TRUE,"",INDIRECT("'3.09.1a (3)'!x37")) ->  | U70: =IF(ISERROR(INDIRECT("'3.09.1a (3)'!aa37"))=TRUE,"",INDIRECT("'3.09.1a (3)'!aa37")) ->  | V70: =IF(ISERROR(INDIRECT("'3.09.1a (3)'!ad37"))=TRUE,"",INDIRECT("'3.09.1a (3)'!ad37")) ->  | W70: =IF(ISERROR(INDIRECT("'3.09.1a (3)'!ah37"))=TRUE,"",INDIRECT("'3.09.1a (3)'!ah37")) ->  | X70: =IF(ISERROR(INDIRECT("'3.09.1a (3)'!am37"))=TRUE,"",INDIRECT("'3.09.1a (3)'!am37")) -> 
A71: 0 | B71: 3.09.1a (3) | C71: =IF(ISERROR(INDIRECT("'3.09.1a (3)'!b38"))=TRUE,"",INDIRECT("'3.09.1a (3)'!b38")) ->  | D71: =IF(ISERROR(INDIRECT("'3.09.1a (3)'!c38"))=TRUE,"",INDIRECT("'3.09.1a (3)'!c38")) ->  | E71: =IF(ISERROR(INDIRECT("'3.09.1a (3)'!d38"))=TRUE,"",INDIRECT("'3.09.1a (3)'!d38")) ->  | F71: =IF(ISERROR(INDIRECT("'3.09.1a (3)'!e38"))=TRUE,"",INDIRECT("'3.09.1a (3)'!e38")) ->  | G71: =IF(ISERROR(INDIRECT("'3.09.1a (3)'!f38"))=TRUE,"",INDIRECT("'3.09.1a (3)'!f38")) ->  | H71: =IF(ISERROR(INDIRECT("'3.09.1a (3)'!g38"))=TRUE,"",INDIRECT("'3.09.1a (3)'!g38")) ->  | I71: =IF(ISERROR(INDIRECT("'3.09.1a (3)'!h38"))=TRUE,"",INDIRECT("'3.09.1a (3)'!h38")) ->  | J71: =IF(ISERROR(INDIRECT("'3.09.1a (3)'!i38"))=TRUE,"",INDIRECT("'3.09.1a (3)'!i38")) ->  | K71: =IF(ISERROR(INDIRECT("'3.09.1a (3)'!j38"))=TRUE,"",INDIRECT("'3.09.1a (3)'!j38")) ->  | L71: =IF(ISERROR(INDIRECT("'3.09.1a (3)'!o38"))=TRUE,"",INDIRECT("'3.09.1a (3)'!o38")) ->  | M71: =IF(ISERROR(INDIRECT("'3.09.1a (3)'!p38"))=TRUE,"",INDIRECT("'3.09.1a (3)'!p38")) ->  | N71: =IF(ISERROR(INDIRECT("'3.09.1a (3)'!q38"))=TRUE,"",INDIRECT("'3.09.1a (3)'!q38")) ->  | O71: =IF(ISERROR(INDIRECT("'3.09.1a (3)'!s38"))=TRUE,"",INDIRECT("'3.09.1a (3)'!s38")) ->  | P71: =IF(ISERROR(INDIRECT("'3.09.1a (3)'!t38"))=TRUE,"",INDIRECT("'3.09.1a (3)'!t38")) ->  | Q71: =IF(ISERROR(INDIRECT("'3.09.1a (3)'!u38"))=TRUE,"",INDIRECT("'3.09.1a (3)'!u38")) ->  | R71: =IF(ISERROR(INDIRECT("'3.09.1a (3)'!v38"))=TRUE,"",INDIRECT("'3.09.1a (3)'!v38")) ->  | S71: =IF(ISERROR(INDIRECT("'3.09.1a (3)'!w38"))=TRUE,"",INDIRECT("'3.09.1a (3)'!w38")) ->  | T71: =IF(ISERROR(INDIRECT("'3.09.1a (3)'!x38"))=TRUE,"",INDIRECT("'3.09.1a (3)'!x38")) ->  | U71: =IF(ISERROR(INDIRECT("'3.09.1a (3)'!aa38"))=TRUE,"",INDIRECT("'3.09.1a (3)'!aa38")) ->  | V71: =IF(ISERROR(INDIRECT("'3.09.1a (3)'!ad38"))=TRUE,"",INDIRECT("'3.09.1a (3)'!ad38")) ->  | W71: =IF(ISERROR(INDIRECT("'3.09.1a (3)'!ah38"))=TRUE,"",INDIRECT("'3.09.1a (3)'!ah38")) ->  | X71: =IF(ISERROR(INDIRECT("'3.09.1a (3)'!am38"))=TRUE,"",INDIRECT("'3.09.1a (3)'!am38")) -> 
A72: 0 | B72: 3.09.1a (3) | C72: =IF(ISERROR(INDIRECT("'3.09.1a (3)'!b39"))=TRUE,"",INDIRECT("'3.09.1a (3)'!b39")) ->  | D72: =IF(ISERROR(INDIRECT("'3.09.1a (3)'!c39"))=TRUE,"",INDIRECT("'3.09.1a (3)'!c39")) ->  | E72: =IF(ISERROR(INDIRECT("'3.09.1a (3)'!d39"))=TRUE,"",INDIRECT("'3.09.1a (3)'!d39")) ->  | F72: =IF(ISERROR(INDIRECT("'3.09.1a (3)'!e39"))=TRUE,"",INDIRECT("'3.09.1a (3)'!e39")) ->  | G72: =IF(ISERROR(INDIRECT("'3.09.1a (3)'!f39"))=TRUE,"",INDIRECT("'3.09.1a (3)'!f39")) ->  | H72: =IF(ISERROR(INDIRECT("'3.09.1a (3)'!g39"))=TRUE,"",INDIRECT("'3.09.1a (3)'!g39")) ->  | I72: =IF(ISERROR(INDIRECT("'3.09.1a (3)'!h39"))=TRUE,"",INDIRECT("'3.09.1a (3)'!h39")) ->  | J72: =IF(ISERROR(INDIRECT("'3.09.1a (3)'!i39"))=TRUE,"",INDIRECT("'3.09.1a (3)'!i39")) ->  | K72: =IF(ISERROR(INDIRECT("'3.09.1a (3)'!j39"))=TRUE,"",INDIRECT("'3.09.1a (3)'!j39")) ->  | L72: =IF(ISERROR(INDIRECT("'3.09.1a (3)'!o39"))=TRUE,"",INDIRECT("'3.09.1a (3)'!o39")) ->  | M72: =IF(ISERROR(INDIRECT("'3.09.1a (3)'!p39"))=TRUE,"",INDIRECT("'3.09.1a (3)'!p39")) ->  | N72: =IF(ISERROR(INDIRECT("'3.09.1a (3)'!q39"))=TRUE,"",INDIRECT("'3.09.1a (3)'!q39")) ->  | O72: =IF(ISERROR(INDIRECT("'3.09.1a (3)'!s39"))=TRUE,"",INDIRECT("'3.09.1a (3)'!s39")) ->  | P72: =IF(ISERROR(INDIRECT("'3.09.1a (3)'!t39"))=TRUE,"",INDIRECT("'3.09.1a (3)'!t39")) ->  | Q72: =IF(ISERROR(INDIRECT("'3.09.1a (3)'!u39"))=TRUE,"",INDIRECT("'3.09.1a (3)'!u39")) ->  | R72: =IF(ISERROR(INDIRECT("'3.09.1a (3)'!v39"))=TRUE,"",INDIRECT("'3.09.1a (3)'!v39")) ->  | S72: =IF(ISERROR(INDIRECT("'3.09.1a (3)'!w39"))=TRUE,"",INDIRECT("'3.09.1a (3)'!w39")) ->  | T72: =IF(ISERROR(INDIRECT("'3.09.1a (3)'!x39"))=TRUE,"",INDIRECT("'3.09.1a (3)'!x39")) ->  | U72: =IF(ISERROR(INDIRECT("'3.09.1a (3)'!aa39"))=TRUE,"",INDIRECT("'3.09.1a (3)'!aa39")) ->  | V72: =IF(ISERROR(INDIRECT("'3.09.1a (3)'!ad39"))=TRUE,"",INDIRECT("'3.09.1a (3)'!ad39")) ->  | W72: =IF(ISERROR(INDIRECT("'3.09.1a (3)'!ah39"))=TRUE,"",INDIRECT("'3.09.1a (3)'!ah39")) ->  | X72: =IF(ISERROR(INDIRECT("'3.09.1a (3)'!am39"))=TRUE,"",INDIRECT("'3.09.1a (3)'!am39")) -> 
A73: 0 | B73: 3.09.1a (3) | C73: =IF(ISERROR(INDIRECT("'3.09.1a (3)'!b40"))=TRUE,"",INDIRECT("'3.09.1a (3)'!b40")) ->  | D73: =IF(ISERROR(INDIRECT("'3.09.1a (3)'!c40"))=TRUE,"",INDIRECT("'3.09.1a (3)'!c40")) ->  | E73: =IF(ISERROR(INDIRECT("'3.09.1a (3)'!d40"))=TRUE,"",INDIRECT("'3.09.1a (3)'!d40")) ->  | F73: =IF(ISERROR(INDIRECT("'3.09.1a (3)'!e40"))=TRUE,"",INDIRECT("'3.09.1a (3)'!e40")) ->  | G73: =IF(ISERROR(INDIRECT("'3.09.1a (3)'!f40"))=TRUE,"",INDIRECT("'3.09.1a (3)'!f40")) ->  | H73: =IF(ISERROR(INDIRECT("'3.09.1a (3)'!g40"))=TRUE,"",INDIRECT("'3.09.1a (3)'!g40")) ->  | I73: =IF(ISERROR(INDIRECT("'3.09.1a (3)'!h40"))=TRUE,"",INDIRECT("'3.09.1a (3)'!h40")) ->  | J73: =IF(ISERROR(INDIRECT("'3.09.1a (3)'!i40"))=TRUE,"",INDIRECT("'3.09.1a (3)'!i40")) ->  | K73: =IF(ISERROR(INDIRECT("'3.09.1a (3)'!j40"))=TRUE,"",INDIRECT("'3.09.1a (3)'!j40")) ->  | L73: =IF(ISERROR(INDIRECT("'3.09.1a (3)'!o40"))=TRUE,"",INDIRECT("'3.09.1a (3)'!o40")) ->  | M73: =IF(ISERROR(INDIRECT("'3.09.1a (3)'!p40"))=TRUE,"",INDIRECT("'3.09.1a (3)'!p40")) ->  | N73: =IF(ISERROR(INDIRECT("'3.09.1a (3)'!q40"))=TRUE,"",INDIRECT("'3.09.1a (3)'!q40")) ->  | O73: =IF(ISERROR(INDIRECT("'3.09.1a (3)'!s40"))=TRUE,"",INDIRECT("'3.09.1a (3)'!s40")) ->  | P73: =IF(ISERROR(INDIRECT("'3.09.1a (3)'!t40"))=TRUE,"",INDIRECT("'3.09.1a (3)'!t40")) ->  | Q73: =IF(ISERROR(INDIRECT("'3.09.1a (3)'!u40"))=TRUE,"",INDIRECT("'3.09.1a (3)'!u40")) ->  | R73: =IF(ISERROR(INDIRECT("'3.09.1a (3)'!v40"))=TRUE,"",INDIRECT("'3.09.1a (3)'!v40")) ->  | S73: =IF(ISERROR(INDIRECT("'3.09.1a (3)'!w40"))=TRUE,"",INDIRECT("'3.09.1a (3)'!w40")) ->  | T73: =IF(ISERROR(INDIRECT("'3.09.1a (3)'!x40"))=TRUE,"",INDIRECT("'3.09.1a (3)'!x40")) ->  | U73: =IF(ISERROR(INDIRECT("'3.09.1a (3)'!aa40"))=TRUE,"",INDIRECT("'3.09.1a (3)'!aa40")) ->  | V73: =IF(ISERROR(INDIRECT("'3.09.1a (3)'!ad40"))=TRUE,"",INDIRECT("'3.09.1a (3)'!ad40")) ->  | W73: =IF(ISERROR(INDIRECT("'3.09.1a (3)'!ah40"))=TRUE,"",INDIRECT("'3.09.1a (3)'!ah40")) ->  | X73: =IF(ISERROR(INDIRECT("'3.09.1a (3)'!am40"))=TRUE,"",INDIRECT("'3.09.1a (3)'!am40")) -> 
A74: 0 | B74: 3.09.1a (3) | C74: =IF(ISERROR(INDIRECT("'3.09.1a (3)'!b41"))=TRUE,"",INDIRECT("'3.09.1a (3)'!b41")) ->  | D74: =IF(ISERROR(INDIRECT("'3.09.1a (3)'!c41"))=TRUE,"",INDIRECT("'3.09.1a (3)'!c41")) ->  | E74: =IF(ISERROR(INDIRECT("'3.09.1a (3)'!d41"))=TRUE,"",INDIRECT("'3.09.1a (3)'!d41")) ->  | F74: =IF(ISERROR(INDIRECT("'3.09.1a (3)'!e41"))=TRUE,"",INDIRECT("'3.09.1a (3)'!e41")) ->  | G74: =IF(ISERROR(INDIRECT("'3.09.1a (3)'!f41"))=TRUE,"",INDIRECT("'3.09.1a (3)'!f41")) ->  | H74: =IF(ISERROR(INDIRECT("'3.09.1a (3)'!g41"))=TRUE,"",INDIRECT("'3.09.1a (3)'!g41")) ->  | I74: =IF(ISERROR(INDIRECT("'3.09.1a (3)'!h41"))=TRUE,"",INDIRECT("'3.09.1a (3)'!h41")) ->  | J74: =IF(ISERROR(INDIRECT("'3.09.1a (3)'!i41"))=TRUE,"",INDIRECT("'3.09.1a (3)'!i41")) ->  | K74: =IF(ISERROR(INDIRECT("'3.09.1a (3)'!j41"))=TRUE,"",INDIRECT("'3.09.1a (3)'!j41")) ->  | L74: =IF(ISERROR(INDIRECT("'3.09.1a (3)'!o41"))=TRUE,"",INDIRECT("'3.09.1a (3)'!o41")) ->  | M74: =IF(ISERROR(INDIRECT("'3.09.1a (3)'!p41"))=TRUE,"",INDIRECT("'3.09.1a (3)'!p41")) ->  | N74: =IF(ISERROR(INDIRECT("'3.09.1a (3)'!q41"))=TRUE,"",INDIRECT("'3.09.1a (3)'!q41")) ->  | O74: =IF(ISERROR(INDIRECT("'3.09.1a (3)'!s41"))=TRUE,"",INDIRECT("'3.09.1a (3)'!s41")) ->  | P74: =IF(ISERROR(INDIRECT("'3.09.1a (3)'!t41"))=TRUE,"",INDIRECT("'3.09.1a (3)'!t41")) ->  | Q74: =IF(ISERROR(INDIRECT("'3.09.1a (3)'!u41"))=TRUE,"",INDIRECT("'3.09.1a (3)'!u41")) ->  | R74: =IF(ISERROR(INDIRECT("'3.09.1a (3)'!v41"))=TRUE,"",INDIRECT("'3.09.1a (3)'!v41")) ->  | S74: =IF(ISERROR(INDIRECT("'3.09.1a (3)'!w41"))=TRUE,"",INDIRECT("'3.09.1a (3)'!w41")) ->  | T74: =IF(ISERROR(INDIRECT("'3.09.1a (3)'!x41"))=TRUE,"",INDIRECT("'3.09.1a (3)'!x41")) ->  | U74: =IF(ISERROR(INDIRECT("'3.09.1a (3)'!aa41"))=TRUE,"",INDIRECT("'3.09.1a (3)'!aa41")) ->  | V74: =IF(ISERROR(INDIRECT("'3.09.1a (3)'!ad41"))=TRUE,"",INDIRECT("'3.09.1a (3)'!ad41")) ->  | W74: =IF(ISERROR(INDIRECT("'3.09.1a (3)'!ah41"))=TRUE,"",INDIRECT("'3.09.1a (3)'!ah41")) ->  | X74: =IF(ISERROR(INDIRECT("'3.09.1a (3)'!am41"))=TRUE,"",INDIRECT("'3.09.1a (3)'!am41")) -> 
A75: 0 | B75: 3.09.1a (3) | C75: =IF(ISERROR(INDIRECT("'3.09.1a (3)'!b42"))=TRUE,"",INDIRECT("'3.09.1a (3)'!b42")) ->  | D75: =IF(ISERROR(INDIRECT("'3.09.1a (3)'!c42"))=TRUE,"",INDIRECT("'3.09.1a (3)'!c42")) ->  | E75: =IF(ISERROR(INDIRECT("'3.09.1a (3)'!d42"))=TRUE,"",INDIRECT("'3.09.1a (3)'!d42")) ->  | F75: =IF(ISERROR(INDIRECT("'3.09.1a (3)'!e42"))=TRUE,"",INDIRECT("'3.09.1a (3)'!e42")) ->  | G75: =IF(ISERROR(INDIRECT("'3.09.1a (3)'!f42"))=TRUE,"",INDIRECT("'3.09.1a (3)'!f42")) ->  | H75: =IF(ISERROR(INDIRECT("'3.09.1a (3)'!g42"))=TRUE,"",INDIRECT("'3.09.1a (3)'!g42")) ->  | I75: =IF(ISERROR(INDIRECT("'3.09.1a (3)'!h42"))=TRUE,"",INDIRECT("'3.09.1a (3)'!h42")) ->  | J75: =IF(ISERROR(INDIRECT("'3.09.1a (3)'!i42"))=TRUE,"",INDIRECT("'3.09.1a (3)'!i42")) ->  | K75: =IF(ISERROR(INDIRECT("'3.09.1a (3)'!j42"))=TRUE,"",INDIRECT("'3.09.1a (3)'!j42")) ->  | L75: =IF(ISERROR(INDIRECT("'3.09.1a (3)'!o42"))=TRUE,"",INDIRECT("'3.09.1a (3)'!o42")) ->  | M75: =IF(ISERROR(INDIRECT("'3.09.1a (3)'!p42"))=TRUE,"",INDIRECT("'3.09.1a (3)'!p42")) ->  | N75: =IF(ISERROR(INDIRECT("'3.09.1a (3)'!q42"))=TRUE,"",INDIRECT("'3.09.1a (3)'!q42")) ->  | O75: =IF(ISERROR(INDIRECT("'3.09.1a (3)'!s42"))=TRUE,"",INDIRECT("'3.09.1a (3)'!s42")) ->  | P75: =IF(ISERROR(INDIRECT("'3.09.1a (3)'!t42"))=TRUE,"",INDIRECT("'3.09.1a (3)'!t42")) ->  | Q75: =IF(ISERROR(INDIRECT("'3.09.1a (3)'!u42"))=TRUE,"",INDIRECT("'3.09.1a (3)'!u42")) ->  | R75: =IF(ISERROR(INDIRECT("'3.09.1a (3)'!v42"))=TRUE,"",INDIRECT("'3.09.1a (3)'!v42")) ->  | S75: =IF(ISERROR(INDIRECT("'3.09.1a (3)'!w42"))=TRUE,"",INDIRECT("'3.09.1a (3)'!w42")) ->  | T75: =IF(ISERROR(INDIRECT("'3.09.1a (3)'!x42"))=TRUE,"",INDIRECT("'3.09.1a (3)'!x42")) ->  | U75: =IF(ISERROR(INDIRECT("'3.09.1a (3)'!aa42"))=TRUE,"",INDIRECT("'3.09.1a (3)'!aa42")) ->  | V75: =IF(ISERROR(INDIRECT("'3.09.1a (3)'!ad42"))=TRUE,"",INDIRECT("'3.09.1a (3)'!ad42")) ->  | W75: =IF(ISERROR(INDIRECT("'3.09.1a (3)'!ah42"))=TRUE,"",INDIRECT("'3.09.1a (3)'!ah42")) ->  | X75: =IF(ISERROR(INDIRECT("'3.09.1a (3)'!am42"))=TRUE,"",INDIRECT("'3.09.1a (3)'!am42")) -> 
A76: 0 | B76: 3.09.1a (3) | C76: =IF(ISERROR(INDIRECT("'3.09.1a (3)'!b43"))=TRUE,"",INDIRECT("'3.09.1a (3)'!b43")) ->  | D76: =IF(ISERROR(INDIRECT("'3.09.1a (3)'!c43"))=TRUE,"",INDIRECT("'3.09.1a (3)'!c43")) ->  | E76: =IF(ISERROR(INDIRECT("'3.09.1a (3)'!d43"))=TRUE,"",INDIRECT("'3.09.1a (3)'!d43")) ->  | F76: =IF(ISERROR(INDIRECT("'3.09.1a (3)'!e43"))=TRUE,"",INDIRECT("'3.09.1a (3)'!e43")) ->  | G76: =IF(ISERROR(INDIRECT("'3.09.1a (3)'!f43"))=TRUE,"",INDIRECT("'3.09.1a (3)'!f43")) ->  | H76: =IF(ISERROR(INDIRECT("'3.09.1a (3)'!g43"))=TRUE,"",INDIRECT("'3.09.1a (3)'!g43")) ->  | I76: =IF(ISERROR(INDIRECT("'3.09.1a (3)'!h43"))=TRUE,"",INDIRECT("'3.09.1a (3)'!h43")) ->  | J76: =IF(ISERROR(INDIRECT("'3.09.1a (3)'!i43"))=TRUE,"",INDIRECT("'3.09.1a (3)'!i43")) ->  | K76: =IF(ISERROR(INDIRECT("'3.09.1a (3)'!j43"))=TRUE,"",INDIRECT("'3.09.1a (3)'!j43")) ->  | L76: =IF(ISERROR(INDIRECT("'3.09.1a (3)'!o43"))=TRUE,"",INDIRECT("'3.09.1a (3)'!o43")) ->  | M76: =IF(ISERROR(INDIRECT("'3.09.1a (3)'!p43"))=TRUE,"",INDIRECT("'3.09.1a (3)'!p43")) ->  | N76: =IF(ISERROR(INDIRECT("'3.09.1a (3)'!q43"))=TRUE,"",INDIRECT("'3.09.1a (3)'!q43")) ->  | O76: =IF(ISERROR(INDIRECT("'3.09.1a (3)'!s43"))=TRUE,"",INDIRECT("'3.09.1a (3)'!s43")) ->  | P76: =IF(ISERROR(INDIRECT("'3.09.1a (3)'!t43"))=TRUE,"",INDIRECT("'3.09.1a (3)'!t43")) ->  | Q76: =IF(ISERROR(INDIRECT("'3.09.1a (3)'!u43"))=TRUE,"",INDIRECT("'3.09.1a (3)'!u43")) ->  | R76: =IF(ISERROR(INDIRECT("'3.09.1a (3)'!v43"))=TRUE,"",INDIRECT("'3.09.1a (3)'!v43")) ->  | S76: =IF(ISERROR(INDIRECT("'3.09.1a (3)'!w43"))=TRUE,"",INDIRECT("'3.09.1a (3)'!w43")) ->  | T76: =IF(ISERROR(INDIRECT("'3.09.1a (3)'!x43"))=TRUE,"",INDIRECT("'3.09.1a (3)'!x43")) ->  | U76: =IF(ISERROR(INDIRECT("'3.09.1a (3)'!aa43"))=TRUE,"",INDIRECT("'3.09.1a (3)'!aa43")) ->  | V76: =IF(ISERROR(INDIRECT("'3.09.1a (3)'!ad43"))=TRUE,"",INDIRECT("'3.09.1a (3)'!ad43")) ->  | W76: =IF(ISERROR(INDIRECT("'3.09.1a (3)'!ah43"))=TRUE,"",INDIRECT("'3.09.1a (3)'!ah43")) ->  | X76: =IF(ISERROR(INDIRECT("'3.09.1a (3)'!am43"))=TRUE,"",INDIRECT("'3.09.1a (3)'!am43")) -> 
A77: =AgencyCode -> 0 | B77: 3.09.1a (4) | C77: =IF(ISERROR(INDIRECT("'3.09.1a (4)'!b19"))=TRUE,"",INDIRECT("'3.09.1a (4)'!b19")) ->  | D77: =IF(ISERROR(INDIRECT("'3.09.1a (4)'!c19"))=TRUE,"",INDIRECT("'3.09.1a (4)'!c19")) ->  | E77: =IF(ISERROR(INDIRECT("'3.09.1a (4)'!D19"))=TRUE,"",INDIRECT("'3.09.1a (4)'!D19")) ->  | F77: =IF(ISERROR(INDIRECT("'3.09.1a (4)'!e19"))=TRUE,"",INDIRECT("'3.09.1a (4)'!e19")) ->  | G77: =IF(ISERROR(INDIRECT("'3.09.1a (4)'!f19"))=TRUE,"",INDIRECT("'3.09.1a (4)'!f19")) ->  | H77: =IF(ISERROR(INDIRECT("'3.09.1a (4)'!g19"))=TRUE,"",INDIRECT("'3.09.1a (4)'!g19")) ->  | I77: =IF(ISERROR(INDIRECT("'3.09.1a (4)'!h19"))=TRUE,"",INDIRECT("'3.09.1a (4)'!h19")) ->  | J77: =IF(ISERROR(INDIRECT("'3.09.1a (4)'!i19"))=TRUE,"",INDIRECT("'3.09.1a (4)'!i19")) ->  | K77: =IF(ISERROR(INDIRECT("'3.09.1a (4)'!j19"))=TRUE,"",INDIRECT("'3.09.1a (4)'!j19")) ->  | L77: =IF(ISERROR(INDIRECT("'3.09.1a (4)'!o19"))=TRUE,"",INDIRECT("'3.09.1a (4)'!o19")) ->  | M77: =IF(ISERROR(INDIRECT("'3.09.1a (4)'!p19"))=TRUE,"",INDIRECT("'3.09.1a (4)'!p19")) ->  | N77: =IF(ISERROR(INDIRECT("'3.09.1a (4)'!q19"))=TRUE,"",INDIRECT("'3.09.1a (4)'!q19")) ->  | O77: =IF(ISERROR(INDIRECT("'3.09.1a (4)'!s19"))=TRUE,"",INDIRECT("'3.09.1a (4)'!s19")) ->  | P77: =IF(ISERROR(INDIRECT("'3.09.1a (4)'!t19"))=TRUE,"",INDIRECT("'3.09.1a (4)'!t19")) ->  | Q77: =IF(ISERROR(INDIRECT("'3.09.1a (4)'!u19"))=TRUE,"",INDIRECT("'3.09.1a (4)'!u19")) ->  | R77: =IF(ISERROR(INDIRECT("'3.09.1a (4)'!v19"))=TRUE,"",INDIRECT("'3.09.1a (4)'!v19")) ->  | S77: =IF(ISERROR(INDIRECT("'3.09.1a (4)'!w19"))=TRUE,"",INDIRECT("'3.09.1a (4)'!w19")) ->  | T77: =IF(ISERROR(INDIRECT("'3.09.1a (4)'!x19"))=TRUE,"",INDIRECT("'3.09.1a (4)'!x19")) ->  | U77: =IF(ISERROR(INDIRECT("'3.09.1a (4)'!aa19"))=TRUE,"",INDIRECT("'3.09.1a (4)'!aa19")) ->  | V77: =IF(ISERROR(INDIRECT("'3.09.1a (4)'!ad19"))=TRUE,"",INDIRECT("'3.09.1a (4)'!ad19")) ->  | W77: =IF(ISERROR(INDIRECT("'3.09.1a (4)'!ah19"))=TRUE,"",INDIRECT("'3.09.1a (4)'!ah19")) ->  | X77: =IF(ISERROR(INDIRECT("'3.09.1a (4)'!am19"))=TRUE,"",INDIRECT("'3.09.1a (4)'!am19")) -> 
A78: 0 | B78: 3.09.1a (4) | C78: =IF(ISERROR(INDIRECT("'3.09.1a (4)'!b20"))=TRUE,"",INDIRECT("'3.09.1a (4)'!b20")) ->  | D78: =IF(ISERROR(INDIRECT("'3.09.1a (4)'!c20"))=TRUE,"",INDIRECT("'3.09.1a (4)'!c20")) ->  | E78: =IF(ISERROR(INDIRECT("'3.09.1a (4)'!d20"))=TRUE,"",INDIRECT("'3.09.1a (4)'!d20")) ->  | F78: =IF(ISERROR(INDIRECT("'3.09.1a (4)'!e20"))=TRUE,"",INDIRECT("'3.09.1a (4)'!e20")) ->  | G78: =IF(ISERROR(INDIRECT("'3.09.1a (4)'!f20"))=TRUE,"",INDIRECT("'3.09.1a (4)'!f20")) ->  | H78: =IF(ISERROR(INDIRECT("'3.09.1a (4)'!g20"))=TRUE,"",INDIRECT("'3.09.1a (4)'!g20")) ->  | I78: =IF(ISERROR(INDIRECT("'3.09.1a (4)'!h20"))=TRUE,"",INDIRECT("'3.09.1a (4)'!h20")) ->  | J78: =IF(ISERROR(INDIRECT("'3.09.1a (4)'!i20"))=TRUE,"",INDIRECT("'3.09.1a (4)'!i20")) ->  | K78: =IF(ISERROR(INDIRECT("'3.09.1a (4)'!j20"))=TRUE,"",INDIRECT("'3.09.1a (4)'!j20")) ->  | L78: =IF(ISERROR(INDIRECT("'3.09.1a (4)'!o20"))=TRUE,"",INDIRECT("'3.09.1a (4)'!o20")) ->  | M78: =IF(ISERROR(INDIRECT("'3.09.1a (4)'!p20"))=TRUE,"",INDIRECT("'3.09.1a (4)'!p20")) ->  | N78: =IF(ISERROR(INDIRECT("'3.09.1a (4)'!q20"))=TRUE,"",INDIRECT("'3.09.1a (4)'!q20")) ->  | O78: =IF(ISERROR(INDIRECT("'3.09.1a (4)'!s20"))=TRUE,"",INDIRECT("'3.09.1a (4)'!s20")) ->  | P78: =IF(ISERROR(INDIRECT("'3.09.1a (4)'!t20"))=TRUE,"",INDIRECT("'3.09.1a (4)'!t20")) ->  | Q78: =IF(ISERROR(INDIRECT("'3.09.1a (4)'!u20"))=TRUE,"",INDIRECT("'3.09.1a (4)'!u20")) ->  | R78: =IF(ISERROR(INDIRECT("'3.09.1a (4)'!v20"))=TRUE,"",INDIRECT("'3.09.1a (4)'!v20")) ->  | S78: =IF(ISERROR(INDIRECT("'3.09.1a (4)'!w20"))=TRUE,"",INDIRECT("'3.09.1a (4)'!w20")) ->  | T78: =IF(ISERROR(INDIRECT("'3.09.1a (4)'!x20"))=TRUE,"",INDIRECT("'3.09.1a (4)'!x20")) ->  | U78: =IF(ISERROR(INDIRECT("'3.09.1a (4)'!aa20"))=TRUE,"",INDIRECT("'3.09.1a (4)'!aa20")) ->  | V78: =IF(ISERROR(INDIRECT("'3.09.1a (4)'!ad20"))=TRUE,"",INDIRECT("'3.09.1a (4)'!ad20")) ->  | W78: =IF(ISERROR(INDIRECT("'3.09.1a (4)'!ah20"))=TRUE,"",INDIRECT("'3.09.1a (4)'!ah20")) ->  | X78: =IF(ISERROR(INDIRECT("'3.09.1a (4)'!am20"))=TRUE,"",INDIRECT("'3.09.1a (4)'!am20")) -> 
A79: 0 | B79: 3.09.1a (4) | C79: =IF(ISERROR(INDIRECT("'3.09.1a (4)'!b21"))=TRUE,"",INDIRECT("'3.09.1a (4)'!b21")) ->  | D79: =IF(ISERROR(INDIRECT("'3.09.1a (4)'!c21"))=TRUE,"",INDIRECT("'3.09.1a (4)'!c21")) ->  | E79: =IF(ISERROR(INDIRECT("'3.09.1a (4)'!d21"))=TRUE,"",INDIRECT("'3.09.1a (4)'!d21")) ->  | F79: =IF(ISERROR(INDIRECT("'3.09.1a (4)'!e21"))=TRUE,"",INDIRECT("'3.09.1a (4)'!e21")) ->  | G79: =IF(ISERROR(INDIRECT("'3.09.1a (4)'!f21"))=TRUE,"",INDIRECT("'3.09.1a (4)'!f21")) ->  | H79: =IF(ISERROR(INDIRECT("'3.09.1a (4)'!g21"))=TRUE,"",INDIRECT("'3.09.1a (4)'!g21")) ->  | I79: =IF(ISERROR(INDIRECT("'3.09.1a (4)'!h21"))=TRUE,"",INDIRECT("'3.09.1a (4)'!h21")) ->  | J79: =IF(ISERROR(INDIRECT("'3.09.1a (4)'!i21"))=TRUE,"",INDIRECT("'3.09.1a (4)'!i21")) ->  | K79: =IF(ISERROR(INDIRECT("'3.09.1a (4)'!j21"))=TRUE,"",INDIRECT("'3.09.1a (4)'!j21")) ->  | L79: =IF(ISERROR(INDIRECT("'3.09.1a (4)'!o21"))=TRUE,"",INDIRECT("'3.09.1a (4)'!o21")) ->  | M79: =IF(ISERROR(INDIRECT("'3.09.1a (4)'!p21"))=TRUE,"",INDIRECT("'3.09.1a (4)'!p21")) ->  | N79: =IF(ISERROR(INDIRECT("'3.09.1a (4)'!q21"))=TRUE,"",INDIRECT("'3.09.1a (4)'!q21")) ->  | O79: =IF(ISERROR(INDIRECT("'3.09.1a (4)'!s21"))=TRUE,"",INDIRECT("'3.09.1a (4)'!s21")) ->  | P79: =IF(ISERROR(INDIRECT("'3.09.1a (4)'!t21"))=TRUE,"",INDIRECT("'3.09.1a (4)'!t21")) ->  | Q79: =IF(ISERROR(INDIRECT("'3.09.1a (4)'!u21"))=TRUE,"",INDIRECT("'3.09.1a (4)'!u21")) ->  | R79: =IF(ISERROR(INDIRECT("'3.09.1a (4)'!v21"))=TRUE,"",INDIRECT("'3.09.1a (4)'!v21")) ->  | S79: =IF(ISERROR(INDIRECT("'3.09.1a (4)'!w21"))=TRUE,"",INDIRECT("'3.09.1a (4)'!w21")) ->  | T79: =IF(ISERROR(INDIRECT("'3.09.1a (4)'!x21"))=TRUE,"",INDIRECT("'3.09.1a (4)'!x21")) ->  | U79: =IF(ISERROR(INDIRECT("'3.09.1a (4)'!aa21"))=TRUE,"",INDIRECT("'3.09.1a (4)'!aa21")) ->  | V79: =IF(ISERROR(INDIRECT("'3.09.1a (4)'!ad21"))=TRUE,"",INDIRECT("'3.09.1a (4)'!ad21")) ->  | W79: =IF(ISERROR(INDIRECT("'3.09.1a (4)'!ah21"))=TRUE,"",INDIRECT("'3.09.1a (4)'!ah21")) ->  | X79: =IF(ISERROR(INDIRECT("'3.09.1a (4)'!am21"))=TRUE,"",INDIRECT("'3.09.1a (4)'!am21")) -> 
A80: 0 | B80: 3.09.1a (4) | C80: =IF(ISERROR(INDIRECT("'3.09.1a (4)'!b22"))=TRUE,"",INDIRECT("'3.09.1a (4)'!b22")) ->  | D80: =IF(ISERROR(INDIRECT("'3.09.1a (4)'!c22"))=TRUE,"",INDIRECT("'3.09.1a (4)'!c22")) ->  | E80: =IF(ISERROR(INDIRECT("'3.09.1a (4)'!d22"))=TRUE,"",INDIRECT("'3.09.1a (4)'!d22")) ->  | F80: =IF(ISERROR(INDIRECT("'3.09.1a (4)'!e22"))=TRUE,"",INDIRECT("'3.09.1a (4)'!e22")) ->  | G80: =IF(ISERROR(INDIRECT("'3.09.1a (4)'!f22"))=TRUE,"",INDIRECT("'3.09.1a (4)'!f22")) ->  | H80: =IF(ISERROR(INDIRECT("'3.09.1a (4)'!g22"))=TRUE,"",INDIRECT("'3.09.1a (4)'!g22")) ->  | I80: =IF(ISERROR(INDIRECT("'3.09.1a (4)'!h22"))=TRUE,"",INDIRECT("'3.09.1a (4)'!h22")) ->  | J80: =IF(ISERROR(INDIRECT("'3.09.1a (4)'!i22"))=TRUE,"",INDIRECT("'3.09.1a (4)'!i22")) ->  | K80: =IF(ISERROR(INDIRECT("'3.09.1a (4)'!j22"))=TRUE,"",INDIRECT("'3.09.1a (4)'!j22")) ->  | L80: =IF(ISERROR(INDIRECT("'3.09.1a (4)'!o22"))=TRUE,"",INDIRECT("'3.09.1a (4)'!o22")) ->  | M80: =IF(ISERROR(INDIRECT("'3.09.1a (4)'!p22"))=TRUE,"",INDIRECT("'3.09.1a (4)'!p22")) ->  | N80: =IF(ISERROR(INDIRECT("'3.09.1a (4)'!q22"))=TRUE,"",INDIRECT("'3.09.1a (4)'!q22")) ->  | O80: =IF(ISERROR(INDIRECT("'3.09.1a (4)'!s22"))=TRUE,"",INDIRECT("'3.09.1a (4)'!s22")) ->  | P80: =IF(ISERROR(INDIRECT("'3.09.1a (4)'!t22"))=TRUE,"",INDIRECT("'3.09.1a (4)'!t22")) ->  | Q80: =IF(ISERROR(INDIRECT("'3.09.1a (4)'!u22"))=TRUE,"",INDIRECT("'3.09.1a (4)'!u22")) ->  | R80: =IF(ISERROR(INDIRECT("'3.09.1a (4)'!v22"))=TRUE,"",INDIRECT("'3.09.1a (4)'!v22")) ->  | S80: =IF(ISERROR(INDIRECT("'3.09.1a (4)'!w22"))=TRUE,"",INDIRECT("'3.09.1a (4)'!w22")) ->  | T80: =IF(ISERROR(INDIRECT("'3.09.1a (4)'!x22"))=TRUE,"",INDIRECT("'3.09.1a (4)'!x22")) ->  | U80: =IF(ISERROR(INDIRECT("'3.09.1a (4)'!aa22"))=TRUE,"",INDIRECT("'3.09.1a (4)'!aa22")) ->  | V80: =IF(ISERROR(INDIRECT("'3.09.1a (4)'!ad22"))=TRUE,"",INDIRECT("'3.09.1a (4)'!ad22")) ->  | W80: =IF(ISERROR(INDIRECT("'3.09.1a (4)'!ah22"))=TRUE,"",INDIRECT("'3.09.1a (4)'!ah22")) ->  | X80: =IF(ISERROR(INDIRECT("'3.09.1a (4)'!am22"))=TRUE,"",INDIRECT("'3.09.1a (4)'!am22")) -> 
A81: 0 | B81: 3.09.1a (4) | C81: =IF(ISERROR(INDIRECT("'3.09.1a (4)'!b23"))=TRUE,"",INDIRECT("'3.09.1a (4)'!b23")) ->  | D81: =IF(ISERROR(INDIRECT("'3.09.1a (4)'!c23"))=TRUE,"",INDIRECT("'3.09.1a (4)'!c23")) ->  | E81: =IF(ISERROR(INDIRECT("'3.09.1a (4)'!d23"))=TRUE,"",INDIRECT("'3.09.1a (4)'!d23")) ->  | F81: =IF(ISERROR(INDIRECT("'3.09.1a (4)'!e23"))=TRUE,"",INDIRECT("'3.09.1a (4)'!e23")) ->  | G81: =IF(ISERROR(INDIRECT("'3.09.1a (4)'!f23"))=TRUE,"",INDIRECT("'3.09.1a (4)'!f23")) ->  | H81: =IF(ISERROR(INDIRECT("'3.09.1a (4)'!g23"))=TRUE,"",INDIRECT("'3.09.1a (4)'!g23")) ->  | I81: =IF(ISERROR(INDIRECT("'3.09.1a (4)'!h23"))=TRUE,"",INDIRECT("'3.09.1a (4)'!h23")) ->  | J81: =IF(ISERROR(INDIRECT("'3.09.1a (4)'!i23"))=TRUE,"",INDIRECT("'3.09.1a (4)'!i23")) ->  | K81: =IF(ISERROR(INDIRECT("'3.09.1a (4)'!j23"))=TRUE,"",INDIRECT("'3.09.1a (4)'!j23")) ->  | L81: =IF(ISERROR(INDIRECT("'3.09.1a (4)'!o23"))=TRUE,"",INDIRECT("'3.09.1a (4)'!o23")) ->  | M81: =IF(ISERROR(INDIRECT("'3.09.1a (4)'!p23"))=TRUE,"",INDIRECT("'3.09.1a (4)'!p23")) ->  | N81: =IF(ISERROR(INDIRECT("'3.09.1a (4)'!q23"))=TRUE,"",INDIRECT("'3.09.1a (4)'!q23")) ->  | O81: =IF(ISERROR(INDIRECT("'3.09.1a (4)'!s23"))=TRUE,"",INDIRECT("'3.09.1a (4)'!s23")) ->  | P81: =IF(ISERROR(INDIRECT("'3.09.1a (4)'!t23"))=TRUE,"",INDIRECT("'3.09.1a (4)'!t23")) ->  | Q81: =IF(ISERROR(INDIRECT("'3.09.1a (4)'!u23"))=TRUE,"",INDIRECT("'3.09.1a (4)'!u23")) ->  | R81: =IF(ISERROR(INDIRECT("'3.09.1a (4)'!v23"))=TRUE,"",INDIRECT("'3.09.1a (4)'!v23")) ->  | S81: =IF(ISERROR(INDIRECT("'3.09.1a (4)'!w23"))=TRUE,"",INDIRECT("'3.09.1a (4)'!w23")) ->  | T81: =IF(ISERROR(INDIRECT("'3.09.1a (4)'!x23"))=TRUE,"",INDIRECT("'3.09.1a (4)'!x23")) ->  | U81: =IF(ISERROR(INDIRECT("'3.09.1a (4)'!aa23"))=TRUE,"",INDIRECT("'3.09.1a (4)'!aa23")) ->  | V81: =IF(ISERROR(INDIRECT("'3.09.1a (4)'!ad23"))=TRUE,"",INDIRECT("'3.09.1a (4)'!ad23")) ->  | W81: =IF(ISERROR(INDIRECT("'3.09.1a (4)'!ah23"))=TRUE,"",INDIRECT("'3.09.1a (4)'!ah23")) ->  | X81: =IF(ISERROR(INDIRECT("'3.09.1a (4)'!am23"))=TRUE,"",INDIRECT("'3.09.1a (4)'!am23")) -> 
A82: 0 | B82: 3.09.1a (4) | C82: =IF(ISERROR(INDIRECT("'3.09.1a (4)'!b24"))=TRUE,"",INDIRECT("'3.09.1a (4)'!b24")) ->  | D82: =IF(ISERROR(INDIRECT("'3.09.1a (4)'!c24"))=TRUE,"",INDIRECT("'3.09.1a (4)'!c24")) ->  | E82: =IF(ISERROR(INDIRECT("'3.09.1a (4)'!d24"))=TRUE,"",INDIRECT("'3.09.1a (4)'!d24")) ->  | F82: =IF(ISERROR(INDIRECT("'3.09.1a (4)'!e24"))=TRUE,"",INDIRECT("'3.09.1a (4)'!e24")) ->  | G82: =IF(ISERROR(INDIRECT("'3.09.1a (4)'!f24"))=TRUE,"",INDIRECT("'3.09.1a (4)'!f24")) ->  | H82: =IF(ISERROR(INDIRECT("'3.09.1a (4)'!g24"))=TRUE,"",INDIRECT("'3.09.1a (4)'!g24")) ->  | I82: =IF(ISERROR(INDIRECT("'3.09.1a (4)'!h24"))=TRUE,"",INDIRECT("'3.09.1a (4)'!h24")) ->  | J82: =IF(ISERROR(INDIRECT("'3.09.1a (4)'!i24"))=TRUE,"",INDIRECT("'3.09.1a (4)'!i24")) ->  | K82: =IF(ISERROR(INDIRECT("'3.09.1a (4)'!j24"))=TRUE,"",INDIRECT("'3.09.1a (4)'!j24")) ->  | L82: =IF(ISERROR(INDIRECT("'3.09.1a (4)'!o24"))=TRUE,"",INDIRECT("'3.09.1a (4)'!o24")) ->  | M82: =IF(ISERROR(INDIRECT("'3.09.1a (4)'!p24"))=TRUE,"",INDIRECT("'3.09.1a (4)'!p24")) ->  | N82: =IF(ISERROR(INDIRECT("'3.09.1a (4)'!q24"))=TRUE,"",INDIRECT("'3.09.1a (4)'!q24")) ->  | O82: =IF(ISERROR(INDIRECT("'3.09.1a (4)'!s24"))=TRUE,"",INDIRECT("'3.09.1a (4)'!s24")) ->  | P82: =IF(ISERROR(INDIRECT("'3.09.1a (4)'!t24"))=TRUE,"",INDIRECT("'3.09.1a (4)'!t24")) ->  | Q82: =IF(ISERROR(INDIRECT("'3.09.1a (4)'!u24"))=TRUE,"",INDIRECT("'3.09.1a (4)'!u24")) ->  | R82: =IF(ISERROR(INDIRECT("'3.09.1a (4)'!v24"))=TRUE,"",INDIRECT("'3.09.1a (4)'!v24")) ->  | S82: =IF(ISERROR(INDIRECT("'3.09.1a (4)'!w24"))=TRUE,"",INDIRECT("'3.09.1a (4)'!w24")) ->  | T82: =IF(ISERROR(INDIRECT("'3.09.1a (4)'!x24"))=TRUE,"",INDIRECT("'3.09.1a (4)'!x24")) ->  | U82: =IF(ISERROR(INDIRECT("'3.09.1a (4)'!aa24"))=TRUE,"",INDIRECT("'3.09.1a (4)'!aa24")) ->  | V82: =IF(ISERROR(INDIRECT("'3.09.1a (4)'!ad24"))=TRUE,"",INDIRECT("'3.09.1a (4)'!ad24")) ->  | W82: =IF(ISERROR(INDIRECT("'3.09.1a (4)'!ah24"))=TRUE,"",INDIRECT("'3.09.1a (4)'!ah24")) ->  | X82: =IF(ISERROR(INDIRECT("'3.09.1a (4)'!am24"))=TRUE,"",INDIRECT("'3.09.1a (4)'!am24")) -> 
A83: 0 | B83: 3.09.1a (4) | C83: =IF(ISERROR(INDIRECT("'3.09.1a (4)'!b25"))=TRUE,"",INDIRECT("'3.09.1a (4)'!b25")) ->  | D83: =IF(ISERROR(INDIRECT("'3.09.1a (4)'!c25"))=TRUE,"",INDIRECT("'3.09.1a (4)'!c25")) ->  | E83: =IF(ISERROR(INDIRECT("'3.09.1a (4)'!d25"))=TRUE,"",INDIRECT("'3.09.1a (4)'!d25")) ->  | F83: =IF(ISERROR(INDIRECT("'3.09.1a (4)'!e25"))=TRUE,"",INDIRECT("'3.09.1a (4)'!e25")) ->  | G83: =IF(ISERROR(INDIRECT("'3.09.1a (4)'!f25"))=TRUE,"",INDIRECT("'3.09.1a (4)'!f25")) ->  | H83: =IF(ISERROR(INDIRECT("'3.09.1a (4)'!g25"))=TRUE,"",INDIRECT("'3.09.1a (4)'!g25")) ->  | I83: =IF(ISERROR(INDIRECT("'3.09.1a (4)'!h25"))=TRUE,"",INDIRECT("'3.09.1a (4)'!h25")) ->  | J83: =IF(ISERROR(INDIRECT("'3.09.1a (4)'!i25"))=TRUE,"",INDIRECT("'3.09.1a (4)'!i25")) ->  | K83: =IF(ISERROR(INDIRECT("'3.09.1a (4)'!j25"))=TRUE,"",INDIRECT("'3.09.1a (4)'!j25")) ->  | L83: =IF(ISERROR(INDIRECT("'3.09.1a (4)'!o25"))=TRUE,"",INDIRECT("'3.09.1a (4)'!o25")) ->  | M83: =IF(ISERROR(INDIRECT("'3.09.1a (4)'!p25"))=TRUE,"",INDIRECT("'3.09.1a (4)'!p25")) ->  | N83: =IF(ISERROR(INDIRECT("'3.09.1a (4)'!q25"))=TRUE,"",INDIRECT("'3.09.1a (4)'!q25")) ->  | O83: =IF(ISERROR(INDIRECT("'3.09.1a (4)'!s25"))=TRUE,"",INDIRECT("'3.09.1a (4)'!s25")) ->  | P83: =IF(ISERROR(INDIRECT("'3.09.1a (4)'!t25"))=TRUE,"",INDIRECT("'3.09.1a (4)'!t25")) ->  | Q83: =IF(ISERROR(INDIRECT("'3.09.1a (4)'!u25"))=TRUE,"",INDIRECT("'3.09.1a (4)'!u25")) ->  | R83: =IF(ISERROR(INDIRECT("'3.09.1a (4)'!v25"))=TRUE,"",INDIRECT("'3.09.1a (4)'!v25")) ->  | S83: =IF(ISERROR(INDIRECT("'3.09.1a (4)'!w25"))=TRUE,"",INDIRECT("'3.09.1a (4)'!w25")) ->  | T83: =IF(ISERROR(INDIRECT("'3.09.1a (4)'!x25"))=TRUE,"",INDIRECT("'3.09.1a (4)'!x25")) ->  | U83: =IF(ISERROR(INDIRECT("'3.09.1a (4)'!aa25"))=TRUE,"",INDIRECT("'3.09.1a (4)'!aa25")) ->  | V83: =IF(ISERROR(INDIRECT("'3.09.1a (4)'!ad25"))=TRUE,"",INDIRECT("'3.09.1a (4)'!ad25")) ->  | W83: =IF(ISERROR(INDIRECT("'3.09.1a (4)'!ah25"))=TRUE,"",INDIRECT("'3.09.1a (4)'!ah25")) ->  | X83: =IF(ISERROR(INDIRECT("'3.09.1a (4)'!am25"))=TRUE,"",INDIRECT("'3.09.1a (4)'!am25")) -> 
A84: 0 | B84: 3.09.1a (4) | C84: =IF(ISERROR(INDIRECT("'3.09.1a (4)'!b26"))=TRUE,"",INDIRECT("'3.09.1a (4)'!b26")) ->  | D84: =IF(ISERROR(INDIRECT("'3.09.1a (4)'!c26"))=TRUE,"",INDIRECT("'3.09.1a (4)'!c26")) ->  | E84: =IF(ISERROR(INDIRECT("'3.09.1a (4)'!d26"))=TRUE,"",INDIRECT("'3.09.1a (4)'!d26")) ->  | F84: =IF(ISERROR(INDIRECT("'3.09.1a (4)'!e26"))=TRUE,"",INDIRECT("'3.09.1a (4)'!e26")) ->  | G84: =IF(ISERROR(INDIRECT("'3.09.1a (4)'!f26"))=TRUE,"",INDIRECT("'3.09.1a (4)'!f26")) ->  | H84: =IF(ISERROR(INDIRECT("'3.09.1a (4)'!g26"))=TRUE,"",INDIRECT("'3.09.1a (4)'!g26")) ->  | I84: =IF(ISERROR(INDIRECT("'3.09.1a (4)'!h26"))=TRUE,"",INDIRECT("'3.09.1a (4)'!h26")) ->  | J84: =IF(ISERROR(INDIRECT("'3.09.1a (4)'!i26"))=TRUE,"",INDIRECT("'3.09.1a (4)'!i26")) ->  | K84: =IF(ISERROR(INDIRECT("'3.09.1a (4)'!j26"))=TRUE,"",INDIRECT("'3.09.1a (4)'!j26")) ->  | L84: =IF(ISERROR(INDIRECT("'3.09.1a (4)'!o26"))=TRUE,"",INDIRECT("'3.09.1a (4)'!o26")) ->  | M84: =IF(ISERROR(INDIRECT("'3.09.1a (4)'!p26"))=TRUE,"",INDIRECT("'3.09.1a (4)'!p26")) ->  | N84: =IF(ISERROR(INDIRECT("'3.09.1a (4)'!q26"))=TRUE,"",INDIRECT("'3.09.1a (4)'!q26")) ->  | O84: =IF(ISERROR(INDIRECT("'3.09.1a (4)'!s26"))=TRUE,"",INDIRECT("'3.09.1a (4)'!s26")) ->  | P84: =IF(ISERROR(INDIRECT("'3.09.1a (4)'!t26"))=TRUE,"",INDIRECT("'3.09.1a (4)'!t26")) ->  | Q84: =IF(ISERROR(INDIRECT("'3.09.1a (4)'!u26"))=TRUE,"",INDIRECT("'3.09.1a (4)'!u26")) ->  | R84: =IF(ISERROR(INDIRECT("'3.09.1a (4)'!v26"))=TRUE,"",INDIRECT("'3.09.1a (4)'!v26")) ->  | S84: =IF(ISERROR(INDIRECT("'3.09.1a (4)'!w26"))=TRUE,"",INDIRECT("'3.09.1a (4)'!w26")) ->  | T84: =IF(ISERROR(INDIRECT("'3.09.1a (4)'!x26"))=TRUE,"",INDIRECT("'3.09.1a (4)'!x26")) ->  | U84: =IF(ISERROR(INDIRECT("'3.09.1a (4)'!aa26"))=TRUE,"",INDIRECT("'3.09.1a (4)'!aa26")) ->  | V84: =IF(ISERROR(INDIRECT("'3.09.1a (4)'!ad26"))=TRUE,"",INDIRECT("'3.09.1a (4)'!ad26")) ->  | W84: =IF(ISERROR(INDIRECT("'3.09.1a (4)'!ah26"))=TRUE,"",INDIRECT("'3.09.1a (4)'!ah26")) ->  | X84: =IF(ISERROR(INDIRECT("'3.09.1a (4)'!am26"))=TRUE,"",INDIRECT("'3.09.1a (4)'!am26")) -> 
A85: 0 | B85: 3.09.1a (4) | C85: =IF(ISERROR(INDIRECT("'3.09.1a (4)'!b27"))=TRUE,"",INDIRECT("'3.09.1a (4)'!b27")) ->  | D85: =IF(ISERROR(INDIRECT("'3.09.1a (4)'!c27"))=TRUE,"",INDIRECT("'3.09.1a (4)'!c27")) ->  | E85: =IF(ISERROR(INDIRECT("'3.09.1a (4)'!d27"))=TRUE,"",INDIRECT("'3.09.1a (4)'!d27")) ->  | F85: =IF(ISERROR(INDIRECT("'3.09.1a (4)'!e27"))=TRUE,"",INDIRECT("'3.09.1a (4)'!e27")) ->  | G85: =IF(ISERROR(INDIRECT("'3.09.1a (4)'!f27"))=TRUE,"",INDIRECT("'3.09.1a (4)'!f27")) ->  | H85: =IF(ISERROR(INDIRECT("'3.09.1a (4)'!g27"))=TRUE,"",INDIRECT("'3.09.1a (4)'!g27")) ->  | I85: =IF(ISERROR(INDIRECT("'3.09.1a (4)'!h27"))=TRUE,"",INDIRECT("'3.09.1a (4)'!h27")) ->  | J85: =IF(ISERROR(INDIRECT("'3.09.1a (4)'!i27"))=TRUE,"",INDIRECT("'3.09.1a (4)'!i27")) ->  | K85: =IF(ISERROR(INDIRECT("'3.09.1a (4)'!j27"))=TRUE,"",INDIRECT("'3.09.1a (4)'!j27")) ->  | L85: =IF(ISERROR(INDIRECT("'3.09.1a (4)'!o27"))=TRUE,"",INDIRECT("'3.09.1a (4)'!o27")) ->  | M85: =IF(ISERROR(INDIRECT("'3.09.1a (4)'!p27"))=TRUE,"",INDIRECT("'3.09.1a (4)'!p27")) ->  | N85: =IF(ISERROR(INDIRECT("'3.09.1a (4)'!q27"))=TRUE,"",INDIRECT("'3.09.1a (4)'!q27")) ->  | O85: =IF(ISERROR(INDIRECT("'3.09.1a (4)'!s27"))=TRUE,"",INDIRECT("'3.09.1a (4)'!s27")) ->  | P85: =IF(ISERROR(INDIRECT("'3.09.1a (4)'!t27"))=TRUE,"",INDIRECT("'3.09.1a (4)'!t27")) ->  | Q85: =IF(ISERROR(INDIRECT("'3.09.1a (4)'!u27"))=TRUE,"",INDIRECT("'3.09.1a (4)'!u27")) ->  | R85: =IF(ISERROR(INDIRECT("'3.09.1a (4)'!v27"))=TRUE,"",INDIRECT("'3.09.1a (4)'!v27")) ->  | S85: =IF(ISERROR(INDIRECT("'3.09.1a (4)'!w27"))=TRUE,"",INDIRECT("'3.09.1a (4)'!w27")) ->  | T85: =IF(ISERROR(INDIRECT("'3.09.1a (4)'!x27"))=TRUE,"",INDIRECT("'3.09.1a (4)'!x27")) ->  | U85: =IF(ISERROR(INDIRECT("'3.09.1a (4)'!aa27"))=TRUE,"",INDIRECT("'3.09.1a (4)'!aa27")) ->  | V85: =IF(ISERROR(INDIRECT("'3.09.1a (4)'!ad27"))=TRUE,"",INDIRECT("'3.09.1a (4)'!ad27")) ->  | W85: =IF(ISERROR(INDIRECT("'3.09.1a (4)'!ah27"))=TRUE,"",INDIRECT("'3.09.1a (4)'!ah27")) ->  | X85: =IF(ISERROR(INDIRECT("'3.09.1a (4)'!am27"))=TRUE,"",INDIRECT("'3.09.1a (4)'!am27")) -> 
A86: 0 | B86: 3.09.1a (4) | C86: =IF(ISERROR(INDIRECT("'3.09.1a (4)'!b28"))=TRUE,"",INDIRECT("'3.09.1a (4)'!b28")) ->  | D86: =IF(ISERROR(INDIRECT("'3.09.1a (4)'!c28"))=TRUE,"",INDIRECT("'3.09.1a (4)'!c28")) ->  | E86: =IF(ISERROR(INDIRECT("'3.09.1a (4)'!d28"))=TRUE,"",INDIRECT("'3.09.1a (4)'!d28")) ->  | F86: =IF(ISERROR(INDIRECT("'3.09.1a (4)'!e28"))=TRUE,"",INDIRECT("'3.09.1a (4)'!e28")) ->  | G86: =IF(ISERROR(INDIRECT("'3.09.1a (4)'!f28"))=TRUE,"",INDIRECT("'3.09.1a (4)'!f28")) ->  | H86: =IF(ISERROR(INDIRECT("'3.09.1a (4)'!g28"))=TRUE,"",INDIRECT("'3.09.1a (4)'!g28")) ->  | I86: =IF(ISERROR(INDIRECT("'3.09.1a (4)'!h28"))=TRUE,"",INDIRECT("'3.09.1a (4)'!h28")) ->  | J86: =IF(ISERROR(INDIRECT("'3.09.1a (4)'!i28"))=TRUE,"",INDIRECT("'3.09.1a (4)'!i28")) ->  | K86: =IF(ISERROR(INDIRECT("'3.09.1a (4)'!j28"))=TRUE,"",INDIRECT("'3.09.1a (4)'!j28")) ->  | L86: =IF(ISERROR(INDIRECT("'3.09.1a (4)'!o28"))=TRUE,"",INDIRECT("'3.09.1a (4)'!o28")) ->  | M86: =IF(ISERROR(INDIRECT("'3.09.1a (4)'!p28"))=TRUE,"",INDIRECT("'3.09.1a (4)'!p28")) ->  | N86: =IF(ISERROR(INDIRECT("'3.09.1a (4)'!q28"))=TRUE,"",INDIRECT("'3.09.1a (4)'!q28")) ->  | O86: =IF(ISERROR(INDIRECT("'3.09.1a (4)'!s28"))=TRUE,"",INDIRECT("'3.09.1a (4)'!s28")) ->  | P86: =IF(ISERROR(INDIRECT("'3.09.1a (4)'!t28"))=TRUE,"",INDIRECT("'3.09.1a (4)'!t28")) ->  | Q86: =IF(ISERROR(INDIRECT("'3.09.1a (4)'!u28"))=TRUE,"",INDIRECT("'3.09.1a (4)'!u28")) ->  | R86: =IF(ISERROR(INDIRECT("'3.09.1a (4)'!v28"))=TRUE,"",INDIRECT("'3.09.1a (4)'!v28")) ->  | S86: =IF(ISERROR(INDIRECT("'3.09.1a (4)'!w28"))=TRUE,"",INDIRECT("'3.09.1a (4)'!w28")) ->  | T86: =IF(ISERROR(INDIRECT("'3.09.1a (4)'!x28"))=TRUE,"",INDIRECT("'3.09.1a (4)'!x28")) ->  | U86: =IF(ISERROR(INDIRECT("'3.09.1a (4)'!aa28"))=TRUE,"",INDIRECT("'3.09.1a (4)'!aa28")) ->  | V86: =IF(ISERROR(INDIRECT("'3.09.1a (4)'!ad28"))=TRUE,"",INDIRECT("'3.09.1a (4)'!ad28")) ->  | W86: =IF(ISERROR(INDIRECT("'3.09.1a (4)'!ah28"))=TRUE,"",INDIRECT("'3.09.1a (4)'!ah28")) ->  | X86: =IF(ISERROR(INDIRECT("'3.09.1a (4)'!am28"))=TRUE,"",INDIRECT("'3.09.1a (4)'!am28")) -> 
A87: 0 | B87: 3.09.1a (4) | C87: =IF(ISERROR(INDIRECT("'3.09.1a (4)'!b29"))=TRUE,"",INDIRECT("'3.09.1a (4)'!b29")) ->  | D87: =IF(ISERROR(INDIRECT("'3.09.1a (4)'!c29"))=TRUE,"",INDIRECT("'3.09.1a (4)'!c29")) ->  | E87: =IF(ISERROR(INDIRECT("'3.09.1a (4)'!d29"))=TRUE,"",INDIRECT("'3.09.1a (4)'!d29")) ->  | F87: =IF(ISERROR(INDIRECT("'3.09.1a (4)'!e29"))=TRUE,"",INDIRECT("'3.09.1a (4)'!e29")) ->  | G87: =IF(ISERROR(INDIRECT("'3.09.1a (4)'!f29"))=TRUE,"",INDIRECT("'3.09.1a (4)'!f29")) ->  | H87: =IF(ISERROR(INDIRECT("'3.09.1a (4)'!g29"))=TRUE,"",INDIRECT("'3.09.1a (4)'!g29")) ->  | I87: =IF(ISERROR(INDIRECT("'3.09.1a (4)'!h29"))=TRUE,"",INDIRECT("'3.09.1a (4)'!h29")) ->  | J87: =IF(ISERROR(INDIRECT("'3.09.1a (4)'!i29"))=TRUE,"",INDIRECT("'3.09.1a (4)'!i29")) ->  | K87: =IF(ISERROR(INDIRECT("'3.09.1a (4)'!j29"))=TRUE,"",INDIRECT("'3.09.1a (4)'!j29")) ->  | L87: =IF(ISERROR(INDIRECT("'3.09.1a (4)'!o29"))=TRUE,"",INDIRECT("'3.09.1a (4)'!o29")) ->  | M87: =IF(ISERROR(INDIRECT("'3.09.1a (4)'!p29"))=TRUE,"",INDIRECT("'3.09.1a (4)'!p29")) ->  | N87: =IF(ISERROR(INDIRECT("'3.09.1a (4)'!q29"))=TRUE,"",INDIRECT("'3.09.1a (4)'!q29")) ->  | O87: =IF(ISERROR(INDIRECT("'3.09.1a (4)'!s29"))=TRUE,"",INDIRECT("'3.09.1a (4)'!s29")) ->  | P87: =IF(ISERROR(INDIRECT("'3.09.1a (4)'!t29"))=TRUE,"",INDIRECT("'3.09.1a (4)'!t29")) ->  | Q87: =IF(ISERROR(INDIRECT("'3.09.1a (4)'!u29"))=TRUE,"",INDIRECT("'3.09.1a (4)'!u29")) ->  | R87: =IF(ISERROR(INDIRECT("'3.09.1a (4)'!v29"))=TRUE,"",INDIRECT("'3.09.1a (4)'!v29")) ->  | S87: =IF(ISERROR(INDIRECT("'3.09.1a (4)'!w29"))=TRUE,"",INDIRECT("'3.09.1a (4)'!w29")) ->  | T87: =IF(ISERROR(INDIRECT("'3.09.1a (4)'!x29"))=TRUE,"",INDIRECT("'3.09.1a (4)'!x29")) ->  | U87: =IF(ISERROR(INDIRECT("'3.09.1a (4)'!aa29"))=TRUE,"",INDIRECT("'3.09.1a (4)'!aa29")) ->  | V87: =IF(ISERROR(INDIRECT("'3.09.1a (4)'!ad29"))=TRUE,"",INDIRECT("'3.09.1a (4)'!ad29")) ->  | W87: =IF(ISERROR(INDIRECT("'3.09.1a (4)'!ah29"))=TRUE,"",INDIRECT("'3.09.1a (4)'!ah29")) ->  | X87: =IF(ISERROR(INDIRECT("'3.09.1a (4)'!am29"))=TRUE,"",INDIRECT("'3.09.1a (4)'!am29")) -> 
A88: 0 | B88: 3.09.1a (4) | C88: =IF(ISERROR(INDIRECT("'3.09.1a (4)'!b30"))=TRUE,"",INDIRECT("'3.09.1a (4)'!b30")) ->  | D88: =IF(ISERROR(INDIRECT("'3.09.1a (4)'!c30"))=TRUE,"",INDIRECT("'3.09.1a (4)'!c30")) ->  | E88: =IF(ISERROR(INDIRECT("'3.09.1a (4)'!d30"))=TRUE,"",INDIRECT("'3.09.1a (4)'!d30")) ->  | F88: =IF(ISERROR(INDIRECT("'3.09.1a (4)'!e30"))=TRUE,"",INDIRECT("'3.09.1a (4)'!e30")) ->  | G88: =IF(ISERROR(INDIRECT("'3.09.1a (4)'!f30"))=TRUE,"",INDIRECT("'3.09.1a (4)'!f30")) ->  | H88: =IF(ISERROR(INDIRECT("'3.09.1a (4)'!g30"))=TRUE,"",INDIRECT("'3.09.1a (4)'!g30")) ->  | I88: =IF(ISERROR(INDIRECT("'3.09.1a (4)'!h30"))=TRUE,"",INDIRECT("'3.09.1a (4)'!h30")) ->  | J88: =IF(ISERROR(INDIRECT("'3.09.1a (4)'!i30"))=TRUE,"",INDIRECT("'3.09.1a (4)'!i30")) ->  | K88: =IF(ISERROR(INDIRECT("'3.09.1a (4)'!j30"))=TRUE,"",INDIRECT("'3.09.1a (4)'!j30")) ->  | L88: =IF(ISERROR(INDIRECT("'3.09.1a (4)'!o30"))=TRUE,"",INDIRECT("'3.09.1a (4)'!o30")) ->  | M88: =IF(ISERROR(INDIRECT("'3.09.1a (4)'!p30"))=TRUE,"",INDIRECT("'3.09.1a (4)'!p30")) ->  | N88: =IF(ISERROR(INDIRECT("'3.09.1a (4)'!q30"))=TRUE,"",INDIRECT("'3.09.1a (4)'!q30")) ->  | O88: =IF(ISERROR(INDIRECT("'3.09.1a (4)'!s30"))=TRUE,"",INDIRECT("'3.09.1a (4)'!s30")) ->  | P88: =IF(ISERROR(INDIRECT("'3.09.1a (4)'!t30"))=TRUE,"",INDIRECT("'3.09.1a (4)'!t30")) ->  | Q88: =IF(ISERROR(INDIRECT("'3.09.1a (4)'!u30"))=TRUE,"",INDIRECT("'3.09.1a (4)'!u30")) ->  | R88: =IF(ISERROR(INDIRECT("'3.09.1a (4)'!v30"))=TRUE,"",INDIRECT("'3.09.1a (4)'!v30")) ->  | S88: =IF(ISERROR(INDIRECT("'3.09.1a (4)'!w30"))=TRUE,"",INDIRECT("'3.09.1a (4)'!w30")) ->  | T88: =IF(ISERROR(INDIRECT("'3.09.1a (4)'!x30"))=TRUE,"",INDIRECT("'3.09.1a (4)'!x30")) ->  | U88: =IF(ISERROR(INDIRECT("'3.09.1a (4)'!aa30"))=TRUE,"",INDIRECT("'3.09.1a (4)'!aa30")) ->  | V88: =IF(ISERROR(INDIRECT("'3.09.1a (4)'!ad30"))=TRUE,"",INDIRECT("'3.09.1a (4)'!ad30")) ->  | W88: =IF(ISERROR(INDIRECT("'3.09.1a (4)'!ah30"))=TRUE,"",INDIRECT("'3.09.1a (4)'!ah30")) ->  | X88: =IF(ISERROR(INDIRECT("'3.09.1a (4)'!am30"))=TRUE,"",INDIRECT("'3.09.1a (4)'!am30")) -> 
A89: 0 | B89: 3.09.1a (4) | C89: =IF(ISERROR(INDIRECT("'3.09.1a (4)'!b31"))=TRUE,"",INDIRECT("'3.09.1a (4)'!b31")) ->  | D89: =IF(ISERROR(INDIRECT("'3.09.1a (4)'!c31"))=TRUE,"",INDIRECT("'3.09.1a (4)'!c31")) ->  | E89: =IF(ISERROR(INDIRECT("'3.09.1a (4)'!d31"))=TRUE,"",INDIRECT("'3.09.1a (4)'!d31")) ->  | F89: =IF(ISERROR(INDIRECT("'3.09.1a (4)'!e31"))=TRUE,"",INDIRECT("'3.09.1a (4)'!e31")) ->  | G89: =IF(ISERROR(INDIRECT("'3.09.1a (4)'!f31"))=TRUE,"",INDIRECT("'3.09.1a (4)'!f31")) ->  | H89: =IF(ISERROR(INDIRECT("'3.09.1a (4)'!g31"))=TRUE,"",INDIRECT("'3.09.1a (4)'!g31")) ->  | I89: =IF(ISERROR(INDIRECT("'3.09.1a (4)'!h31"))=TRUE,"",INDIRECT("'3.09.1a (4)'!h31")) ->  | J89: =IF(ISERROR(INDIRECT("'3.09.1a (4)'!i31"))=TRUE,"",INDIRECT("'3.09.1a (4)'!i31")) ->  | K89: =IF(ISERROR(INDIRECT("'3.09.1a (4)'!j31"))=TRUE,"",INDIRECT("'3.09.1a (4)'!j31")) ->  | L89: =IF(ISERROR(INDIRECT("'3.09.1a (4)'!o31"))=TRUE,"",INDIRECT("'3.09.1a (4)'!o31")) ->  | M89: =IF(ISERROR(INDIRECT("'3.09.1a (4)'!p31"))=TRUE,"",INDIRECT("'3.09.1a (4)'!p31")) ->  | N89: =IF(ISERROR(INDIRECT("'3.09.1a (4)'!q31"))=TRUE,"",INDIRECT("'3.09.1a (4)'!q31")) ->  | O89: =IF(ISERROR(INDIRECT("'3.09.1a (4)'!s31"))=TRUE,"",INDIRECT("'3.09.1a (4)'!s31")) ->  | P89: =IF(ISERROR(INDIRECT("'3.09.1a (4)'!t31"))=TRUE,"",INDIRECT("'3.09.1a (4)'!t31")) ->  | Q89: =IF(ISERROR(INDIRECT("'3.09.1a (4)'!u31"))=TRUE,"",INDIRECT("'3.09.1a (4)'!u31")) ->  | R89: =IF(ISERROR(INDIRECT("'3.09.1a (4)'!v31"))=TRUE,"",INDIRECT("'3.09.1a (4)'!v31")) ->  | S89: =IF(ISERROR(INDIRECT("'3.09.1a (4)'!w31"))=TRUE,"",INDIRECT("'3.09.1a (4)'!w31")) ->  | T89: =IF(ISERROR(INDIRECT("'3.09.1a (4)'!x31"))=TRUE,"",INDIRECT("'3.09.1a (4)'!x31")) ->  | U89: =IF(ISERROR(INDIRECT("'3.09.1a (4)'!aa31"))=TRUE,"",INDIRECT("'3.09.1a (4)'!aa31")) ->  | V89: =IF(ISERROR(INDIRECT("'3.09.1a (4)'!ad31"))=TRUE,"",INDIRECT("'3.09.1a (4)'!ad31")) ->  | W89: =IF(ISERROR(INDIRECT("'3.09.1a (4)'!ah31"))=TRUE,"",INDIRECT("'3.09.1a (4)'!ah31")) ->  | X89: =IF(ISERROR(INDIRECT("'3.09.1a (4)'!am31"))=TRUE,"",INDIRECT("'3.09.1a (4)'!am31")) -> 
A90: 0 | B90: 3.09.1a (4) | C90: =IF(ISERROR(INDIRECT("'3.09.1a (4)'!b32"))=TRUE,"",INDIRECT("'3.09.1a (4)'!b32")) ->  | D90: =IF(ISERROR(INDIRECT("'3.09.1a (4)'!c32"))=TRUE,"",INDIRECT("'3.09.1a (4)'!c32")) ->  | E90: =IF(ISERROR(INDIRECT("'3.09.1a (4)'!d32"))=TRUE,"",INDIRECT("'3.09.1a (4)'!d32")) ->  | F90: =IF(ISERROR(INDIRECT("'3.09.1a (4)'!e32"))=TRUE,"",INDIRECT("'3.09.1a (4)'!e32")) ->  | G90: =IF(ISERROR(INDIRECT("'3.09.1a (4)'!f32"))=TRUE,"",INDIRECT("'3.09.1a (4)'!f32")) ->  | H90: =IF(ISERROR(INDIRECT("'3.09.1a (4)'!g32"))=TRUE,"",INDIRECT("'3.09.1a (4)'!g32")) ->  | I90: =IF(ISERROR(INDIRECT("'3.09.1a (4)'!h32"))=TRUE,"",INDIRECT("'3.09.1a (4)'!h32")) ->  | J90: =IF(ISERROR(INDIRECT("'3.09.1a (4)'!i32"))=TRUE,"",INDIRECT("'3.09.1a (4)'!i32")) ->  | K90: =IF(ISERROR(INDIRECT("'3.09.1a (4)'!j32"))=TRUE,"",INDIRECT("'3.09.1a (4)'!j32")) ->  | L90: =IF(ISERROR(INDIRECT("'3.09.1a (4)'!o32"))=TRUE,"",INDIRECT("'3.09.1a (4)'!o32")) ->  | M90: =IF(ISERROR(INDIRECT("'3.09.1a (4)'!p32"))=TRUE,"",INDIRECT("'3.09.1a (4)'!p32")) ->  | N90: =IF(ISERROR(INDIRECT("'3.09.1a (4)'!q32"))=TRUE,"",INDIRECT("'3.09.1a (4)'!q32")) ->  | O90: =IF(ISERROR(INDIRECT("'3.09.1a (4)'!s32"))=TRUE,"",INDIRECT("'3.09.1a (4)'!s32")) ->  | P90: =IF(ISERROR(INDIRECT("'3.09.1a (4)'!t32"))=TRUE,"",INDIRECT("'3.09.1a (4)'!t32")) ->  | Q90: =IF(ISERROR(INDIRECT("'3.09.1a (4)'!u32"))=TRUE,"",INDIRECT("'3.09.1a (4)'!u32")) ->  | R90: =IF(ISERROR(INDIRECT("'3.09.1a (4)'!v32"))=TRUE,"",INDIRECT("'3.09.1a (4)'!v32")) ->  | S90: =IF(ISERROR(INDIRECT("'3.09.1a (4)'!w32"))=TRUE,"",INDIRECT("'3.09.1a (4)'!w32")) ->  | T90: =IF(ISERROR(INDIRECT("'3.09.1a (4)'!x32"))=TRUE,"",INDIRECT("'3.09.1a (4)'!x32")) ->  | U90: =IF(ISERROR(INDIRECT("'3.09.1a (4)'!aa32"))=TRUE,"",INDIRECT("'3.09.1a (4)'!aa32")) ->  | V90: =IF(ISERROR(INDIRECT("'3.09.1a (4)'!ad32"))=TRUE,"",INDIRECT("'3.09.1a (4)'!ad32")) ->  | W90: =IF(ISERROR(INDIRECT("'3.09.1a (4)'!ah32"))=TRUE,"",INDIRECT("'3.09.1a (4)'!ah32")) ->  | X90: =IF(ISERROR(INDIRECT("'3.09.1a (4)'!am32"))=TRUE,"",INDIRECT("'3.09.1a (4)'!am32")) -> 
A91: 0 | B91: 3.09.1a (4) | C91: =IF(ISERROR(INDIRECT("'3.09.1a (4)'!b33"))=TRUE,"",INDIRECT("'3.09.1a (4)'!b33")) ->  | D91: =IF(ISERROR(INDIRECT("'3.09.1a (4)'!c33"))=TRUE,"",INDIRECT("'3.09.1a (4)'!c33")) ->  | E91: =IF(ISERROR(INDIRECT("'3.09.1a (4)'!d33"))=TRUE,"",INDIRECT("'3.09.1a (4)'!d33")) ->  | F91: =IF(ISERROR(INDIRECT("'3.09.1a (4)'!e33"))=TRUE,"",INDIRECT("'3.09.1a (4)'!e33")) ->  | G91: =IF(ISERROR(INDIRECT("'3.09.1a (4)'!f33"))=TRUE,"",INDIRECT("'3.09.1a (4)'!f33")) ->  | H91: =IF(ISERROR(INDIRECT("'3.09.1a (4)'!g33"))=TRUE,"",INDIRECT("'3.09.1a (4)'!g33")) ->  | I91: =IF(ISERROR(INDIRECT("'3.09.1a (4)'!h33"))=TRUE,"",INDIRECT("'3.09.1a (4)'!h33")) ->  | J91: =IF(ISERROR(INDIRECT("'3.09.1a (4)'!i33"))=TRUE,"",INDIRECT("'3.09.1a (4)'!i33")) ->  | K91: =IF(ISERROR(INDIRECT("'3.09.1a (4)'!j33"))=TRUE,"",INDIRECT("'3.09.1a (4)'!j33")) ->  | L91: =IF(ISERROR(INDIRECT("'3.09.1a (4)'!o33"))=TRUE,"",INDIRECT("'3.09.1a (4)'!o33")) ->  | M91: =IF(ISERROR(INDIRECT("'3.09.1a (4)'!p33"))=TRUE,"",INDIRECT("'3.09.1a (4)'!p33")) ->  | N91: =IF(ISERROR(INDIRECT("'3.09.1a (4)'!q33"))=TRUE,"",INDIRECT("'3.09.1a (4)'!q33")) ->  | O91: =IF(ISERROR(INDIRECT("'3.09.1a (4)'!s33"))=TRUE,"",INDIRECT("'3.09.1a (4)'!s33")) ->  | P91: =IF(ISERROR(INDIRECT("'3.09.1a (4)'!t33"))=TRUE,"",INDIRECT("'3.09.1a (4)'!t33")) ->  | Q91: =IF(ISERROR(INDIRECT("'3.09.1a (4)'!u33"))=TRUE,"",INDIRECT("'3.09.1a (4)'!u33")) ->  | R91: =IF(ISERROR(INDIRECT("'3.09.1a (4)'!v33"))=TRUE,"",INDIRECT("'3.09.1a (4)'!v33")) ->  | S91: =IF(ISERROR(INDIRECT("'3.09.1a (4)'!w33"))=TRUE,"",INDIRECT("'3.09.1a (4)'!w33")) ->  | T91: =IF(ISERROR(INDIRECT("'3.09.1a (4)'!x33"))=TRUE,"",INDIRECT("'3.09.1a (4)'!x33")) ->  | U91: =IF(ISERROR(INDIRECT("'3.09.1a (4)'!aa33"))=TRUE,"",INDIRECT("'3.09.1a (4)'!aa33")) ->  | V91: =IF(ISERROR(INDIRECT("'3.09.1a (4)'!ad33"))=TRUE,"",INDIRECT("'3.09.1a (4)'!ad33")) ->  | W91: =IF(ISERROR(INDIRECT("'3.09.1a (4)'!ah33"))=TRUE,"",INDIRECT("'3.09.1a (4)'!ah33")) ->  | X91: =IF(ISERROR(INDIRECT("'3.09.1a (4)'!am33"))=TRUE,"",INDIRECT("'3.09.1a (4)'!am33")) -> 
A92: 0 | B92: 3.09.1a (4) | C92: =IF(ISERROR(INDIRECT("'3.09.1a (4)'!b34"))=TRUE,"",INDIRECT("'3.09.1a (4)'!b34")) ->  | D92: =IF(ISERROR(INDIRECT("'3.09.1a (4)'!c34"))=TRUE,"",INDIRECT("'3.09.1a (4)'!c34")) ->  | E92: =IF(ISERROR(INDIRECT("'3.09.1a (4)'!d34"))=TRUE,"",INDIRECT("'3.09.1a (4)'!d34")) ->  | F92: =IF(ISERROR(INDIRECT("'3.09.1a (4)'!e34"))=TRUE,"",INDIRECT("'3.09.1a (4)'!e34")) ->  | G92: =IF(ISERROR(INDIRECT("'3.09.1a (4)'!f34"))=TRUE,"",INDIRECT("'3.09.1a (4)'!f34")) ->  | H92: =IF(ISERROR(INDIRECT("'3.09.1a (4)'!g34"))=TRUE,"",INDIRECT("'3.09.1a (4)'!g34")) ->  | I92: =IF(ISERROR(INDIRECT("'3.09.1a (4)'!h34"))=TRUE,"",INDIRECT("'3.09.1a (4)'!h34")) ->  | J92: =IF(ISERROR(INDIRECT("'3.09.1a (4)'!i34"))=TRUE,"",INDIRECT("'3.09.1a (4)'!i34")) ->  | K92: =IF(ISERROR(INDIRECT("'3.09.1a (4)'!j34"))=TRUE,"",INDIRECT("'3.09.1a (4)'!j34")) ->  | L92: =IF(ISERROR(INDIRECT("'3.09.1a (4)'!o34"))=TRUE,"",INDIRECT("'3.09.1a (4)'!o34")) ->  | M92: =IF(ISERROR(INDIRECT("'3.09.1a (4)'!p34"))=TRUE,"",INDIRECT("'3.09.1a (4)'!p34")) ->  | N92: =IF(ISERROR(INDIRECT("'3.09.1a (4)'!q34"))=TRUE,"",INDIRECT("'3.09.1a (4)'!q34")) ->  | O92: =IF(ISERROR(INDIRECT("'3.09.1a (4)'!s34"))=TRUE,"",INDIRECT("'3.09.1a (4)'!s34")) ->  | P92: =IF(ISERROR(INDIRECT("'3.09.1a (4)'!t34"))=TRUE,"",INDIRECT("'3.09.1a (4)'!t34")) ->  | Q92: =IF(ISERROR(INDIRECT("'3.09.1a (4)'!u34"))=TRUE,"",INDIRECT("'3.09.1a (4)'!u34")) ->  | R92: =IF(ISERROR(INDIRECT("'3.09.1a (4)'!v34"))=TRUE,"",INDIRECT("'3.09.1a (4)'!v34")) ->  | S92: =IF(ISERROR(INDIRECT("'3.09.1a (4)'!w34"))=TRUE,"",INDIRECT("'3.09.1a (4)'!w34")) ->  | T92: =IF(ISERROR(INDIRECT("'3.09.1a (4)'!x34"))=TRUE,"",INDIRECT("'3.09.1a (4)'!x34")) ->  | U92: =IF(ISERROR(INDIRECT("'3.09.1a (4)'!aa34"))=TRUE,"",INDIRECT("'3.09.1a (4)'!aa34")) ->  | V92: =IF(ISERROR(INDIRECT("'3.09.1a (4)'!ad34"))=TRUE,"",INDIRECT("'3.09.1a (4)'!ad34")) ->  | W92: =IF(ISERROR(INDIRECT("'3.09.1a (4)'!ah34"))=TRUE,"",INDIRECT("'3.09.1a (4)'!ah34")) ->  | X92: =IF(ISERROR(INDIRECT("'3.09.1a (4)'!am34"))=TRUE,"",INDIRECT("'3.09.1a (4)'!am34")) -> 
A93: 0 | B93: 3.09.1a (4) | C93: =IF(ISERROR(INDIRECT("'3.09.1a (4)'!b35"))=TRUE,"",INDIRECT("'3.09.1a (4)'!b35")) ->  | D93: =IF(ISERROR(INDIRECT("'3.09.1a (4)'!c35"))=TRUE,"",INDIRECT("'3.09.1a (4)'!c35")) ->  | E93: =IF(ISERROR(INDIRECT("'3.09.1a (4)'!d35"))=TRUE,"",INDIRECT("'3.09.1a (4)'!d35")) ->  | F93: =IF(ISERROR(INDIRECT("'3.09.1a (4)'!e35"))=TRUE,"",INDIRECT("'3.09.1a (4)'!e35")) ->  | G93: =IF(ISERROR(INDIRECT("'3.09.1a (4)'!f35"))=TRUE,"",INDIRECT("'3.09.1a (4)'!f35")) ->  | H93: =IF(ISERROR(INDIRECT("'3.09.1a (4)'!g35"))=TRUE,"",INDIRECT("'3.09.1a (4)'!g35")) ->  | I93: =IF(ISERROR(INDIRECT("'3.09.1a (4)'!h35"))=TRUE,"",INDIRECT("'3.09.1a (4)'!h35")) ->  | J93: =IF(ISERROR(INDIRECT("'3.09.1a (4)'!i35"))=TRUE,"",INDIRECT("'3.09.1a (4)'!i35")) ->  | K93: =IF(ISERROR(INDIRECT("'3.09.1a (4)'!j35"))=TRUE,"",INDIRECT("'3.09.1a (4)'!j35")) ->  | L93: =IF(ISERROR(INDIRECT("'3.09.1a (4)'!o35"))=TRUE,"",INDIRECT("'3.09.1a (4)'!o35")) ->  | M93: =IF(ISERROR(INDIRECT("'3.09.1a (4)'!p35"))=TRUE,"",INDIRECT("'3.09.1a (4)'!p35")) ->  | N93: =IF(ISERROR(INDIRECT("'3.09.1a (4)'!q35"))=TRUE,"",INDIRECT("'3.09.1a (4)'!q35")) ->  | O93: =IF(ISERROR(INDIRECT("'3.09.1a (4)'!s35"))=TRUE,"",INDIRECT("'3.09.1a (4)'!s35")) ->  | P93: =IF(ISERROR(INDIRECT("'3.09.1a (4)'!t35"))=TRUE,"",INDIRECT("'3.09.1a (4)'!t35")) ->  | Q93: =IF(ISERROR(INDIRECT("'3.09.1a (4)'!u35"))=TRUE,"",INDIRECT("'3.09.1a (4)'!u35")) ->  | R93: =IF(ISERROR(INDIRECT("'3.09.1a (4)'!v35"))=TRUE,"",INDIRECT("'3.09.1a (4)'!v35")) ->  | S93: =IF(ISERROR(INDIRECT("'3.09.1a (4)'!w35"))=TRUE,"",INDIRECT("'3.09.1a (4)'!w35")) ->  | T93: =IF(ISERROR(INDIRECT("'3.09.1a (4)'!x35"))=TRUE,"",INDIRECT("'3.09.1a (4)'!x35")) ->  | U93: =IF(ISERROR(INDIRECT("'3.09.1a (4)'!aa35"))=TRUE,"",INDIRECT("'3.09.1a (4)'!aa35")) ->  | V93: =IF(ISERROR(INDIRECT("'3.09.1a (4)'!ad35"))=TRUE,"",INDIRECT("'3.09.1a (4)'!ad35")) ->  | W93: =IF(ISERROR(INDIRECT("'3.09.1a (4)'!ah35"))=TRUE,"",INDIRECT("'3.09.1a (4)'!ah35")) ->  | X93: =IF(ISERROR(INDIRECT("'3.09.1a (4)'!am35"))=TRUE,"",INDIRECT("'3.09.1a (4)'!am35")) -> 
A94: 0 | B94: 3.09.1a (4) | C94: =IF(ISERROR(INDIRECT("'3.09.1a (4)'!b36"))=TRUE,"",INDIRECT("'3.09.1a (4)'!b36")) ->  | D94: =IF(ISERROR(INDIRECT("'3.09.1a (4)'!c36"))=TRUE,"",INDIRECT("'3.09.1a (4)'!c36")) ->  | E94: =IF(ISERROR(INDIRECT("'3.09.1a (4)'!d36"))=TRUE,"",INDIRECT("'3.09.1a (4)'!d36")) ->  | F94: =IF(ISERROR(INDIRECT("'3.09.1a (4)'!e36"))=TRUE,"",INDIRECT("'3.09.1a (4)'!e36")) ->  | G94: =IF(ISERROR(INDIRECT("'3.09.1a (4)'!f36"))=TRUE,"",INDIRECT("'3.09.1a (4)'!f36")) ->  | H94: =IF(ISERROR(INDIRECT("'3.09.1a (4)'!g36"))=TRUE,"",INDIRECT("'3.09.1a (4)'!g36")) ->  | I94: =IF(ISERROR(INDIRECT("'3.09.1a (4)'!h36"))=TRUE,"",INDIRECT("'3.09.1a (4)'!h36")) ->  | J94: =IF(ISERROR(INDIRECT("'3.09.1a (4)'!i36"))=TRUE,"",INDIRECT("'3.09.1a (4)'!i36")) ->  | K94: =IF(ISERROR(INDIRECT("'3.09.1a (4)'!j36"))=TRUE,"",INDIRECT("'3.09.1a (4)'!j36")) ->  | L94: =IF(ISERROR(INDIRECT("'3.09.1a (4)'!o36"))=TRUE,"",INDIRECT("'3.09.1a (4)'!o36")) ->  | M94: =IF(ISERROR(INDIRECT("'3.09.1a (4)'!p36"))=TRUE,"",INDIRECT("'3.09.1a (4)'!p36")) ->  | N94: =IF(ISERROR(INDIRECT("'3.09.1a (4)'!q36"))=TRUE,"",INDIRECT("'3.09.1a (4)'!q36")) ->  | O94: =IF(ISERROR(INDIRECT("'3.09.1a (4)'!s36"))=TRUE,"",INDIRECT("'3.09.1a (4)'!s36")) ->  | P94: =IF(ISERROR(INDIRECT("'3.09.1a (4)'!t36"))=TRUE,"",INDIRECT("'3.09.1a (4)'!t36")) ->  | Q94: =IF(ISERROR(INDIRECT("'3.09.1a (4)'!u36"))=TRUE,"",INDIRECT("'3.09.1a (4)'!u36")) ->  | R94: =IF(ISERROR(INDIRECT("'3.09.1a (4)'!v36"))=TRUE,"",INDIRECT("'3.09.1a (4)'!v36")) ->  | S94: =IF(ISERROR(INDIRECT("'3.09.1a (4)'!w36"))=TRUE,"",INDIRECT("'3.09.1a (4)'!w36")) ->  | T94: =IF(ISERROR(INDIRECT("'3.09.1a (4)'!x36"))=TRUE,"",INDIRECT("'3.09.1a (4)'!x36")) ->  | U94: =IF(ISERROR(INDIRECT("'3.09.1a (4)'!aa36"))=TRUE,"",INDIRECT("'3.09.1a (4)'!aa36")) ->  | V94: =IF(ISERROR(INDIRECT("'3.09.1a (4)'!ad36"))=TRUE,"",INDIRECT("'3.09.1a (4)'!ad36")) ->  | W94: =IF(ISERROR(INDIRECT("'3.09.1a (4)'!ah36"))=TRUE,"",INDIRECT("'3.09.1a (4)'!ah36")) ->  | X94: =IF(ISERROR(INDIRECT("'3.09.1a (4)'!am36"))=TRUE,"",INDIRECT("'3.09.1a (4)'!am36")) -> 
A95: 0 | B95: 3.09.1a (4) | C95: =IF(ISERROR(INDIRECT("'3.09.1a (4)'!b37"))=TRUE,"",INDIRECT("'3.09.1a (4)'!b37")) ->  | D95: =IF(ISERROR(INDIRECT("'3.09.1a (4)'!c37"))=TRUE,"",INDIRECT("'3.09.1a (4)'!c37")) ->  | E95: =IF(ISERROR(INDIRECT("'3.09.1a (4)'!d37"))=TRUE,"",INDIRECT("'3.09.1a (4)'!d37")) ->  | F95: =IF(ISERROR(INDIRECT("'3.09.1a (4)'!e37"))=TRUE,"",INDIRECT("'3.09.1a (4)'!e37")) ->  | G95: =IF(ISERROR(INDIRECT("'3.09.1a (4)'!f37"))=TRUE,"",INDIRECT("'3.09.1a (4)'!f37")) ->  | H95: =IF(ISERROR(INDIRECT("'3.09.1a (4)'!g37"))=TRUE,"",INDIRECT("'3.09.1a (4)'!g37")) ->  | I95: =IF(ISERROR(INDIRECT("'3.09.1a (4)'!h37"))=TRUE,"",INDIRECT("'3.09.1a (4)'!h37")) ->  | J95: =IF(ISERROR(INDIRECT("'3.09.1a (4)'!i37"))=TRUE,"",INDIRECT("'3.09.1a (4)'!i37")) ->  | K95: =IF(ISERROR(INDIRECT("'3.09.1a (4)'!j37"))=TRUE,"",INDIRECT("'3.09.1a (4)'!j37")) ->  | L95: =IF(ISERROR(INDIRECT("'3.09.1a (4)'!o37"))=TRUE,"",INDIRECT("'3.09.1a (4)'!o37")) ->  | M95: =IF(ISERROR(INDIRECT("'3.09.1a (4)'!p37"))=TRUE,"",INDIRECT("'3.09.1a (4)'!p37")) ->  | N95: =IF(ISERROR(INDIRECT("'3.09.1a (4)'!q37"))=TRUE,"",INDIRECT("'3.09.1a (4)'!q37")) ->  | O95: =IF(ISERROR(INDIRECT("'3.09.1a (4)'!s37"))=TRUE,"",INDIRECT("'3.09.1a (4)'!s37")) ->  | P95: =IF(ISERROR(INDIRECT("'3.09.1a (4)'!t37"))=TRUE,"",INDIRECT("'3.09.1a (4)'!t37")) ->  | Q95: =IF(ISERROR(INDIRECT("'3.09.1a (4)'!u37"))=TRUE,"",INDIRECT("'3.09.1a (4)'!u37")) ->  | R95: =IF(ISERROR(INDIRECT("'3.09.1a (4)'!v37"))=TRUE,"",INDIRECT("'3.09.1a (4)'!v37")) ->  | S95: =IF(ISERROR(INDIRECT("'3.09.1a (4)'!w37"))=TRUE,"",INDIRECT("'3.09.1a (4)'!w37")) ->  | T95: =IF(ISERROR(INDIRECT("'3.09.1a (4)'!x37"))=TRUE,"",INDIRECT("'3.09.1a (4)'!x37")) ->  | U95: =IF(ISERROR(INDIRECT("'3.09.1a (4)'!aa37"))=TRUE,"",INDIRECT("'3.09.1a (4)'!aa37")) ->  | V95: =IF(ISERROR(INDIRECT("'3.09.1a (4)'!ad37"))=TRUE,"",INDIRECT("'3.09.1a (4)'!ad37")) ->  | W95: =IF(ISERROR(INDIRECT("'3.09.1a (4)'!ah37"))=TRUE,"",INDIRECT("'3.09.1a (4)'!ah37")) ->  | X95: =IF(ISERROR(INDIRECT("'3.09.1a (4)'!am37"))=TRUE,"",INDIRECT("'3.09.1a (4)'!am37")) -> 
A96: 0 | B96: 3.09.1a (4) | C96: =IF(ISERROR(INDIRECT("'3.09.1a (4)'!b38"))=TRUE,"",INDIRECT("'3.09.1a (4)'!b38")) ->  | D96: =IF(ISERROR(INDIRECT("'3.09.1a (4)'!c38"))=TRUE,"",INDIRECT("'3.09.1a (4)'!c38")) ->  | E96: =IF(ISERROR(INDIRECT("'3.09.1a (4)'!d38"))=TRUE,"",INDIRECT("'3.09.1a (4)'!d38")) ->  | F96: =IF(ISERROR(INDIRECT("'3.09.1a (4)'!e38"))=TRUE,"",INDIRECT("'3.09.1a (4)'!e38")) ->  | G96: =IF(ISERROR(INDIRECT("'3.09.1a (4)'!f38"))=TRUE,"",INDIRECT("'3.09.1a (4)'!f38")) ->  | H96: =IF(ISERROR(INDIRECT("'3.09.1a (4)'!g38"))=TRUE,"",INDIRECT("'3.09.1a (4)'!g38")) ->  | I96: =IF(ISERROR(INDIRECT("'3.09.1a (4)'!h38"))=TRUE,"",INDIRECT("'3.09.1a (4)'!h38")) ->  | J96: =IF(ISERROR(INDIRECT("'3.09.1a (4)'!i38"))=TRUE,"",INDIRECT("'3.09.1a (4)'!i38")) ->  | K96: =IF(ISERROR(INDIRECT("'3.09.1a (4)'!j38"))=TRUE,"",INDIRECT("'3.09.1a (4)'!j38")) ->  | L96: =IF(ISERROR(INDIRECT("'3.09.1a (4)'!o38"))=TRUE,"",INDIRECT("'3.09.1a (4)'!o38")) ->  | M96: =IF(ISERROR(INDIRECT("'3.09.1a (4)'!p38"))=TRUE,"",INDIRECT("'3.09.1a (4)'!p38")) ->  | N96: =IF(ISERROR(INDIRECT("'3.09.1a (4)'!q38"))=TRUE,"",INDIRECT("'3.09.1a (4)'!q38")) ->  | O96: =IF(ISERROR(INDIRECT("'3.09.1a (4)'!s38"))=TRUE,"",INDIRECT("'3.09.1a (4)'!s38")) ->  | P96: =IF(ISERROR(INDIRECT("'3.09.1a (4)'!t38"))=TRUE,"",INDIRECT("'3.09.1a (4)'!t38")) ->  | Q96: =IF(ISERROR(INDIRECT("'3.09.1a (4)'!u38"))=TRUE,"",INDIRECT("'3.09.1a (4)'!u38")) ->  | R96: =IF(ISERROR(INDIRECT("'3.09.1a (4)'!v38"))=TRUE,"",INDIRECT("'3.09.1a (4)'!v38")) ->  | S96: =IF(ISERROR(INDIRECT("'3.09.1a (4)'!w38"))=TRUE,"",INDIRECT("'3.09.1a (4)'!w38")) ->  | T96: =IF(ISERROR(INDIRECT("'3.09.1a (4)'!x38"))=TRUE,"",INDIRECT("'3.09.1a (4)'!x38")) ->  | U96: =IF(ISERROR(INDIRECT("'3.09.1a (4)'!aa38"))=TRUE,"",INDIRECT("'3.09.1a (4)'!aa38")) ->  | V96: =IF(ISERROR(INDIRECT("'3.09.1a (4)'!ad38"))=TRUE,"",INDIRECT("'3.09.1a (4)'!ad38")) ->  | W96: =IF(ISERROR(INDIRECT("'3.09.1a (4)'!ah38"))=TRUE,"",INDIRECT("'3.09.1a (4)'!ah38")) ->  | X96: =IF(ISERROR(INDIRECT("'3.09.1a (4)'!am38"))=TRUE,"",INDIRECT("'3.09.1a (4)'!am38")) -> 
A97: 0 | B97: 3.09.1a (4) | C97: =IF(ISERROR(INDIRECT("'3.09.1a (4)'!b39"))=TRUE,"",INDIRECT("'3.09.1a (4)'!b39")) ->  | D97: =IF(ISERROR(INDIRECT("'3.09.1a (4)'!c39"))=TRUE,"",INDIRECT("'3.09.1a (4)'!c39")) ->  | E97: =IF(ISERROR(INDIRECT("'3.09.1a (4)'!d39"))=TRUE,"",INDIRECT("'3.09.1a (4)'!d39")) ->  | F97: =IF(ISERROR(INDIRECT("'3.09.1a (4)'!e39"))=TRUE,"",INDIRECT("'3.09.1a (4)'!e39")) ->  | G97: =IF(ISERROR(INDIRECT("'3.09.1a (4)'!f39"))=TRUE,"",INDIRECT("'3.09.1a (4)'!f39")) ->  | H97: =IF(ISERROR(INDIRECT("'3.09.1a (4)'!g39"))=TRUE,"",INDIRECT("'3.09.1a (4)'!g39")) ->  | I97: =IF(ISERROR(INDIRECT("'3.09.1a (4)'!h39"))=TRUE,"",INDIRECT("'3.09.1a (4)'!h39")) ->  | J97: =IF(ISERROR(INDIRECT("'3.09.1a (4)'!i39"))=TRUE,"",INDIRECT("'3.09.1a (4)'!i39")) ->  | K97: =IF(ISERROR(INDIRECT("'3.09.1a (4)'!j39"))=TRUE,"",INDIRECT("'3.09.1a (4)'!j39")) ->  | L97: =IF(ISERROR(INDIRECT("'3.09.1a (4)'!o39"))=TRUE,"",INDIRECT("'3.09.1a (4)'!o39")) ->  | M97: =IF(ISERROR(INDIRECT("'3.09.1a (4)'!p39"))=TRUE,"",INDIRECT("'3.09.1a (4)'!p39")) ->  | N97: =IF(ISERROR(INDIRECT("'3.09.1a (4)'!q39"))=TRUE,"",INDIRECT("'3.09.1a (4)'!q39")) ->  | O97: =IF(ISERROR(INDIRECT("'3.09.1a (4)'!s39"))=TRUE,"",INDIRECT("'3.09.1a (4)'!s39")) ->  | P97: =IF(ISERROR(INDIRECT("'3.09.1a (4)'!t39"))=TRUE,"",INDIRECT("'3.09.1a (4)'!t39")) ->  | Q97: =IF(ISERROR(INDIRECT("'3.09.1a (4)'!u39"))=TRUE,"",INDIRECT("'3.09.1a (4)'!u39")) ->  | R97: =IF(ISERROR(INDIRECT("'3.09.1a (4)'!v39"))=TRUE,"",INDIRECT("'3.09.1a (4)'!v39")) ->  | S97: =IF(ISERROR(INDIRECT("'3.09.1a (4)'!w39"))=TRUE,"",INDIRECT("'3.09.1a (4)'!w39")) ->  | T97: =IF(ISERROR(INDIRECT("'3.09.1a (4)'!x39"))=TRUE,"",INDIRECT("'3.09.1a (4)'!x39")) ->  | U97: =IF(ISERROR(INDIRECT("'3.09.1a (4)'!aa39"))=TRUE,"",INDIRECT("'3.09.1a (4)'!aa39")) ->  | V97: =IF(ISERROR(INDIRECT("'3.09.1a (4)'!ad39"))=TRUE,"",INDIRECT("'3.09.1a (4)'!ad39")) ->  | W97: =IF(ISERROR(INDIRECT("'3.09.1a (4)'!ah39"))=TRUE,"",INDIRECT("'3.09.1a (4)'!ah39")) ->  | X97: =IF(ISERROR(INDIRECT("'3.09.1a (4)'!am39"))=TRUE,"",INDIRECT("'3.09.1a (4)'!am39")) -> 
A98: 0 | B98: 3.09.1a (4) | C98: =IF(ISERROR(INDIRECT("'3.09.1a (4)'!b40"))=TRUE,"",INDIRECT("'3.09.1a (4)'!b40")) ->  | D98: =IF(ISERROR(INDIRECT("'3.09.1a (4)'!c40"))=TRUE,"",INDIRECT("'3.09.1a (4)'!c40")) ->  | E98: =IF(ISERROR(INDIRECT("'3.09.1a (4)'!d40"))=TRUE,"",INDIRECT("'3.09.1a (4)'!d40")) ->  | F98: =IF(ISERROR(INDIRECT("'3.09.1a (4)'!e40"))=TRUE,"",INDIRECT("'3.09.1a (4)'!e40")) ->  | G98: =IF(ISERROR(INDIRECT("'3.09.1a (4)'!f40"))=TRUE,"",INDIRECT("'3.09.1a (4)'!f40")) ->  | H98: =IF(ISERROR(INDIRECT("'3.09.1a (4)'!g40"))=TRUE,"",INDIRECT("'3.09.1a (4)'!g40")) ->  | I98: =IF(ISERROR(INDIRECT("'3.09.1a (4)'!h40"))=TRUE,"",INDIRECT("'3.09.1a (4)'!h40")) ->  | J98: =IF(ISERROR(INDIRECT("'3.09.1a (4)'!i40"))=TRUE,"",INDIRECT("'3.09.1a (4)'!i40")) ->  | K98: =IF(ISERROR(INDIRECT("'3.09.1a (4)'!j40"))=TRUE,"",INDIRECT("'3.09.1a (4)'!j40")) ->  | L98: =IF(ISERROR(INDIRECT("'3.09.1a (4)'!o40"))=TRUE,"",INDIRECT("'3.09.1a (4)'!o40")) ->  | M98: =IF(ISERROR(INDIRECT("'3.09.1a (4)'!p40"))=TRUE,"",INDIRECT("'3.09.1a (4)'!p40")) ->  | N98: =IF(ISERROR(INDIRECT("'3.09.1a (4)'!q40"))=TRUE,"",INDIRECT("'3.09.1a (4)'!q40")) ->  | O98: =IF(ISERROR(INDIRECT("'3.09.1a (4)'!s40"))=TRUE,"",INDIRECT("'3.09.1a (4)'!s40")) ->  | P98: =IF(ISERROR(INDIRECT("'3.09.1a (4)'!t40"))=TRUE,"",INDIRECT("'3.09.1a (4)'!t40")) ->  | Q98: =IF(ISERROR(INDIRECT("'3.09.1a (4)'!u40"))=TRUE,"",INDIRECT("'3.09.1a (4)'!u40")) ->  | R98: =IF(ISERROR(INDIRECT("'3.09.1a (4)'!v40"))=TRUE,"",INDIRECT("'3.09.1a (4)'!v40")) ->  | S98: =IF(ISERROR(INDIRECT("'3.09.1a (4)'!w40"))=TRUE,"",INDIRECT("'3.09.1a (4)'!w40")) ->  | T98: =IF(ISERROR(INDIRECT("'3.09.1a (4)'!x40"))=TRUE,"",INDIRECT("'3.09.1a (4)'!x40")) ->  | U98: =IF(ISERROR(INDIRECT("'3.09.1a (4)'!aa40"))=TRUE,"",INDIRECT("'3.09.1a (4)'!aa40")) ->  | V98: =IF(ISERROR(INDIRECT("'3.09.1a (4)'!ad40"))=TRUE,"",INDIRECT("'3.09.1a (4)'!ad40")) ->  | W98: =IF(ISERROR(INDIRECT("'3.09.1a (4)'!ah40"))=TRUE,"",INDIRECT("'3.09.1a (4)'!ah40")) ->  | X98: =IF(ISERROR(INDIRECT("'3.09.1a (4)'!am40"))=TRUE,"",INDIRECT("'3.09.1a (4)'!am40")) -> 
A99: 0 | B99: 3.09.1a (4) | C99: =IF(ISERROR(INDIRECT("'3.09.1a (4)'!b41"))=TRUE,"",INDIRECT("'3.09.1a (4)'!b41")) ->  | D99: =IF(ISERROR(INDIRECT("'3.09.1a (4)'!c41"))=TRUE,"",INDIRECT("'3.09.1a (4)'!c41")) ->  | E99: =IF(ISERROR(INDIRECT("'3.09.1a (4)'!d41"))=TRUE,"",INDIRECT("'3.09.1a (4)'!d41")) ->  | F99: =IF(ISERROR(INDIRECT("'3.09.1a (4)'!e41"))=TRUE,"",INDIRECT("'3.09.1a (4)'!e41")) ->  | G99: =IF(ISERROR(INDIRECT("'3.09.1a (4)'!f41"))=TRUE,"",INDIRECT("'3.09.1a (4)'!f41")) ->  | H99: =IF(ISERROR(INDIRECT("'3.09.1a (4)'!g41"))=TRUE,"",INDIRECT("'3.09.1a (4)'!g41")) ->  | I99: =IF(ISERROR(INDIRECT("'3.09.1a (4)'!h41"))=TRUE,"",INDIRECT("'3.09.1a (4)'!h41")) ->  | J99: =IF(ISERROR(INDIRECT("'3.09.1a (4)'!i41"))=TRUE,"",INDIRECT("'3.09.1a (4)'!i41")) ->  | K99: =IF(ISERROR(INDIRECT("'3.09.1a (4)'!j41"))=TRUE,"",INDIRECT("'3.09.1a (4)'!j41")) ->  | L99: =IF(ISERROR(INDIRECT("'3.09.1a (4)'!o41"))=TRUE,"",INDIRECT("'3.09.1a (4)'!o41")) ->  | M99: =IF(ISERROR(INDIRECT("'3.09.1a (4)'!p41"))=TRUE,"",INDIRECT("'3.09.1a (4)'!p41")) ->  | N99: =IF(ISERROR(INDIRECT("'3.09.1a (4)'!q41"))=TRUE,"",INDIRECT("'3.09.1a (4)'!q41")) ->  | O99: =IF(ISERROR(INDIRECT("'3.09.1a (4)'!s41"))=TRUE,"",INDIRECT("'3.09.1a (4)'!s41")) ->  | P99: =IF(ISERROR(INDIRECT("'3.09.1a (4)'!t41"))=TRUE,"",INDIRECT("'3.09.1a (4)'!t41")) ->  | Q99: =IF(ISERROR(INDIRECT("'3.09.1a (4)'!u41"))=TRUE,"",INDIRECT("'3.09.1a (4)'!u41")) ->  | R99: =IF(ISERROR(INDIRECT("'3.09.1a (4)'!v41"))=TRUE,"",INDIRECT("'3.09.1a (4)'!v41")) ->  | S99: =IF(ISERROR(INDIRECT("'3.09.1a (4)'!w41"))=TRUE,"",INDIRECT("'3.09.1a (4)'!w41")) ->  | T99: =IF(ISERROR(INDIRECT("'3.09.1a (4)'!x41"))=TRUE,"",INDIRECT("'3.09.1a (4)'!x41")) ->  | U99: =IF(ISERROR(INDIRECT("'3.09.1a (4)'!aa41"))=TRUE,"",INDIRECT("'3.09.1a (4)'!aa41")) ->  | V99: =IF(ISERROR(INDIRECT("'3.09.1a (4)'!ad41"))=TRUE,"",INDIRECT("'3.09.1a (4)'!ad41")) ->  | W99: =IF(ISERROR(INDIRECT("'3.09.1a (4)'!ah41"))=TRUE,"",INDIRECT("'3.09.1a (4)'!ah41")) ->  | X99: =IF(ISERROR(INDIRECT("'3.09.1a (4)'!am41"))=TRUE,"",INDIRECT("'3.09.1a (4)'!am41")) -> 
A100: 0 | B100: 3.09.1a (4) | C100: =IF(ISERROR(INDIRECT("'3.09.1a (4)'!b42"))=TRUE,"",INDIRECT("'3.09.1a (4)'!b42")) ->  | D100: =IF(ISERROR(INDIRECT("'3.09.1a (4)'!c42"))=TRUE,"",INDIRECT("'3.09.1a (4)'!c42")) ->  | E100: =IF(ISERROR(INDIRECT("'3.09.1a (4)'!d42"))=TRUE,"",INDIRECT("'3.09.1a (4)'!d42")) ->  | F100: =IF(ISERROR(INDIRECT("'3.09.1a (4)'!e42"))=TRUE,"",INDIRECT("'3.09.1a (4)'!e42")) ->  | G100: =IF(ISERROR(INDIRECT("'3.09.1a (4)'!f42"))=TRUE,"",INDIRECT("'3.09.1a (4)'!f42")) ->  | H100: =IF(ISERROR(INDIRECT("'3.09.1a (4)'!g42"))=TRUE,"",INDIRECT("'3.09.1a (4)'!g42")) ->  | I100: =IF(ISERROR(INDIRECT("'3.09.1a (4)'!h42"))=TRUE,"",INDIRECT("'3.09.1a (4)'!h42")) ->  | J100: =IF(ISERROR(INDIRECT("'3.09.1a (4)'!i42"))=TRUE,"",INDIRECT("'3.09.1a (4)'!i42")) ->  | K100: =IF(ISERROR(INDIRECT("'3.09.1a (4)'!j42"))=TRUE,"",INDIRECT("'3.09.1a (4)'!j42")) ->  | L100: =IF(ISERROR(INDIRECT("'3.09.1a (4)'!o42"))=TRUE,"",INDIRECT("'3.09.1a (4)'!o42")) ->  | M100: =IF(ISERROR(INDIRECT("'3.09.1a (4)'!p42"))=TRUE,"",INDIRECT("'3.09.1a (4)'!p42")) ->  | N100: =IF(ISERROR(INDIRECT("'3.09.1a (4)'!q42"))=TRUE,"",INDIRECT("'3.09.1a (4)'!q42")) ->  | O100: =IF(ISERROR(INDIRECT("'3.09.1a (4)'!s42"))=TRUE,"",INDIRECT("'3.09.1a (4)'!s42")) ->  | P100: =IF(ISERROR(INDIRECT("'3.09.1a (4)'!t42"))=TRUE,"",INDIRECT("'3.09.1a (4)'!t42")) ->  | Q100: =IF(ISERROR(INDIRECT("'3.09.1a (4)'!u42"))=TRUE,"",INDIRECT("'3.09.1a (4)'!u42")) ->  | R100: =IF(ISERROR(INDIRECT("'3.09.1a (4)'!v42"))=TRUE,"",INDIRECT("'3.09.1a (4)'!v42")) ->  | S100: =IF(ISERROR(INDIRECT("'3.09.1a (4)'!w42"))=TRUE,"",INDIRECT("'3.09.1a (4)'!w42")) ->  | T100: =IF(ISERROR(INDIRECT("'3.09.1a (4)'!x42"))=TRUE,"",INDIRECT("'3.09.1a (4)'!x42")) ->  | U100: =IF(ISERROR(INDIRECT("'3.09.1a (4)'!aa42"))=TRUE,"",INDIRECT("'3.09.1a (4)'!aa42")) ->  | V100: =IF(ISERROR(INDIRECT("'3.09.1a (4)'!ad42"))=TRUE,"",INDIRECT("'3.09.1a (4)'!ad42")) ->  | W100: =IF(ISERROR(INDIRECT("'3.09.1a (4)'!ah42"))=TRUE,"",INDIRECT("'3.09.1a (4)'!ah42")) ->  | X100: =IF(ISERROR(INDIRECT("'3.09.1a (4)'!am42"))=TRUE,"",INDIRECT("'3.09.1a (4)'!am42")) -> 
A101: 0 | B101: 3.09.1a (4) | C101: =IF(ISERROR(INDIRECT("'3.09.1a (4)'!b43"))=TRUE,"",INDIRECT("'3.09.1a (4)'!b43")) ->  | D101: =IF(ISERROR(INDIRECT("'3.09.1a (4)'!c43"))=TRUE,"",INDIRECT("'3.09.1a (4)'!c43")) ->  | E101: =IF(ISERROR(INDIRECT("'3.09.1a (4)'!d43"))=TRUE,"",INDIRECT("'3.09.1a (4)'!d43")) ->  | F101: =IF(ISERROR(INDIRECT("'3.09.1a (4)'!e43"))=TRUE,"",INDIRECT("'3.09.1a (4)'!e43")) ->  | G101: =IF(ISERROR(INDIRECT("'3.09.1a (4)'!f43"))=TRUE,"",INDIRECT("'3.09.1a (4)'!f43")) ->  | H101: =IF(ISERROR(INDIRECT("'3.09.1a (4)'!g43"))=TRUE,"",INDIRECT("'3.09.1a (4)'!g43")) ->  | I101: =IF(ISERROR(INDIRECT("'3.09.1a (4)'!h43"))=TRUE,"",INDIRECT("'3.09.1a (4)'!h43")) ->  | J101: =IF(ISERROR(INDIRECT("'3.09.1a (4)'!i43"))=TRUE,"",INDIRECT("'3.09.1a (4)'!i43")) ->  | K101: =IF(ISERROR(INDIRECT("'3.09.1a (4)'!j43"))=TRUE,"",INDIRECT("'3.09.1a (4)'!j43")) ->  | L101: =IF(ISERROR(INDIRECT("'3.09.1a (4)'!o43"))=TRUE,"",INDIRECT("'3.09.1a (4)'!o43")) ->  | M101: =IF(ISERROR(INDIRECT("'3.09.1a (4)'!p43"))=TRUE,"",INDIRECT("'3.09.1a (4)'!p43")) ->  | N101: =IF(ISERROR(INDIRECT("'3.09.1a (4)'!q43"))=TRUE,"",INDIRECT("'3.09.1a (4)'!q43")) ->  | O101: =IF(ISERROR(INDIRECT("'3.09.1a (4)'!s43"))=TRUE,"",INDIRECT("'3.09.1a (4)'!s43")) ->  | P101: =IF(ISERROR(INDIRECT("'3.09.1a (4)'!t43"))=TRUE,"",INDIRECT("'3.09.1a (4)'!t43")) ->  | Q101: =IF(ISERROR(INDIRECT("'3.09.1a (4)'!u43"))=TRUE,"",INDIRECT("'3.09.1a (4)'!u43")) ->  | R101: =IF(ISERROR(INDIRECT("'3.09.1a (4)'!v43"))=TRUE,"",INDIRECT("'3.09.1a (4)'!v43")) ->  | S101: =IF(ISERROR(INDIRECT("'3.09.1a (4)'!w43"))=TRUE,"",INDIRECT("'3.09.1a (4)'!w43")) ->  | T101: =IF(ISERROR(INDIRECT("'3.09.1a (4)'!x43"))=TRUE,"",INDIRECT("'3.09.1a (4)'!x43")) ->  | U101: =IF(ISERROR(INDIRECT("'3.09.1a (4)'!aa43"))=TRUE,"",INDIRECT("'3.09.1a (4)'!aa43")) ->  | V101: =IF(ISERROR(INDIRECT("'3.09.1a (4)'!ad43"))=TRUE,"",INDIRECT("'3.09.1a (4)'!ad43")) ->  | W101: =IF(ISERROR(INDIRECT("'3.09.1a (4)'!ah43"))=TRUE,"",INDIRECT("'3.09.1a (4)'!ah43")) ->  | X101: =IF(ISERROR(INDIRECT("'3.09.1a (4)'!am43"))=TRUE,"",INDIRECT("'3.09.1a (4)'!am43")) -> 
A102: =AgencyCode -> 0 | B102: 3.09.1a (5) | C102: =IF(ISERROR(INDIRECT("'3.09.1a (5)'!b19"))=TRUE,"",INDIRECT("'3.09.1a (5)'!b19")) ->  | D102: =IF(ISERROR(INDIRECT("'3.09.1a (5)'!c19"))=TRUE,"",INDIRECT("'3.09.1a (5)'!c19")) ->  | E102: =IF(ISERROR(INDIRECT("'3.09.1a (5)'!D19"))=TRUE,"",INDIRECT("'3.09.1a (5)'!D19")) ->  | F102: =IF(ISERROR(INDIRECT("'3.09.1a (5)'!e19"))=TRUE,"",INDIRECT("'3.09.1a (5)'!e19")) ->  | G102: =IF(ISERROR(INDIRECT("'3.09.1a (5)'!f19"))=TRUE,"",INDIRECT("'3.09.1a (5)'!f19")) ->  | H102: =IF(ISERROR(INDIRECT("'3.09.1a (5)'!g19"))=TRUE,"",INDIRECT("'3.09.1a (5)'!g19")) ->  | I102: =IF(ISERROR(INDIRECT("'3.09.1a (5)'!h19"))=TRUE,"",INDIRECT("'3.09.1a (5)'!h19")) ->  | J102: =IF(ISERROR(INDIRECT("'3.09.1a (5)'!i19"))=TRUE,"",INDIRECT("'3.09.1a (5)'!i19")) ->  | K102: =IF(ISERROR(INDIRECT("'3.09.1a (5)'!j19"))=TRUE,"",INDIRECT("'3.09.1a (5)'!j19")) ->  | L102: =IF(ISERROR(INDIRECT("'3.09.1a (5)'!o19"))=TRUE,"",INDIRECT("'3.09.1a (5)'!o19")) ->  | M102: =IF(ISERROR(INDIRECT("'3.09.1a (5)'!p19"))=TRUE,"",INDIRECT("'3.09.1a (5)'!p19")) ->  | N102: =IF(ISERROR(INDIRECT("'3.09.1a (5)'!q19"))=TRUE,"",INDIRECT("'3.09.1a (5)'!q19")) ->  | O102: =IF(ISERROR(INDIRECT("'3.09.1a (5)'!s19"))=TRUE,"",INDIRECT("'3.09.1a (5)'!s19")) ->  | P102: =IF(ISERROR(INDIRECT("'3.09.1a (5)'!t19"))=TRUE,"",INDIRECT("'3.09.1a (5)'!t19")) ->  | Q102: =IF(ISERROR(INDIRECT("'3.09.1a (5)'!u19"))=TRUE,"",INDIRECT("'3.09.1a (5)'!u19")) ->  | R102: =IF(ISERROR(INDIRECT("'3.09.1a (5)'!v19"))=TRUE,"",INDIRECT("'3.09.1a (5)'!v19")) ->  | S102: =IF(ISERROR(INDIRECT("'3.09.1a (5)'!w19"))=TRUE,"",INDIRECT("'3.09.1a (5)'!w19")) ->  | T102: =IF(ISERROR(INDIRECT("'3.09.1a (5)'!x19"))=TRUE,"",INDIRECT("'3.09.1a (5)'!x19")) ->  | U102: =IF(ISERROR(INDIRECT("'3.09.1a (5)'!aa19"))=TRUE,"",INDIRECT("'3.09.1a (5)'!aa19")) ->  | V102: =IF(ISERROR(INDIRECT("'3.09.1a (5)'!ad19"))=TRUE,"",INDIRECT("'3.09.1a (5)'!ad19")) ->  | W102: =IF(ISERROR(INDIRECT("'3.09.1a (5)'!ah19"))=TRUE,"",INDIRECT("'3.09.1a (5)'!ah19")) ->  | X102: =IF(ISERROR(INDIRECT("'3.09.1a (5)'!am19"))=TRUE,"",INDIRECT("'3.09.1a (5)'!am19")) -> 
A103: 0 | B103: 3.09.1a (5) | C103: =IF(ISERROR(INDIRECT("'3.09.1a (5)'!b20"))=TRUE,"",INDIRECT("'3.09.1a (5)'!b20")) ->  | D103: =IF(ISERROR(INDIRECT("'3.09.1a (5)'!c20"))=TRUE,"",INDIRECT("'3.09.1a (5)'!c20")) ->  | E103: =IF(ISERROR(INDIRECT("'3.09.1a (5)'!d20"))=TRUE,"",INDIRECT("'3.09.1a (5)'!d20")) ->  | F103: =IF(ISERROR(INDIRECT("'3.09.1a (5)'!e20"))=TRUE,"",INDIRECT("'3.09.1a (5)'!e20")) ->  | G103: =IF(ISERROR(INDIRECT("'3.09.1a (5)'!f20"))=TRUE,"",INDIRECT("'3.09.1a (5)'!f20")) ->  | H103: =IF(ISERROR(INDIRECT("'3.09.1a (5)'!g20"))=TRUE,"",INDIRECT("'3.09.1a (5)'!g20")) ->  | I103: =IF(ISERROR(INDIRECT("'3.09.1a (5)'!h20"))=TRUE,"",INDIRECT("'3.09.1a (5)'!h20")) ->  | J103: =IF(ISERROR(INDIRECT("'3.09.1a (5)'!i20"))=TRUE,"",INDIRECT("'3.09.1a (5)'!i20")) ->  | K103: =IF(ISERROR(INDIRECT("'3.09.1a (5)'!j20"))=TRUE,"",INDIRECT("'3.09.1a (5)'!j20")) ->  | L103: =IF(ISERROR(INDIRECT("'3.09.1a (5)'!o20"))=TRUE,"",INDIRECT("'3.09.1a (5)'!o20")) ->  | M103: =IF(ISERROR(INDIRECT("'3.09.1a (5)'!p20"))=TRUE,"",INDIRECT("'3.09.1a (5)'!p20")) ->  | N103: =IF(ISERROR(INDIRECT("'3.09.1a (5)'!q20"))=TRUE,"",INDIRECT("'3.09.1a (5)'!q20")) ->  | O103: =IF(ISERROR(INDIRECT("'3.09.1a (5)'!s20"))=TRUE,"",INDIRECT("'3.09.1a (5)'!s20")) ->  | P103: =IF(ISERROR(INDIRECT("'3.09.1a (5)'!t20"))=TRUE,"",INDIRECT("'3.09.1a (5)'!t20")) ->  | Q103: =IF(ISERROR(INDIRECT("'3.09.1a (5)'!u20"))=TRUE,"",INDIRECT("'3.09.1a (5)'!u20")) ->  | R103: =IF(ISERROR(INDIRECT("'3.09.1a (5)'!v20"))=TRUE,"",INDIRECT("'3.09.1a (5)'!v20")) ->  | S103: =IF(ISERROR(INDIRECT("'3.09.1a (5)'!w20"))=TRUE,"",INDIRECT("'3.09.1a (5)'!w20")) ->  | T103: =IF(ISERROR(INDIRECT("'3.09.1a (5)'!x20"))=TRUE,"",INDIRECT("'3.09.1a (5)'!x20")) ->  | U103: =IF(ISERROR(INDIRECT("'3.09.1a (5)'!aa20"))=TRUE,"",INDIRECT("'3.09.1a (5)'!aa20")) ->  | V103: =IF(ISERROR(INDIRECT("'3.09.1a (5)'!ad20"))=TRUE,"",INDIRECT("'3.09.1a (5)'!ad20")) ->  | W103: =IF(ISERROR(INDIRECT("'3.09.1a (5)'!ah20"))=TRUE,"",INDIRECT("'3.09.1a (5)'!ah20")) ->  | X103: =IF(ISERROR(INDIRECT("'3.09.1a (5)'!am20"))=TRUE,"",INDIRECT("'3.09.1a (5)'!am20")) -> 
A104: 0 | B104: 3.09.1a (5) | C104: =IF(ISERROR(INDIRECT("'3.09.1a (5)'!b21"))=TRUE,"",INDIRECT("'3.09.1a (5)'!b21")) ->  | D104: =IF(ISERROR(INDIRECT("'3.09.1a (5)'!c21"))=TRUE,"",INDIRECT("'3.09.1a (5)'!c21")) ->  | E104: =IF(ISERROR(INDIRECT("'3.09.1a (5)'!d21"))=TRUE,"",INDIRECT("'3.09.1a (5)'!d21")) ->  | F104: =IF(ISERROR(INDIRECT("'3.09.1a (5)'!e21"))=TRUE,"",INDIRECT("'3.09.1a (5)'!e21")) ->  | G104: =IF(ISERROR(INDIRECT("'3.09.1a (5)'!f21"))=TRUE,"",INDIRECT("'3.09.1a (5)'!f21")) ->  | H104: =IF(ISERROR(INDIRECT("'3.09.1a (5)'!g21"))=TRUE,"",INDIRECT("'3.09.1a (5)'!g21")) ->  | I104: =IF(ISERROR(INDIRECT("'3.09.1a (5)'!h21"))=TRUE,"",INDIRECT("'3.09.1a (5)'!h21")) ->  | J104: =IF(ISERROR(INDIRECT("'3.09.1a (5)'!i21"))=TRUE,"",INDIRECT("'3.09.1a (5)'!i21")) ->  | K104: =IF(ISERROR(INDIRECT("'3.09.1a (5)'!j21"))=TRUE,"",INDIRECT("'3.09.1a (5)'!j21")) ->  | L104: =IF(ISERROR(INDIRECT("'3.09.1a (5)'!o21"))=TRUE,"",INDIRECT("'3.09.1a (5)'!o21")) ->  | M104: =IF(ISERROR(INDIRECT("'3.09.1a (5)'!p21"))=TRUE,"",INDIRECT("'3.09.1a (5)'!p21")) ->  | N104: =IF(ISERROR(INDIRECT("'3.09.1a (5)'!q21"))=TRUE,"",INDIRECT("'3.09.1a (5)'!q21")) ->  | O104: =IF(ISERROR(INDIRECT("'3.09.1a (5)'!s21"))=TRUE,"",INDIRECT("'3.09.1a (5)'!s21")) ->  | P104: =IF(ISERROR(INDIRECT("'3.09.1a (5)'!t21"))=TRUE,"",INDIRECT("'3.09.1a (5)'!t21")) ->  | Q104: =IF(ISERROR(INDIRECT("'3.09.1a (5)'!u21"))=TRUE,"",INDIRECT("'3.09.1a (5)'!u21")) ->  | R104: =IF(ISERROR(INDIRECT("'3.09.1a (5)'!v21"))=TRUE,"",INDIRECT("'3.09.1a (5)'!v21")) ->  | S104: =IF(ISERROR(INDIRECT("'3.09.1a (5)'!w21"))=TRUE,"",INDIRECT("'3.09.1a (5)'!w21")) ->  | T104: =IF(ISERROR(INDIRECT("'3.09.1a (5)'!x21"))=TRUE,"",INDIRECT("'3.09.1a (5)'!x21")) ->  | U104: =IF(ISERROR(INDIRECT("'3.09.1a (5)'!aa21"))=TRUE,"",INDIRECT("'3.09.1a (5)'!aa21")) ->  | V104: =IF(ISERROR(INDIRECT("'3.09.1a (5)'!ad21"))=TRUE,"",INDIRECT("'3.09.1a (5)'!ad21")) ->  | W104: =IF(ISERROR(INDIRECT("'3.09.1a (5)'!ah21"))=TRUE,"",INDIRECT("'3.09.1a (5)'!ah21")) ->  | X104: =IF(ISERROR(INDIRECT("'3.09.1a (5)'!am21"))=TRUE,"",INDIRECT("'3.09.1a (5)'!am21")) -> 
A105: 0 | B105: 3.09.1a (5) | C105: =IF(ISERROR(INDIRECT("'3.09.1a (5)'!b22"))=TRUE,"",INDIRECT("'3.09.1a (5)'!b22")) ->  | D105: =IF(ISERROR(INDIRECT("'3.09.1a (5)'!c22"))=TRUE,"",INDIRECT("'3.09.1a (5)'!c22")) ->  | E105: =IF(ISERROR(INDIRECT("'3.09.1a (5)'!d22"))=TRUE,"",INDIRECT("'3.09.1a (5)'!d22")) ->  | F105: =IF(ISERROR(INDIRECT("'3.09.1a (5)'!e22"))=TRUE,"",INDIRECT("'3.09.1a (5)'!e22")) ->  | G105: =IF(ISERROR(INDIRECT("'3.09.1a (5)'!f22"))=TRUE,"",INDIRECT("'3.09.1a (5)'!f22")) ->  | H105: =IF(ISERROR(INDIRECT("'3.09.1a (5)'!g22"))=TRUE,"",INDIRECT("'3.09.1a (5)'!g22")) ->  | I105: =IF(ISERROR(INDIRECT("'3.09.1a (5)'!h22"))=TRUE,"",INDIRECT("'3.09.1a (5)'!h22")) ->  | J105: =IF(ISERROR(INDIRECT("'3.09.1a (5)'!i22"))=TRUE,"",INDIRECT("'3.09.1a (5)'!i22")) ->  | K105: =IF(ISERROR(INDIRECT("'3.09.1a (5)'!j22"))=TRUE,"",INDIRECT("'3.09.1a (5)'!j22")) ->  | L105: =IF(ISERROR(INDIRECT("'3.09.1a (5)'!o22"))=TRUE,"",INDIRECT("'3.09.1a (5)'!o22")) ->  | M105: =IF(ISERROR(INDIRECT("'3.09.1a (5)'!p22"))=TRUE,"",INDIRECT("'3.09.1a (5)'!p22")) ->  | N105: =IF(ISERROR(INDIRECT("'3.09.1a (5)'!q22"))=TRUE,"",INDIRECT("'3.09.1a (5)'!q22")) ->  | O105: =IF(ISERROR(INDIRECT("'3.09.1a (5)'!s22"))=TRUE,"",INDIRECT("'3.09.1a (5)'!s22")) ->  | P105: =IF(ISERROR(INDIRECT("'3.09.1a (5)'!t22"))=TRUE,"",INDIRECT("'3.09.1a (5)'!t22")) ->  | Q105: =IF(ISERROR(INDIRECT("'3.09.1a (5)'!u22"))=TRUE,"",INDIRECT("'3.09.1a (5)'!u22")) ->  | R105: =IF(ISERROR(INDIRECT("'3.09.1a (5)'!v22"))=TRUE,"",INDIRECT("'3.09.1a (5)'!v22")) ->  | S105: =IF(ISERROR(INDIRECT("'3.09.1a (5)'!w22"))=TRUE,"",INDIRECT("'3.09.1a (5)'!w22")) ->  | T105: =IF(ISERROR(INDIRECT("'3.09.1a (5)'!x22"))=TRUE,"",INDIRECT("'3.09.1a (5)'!x22")) ->  | U105: =IF(ISERROR(INDIRECT("'3.09.1a (5)'!aa22"))=TRUE,"",INDIRECT("'3.09.1a (5)'!aa22")) ->  | V105: =IF(ISERROR(INDIRECT("'3.09.1a (5)'!ad22"))=TRUE,"",INDIRECT("'3.09.1a (5)'!ad22")) ->  | W105: =IF(ISERROR(INDIRECT("'3.09.1a (5)'!ah22"))=TRUE,"",INDIRECT("'3.09.1a (5)'!ah22")) ->  | X105: =IF(ISERROR(INDIRECT("'3.09.1a (5)'!am22"))=TRUE,"",INDIRECT("'3.09.1a (5)'!am22")) -> 
A106: 0 | B106: 3.09.1a (5) | C106: =IF(ISERROR(INDIRECT("'3.09.1a (5)'!b23"))=TRUE,"",INDIRECT("'3.09.1a (5)'!b23")) ->  | D106: =IF(ISERROR(INDIRECT("'3.09.1a (5)'!c23"))=TRUE,"",INDIRECT("'3.09.1a (5)'!c23")) ->  | E106: =IF(ISERROR(INDIRECT("'3.09.1a (5)'!d23"))=TRUE,"",INDIRECT("'3.09.1a (5)'!d23")) ->  | F106: =IF(ISERROR(INDIRECT("'3.09.1a (5)'!e23"))=TRUE,"",INDIRECT("'3.09.1a (5)'!e23")) ->  | G106: =IF(ISERROR(INDIRECT("'3.09.1a (5)'!f23"))=TRUE,"",INDIRECT("'3.09.1a (5)'!f23")) ->  | H106: =IF(ISERROR(INDIRECT("'3.09.1a (5)'!g23"))=TRUE,"",INDIRECT("'3.09.1a (5)'!g23")) ->  | I106: =IF(ISERROR(INDIRECT("'3.09.1a (5)'!h23"))=TRUE,"",INDIRECT("'3.09.1a (5)'!h23")) ->  | J106: =IF(ISERROR(INDIRECT("'3.09.1a (5)'!i23"))=TRUE,"",INDIRECT("'3.09.1a (5)'!i23")) ->  | K106: =IF(ISERROR(INDIRECT("'3.09.1a (5)'!j23"))=TRUE,"",INDIRECT("'3.09.1a (5)'!j23")) ->  | L106: =IF(ISERROR(INDIRECT("'3.09.1a (5)'!o23"))=TRUE,"",INDIRECT("'3.09.1a (5)'!o23")) ->  | M106: =IF(ISERROR(INDIRECT("'3.09.1a (5)'!p23"))=TRUE,"",INDIRECT("'3.09.1a (5)'!p23")) ->  | N106: =IF(ISERROR(INDIRECT("'3.09.1a (5)'!q23"))=TRUE,"",INDIRECT("'3.09.1a (5)'!q23")) ->  | O106: =IF(ISERROR(INDIRECT("'3.09.1a (5)'!s23"))=TRUE,"",INDIRECT("'3.09.1a (5)'!s23")) ->  | P106: =IF(ISERROR(INDIRECT("'3.09.1a (5)'!t23"))=TRUE,"",INDIRECT("'3.09.1a (5)'!t23")) ->  | Q106: =IF(ISERROR(INDIRECT("'3.09.1a (5)'!u23"))=TRUE,"",INDIRECT("'3.09.1a (5)'!u23")) ->  | R106: =IF(ISERROR(INDIRECT("'3.09.1a (5)'!v23"))=TRUE,"",INDIRECT("'3.09.1a (5)'!v23")) ->  | S106: =IF(ISERROR(INDIRECT("'3.09.1a (5)'!w23"))=TRUE,"",INDIRECT("'3.09.1a (5)'!w23")) ->  | T106: =IF(ISERROR(INDIRECT("'3.09.1a (5)'!x23"))=TRUE,"",INDIRECT("'3.09.1a (5)'!x23")) ->  | U106: =IF(ISERROR(INDIRECT("'3.09.1a (5)'!aa23"))=TRUE,"",INDIRECT("'3.09.1a (5)'!aa23")) ->  | V106: =IF(ISERROR(INDIRECT("'3.09.1a (5)'!ad23"))=TRUE,"",INDIRECT("'3.09.1a (5)'!ad23")) ->  | W106: =IF(ISERROR(INDIRECT("'3.09.1a (5)'!ah23"))=TRUE,"",INDIRECT("'3.09.1a (5)'!ah23")) ->  | X106: =IF(ISERROR(INDIRECT("'3.09.1a (5)'!am23"))=TRUE,"",INDIRECT("'3.09.1a (5)'!am23")) -> 
A107: 0 | B107: 3.09.1a (5) | C107: =IF(ISERROR(INDIRECT("'3.09.1a (5)'!b24"))=TRUE,"",INDIRECT("'3.09.1a (5)'!b24")) ->  | D107: =IF(ISERROR(INDIRECT("'3.09.1a (5)'!c24"))=TRUE,"",INDIRECT("'3.09.1a (5)'!c24")) ->  | E107: =IF(ISERROR(INDIRECT("'3.09.1a (5)'!d24"))=TRUE,"",INDIRECT("'3.09.1a (5)'!d24")) ->  | F107: =IF(ISERROR(INDIRECT("'3.09.1a (5)'!e24"))=TRUE,"",INDIRECT("'3.09.1a (5)'!e24")) ->  | G107: =IF(ISERROR(INDIRECT("'3.09.1a (5)'!f24"))=TRUE,"",INDIRECT("'3.09.1a (5)'!f24")) ->  | H107: =IF(ISERROR(INDIRECT("'3.09.1a (5)'!g24"))=TRUE,"",INDIRECT("'3.09.1a (5)'!g24")) ->  | I107: =IF(ISERROR(INDIRECT("'3.09.1a (5)'!h24"))=TRUE,"",INDIRECT("'3.09.1a (5)'!h24")) ->  | J107: =IF(ISERROR(INDIRECT("'3.09.1a (5)'!i24"))=TRUE,"",INDIRECT("'3.09.1a (5)'!i24")) ->  | K107: =IF(ISERROR(INDIRECT("'3.09.1a (5)'!j24"))=TRUE,"",INDIRECT("'3.09.1a (5)'!j24")) ->  | L107: =IF(ISERROR(INDIRECT("'3.09.1a (5)'!o24"))=TRUE,"",INDIRECT("'3.09.1a (5)'!o24")) ->  | M107: =IF(ISERROR(INDIRECT("'3.09.1a (5)'!p24"))=TRUE,"",INDIRECT("'3.09.1a (5)'!p24")) ->  | N107: =IF(ISERROR(INDIRECT("'3.09.1a (5)'!q24"))=TRUE,"",INDIRECT("'3.09.1a (5)'!q24")) ->  | O107: =IF(ISERROR(INDIRECT("'3.09.1a (5)'!s24"))=TRUE,"",INDIRECT("'3.09.1a (5)'!s24")) ->  | P107: =IF(ISERROR(INDIRECT("'3.09.1a (5)'!t24"))=TRUE,"",INDIRECT("'3.09.1a (5)'!t24")) ->  | Q107: =IF(ISERROR(INDIRECT("'3.09.1a (5)'!u24"))=TRUE,"",INDIRECT("'3.09.1a (5)'!u24")) ->  | R107: =IF(ISERROR(INDIRECT("'3.09.1a (5)'!v24"))=TRUE,"",INDIRECT("'3.09.1a (5)'!v24")) ->  | S107: =IF(ISERROR(INDIRECT("'3.09.1a (5)'!w24"))=TRUE,"",INDIRECT("'3.09.1a (5)'!w24")) ->  | T107: =IF(ISERROR(INDIRECT("'3.09.1a (5)'!x24"))=TRUE,"",INDIRECT("'3.09.1a (5)'!x24")) ->  | U107: =IF(ISERROR(INDIRECT("'3.09.1a (5)'!aa24"))=TRUE,"",INDIRECT("'3.09.1a (5)'!aa24")) ->  | V107: =IF(ISERROR(INDIRECT("'3.09.1a (5)'!ad24"))=TRUE,"",INDIRECT("'3.09.1a (5)'!ad24")) ->  | W107: =IF(ISERROR(INDIRECT("'3.09.1a (5)'!ah24"))=TRUE,"",INDIRECT("'3.09.1a (5)'!ah24")) ->  | X107: =IF(ISERROR(INDIRECT("'3.09.1a (5)'!am24"))=TRUE,"",INDIRECT("'3.09.1a (5)'!am24")) -> 
A108: 0 | B108: 3.09.1a (5) | C108: =IF(ISERROR(INDIRECT("'3.09.1a (5)'!b25"))=TRUE,"",INDIRECT("'3.09.1a (5)'!b25")) ->  | D108: =IF(ISERROR(INDIRECT("'3.09.1a (5)'!c25"))=TRUE,"",INDIRECT("'3.09.1a (5)'!c25")) ->  | E108: =IF(ISERROR(INDIRECT("'3.09.1a (5)'!d25"))=TRUE,"",INDIRECT("'3.09.1a (5)'!d25")) ->  | F108: =IF(ISERROR(INDIRECT("'3.09.1a (5)'!e25"))=TRUE,"",INDIRECT("'3.09.1a (5)'!e25")) ->  | G108: =IF(ISERROR(INDIRECT("'3.09.1a (5)'!f25"))=TRUE,"",INDIRECT("'3.09.1a (5)'!f25")) ->  | H108: =IF(ISERROR(INDIRECT("'3.09.1a (5)'!g25"))=TRUE,"",INDIRECT("'3.09.1a (5)'!g25")) ->  | I108: =IF(ISERROR(INDIRECT("'3.09.1a (5)'!h25"))=TRUE,"",INDIRECT("'3.09.1a (5)'!h25")) ->  | J108: =IF(ISERROR(INDIRECT("'3.09.1a (5)'!i25"))=TRUE,"",INDIRECT("'3.09.1a (5)'!i25")) ->  | K108: =IF(ISERROR(INDIRECT("'3.09.1a (5)'!j25"))=TRUE,"",INDIRECT("'3.09.1a (5)'!j25")) ->  | L108: =IF(ISERROR(INDIRECT("'3.09.1a (5)'!o25"))=TRUE,"",INDIRECT("'3.09.1a (5)'!o25")) ->  | M108: =IF(ISERROR(INDIRECT("'3.09.1a (5)'!p25"))=TRUE,"",INDIRECT("'3.09.1a (5)'!p25")) ->  | N108: =IF(ISERROR(INDIRECT("'3.09.1a (5)'!q25"))=TRUE,"",INDIRECT("'3.09.1a (5)'!q25")) ->  | O108: =IF(ISERROR(INDIRECT("'3.09.1a (5)'!s25"))=TRUE,"",INDIRECT("'3.09.1a (5)'!s25")) ->  | P108: =IF(ISERROR(INDIRECT("'3.09.1a (5)'!t25"))=TRUE,"",INDIRECT("'3.09.1a (5)'!t25")) ->  | Q108: =IF(ISERROR(INDIRECT("'3.09.1a (5)'!u25"))=TRUE,"",INDIRECT("'3.09.1a (5)'!u25")) ->  | R108: =IF(ISERROR(INDIRECT("'3.09.1a (5)'!v25"))=TRUE,"",INDIRECT("'3.09.1a (5)'!v25")) ->  | S108: =IF(ISERROR(INDIRECT("'3.09.1a (5)'!w25"))=TRUE,"",INDIRECT("'3.09.1a (5)'!w25")) ->  | T108: =IF(ISERROR(INDIRECT("'3.09.1a (5)'!x25"))=TRUE,"",INDIRECT("'3.09.1a (5)'!x25")) ->  | U108: =IF(ISERROR(INDIRECT("'3.09.1a (5)'!aa25"))=TRUE,"",INDIRECT("'3.09.1a (5)'!aa25")) ->  | V108: =IF(ISERROR(INDIRECT("'3.09.1a (5)'!ad25"))=TRUE,"",INDIRECT("'3.09.1a (5)'!ad25")) ->  | W108: =IF(ISERROR(INDIRECT("'3.09.1a (5)'!ah25"))=TRUE,"",INDIRECT("'3.09.1a (5)'!ah25")) ->  | X108: =IF(ISERROR(INDIRECT("'3.09.1a (5)'!am25"))=TRUE,"",INDIRECT("'3.09.1a (5)'!am25")) -> 
A109: 0 | B109: 3.09.1a (5) | C109: =IF(ISERROR(INDIRECT("'3.09.1a (5)'!b26"))=TRUE,"",INDIRECT("'3.09.1a (5)'!b26")) ->  | D109: =IF(ISERROR(INDIRECT("'3.09.1a (5)'!c26"))=TRUE,"",INDIRECT("'3.09.1a (5)'!c26")) ->  | E109: =IF(ISERROR(INDIRECT("'3.09.1a (5)'!d26"))=TRUE,"",INDIRECT("'3.09.1a (5)'!d26")) ->  | F109: =IF(ISERROR(INDIRECT("'3.09.1a (5)'!e26"))=TRUE,"",INDIRECT("'3.09.1a (5)'!e26")) ->  | G109: =IF(ISERROR(INDIRECT("'3.09.1a (5)'!f26"))=TRUE,"",INDIRECT("'3.09.1a (5)'!f26")) ->  | H109: =IF(ISERROR(INDIRECT("'3.09.1a (5)'!g26"))=TRUE,"",INDIRECT("'3.09.1a (5)'!g26")) ->  | I109: =IF(ISERROR(INDIRECT("'3.09.1a (5)'!h26"))=TRUE,"",INDIRECT("'3.09.1a (5)'!h26")) ->  | J109: =IF(ISERROR(INDIRECT("'3.09.1a (5)'!i26"))=TRUE,"",INDIRECT("'3.09.1a (5)'!i26")) ->  | K109: =IF(ISERROR(INDIRECT("'3.09.1a (5)'!j26"))=TRUE,"",INDIRECT("'3.09.1a (5)'!j26")) ->  | L109: =IF(ISERROR(INDIRECT("'3.09.1a (5)'!o26"))=TRUE,"",INDIRECT("'3.09.1a (5)'!o26")) ->  | M109: =IF(ISERROR(INDIRECT("'3.09.1a (5)'!p26"))=TRUE,"",INDIRECT("'3.09.1a (5)'!p26")) ->  | N109: =IF(ISERROR(INDIRECT("'3.09.1a (5)'!q26"))=TRUE,"",INDIRECT("'3.09.1a (5)'!q26")) ->  | O109: =IF(ISERROR(INDIRECT("'3.09.1a (5)'!s26"))=TRUE,"",INDIRECT("'3.09.1a (5)'!s26")) ->  | P109: =IF(ISERROR(INDIRECT("'3.09.1a (5)'!t26"))=TRUE,"",INDIRECT("'3.09.1a (5)'!t26")) ->  | Q109: =IF(ISERROR(INDIRECT("'3.09.1a (5)'!u26"))=TRUE,"",INDIRECT("'3.09.1a (5)'!u26")) ->  | R109: =IF(ISERROR(INDIRECT("'3.09.1a (5)'!v26"))=TRUE,"",INDIRECT("'3.09.1a (5)'!v26")) ->  | S109: =IF(ISERROR(INDIRECT("'3.09.1a (5)'!w26"))=TRUE,"",INDIRECT("'3.09.1a (5)'!w26")) ->  | T109: =IF(ISERROR(INDIRECT("'3.09.1a (5)'!x26"))=TRUE,"",INDIRECT("'3.09.1a (5)'!x26")) ->  | U109: =IF(ISERROR(INDIRECT("'3.09.1a (5)'!aa26"))=TRUE,"",INDIRECT("'3.09.1a (5)'!aa26")) ->  | V109: =IF(ISERROR(INDIRECT("'3.09.1a (5)'!ad26"))=TRUE,"",INDIRECT("'3.09.1a (5)'!ad26")) ->  | W109: =IF(ISERROR(INDIRECT("'3.09.1a (5)'!ah26"))=TRUE,"",INDIRECT("'3.09.1a (5)'!ah26")) ->  | X109: =IF(ISERROR(INDIRECT("'3.09.1a (5)'!am26"))=TRUE,"",INDIRECT("'3.09.1a (5)'!am26")) -> 
A110: 0 | B110: 3.09.1a (5) | C110: =IF(ISERROR(INDIRECT("'3.09.1a (5)'!b27"))=TRUE,"",INDIRECT("'3.09.1a (5)'!b27")) ->  | D110: =IF(ISERROR(INDIRECT("'3.09.1a (5)'!c27"))=TRUE,"",INDIRECT("'3.09.1a (5)'!c27")) ->  | E110: =IF(ISERROR(INDIRECT("'3.09.1a (5)'!d27"))=TRUE,"",INDIRECT("'3.09.1a (5)'!d27")) ->  | F110: =IF(ISERROR(INDIRECT("'3.09.1a (5)'!e27"))=TRUE,"",INDIRECT("'3.09.1a (5)'!e27")) ->  | G110: =IF(ISERROR(INDIRECT("'3.09.1a (5)'!f27"))=TRUE,"",INDIRECT("'3.09.1a (5)'!f27")) ->  | H110: =IF(ISERROR(INDIRECT("'3.09.1a (5)'!g27"))=TRUE,"",INDIRECT("'3.09.1a (5)'!g27")) ->  | I110: =IF(ISERROR(INDIRECT("'3.09.1a (5)'!h27"))=TRUE,"",INDIRECT("'3.09.1a (5)'!h27")) ->  | J110: =IF(ISERROR(INDIRECT("'3.09.1a (5)'!i27"))=TRUE,"",INDIRECT("'3.09.1a (5)'!i27")) ->  | K110: =IF(ISERROR(INDIRECT("'3.09.1a (5)'!j27"))=TRUE,"",INDIRECT("'3.09.1a (5)'!j27")) ->  | L110: =IF(ISERROR(INDIRECT("'3.09.1a (5)'!o27"))=TRUE,"",INDIRECT("'3.09.1a (5)'!o27")) ->  | M110: =IF(ISERROR(INDIRECT("'3.09.1a (5)'!p27"))=TRUE,"",INDIRECT("'3.09.1a (5)'!p27")) ->  | N110: =IF(ISERROR(INDIRECT("'3.09.1a (5)'!q27"))=TRUE,"",INDIRECT("'3.09.1a (5)'!q27")) ->  | O110: =IF(ISERROR(INDIRECT("'3.09.1a (5)'!s27"))=TRUE,"",INDIRECT("'3.09.1a (5)'!s27")) ->  | P110: =IF(ISERROR(INDIRECT("'3.09.1a (5)'!t27"))=TRUE,"",INDIRECT("'3.09.1a (5)'!t27")) ->  | Q110: =IF(ISERROR(INDIRECT("'3.09.1a (5)'!u27"))=TRUE,"",INDIRECT("'3.09.1a (5)'!u27")) ->  | R110: =IF(ISERROR(INDIRECT("'3.09.1a (5)'!v27"))=TRUE,"",INDIRECT("'3.09.1a (5)'!v27")) ->  | S110: =IF(ISERROR(INDIRECT("'3.09.1a (5)'!w27"))=TRUE,"",INDIRECT("'3.09.1a (5)'!w27")) ->  | T110: =IF(ISERROR(INDIRECT("'3.09.1a (5)'!x27"))=TRUE,"",INDIRECT("'3.09.1a (5)'!x27")) ->  | U110: =IF(ISERROR(INDIRECT("'3.09.1a (5)'!aa27"))=TRUE,"",INDIRECT("'3.09.1a (5)'!aa27")) ->  | V110: =IF(ISERROR(INDIRECT("'3.09.1a (5)'!ad27"))=TRUE,"",INDIRECT("'3.09.1a (5)'!ad27")) ->  | W110: =IF(ISERROR(INDIRECT("'3.09.1a (5)'!ah27"))=TRUE,"",INDIRECT("'3.09.1a (5)'!ah27")) ->  | X110: =IF(ISERROR(INDIRECT("'3.09.1a (5)'!am27"))=TRUE,"",INDIRECT("'3.09.1a (5)'!am27")) -> 
A111: 0 | B111: 3.09.1a (5) | C111: =IF(ISERROR(INDIRECT("'3.09.1a (5)'!b28"))=TRUE,"",INDIRECT("'3.09.1a (5)'!b28")) ->  | D111: =IF(ISERROR(INDIRECT("'3.09.1a (5)'!c28"))=TRUE,"",INDIRECT("'3.09.1a (5)'!c28")) ->  | E111: =IF(ISERROR(INDIRECT("'3.09.1a (5)'!d28"))=TRUE,"",INDIRECT("'3.09.1a (5)'!d28")) ->  | F111: =IF(ISERROR(INDIRECT("'3.09.1a (5)'!e28"))=TRUE,"",INDIRECT("'3.09.1a (5)'!e28")) ->  | G111: =IF(ISERROR(INDIRECT("'3.09.1a (5)'!f28"))=TRUE,"",INDIRECT("'3.09.1a (5)'!f28")) ->  | H111: =IF(ISERROR(INDIRECT("'3.09.1a (5)'!g28"))=TRUE,"",INDIRECT("'3.09.1a (5)'!g28")) ->  | I111: =IF(ISERROR(INDIRECT("'3.09.1a (5)'!h28"))=TRUE,"",INDIRECT("'3.09.1a (5)'!h28")) ->  | J111: =IF(ISERROR(INDIRECT("'3.09.1a (5)'!i28"))=TRUE,"",INDIRECT("'3.09.1a (5)'!i28")) ->  | K111: =IF(ISERROR(INDIRECT("'3.09.1a (5)'!j28"))=TRUE,"",INDIRECT("'3.09.1a (5)'!j28")) ->  | L111: =IF(ISERROR(INDIRECT("'3.09.1a (5)'!o28"))=TRUE,"",INDIRECT("'3.09.1a (5)'!o28")) ->  | M111: =IF(ISERROR(INDIRECT("'3.09.1a (5)'!p28"))=TRUE,"",INDIRECT("'3.09.1a (5)'!p28")) ->  | N111: =IF(ISERROR(INDIRECT("'3.09.1a (5)'!q28"))=TRUE,"",INDIRECT("'3.09.1a (5)'!q28")) ->  | O111: =IF(ISERROR(INDIRECT("'3.09.1a (5)'!s28"))=TRUE,"",INDIRECT("'3.09.1a (5)'!s28")) ->  | P111: =IF(ISERROR(INDIRECT("'3.09.1a (5)'!t28"))=TRUE,"",INDIRECT("'3.09.1a (5)'!t28")) ->  | Q111: =IF(ISERROR(INDIRECT("'3.09.1a (5)'!u28"))=TRUE,"",INDIRECT("'3.09.1a (5)'!u28")) ->  | R111: =IF(ISERROR(INDIRECT("'3.09.1a (5)'!v28"))=TRUE,"",INDIRECT("'3.09.1a (5)'!v28")) ->  | S111: =IF(ISERROR(INDIRECT("'3.09.1a (5)'!w28"))=TRUE,"",INDIRECT("'3.09.1a (5)'!w28")) ->  | T111: =IF(ISERROR(INDIRECT("'3.09.1a (5)'!x28"))=TRUE,"",INDIRECT("'3.09.1a (5)'!x28")) ->  | U111: =IF(ISERROR(INDIRECT("'3.09.1a (5)'!aa28"))=TRUE,"",INDIRECT("'3.09.1a (5)'!aa28")) ->  | V111: =IF(ISERROR(INDIRECT("'3.09.1a (5)'!ad28"))=TRUE,"",INDIRECT("'3.09.1a (5)'!ad28")) ->  | W111: =IF(ISERROR(INDIRECT("'3.09.1a (5)'!ah28"))=TRUE,"",INDIRECT("'3.09.1a (5)'!ah28")) ->  | X111: =IF(ISERROR(INDIRECT("'3.09.1a (5)'!am28"))=TRUE,"",INDIRECT("'3.09.1a (5)'!am28")) -> 
A112: 0 | B112: 3.09.1a (5) | C112: =IF(ISERROR(INDIRECT("'3.09.1a (5)'!b29"))=TRUE,"",INDIRECT("'3.09.1a (5)'!b29")) ->  | D112: =IF(ISERROR(INDIRECT("'3.09.1a (5)'!c29"))=TRUE,"",INDIRECT("'3.09.1a (5)'!c29")) ->  | E112: =IF(ISERROR(INDIRECT("'3.09.1a (5)'!d29"))=TRUE,"",INDIRECT("'3.09.1a (5)'!d29")) ->  | F112: =IF(ISERROR(INDIRECT("'3.09.1a (5)'!e29"))=TRUE,"",INDIRECT("'3.09.1a (5)'!e29")) ->  | G112: =IF(ISERROR(INDIRECT("'3.09.1a (5)'!f29"))=TRUE,"",INDIRECT("'3.09.1a (5)'!f29")) ->  | H112: =IF(ISERROR(INDIRECT("'3.09.1a (5)'!g29"))=TRUE,"",INDIRECT("'3.09.1a (5)'!g29")) ->  | I112: =IF(ISERROR(INDIRECT("'3.09.1a (5)'!h29"))=TRUE,"",INDIRECT("'3.09.1a (5)'!h29")) ->  | J112: =IF(ISERROR(INDIRECT("'3.09.1a (5)'!i29"))=TRUE,"",INDIRECT("'3.09.1a (5)'!i29")) ->  | K112: =IF(ISERROR(INDIRECT("'3.09.1a (5)'!j29"))=TRUE,"",INDIRECT("'3.09.1a (5)'!j29")) ->  | L112: =IF(ISERROR(INDIRECT("'3.09.1a (5)'!o29"))=TRUE,"",INDIRECT("'3.09.1a (5)'!o29")) ->  | M112: =IF(ISERROR(INDIRECT("'3.09.1a (5)'!p29"))=TRUE,"",INDIRECT("'3.09.1a (5)'!p29")) ->  | N112: =IF(ISERROR(INDIRECT("'3.09.1a (5)'!q29"))=TRUE,"",INDIRECT("'3.09.1a (5)'!q29")) ->  | O112: =IF(ISERROR(INDIRECT("'3.09.1a (5)'!s29"))=TRUE,"",INDIRECT("'3.09.1a (5)'!s29")) ->  | P112: =IF(ISERROR(INDIRECT("'3.09.1a (5)'!t29"))=TRUE,"",INDIRECT("'3.09.1a (5)'!t29")) ->  | Q112: =IF(ISERROR(INDIRECT("'3.09.1a (5)'!u29"))=TRUE,"",INDIRECT("'3.09.1a (5)'!u29")) ->  | R112: =IF(ISERROR(INDIRECT("'3.09.1a (5)'!v29"))=TRUE,"",INDIRECT("'3.09.1a (5)'!v29")) ->  | S112: =IF(ISERROR(INDIRECT("'3.09.1a (5)'!w29"))=TRUE,"",INDIRECT("'3.09.1a (5)'!w29")) ->  | T112: =IF(ISERROR(INDIRECT("'3.09.1a (5)'!x29"))=TRUE,"",INDIRECT("'3.09.1a (5)'!x29")) ->  | U112: =IF(ISERROR(INDIRECT("'3.09.1a (5)'!aa29"))=TRUE,"",INDIRECT("'3.09.1a (5)'!aa29")) ->  | V112: =IF(ISERROR(INDIRECT("'3.09.1a (5)'!ad29"))=TRUE,"",INDIRECT("'3.09.1a (5)'!ad29")) ->  | W112: =IF(ISERROR(INDIRECT("'3.09.1a (5)'!ah29"))=TRUE,"",INDIRECT("'3.09.1a (5)'!ah29")) ->  | X112: =IF(ISERROR(INDIRECT("'3.09.1a (5)'!am29"))=TRUE,"",INDIRECT("'3.09.1a (5)'!am29")) -> 
A113: 0 | B113: 3.09.1a (5) | C113: =IF(ISERROR(INDIRECT("'3.09.1a (5)'!b30"))=TRUE,"",INDIRECT("'3.09.1a (5)'!b30")) ->  | D113: =IF(ISERROR(INDIRECT("'3.09.1a (5)'!c30"))=TRUE,"",INDIRECT("'3.09.1a (5)'!c30")) ->  | E113: =IF(ISERROR(INDIRECT("'3.09.1a (5)'!d30"))=TRUE,"",INDIRECT("'3.09.1a (5)'!d30")) ->  | F113: =IF(ISERROR(INDIRECT("'3.09.1a (5)'!e30"))=TRUE,"",INDIRECT("'3.09.1a (5)'!e30")) ->  | G113: =IF(ISERROR(INDIRECT("'3.09.1a (5)'!f30"))=TRUE,"",INDIRECT("'3.09.1a (5)'!f30")) ->  | H113: =IF(ISERROR(INDIRECT("'3.09.1a (5)'!g30"))=TRUE,"",INDIRECT("'3.09.1a (5)'!g30")) ->  | I113: =IF(ISERROR(INDIRECT("'3.09.1a (5)'!h30"))=TRUE,"",INDIRECT("'3.09.1a (5)'!h30")) ->  | J113: =IF(ISERROR(INDIRECT("'3.09.1a (5)'!i30"))=TRUE,"",INDIRECT("'3.09.1a (5)'!i30")) ->  | K113: =IF(ISERROR(INDIRECT("'3.09.1a (5)'!j30"))=TRUE,"",INDIRECT("'3.09.1a (5)'!j30")) ->  | L113: =IF(ISERROR(INDIRECT("'3.09.1a (5)'!o30"))=TRUE,"",INDIRECT("'3.09.1a (5)'!o30")) ->  | M113: =IF(ISERROR(INDIRECT("'3.09.1a (5)'!p30"))=TRUE,"",INDIRECT("'3.09.1a (5)'!p30")) ->  | N113: =IF(ISERROR(INDIRECT("'3.09.1a (5)'!q30"))=TRUE,"",INDIRECT("'3.09.1a (5)'!q30")) ->  | O113: =IF(ISERROR(INDIRECT("'3.09.1a (5)'!s30"))=TRUE,"",INDIRECT("'3.09.1a (5)'!s30")) ->  | P113: =IF(ISERROR(INDIRECT("'3.09.1a (5)'!t30"))=TRUE,"",INDIRECT("'3.09.1a (5)'!t30")) ->  | Q113: =IF(ISERROR(INDIRECT("'3.09.1a (5)'!u30"))=TRUE,"",INDIRECT("'3.09.1a (5)'!u30")) ->  | R113: =IF(ISERROR(INDIRECT("'3.09.1a (5)'!v30"))=TRUE,"",INDIRECT("'3.09.1a (5)'!v30")) ->  | S113: =IF(ISERROR(INDIRECT("'3.09.1a (5)'!w30"))=TRUE,"",INDIRECT("'3.09.1a (5)'!w30")) ->  | T113: =IF(ISERROR(INDIRECT("'3.09.1a (5)'!x30"))=TRUE,"",INDIRECT("'3.09.1a (5)'!x30")) ->  | U113: =IF(ISERROR(INDIRECT("'3.09.1a (5)'!aa30"))=TRUE,"",INDIRECT("'3.09.1a (5)'!aa30")) ->  | V113: =IF(ISERROR(INDIRECT("'3.09.1a (5)'!ad30"))=TRUE,"",INDIRECT("'3.09.1a (5)'!ad30")) ->  | W113: =IF(ISERROR(INDIRECT("'3.09.1a (5)'!ah30"))=TRUE,"",INDIRECT("'3.09.1a (5)'!ah30")) ->  | X113: =IF(ISERROR(INDIRECT("'3.09.1a (5)'!am30"))=TRUE,"",INDIRECT("'3.09.1a (5)'!am30")) -> 
A114: 0 | B114: 3.09.1a (5) | C114: =IF(ISERROR(INDIRECT("'3.09.1a (5)'!b31"))=TRUE,"",INDIRECT("'3.09.1a (5)'!b31")) ->  | D114: =IF(ISERROR(INDIRECT("'3.09.1a (5)'!c31"))=TRUE,"",INDIRECT("'3.09.1a (5)'!c31")) ->  | E114: =IF(ISERROR(INDIRECT("'3.09.1a (5)'!d31"))=TRUE,"",INDIRECT("'3.09.1a (5)'!d31")) ->  | F114: =IF(ISERROR(INDIRECT("'3.09.1a (5)'!e31"))=TRUE,"",INDIRECT("'3.09.1a (5)'!e31")) ->  | G114: =IF(ISERROR(INDIRECT("'3.09.1a (5)'!f31"))=TRUE,"",INDIRECT("'3.09.1a (5)'!f31")) ->  | H114: =IF(ISERROR(INDIRECT("'3.09.1a (5)'!g31"))=TRUE,"",INDIRECT("'3.09.1a (5)'!g31")) ->  | I114: =IF(ISERROR(INDIRECT("'3.09.1a (5)'!h31"))=TRUE,"",INDIRECT("'3.09.1a (5)'!h31")) ->  | J114: =IF(ISERROR(INDIRECT("'3.09.1a (5)'!i31"))=TRUE,"",INDIRECT("'3.09.1a (5)'!i31")) ->  | K114: =IF(ISERROR(INDIRECT("'3.09.1a (5)'!j31"))=TRUE,"",INDIRECT("'3.09.1a (5)'!j31")) ->  | L114: =IF(ISERROR(INDIRECT("'3.09.1a (5)'!o31"))=TRUE,"",INDIRECT("'3.09.1a (5)'!o31")) ->  | M114: =IF(ISERROR(INDIRECT("'3.09.1a (5)'!p31"))=TRUE,"",INDIRECT("'3.09.1a (5)'!p31")) ->  | N114: =IF(ISERROR(INDIRECT("'3.09.1a (5)'!q31"))=TRUE,"",INDIRECT("'3.09.1a (5)'!q31")) ->  | O114: =IF(ISERROR(INDIRECT("'3.09.1a (5)'!s31"))=TRUE,"",INDIRECT("'3.09.1a (5)'!s31")) ->  | P114: =IF(ISERROR(INDIRECT("'3.09.1a (5)'!t31"))=TRUE,"",INDIRECT("'3.09.1a (5)'!t31")) ->  | Q114: =IF(ISERROR(INDIRECT("'3.09.1a (5)'!u31"))=TRUE,"",INDIRECT("'3.09.1a (5)'!u31")) ->  | R114: =IF(ISERROR(INDIRECT("'3.09.1a (5)'!v31"))=TRUE,"",INDIRECT("'3.09.1a (5)'!v31")) ->  | S114: =IF(ISERROR(INDIRECT("'3.09.1a (5)'!w31"))=TRUE,"",INDIRECT("'3.09.1a (5)'!w31")) ->  | T114: =IF(ISERROR(INDIRECT("'3.09.1a (5)'!x31"))=TRUE,"",INDIRECT("'3.09.1a (5)'!x31")) ->  | U114: =IF(ISERROR(INDIRECT("'3.09.1a (5)'!aa31"))=TRUE,"",INDIRECT("'3.09.1a (5)'!aa31")) ->  | V114: =IF(ISERROR(INDIRECT("'3.09.1a (5)'!ad31"))=TRUE,"",INDIRECT("'3.09.1a (5)'!ad31")) ->  | W114: =IF(ISERROR(INDIRECT("'3.09.1a (5)'!ah31"))=TRUE,"",INDIRECT("'3.09.1a (5)'!ah31")) ->  | X114: =IF(ISERROR(INDIRECT("'3.09.1a (5)'!am31"))=TRUE,"",INDIRECT("'3.09.1a (5)'!am31")) -> 
A115: 0 | B115: 3.09.1a (5) | C115: =IF(ISERROR(INDIRECT("'3.09.1a (5)'!b32"))=TRUE,"",INDIRECT("'3.09.1a (5)'!b32")) ->  | D115: =IF(ISERROR(INDIRECT("'3.09.1a (5)'!c32"))=TRUE,"",INDIRECT("'3.09.1a (5)'!c32")) ->  | E115: =IF(ISERROR(INDIRECT("'3.09.1a (5)'!d32"))=TRUE,"",INDIRECT("'3.09.1a (5)'!d32")) ->  | F115: =IF(ISERROR(INDIRECT("'3.09.1a (5)'!e32"))=TRUE,"",INDIRECT("'3.09.1a (5)'!e32")) ->  | G115: =IF(ISERROR(INDIRECT("'3.09.1a (5)'!f32"))=TRUE,"",INDIRECT("'3.09.1a (5)'!f32")) ->  | H115: =IF(ISERROR(INDIRECT("'3.09.1a (5)'!g32"))=TRUE,"",INDIRECT("'3.09.1a (5)'!g32")) ->  | I115: =IF(ISERROR(INDIRECT("'3.09.1a (5)'!h32"))=TRUE,"",INDIRECT("'3.09.1a (5)'!h32")) ->  | J115: =IF(ISERROR(INDIRECT("'3.09.1a (5)'!i32"))=TRUE,"",INDIRECT("'3.09.1a (5)'!i32")) ->  | K115: =IF(ISERROR(INDIRECT("'3.09.1a (5)'!j32"))=TRUE,"",INDIRECT("'3.09.1a (5)'!j32")) ->  | L115: =IF(ISERROR(INDIRECT("'3.09.1a (5)'!o32"))=TRUE,"",INDIRECT("'3.09.1a (5)'!o32")) ->  | M115: =IF(ISERROR(INDIRECT("'3.09.1a (5)'!p32"))=TRUE,"",INDIRECT("'3.09.1a (5)'!p32")) ->  | N115: =IF(ISERROR(INDIRECT("'3.09.1a (5)'!q32"))=TRUE,"",INDIRECT("'3.09.1a (5)'!q32")) ->  | O115: =IF(ISERROR(INDIRECT("'3.09.1a (5)'!s32"))=TRUE,"",INDIRECT("'3.09.1a (5)'!s32")) ->  | P115: =IF(ISERROR(INDIRECT("'3.09.1a (5)'!t32"))=TRUE,"",INDIRECT("'3.09.1a (5)'!t32")) ->  | Q115: =IF(ISERROR(INDIRECT("'3.09.1a (5)'!u32"))=TRUE,"",INDIRECT("'3.09.1a (5)'!u32")) ->  | R115: =IF(ISERROR(INDIRECT("'3.09.1a (5)'!v32"))=TRUE,"",INDIRECT("'3.09.1a (5)'!v32")) ->  | S115: =IF(ISERROR(INDIRECT("'3.09.1a (5)'!w32"))=TRUE,"",INDIRECT("'3.09.1a (5)'!w32")) ->  | T115: =IF(ISERROR(INDIRECT("'3.09.1a (5)'!x32"))=TRUE,"",INDIRECT("'3.09.1a (5)'!x32")) ->  | U115: =IF(ISERROR(INDIRECT("'3.09.1a (5)'!aa32"))=TRUE,"",INDIRECT("'3.09.1a (5)'!aa32")) ->  | V115: =IF(ISERROR(INDIRECT("'3.09.1a (5)'!ad32"))=TRUE,"",INDIRECT("'3.09.1a (5)'!ad32")) ->  | W115: =IF(ISERROR(INDIRECT("'3.09.1a (5)'!ah32"))=TRUE,"",INDIRECT("'3.09.1a (5)'!ah32")) ->  | X115: =IF(ISERROR(INDIRECT("'3.09.1a (5)'!am32"))=TRUE,"",INDIRECT("'3.09.1a (5)'!am32")) -> 
A116: 0 | B116: 3.09.1a (5) | C116: =IF(ISERROR(INDIRECT("'3.09.1a (5)'!b33"))=TRUE,"",INDIRECT("'3.09.1a (5)'!b33")) ->  | D116: =IF(ISERROR(INDIRECT("'3.09.1a (5)'!c33"))=TRUE,"",INDIRECT("'3.09.1a (5)'!c33")) ->  | E116: =IF(ISERROR(INDIRECT("'3.09.1a (5)'!d33"))=TRUE,"",INDIRECT("'3.09.1a (5)'!d33")) ->  | F116: =IF(ISERROR(INDIRECT("'3.09.1a (5)'!e33"))=TRUE,"",INDIRECT("'3.09.1a (5)'!e33")) ->  | G116: =IF(ISERROR(INDIRECT("'3.09.1a (5)'!f33"))=TRUE,"",INDIRECT("'3.09.1a (5)'!f33")) ->  | H116: =IF(ISERROR(INDIRECT("'3.09.1a (5)'!g33"))=TRUE,"",INDIRECT("'3.09.1a (5)'!g33")) ->  | I116: =IF(ISERROR(INDIRECT("'3.09.1a (5)'!h33"))=TRUE,"",INDIRECT("'3.09.1a (5)'!h33")) ->  | J116: =IF(ISERROR(INDIRECT("'3.09.1a (5)'!i33"))=TRUE,"",INDIRECT("'3.09.1a (5)'!i33")) ->  | K116: =IF(ISERROR(INDIRECT("'3.09.1a (5)'!j33"))=TRUE,"",INDIRECT("'3.09.1a (5)'!j33")) ->  | L116: =IF(ISERROR(INDIRECT("'3.09.1a (5)'!o33"))=TRUE,"",INDIRECT("'3.09.1a (5)'!o33")) ->  | M116: =IF(ISERROR(INDIRECT("'3.09.1a (5)'!p33"))=TRUE,"",INDIRECT("'3.09.1a (5)'!p33")) ->  | N116: =IF(ISERROR(INDIRECT("'3.09.1a (5)'!q33"))=TRUE,"",INDIRECT("'3.09.1a (5)'!q33")) ->  | O116: =IF(ISERROR(INDIRECT("'3.09.1a (5)'!s33"))=TRUE,"",INDIRECT("'3.09.1a (5)'!s33")) ->  | P116: =IF(ISERROR(INDIRECT("'3.09.1a (5)'!t33"))=TRUE,"",INDIRECT("'3.09.1a (5)'!t33")) ->  | Q116: =IF(ISERROR(INDIRECT("'3.09.1a (5)'!u33"))=TRUE,"",INDIRECT("'3.09.1a (5)'!u33")) ->  | R116: =IF(ISERROR(INDIRECT("'3.09.1a (5)'!v33"))=TRUE,"",INDIRECT("'3.09.1a (5)'!v33")) ->  | S116: =IF(ISERROR(INDIRECT("'3.09.1a (5)'!w33"))=TRUE,"",INDIRECT("'3.09.1a (5)'!w33")) ->  | T116: =IF(ISERROR(INDIRECT("'3.09.1a (5)'!x33"))=TRUE,"",INDIRECT("'3.09.1a (5)'!x33")) ->  | U116: =IF(ISERROR(INDIRECT("'3.09.1a (5)'!aa33"))=TRUE,"",INDIRECT("'3.09.1a (5)'!aa33")) ->  | V116: =IF(ISERROR(INDIRECT("'3.09.1a (5)'!ad33"))=TRUE,"",INDIRECT("'3.09.1a (5)'!ad33")) ->  | W116: =IF(ISERROR(INDIRECT("'3.09.1a (5)'!ah33"))=TRUE,"",INDIRECT("'3.09.1a (5)'!ah33")) ->  | X116: =IF(ISERROR(INDIRECT("'3.09.1a (5)'!am33"))=TRUE,"",INDIRECT("'3.09.1a (5)'!am33")) -> 
A117: 0 | B117: 3.09.1a (5) | C117: =IF(ISERROR(INDIRECT("'3.09.1a (5)'!b34"))=TRUE,"",INDIRECT("'3.09.1a (5)'!b34")) ->  | D117: =IF(ISERROR(INDIRECT("'3.09.1a (5)'!c34"))=TRUE,"",INDIRECT("'3.09.1a (5)'!c34")) ->  | E117: =IF(ISERROR(INDIRECT("'3.09.1a (5)'!d34"))=TRUE,"",INDIRECT("'3.09.1a (5)'!d34")) ->  | F117: =IF(ISERROR(INDIRECT("'3.09.1a (5)'!e34"))=TRUE,"",INDIRECT("'3.09.1a (5)'!e34")) ->  | G117: =IF(ISERROR(INDIRECT("'3.09.1a (5)'!f34"))=TRUE,"",INDIRECT("'3.09.1a (5)'!f34")) ->  | H117: =IF(ISERROR(INDIRECT("'3.09.1a (5)'!g34"))=TRUE,"",INDIRECT("'3.09.1a (5)'!g34")) ->  | I117: =IF(ISERROR(INDIRECT("'3.09.1a (5)'!h34"))=TRUE,"",INDIRECT("'3.09.1a (5)'!h34")) ->  | J117: =IF(ISERROR(INDIRECT("'3.09.1a (5)'!i34"))=TRUE,"",INDIRECT("'3.09.1a (5)'!i34")) ->  | K117: =IF(ISERROR(INDIRECT("'3.09.1a (5)'!j34"))=TRUE,"",INDIRECT("'3.09.1a (5)'!j34")) ->  | L117: =IF(ISERROR(INDIRECT("'3.09.1a (5)'!o34"))=TRUE,"",INDIRECT("'3.09.1a (5)'!o34")) ->  | M117: =IF(ISERROR(INDIRECT("'3.09.1a (5)'!p34"))=TRUE,"",INDIRECT("'3.09.1a (5)'!p34")) ->  | N117: =IF(ISERROR(INDIRECT("'3.09.1a (5)'!q34"))=TRUE,"",INDIRECT("'3.09.1a (5)'!q34")) ->  | O117: =IF(ISERROR(INDIRECT("'3.09.1a (5)'!s34"))=TRUE,"",INDIRECT("'3.09.1a (5)'!s34")) ->  | P117: =IF(ISERROR(INDIRECT("'3.09.1a (5)'!t34"))=TRUE,"",INDIRECT("'3.09.1a (5)'!t34")) ->  | Q117: =IF(ISERROR(INDIRECT("'3.09.1a (5)'!u34"))=TRUE,"",INDIRECT("'3.09.1a (5)'!u34")) ->  | R117: =IF(ISERROR(INDIRECT("'3.09.1a (5)'!v34"))=TRUE,"",INDIRECT("'3.09.1a (5)'!v34")) ->  | S117: =IF(ISERROR(INDIRECT("'3.09.1a (5)'!w34"))=TRUE,"",INDIRECT("'3.09.1a (5)'!w34")) ->  | T117: =IF(ISERROR(INDIRECT("'3.09.1a (5)'!x34"))=TRUE,"",INDIRECT("'3.09.1a (5)'!x34")) ->  | U117: =IF(ISERROR(INDIRECT("'3.09.1a (5)'!aa34"))=TRUE,"",INDIRECT("'3.09.1a (5)'!aa34")) ->  | V117: =IF(ISERROR(INDIRECT("'3.09.1a (5)'!ad34"))=TRUE,"",INDIRECT("'3.09.1a (5)'!ad34")) ->  | W117: =IF(ISERROR(INDIRECT("'3.09.1a (5)'!ah34"))=TRUE,"",INDIRECT("'3.09.1a (5)'!ah34")) ->  | X117: =IF(ISERROR(INDIRECT("'3.09.1a (5)'!am34"))=TRUE,"",INDIRECT("'3.09.1a (5)'!am34")) -> 
A118: 0 | B118: 3.09.1a (5) | C118: =IF(ISERROR(INDIRECT("'3.09.1a (5)'!b35"))=TRUE,"",INDIRECT("'3.09.1a (5)'!b35")) ->  | D118: =IF(ISERROR(INDIRECT("'3.09.1a (5)'!c35"))=TRUE,"",INDIRECT("'3.09.1a (5)'!c35")) ->  | E118: =IF(ISERROR(INDIRECT("'3.09.1a (5)'!d35"))=TRUE,"",INDIRECT("'3.09.1a (5)'!d35")) ->  | F118: =IF(ISERROR(INDIRECT("'3.09.1a (5)'!e35"))=TRUE,"",INDIRECT("'3.09.1a (5)'!e35")) ->  | G118: =IF(ISERROR(INDIRECT("'3.09.1a (5)'!f35"))=TRUE,"",INDIRECT("'3.09.1a (5)'!f35")) ->  | H118: =IF(ISERROR(INDIRECT("'3.09.1a (5)'!g35"))=TRUE,"",INDIRECT("'3.09.1a (5)'!g35")) ->  | I118: =IF(ISERROR(INDIRECT("'3.09.1a (5)'!h35"))=TRUE,"",INDIRECT("'3.09.1a (5)'!h35")) ->  | J118: =IF(ISERROR(INDIRECT("'3.09.1a (5)'!i35"))=TRUE,"",INDIRECT("'3.09.1a (5)'!i35")) ->  | K118: =IF(ISERROR(INDIRECT("'3.09.1a (5)'!j35"))=TRUE,"",INDIRECT("'3.09.1a (5)'!j35")) ->  | L118: =IF(ISERROR(INDIRECT("'3.09.1a (5)'!o35"))=TRUE,"",INDIRECT("'3.09.1a (5)'!o35")) ->  | M118: =IF(ISERROR(INDIRECT("'3.09.1a (5)'!p35"))=TRUE,"",INDIRECT("'3.09.1a (5)'!p35")) ->  | N118: =IF(ISERROR(INDIRECT("'3.09.1a (5)'!q35"))=TRUE,"",INDIRECT("'3.09.1a (5)'!q35")) ->  | O118: =IF(ISERROR(INDIRECT("'3.09.1a (5)'!s35"))=TRUE,"",INDIRECT("'3.09.1a (5)'!s35")) ->  | P118: =IF(ISERROR(INDIRECT("'3.09.1a (5)'!t35"))=TRUE,"",INDIRECT("'3.09.1a (5)'!t35")) ->  | Q118: =IF(ISERROR(INDIRECT("'3.09.1a (5)'!u35"))=TRUE,"",INDIRECT("'3.09.1a (5)'!u35")) ->  | R118: =IF(ISERROR(INDIRECT("'3.09.1a (5)'!v35"))=TRUE,"",INDIRECT("'3.09.1a (5)'!v35")) ->  | S118: =IF(ISERROR(INDIRECT("'3.09.1a (5)'!w35"))=TRUE,"",INDIRECT("'3.09.1a (5)'!w35")) ->  | T118: =IF(ISERROR(INDIRECT("'3.09.1a (5)'!x35"))=TRUE,"",INDIRECT("'3.09.1a (5)'!x35")) ->  | U118: =IF(ISERROR(INDIRECT("'3.09.1a (5)'!aa35"))=TRUE,"",INDIRECT("'3.09.1a (5)'!aa35")) ->  | V118: =IF(ISERROR(INDIRECT("'3.09.1a (5)'!ad35"))=TRUE,"",INDIRECT("'3.09.1a (5)'!ad35")) ->  | W118: =IF(ISERROR(INDIRECT("'3.09.1a (5)'!ah35"))=TRUE,"",INDIRECT("'3.09.1a (5)'!ah35")) ->  | X118: =IF(ISERROR(INDIRECT("'3.09.1a (5)'!am35"))=TRUE,"",INDIRECT("'3.09.1a (5)'!am35")) -> 
A119: 0 | B119: 3.09.1a (5) | C119: =IF(ISERROR(INDIRECT("'3.09.1a (5)'!b36"))=TRUE,"",INDIRECT("'3.09.1a (5)'!b36")) ->  | D119: =IF(ISERROR(INDIRECT("'3.09.1a (5)'!c36"))=TRUE,"",INDIRECT("'3.09.1a (5)'!c36")) ->  | E119: =IF(ISERROR(INDIRECT("'3.09.1a (5)'!d36"))=TRUE,"",INDIRECT("'3.09.1a (5)'!d36")) ->  | F119: =IF(ISERROR(INDIRECT("'3.09.1a (5)'!e36"))=TRUE,"",INDIRECT("'3.09.1a (5)'!e36")) ->  | G119: =IF(ISERROR(INDIRECT("'3.09.1a (5)'!f36"))=TRUE,"",INDIRECT("'3.09.1a (5)'!f36")) ->  | H119: =IF(ISERROR(INDIRECT("'3.09.1a (5)'!g36"))=TRUE,"",INDIRECT("'3.09.1a (5)'!g36")) ->  | I119: =IF(ISERROR(INDIRECT("'3.09.1a (5)'!h36"))=TRUE,"",INDIRECT("'3.09.1a (5)'!h36")) ->  | J119: =IF(ISERROR(INDIRECT("'3.09.1a (5)'!i36"))=TRUE,"",INDIRECT("'3.09.1a (5)'!i36")) ->  | K119: =IF(ISERROR(INDIRECT("'3.09.1a (5)'!j36"))=TRUE,"",INDIRECT("'3.09.1a (5)'!j36")) ->  | L119: =IF(ISERROR(INDIRECT("'3.09.1a (5)'!o36"))=TRUE,"",INDIRECT("'3.09.1a (5)'!o36")) ->  | M119: =IF(ISERROR(INDIRECT("'3.09.1a (5)'!p36"))=TRUE,"",INDIRECT("'3.09.1a (5)'!p36")) ->  | N119: =IF(ISERROR(INDIRECT("'3.09.1a (5)'!q36"))=TRUE,"",INDIRECT("'3.09.1a (5)'!q36")) ->  | O119: =IF(ISERROR(INDIRECT("'3.09.1a (5)'!s36"))=TRUE,"",INDIRECT("'3.09.1a (5)'!s36")) ->  | P119: =IF(ISERROR(INDIRECT("'3.09.1a (5)'!t36"))=TRUE,"",INDIRECT("'3.09.1a (5)'!t36")) ->  | Q119: =IF(ISERROR(INDIRECT("'3.09.1a (5)'!u36"))=TRUE,"",INDIRECT("'3.09.1a (5)'!u36")) ->  | R119: =IF(ISERROR(INDIRECT("'3.09.1a (5)'!v36"))=TRUE,"",INDIRECT("'3.09.1a (5)'!v36")) ->  | S119: =IF(ISERROR(INDIRECT("'3.09.1a (5)'!w36"))=TRUE,"",INDIRECT("'3.09.1a (5)'!w36")) ->  | T119: =IF(ISERROR(INDIRECT("'3.09.1a (5)'!x36"))=TRUE,"",INDIRECT("'3.09.1a (5)'!x36")) ->  | U119: =IF(ISERROR(INDIRECT("'3.09.1a (5)'!aa36"))=TRUE,"",INDIRECT("'3.09.1a (5)'!aa36")) ->  | V119: =IF(ISERROR(INDIRECT("'3.09.1a (5)'!ad36"))=TRUE,"",INDIRECT("'3.09.1a (5)'!ad36")) ->  | W119: =IF(ISERROR(INDIRECT("'3.09.1a (5)'!ah36"))=TRUE,"",INDIRECT("'3.09.1a (5)'!ah36")) ->  | X119: =IF(ISERROR(INDIRECT("'3.09.1a (5)'!am36"))=TRUE,"",INDIRECT("'3.09.1a (5)'!am36")) -> 
A120: 0 | B120: 3.09.1a (5) | C120: =IF(ISERROR(INDIRECT("'3.09.1a (5)'!b37"))=TRUE,"",INDIRECT("'3.09.1a (5)'!b37")) ->  | D120: =IF(ISERROR(INDIRECT("'3.09.1a (5)'!c37"))=TRUE,"",INDIRECT("'3.09.1a (5)'!c37")) ->  | E120: =IF(ISERROR(INDIRECT("'3.09.1a (5)'!d37"))=TRUE,"",INDIRECT("'3.09.1a (5)'!d37")) ->  | F120: =IF(ISERROR(INDIRECT("'3.09.1a (5)'!e37"))=TRUE,"",INDIRECT("'3.09.1a (5)'!e37")) ->  | G120: =IF(ISERROR(INDIRECT("'3.09.1a (5)'!f37"))=TRUE,"",INDIRECT("'3.09.1a (5)'!f37")) ->  | H120: =IF(ISERROR(INDIRECT("'3.09.1a (5)'!g37"))=TRUE,"",INDIRECT("'3.09.1a (5)'!g37")) ->  | I120: =IF(ISERROR(INDIRECT("'3.09.1a (5)'!h37"))=TRUE,"",INDIRECT("'3.09.1a (5)'!h37")) ->  | J120: =IF(ISERROR(INDIRECT("'3.09.1a (5)'!i37"))=TRUE,"",INDIRECT("'3.09.1a (5)'!i37")) ->  | K120: =IF(ISERROR(INDIRECT("'3.09.1a (5)'!j37"))=TRUE,"",INDIRECT("'3.09.1a (5)'!j37")) ->  | L120: =IF(ISERROR(INDIRECT("'3.09.1a (5)'!o37"))=TRUE,"",INDIRECT("'3.09.1a (5)'!o37")) ->  | M120: =IF(ISERROR(INDIRECT("'3.09.1a (5)'!p37"))=TRUE,"",INDIRECT("'3.09.1a (5)'!p37")) ->  | N120: =IF(ISERROR(INDIRECT("'3.09.1a (5)'!q37"))=TRUE,"",INDIRECT("'3.09.1a (5)'!q37")) ->  | O120: =IF(ISERROR(INDIRECT("'3.09.1a (5)'!s37"))=TRUE,"",INDIRECT("'3.09.1a (5)'!s37")) ->  | P120: =IF(ISERROR(INDIRECT("'3.09.1a (5)'!t37"))=TRUE,"",INDIRECT("'3.09.1a (5)'!t37")) ->  | Q120: =IF(ISERROR(INDIRECT("'3.09.1a (5)'!u37"))=TRUE,"",INDIRECT("'3.09.1a (5)'!u37")) ->  | R120: =IF(ISERROR(INDIRECT("'3.09.1a (5)'!v37"))=TRUE,"",INDIRECT("'3.09.1a (5)'!v37")) ->  | S120: =IF(ISERROR(INDIRECT("'3.09.1a (5)'!w37"))=TRUE,"",INDIRECT("'3.09.1a (5)'!w37")) ->  | T120: =IF(ISERROR(INDIRECT("'3.09.1a (5)'!x37"))=TRUE,"",INDIRECT("'3.09.1a (5)'!x37")) ->  | U120: =IF(ISERROR(INDIRECT("'3.09.1a (5)'!aa37"))=TRUE,"",INDIRECT("'3.09.1a (5)'!aa37")) ->  | V120: =IF(ISERROR(INDIRECT("'3.09.1a (5)'!ad37"))=TRUE,"",INDIRECT("'3.09.1a (5)'!ad37")) ->  | W120: =IF(ISERROR(INDIRECT("'3.09.1a (5)'!ah37"))=TRUE,"",INDIRECT("'3.09.1a (5)'!ah37")) ->  | X120: =IF(ISERROR(INDIRECT("'3.09.1a (5)'!am37"))=TRUE,"",INDIRECT("'3.09.1a (5)'!am37")) -> 
A121: 0 | B121: 3.09.1a (5) | C121: =IF(ISERROR(INDIRECT("'3.09.1a (5)'!b38"))=TRUE,"",INDIRECT("'3.09.1a (5)'!b38")) ->  | D121: =IF(ISERROR(INDIRECT("'3.09.1a (5)'!c38"))=TRUE,"",INDIRECT("'3.09.1a (5)'!c38")) ->  | E121: =IF(ISERROR(INDIRECT("'3.09.1a (5)'!d38"))=TRUE,"",INDIRECT("'3.09.1a (5)'!d38")) ->  | F121: =IF(ISERROR(INDIRECT("'3.09.1a (5)'!e38"))=TRUE,"",INDIRECT("'3.09.1a (5)'!e38")) ->  | G121: =IF(ISERROR(INDIRECT("'3.09.1a (5)'!f38"))=TRUE,"",INDIRECT("'3.09.1a (5)'!f38")) ->  | H121: =IF(ISERROR(INDIRECT("'3.09.1a (5)'!g38"))=TRUE,"",INDIRECT("'3.09.1a (5)'!g38")) ->  | I121: =IF(ISERROR(INDIRECT("'3.09.1a (5)'!h38"))=TRUE,"",INDIRECT("'3.09.1a (5)'!h38")) ->  | J121: =IF(ISERROR(INDIRECT("'3.09.1a (5)'!i38"))=TRUE,"",INDIRECT("'3.09.1a (5)'!i38")) ->  | K121: =IF(ISERROR(INDIRECT("'3.09.1a (5)'!j38"))=TRUE,"",INDIRECT("'3.09.1a (5)'!j38")) ->  | L121: =IF(ISERROR(INDIRECT("'3.09.1a (5)'!o38"))=TRUE,"",INDIRECT("'3.09.1a (5)'!o38")) ->  | M121: =IF(ISERROR(INDIRECT("'3.09.1a (5)'!p38"))=TRUE,"",INDIRECT("'3.09.1a (5)'!p38")) ->  | N121: =IF(ISERROR(INDIRECT("'3.09.1a (5)'!q38"))=TRUE,"",INDIRECT("'3.09.1a (5)'!q38")) ->  | O121: =IF(ISERROR(INDIRECT("'3.09.1a (5)'!s38"))=TRUE,"",INDIRECT("'3.09.1a (5)'!s38")) ->  | P121: =IF(ISERROR(INDIRECT("'3.09.1a (5)'!t38"))=TRUE,"",INDIRECT("'3.09.1a (5)'!t38")) ->  | Q121: =IF(ISERROR(INDIRECT("'3.09.1a (5)'!u38"))=TRUE,"",INDIRECT("'3.09.1a (5)'!u38")) ->  | R121: =IF(ISERROR(INDIRECT("'3.09.1a (5)'!v38"))=TRUE,"",INDIRECT("'3.09.1a (5)'!v38")) ->  | S121: =IF(ISERROR(INDIRECT("'3.09.1a (5)'!w38"))=TRUE,"",INDIRECT("'3.09.1a (5)'!w38")) ->  | T121: =IF(ISERROR(INDIRECT("'3.09.1a (5)'!x38"))=TRUE,"",INDIRECT("'3.09.1a (5)'!x38")) ->  | U121: =IF(ISERROR(INDIRECT("'3.09.1a (5)'!aa38"))=TRUE,"",INDIRECT("'3.09.1a (5)'!aa38")) ->  | V121: =IF(ISERROR(INDIRECT("'3.09.1a (5)'!ad38"))=TRUE,"",INDIRECT("'3.09.1a (5)'!ad38")) ->  | W121: =IF(ISERROR(INDIRECT("'3.09.1a (5)'!ah38"))=TRUE,"",INDIRECT("'3.09.1a (5)'!ah38")) ->  | X121: =IF(ISERROR(INDIRECT("'3.09.1a (5)'!am38"))=TRUE,"",INDIRECT("'3.09.1a (5)'!am38")) -> 
A122: 0 | B122: 3.09.1a (5) | C122: =IF(ISERROR(INDIRECT("'3.09.1a (5)'!b39"))=TRUE,"",INDIRECT("'3.09.1a (5)'!b39")) ->  | D122: =IF(ISERROR(INDIRECT("'3.09.1a (5)'!c39"))=TRUE,"",INDIRECT("'3.09.1a (5)'!c39")) ->  | E122: =IF(ISERROR(INDIRECT("'3.09.1a (5)'!d39"))=TRUE,"",INDIRECT("'3.09.1a (5)'!d39")) ->  | F122: =IF(ISERROR(INDIRECT("'3.09.1a (5)'!e39"))=TRUE,"",INDIRECT("'3.09.1a (5)'!e39")) ->  | G122: =IF(ISERROR(INDIRECT("'3.09.1a (5)'!f39"))=TRUE,"",INDIRECT("'3.09.1a (5)'!f39")) ->  | H122: =IF(ISERROR(INDIRECT("'3.09.1a (5)'!g39"))=TRUE,"",INDIRECT("'3.09.1a (5)'!g39")) ->  | I122: =IF(ISERROR(INDIRECT("'3.09.1a (5)'!h39"))=TRUE,"",INDIRECT("'3.09.1a (5)'!h39")) ->  | J122: =IF(ISERROR(INDIRECT("'3.09.1a (5)'!i39"))=TRUE,"",INDIRECT("'3.09.1a (5)'!i39")) ->  | K122: =IF(ISERROR(INDIRECT("'3.09.1a (5)'!j39"))=TRUE,"",INDIRECT("'3.09.1a (5)'!j39")) ->  | L122: =IF(ISERROR(INDIRECT("'3.09.1a (5)'!o39"))=TRUE,"",INDIRECT("'3.09.1a (5)'!o39")) ->  | M122: =IF(ISERROR(INDIRECT("'3.09.1a (5)'!p39"))=TRUE,"",INDIRECT("'3.09.1a (5)'!p39")) ->  | N122: =IF(ISERROR(INDIRECT("'3.09.1a (5)'!q39"))=TRUE,"",INDIRECT("'3.09.1a (5)'!q39")) ->  | O122: =IF(ISERROR(INDIRECT("'3.09.1a (5)'!s39"))=TRUE,"",INDIRECT("'3.09.1a (5)'!s39")) ->  | P122: =IF(ISERROR(INDIRECT("'3.09.1a (5)'!t39"))=TRUE,"",INDIRECT("'3.09.1a (5)'!t39")) ->  | Q122: =IF(ISERROR(INDIRECT("'3.09.1a (5)'!u39"))=TRUE,"",INDIRECT("'3.09.1a (5)'!u39")) ->  | R122: =IF(ISERROR(INDIRECT("'3.09.1a (5)'!v39"))=TRUE,"",INDIRECT("'3.09.1a (5)'!v39")) ->  | S122: =IF(ISERROR(INDIRECT("'3.09.1a (5)'!w39"))=TRUE,"",INDIRECT("'3.09.1a (5)'!w39")) ->  | T122: =IF(ISERROR(INDIRECT("'3.09.1a (5)'!x39"))=TRUE,"",INDIRECT("'3.09.1a (5)'!x39")) ->  | U122: =IF(ISERROR(INDIRECT("'3.09.1a (5)'!aa39"))=TRUE,"",INDIRECT("'3.09.1a (5)'!aa39")) ->  | V122: =IF(ISERROR(INDIRECT("'3.09.1a (5)'!ad39"))=TRUE,"",INDIRECT("'3.09.1a (5)'!ad39")) ->  | W122: =IF(ISERROR(INDIRECT("'3.09.1a (5)'!ah39"))=TRUE,"",INDIRECT("'3.09.1a (5)'!ah39")) ->  | X122: =IF(ISERROR(INDIRECT("'3.09.1a (5)'!am39"))=TRUE,"",INDIRECT("'3.09.1a (5)'!am39")) -> 
A123: 0 | B123: 3.09.1a (5) | C123: =IF(ISERROR(INDIRECT("'3.09.1a (5)'!b40"))=TRUE,"",INDIRECT("'3.09.1a (5)'!b40")) ->  | D123: =IF(ISERROR(INDIRECT("'3.09.1a (5)'!c40"))=TRUE,"",INDIRECT("'3.09.1a (5)'!c40")) ->  | E123: =IF(ISERROR(INDIRECT("'3.09.1a (5)'!d40"))=TRUE,"",INDIRECT("'3.09.1a (5)'!d40")) ->  | F123: =IF(ISERROR(INDIRECT("'3.09.1a (5)'!e40"))=TRUE,"",INDIRECT("'3.09.1a (5)'!e40")) ->  | G123: =IF(ISERROR(INDIRECT("'3.09.1a (5)'!f40"))=TRUE,"",INDIRECT("'3.09.1a (5)'!f40")) ->  | H123: =IF(ISERROR(INDIRECT("'3.09.1a (5)'!g40"))=TRUE,"",INDIRECT("'3.09.1a (5)'!g40")) ->  | I123: =IF(ISERROR(INDIRECT("'3.09.1a (5)'!h40"))=TRUE,"",INDIRECT("'3.09.1a (5)'!h40")) ->  | J123: =IF(ISERROR(INDIRECT("'3.09.1a (5)'!i40"))=TRUE,"",INDIRECT("'3.09.1a (5)'!i40")) ->  | K123: =IF(ISERROR(INDIRECT("'3.09.1a (5)'!j40"))=TRUE,"",INDIRECT("'3.09.1a (5)'!j40")) ->  | L123: =IF(ISERROR(INDIRECT("'3.09.1a (5)'!o40"))=TRUE,"",INDIRECT("'3.09.1a (5)'!o40")) ->  | M123: =IF(ISERROR(INDIRECT("'3.09.1a (5)'!p40"))=TRUE,"",INDIRECT("'3.09.1a (5)'!p40")) ->  | N123: =IF(ISERROR(INDIRECT("'3.09.1a (5)'!q40"))=TRUE,"",INDIRECT("'3.09.1a (5)'!q40")) ->  | O123: =IF(ISERROR(INDIRECT("'3.09.1a (5)'!s40"))=TRUE,"",INDIRECT("'3.09.1a (5)'!s40")) ->  | P123: =IF(ISERROR(INDIRECT("'3.09.1a (5)'!t40"))=TRUE,"",INDIRECT("'3.09.1a (5)'!t40")) ->  | Q123: =IF(ISERROR(INDIRECT("'3.09.1a (5)'!u40"))=TRUE,"",INDIRECT("'3.09.1a (5)'!u40")) ->  | R123: =IF(ISERROR(INDIRECT("'3.09.1a (5)'!v40"))=TRUE,"",INDIRECT("'3.09.1a (5)'!v40")) ->  | S123: =IF(ISERROR(INDIRECT("'3.09.1a (5)'!w40"))=TRUE,"",INDIRECT("'3.09.1a (5)'!w40")) ->  | T123: =IF(ISERROR(INDIRECT("'3.09.1a (5)'!x40"))=TRUE,"",INDIRECT("'3.09.1a (5)'!x40")) ->  | U123: =IF(ISERROR(INDIRECT("'3.09.1a (5)'!aa40"))=TRUE,"",INDIRECT("'3.09.1a (5)'!aa40")) ->  | V123: =IF(ISERROR(INDIRECT("'3.09.1a (5)'!ad40"))=TRUE,"",INDIRECT("'3.09.1a (5)'!ad40")) ->  | W123: =IF(ISERROR(INDIRECT("'3.09.1a (5)'!ah40"))=TRUE,"",INDIRECT("'3.09.1a (5)'!ah40")) ->  | X123: =IF(ISERROR(INDIRECT("'3.09.1a (5)'!am40"))=TRUE,"",INDIRECT("'3.09.1a (5)'!am40")) -> 
A124: 0 | B124: 3.09.1a (5) | C124: =IF(ISERROR(INDIRECT("'3.09.1a (5)'!b41"))=TRUE,"",INDIRECT("'3.09.1a (5)'!b41")) ->  | D124: =IF(ISERROR(INDIRECT("'3.09.1a (5)'!c41"))=TRUE,"",INDIRECT("'3.09.1a (5)'!c41")) ->  | E124: =IF(ISERROR(INDIRECT("'3.09.1a (5)'!d41"))=TRUE,"",INDIRECT("'3.09.1a (5)'!d41")) ->  | F124: =IF(ISERROR(INDIRECT("'3.09.1a (5)'!e41"))=TRUE,"",INDIRECT("'3.09.1a (5)'!e41")) ->  | G124: =IF(ISERROR(INDIRECT("'3.09.1a (5)'!f41"))=TRUE,"",INDIRECT("'3.09.1a (5)'!f41")) ->  | H124: =IF(ISERROR(INDIRECT("'3.09.1a (5)'!g41"))=TRUE,"",INDIRECT("'3.09.1a (5)'!g41")) ->  | I124: =IF(ISERROR(INDIRECT("'3.09.1a (5)'!h41"))=TRUE,"",INDIRECT("'3.09.1a (5)'!h41")) ->  | J124: =IF(ISERROR(INDIRECT("'3.09.1a (5)'!i41"))=TRUE,"",INDIRECT("'3.09.1a (5)'!i41")) ->  | K124: =IF(ISERROR(INDIRECT("'3.09.1a (5)'!j41"))=TRUE,"",INDIRECT("'3.09.1a (5)'!j41")) ->  | L124: =IF(ISERROR(INDIRECT("'3.09.1a (5)'!o41"))=TRUE,"",INDIRECT("'3.09.1a (5)'!o41")) ->  | M124: =IF(ISERROR(INDIRECT("'3.09.1a (5)'!p41"))=TRUE,"",INDIRECT("'3.09.1a (5)'!p41")) ->  | N124: =IF(ISERROR(INDIRECT("'3.09.1a (5)'!q41"))=TRUE,"",INDIRECT("'3.09.1a (5)'!q41")) ->  | O124: =IF(ISERROR(INDIRECT("'3.09.1a (5)'!s41"))=TRUE,"",INDIRECT("'3.09.1a (5)'!s41")) ->  | P124: =IF(ISERROR(INDIRECT("'3.09.1a (5)'!t41"))=TRUE,"",INDIRECT("'3.09.1a (5)'!t41")) ->  | Q124: =IF(ISERROR(INDIRECT("'3.09.1a (5)'!u41"))=TRUE,"",INDIRECT("'3.09.1a (5)'!u41")) ->  | R124: =IF(ISERROR(INDIRECT("'3.09.1a (5)'!v41"))=TRUE,"",INDIRECT("'3.09.1a (5)'!v41")) ->  | S124: =IF(ISERROR(INDIRECT("'3.09.1a (5)'!w41"))=TRUE,"",INDIRECT("'3.09.1a (5)'!w41")) ->  | T124: =IF(ISERROR(INDIRECT("'3.09.1a (5)'!x41"))=TRUE,"",INDIRECT("'3.09.1a (5)'!x41")) ->  | U124: =IF(ISERROR(INDIRECT("'3.09.1a (5)'!aa41"))=TRUE,"",INDIRECT("'3.09.1a (5)'!aa41")) ->  | V124: =IF(ISERROR(INDIRECT("'3.09.1a (5)'!ad41"))=TRUE,"",INDIRECT("'3.09.1a (5)'!ad41")) ->  | W124: =IF(ISERROR(INDIRECT("'3.09.1a (5)'!ah41"))=TRUE,"",INDIRECT("'3.09.1a (5)'!ah41")) ->  | X124: =IF(ISERROR(INDIRECT("'3.09.1a (5)'!am41"))=TRUE,"",INDIRECT("'3.09.1a (5)'!am41")) -> 
A125: 0 | B125: 3.09.1a (5) | C125: =IF(ISERROR(INDIRECT("'3.09.1a (5)'!b42"))=TRUE,"",INDIRECT("'3.09.1a (5)'!b42")) ->  | D125: =IF(ISERROR(INDIRECT("'3.09.1a (5)'!c42"))=TRUE,"",INDIRECT("'3.09.1a (5)'!c42")) ->  | E125: =IF(ISERROR(INDIRECT("'3.09.1a (5)'!d42"))=TRUE,"",INDIRECT("'3.09.1a (5)'!d42")) ->  | F125: =IF(ISERROR(INDIRECT("'3.09.1a (5)'!e42"))=TRUE,"",INDIRECT("'3.09.1a (5)'!e42")) ->  | G125: =IF(ISERROR(INDIRECT("'3.09.1a (5)'!f42"))=TRUE,"",INDIRECT("'3.09.1a (5)'!f42")) ->  | H125: =IF(ISERROR(INDIRECT("'3.09.1a (5)'!g42"))=TRUE,"",INDIRECT("'3.09.1a (5)'!g42")) ->  | I125: =IF(ISERROR(INDIRECT("'3.09.1a (5)'!h42"))=TRUE,"",INDIRECT("'3.09.1a (5)'!h42")) ->  | J125: =IF(ISERROR(INDIRECT("'3.09.1a (5)'!i42"))=TRUE,"",INDIRECT("'3.09.1a (5)'!i42")) ->  | K125: =IF(ISERROR(INDIRECT("'3.09.1a (5)'!j42"))=TRUE,"",INDIRECT("'3.09.1a (5)'!j42")) ->  | L125: =IF(ISERROR(INDIRECT("'3.09.1a (5)'!o42"))=TRUE,"",INDIRECT("'3.09.1a (5)'!o42")) ->  | M125: =IF(ISERROR(INDIRECT("'3.09.1a (5)'!p42"))=TRUE,"",INDIRECT("'3.09.1a (5)'!p42")) ->  | N125: =IF(ISERROR(INDIRECT("'3.09.1a (5)'!q42"))=TRUE,"",INDIRECT("'3.09.1a (5)'!q42")) ->  | O125: =IF(ISERROR(INDIRECT("'3.09.1a (5)'!s42"))=TRUE,"",INDIRECT("'3.09.1a (5)'!s42")) ->  | P125: =IF(ISERROR(INDIRECT("'3.09.1a (5)'!t42"))=TRUE,"",INDIRECT("'3.09.1a (5)'!t42")) ->  | Q125: =IF(ISERROR(INDIRECT("'3.09.1a (5)'!u42"))=TRUE,"",INDIRECT("'3.09.1a (5)'!u42")) ->  | R125: =IF(ISERROR(INDIRECT("'3.09.1a (5)'!v42"))=TRUE,"",INDIRECT("'3.09.1a (5)'!v42")) ->  | S125: =IF(ISERROR(INDIRECT("'3.09.1a (5)'!w42"))=TRUE,"",INDIRECT("'3.09.1a (5)'!w42")) ->  | T125: =IF(ISERROR(INDIRECT("'3.09.1a (5)'!x42"))=TRUE,"",INDIRECT("'3.09.1a (5)'!x42")) ->  | U125: =IF(ISERROR(INDIRECT("'3.09.1a (5)'!aa42"))=TRUE,"",INDIRECT("'3.09.1a (5)'!aa42")) ->  | V125: =IF(ISERROR(INDIRECT("'3.09.1a (5)'!ad42"))=TRUE,"",INDIRECT("'3.09.1a (5)'!ad42")) ->  | W125: =IF(ISERROR(INDIRECT("'3.09.1a (5)'!ah42"))=TRUE,"",INDIRECT("'3.09.1a (5)'!ah42")) ->  | X125: =IF(ISERROR(INDIRECT("'3.09.1a (5)'!am42"))=TRUE,"",INDIRECT("'3.09.1a (5)'!am42")) -> 
A126: 0 | B126: 3.09.1a (5) | C126: =IF(ISERROR(INDIRECT("'3.09.1a (5)'!b43"))=TRUE,"",INDIRECT("'3.09.1a (5)'!b43")) ->  | D126: =IF(ISERROR(INDIRECT("'3.09.1a (5)'!c43"))=TRUE,"",INDIRECT("'3.09.1a (5)'!c43")) ->  | E126: =IF(ISERROR(INDIRECT("'3.09.1a (5)'!d43"))=TRUE,"",INDIRECT("'3.09.1a (5)'!d43")) ->  | F126: =IF(ISERROR(INDIRECT("'3.09.1a (5)'!e43"))=TRUE,"",INDIRECT("'3.09.1a (5)'!e43")) ->  | G126: =IF(ISERROR(INDIRECT("'3.09.1a (5)'!f43"))=TRUE,"",INDIRECT("'3.09.1a (5)'!f43")) ->  | H126: =IF(ISERROR(INDIRECT("'3.09.1a (5)'!g43"))=TRUE,"",INDIRECT("'3.09.1a (5)'!g43")) ->  | I126: =IF(ISERROR(INDIRECT("'3.09.1a (5)'!h43"))=TRUE,"",INDIRECT("'3.09.1a (5)'!h43")) ->  | J126: =IF(ISERROR(INDIRECT("'3.09.1a (5)'!i43"))=TRUE,"",INDIRECT("'3.09.1a (5)'!i43")) ->  | K126: =IF(ISERROR(INDIRECT("'3.09.1a (5)'!j43"))=TRUE,"",INDIRECT("'3.09.1a (5)'!j43")) ->  | L126: =IF(ISERROR(INDIRECT("'3.09.1a (5)'!o43"))=TRUE,"",INDIRECT("'3.09.1a (5)'!o43")) ->  | M126: =IF(ISERROR(INDIRECT("'3.09.1a (5)'!p43"))=TRUE,"",INDIRECT("'3.09.1a (5)'!p43")) ->  | N126: =IF(ISERROR(INDIRECT("'3.09.1a (5)'!q43"))=TRUE,"",INDIRECT("'3.09.1a (5)'!q43")) ->  | O126: =IF(ISERROR(INDIRECT("'3.09.1a (5)'!s43"))=TRUE,"",INDIRECT("'3.09.1a (5)'!s43")) ->  | P126: =IF(ISERROR(INDIRECT("'3.09.1a (5)'!t43"))=TRUE,"",INDIRECT("'3.09.1a (5)'!t43")) ->  | Q126: =IF(ISERROR(INDIRECT("'3.09.1a (5)'!u43"))=TRUE,"",INDIRECT("'3.09.1a (5)'!u43")) ->  | R126: =IF(ISERROR(INDIRECT("'3.09.1a (5)'!v43"))=TRUE,"",INDIRECT("'3.09.1a (5)'!v43")) ->  | S126: =IF(ISERROR(INDIRECT("'3.09.1a (5)'!w43"))=TRUE,"",INDIRECT("'3.09.1a (5)'!w43")) ->  | T126: =IF(ISERROR(INDIRECT("'3.09.1a (5)'!x43"))=TRUE,"",INDIRECT("'3.09.1a (5)'!x43")) ->  | U126: =IF(ISERROR(INDIRECT("'3.09.1a (5)'!aa43"))=TRUE,"",INDIRECT("'3.09.1a (5)'!aa43")) ->  | V126: =IF(ISERROR(INDIRECT("'3.09.1a (5)'!ad43"))=TRUE,"",INDIRECT("'3.09.1a (5)'!ad43")) ->  | W126: =IF(ISERROR(INDIRECT("'3.09.1a (5)'!ah43"))=TRUE,"",INDIRECT("'3.09.1a (5)'!ah43")) ->  | X126: =IF(ISERROR(INDIRECT("'3.09.1a (5)'!am43"))=TRUE,"",INDIRECT("'3.09.1a (5)'!am43")) -> 
A127: =AgencyCode -> 0 | B127: 3.09.1a (6) | C127: =IF(ISERROR(INDIRECT("'3.09.1a (6)'!b19"))=TRUE,"",INDIRECT("'3.09.1a (6)'!b19")) ->  | D127: =IF(ISERROR(INDIRECT("'3.09.1a (6)'!c19"))=TRUE,"",INDIRECT("'3.09.1a (6)'!c19")) ->  | E127: =IF(ISERROR(INDIRECT("'3.09.1a (6)'!D19"))=TRUE,"",INDIRECT("'3.09.1a (6)'!D19")) ->  | F127: =IF(ISERROR(INDIRECT("'3.09.1a (6)'!e19"))=TRUE,"",INDIRECT("'3.09.1a (6)'!e19")) ->  | G127: =IF(ISERROR(INDIRECT("'3.09.1a (6)'!f19"))=TRUE,"",INDIRECT("'3.09.1a (6)'!f19")) ->  | H127: =IF(ISERROR(INDIRECT("'3.09.1a (6)'!g19"))=TRUE,"",INDIRECT("'3.09.1a (6)'!g19")) ->  | I127: =IF(ISERROR(INDIRECT("'3.09.1a (6)'!h19"))=TRUE,"",INDIRECT("'3.09.1a (6)'!h19")) ->  | J127: =IF(ISERROR(INDIRECT("'3.09.1a (6)'!i19"))=TRUE,"",INDIRECT("'3.09.1a (6)'!i19")) ->  | K127: =IF(ISERROR(INDIRECT("'3.09.1a (6)'!j19"))=TRUE,"",INDIRECT("'3.09.1a (6)'!j19")) ->  | L127: =IF(ISERROR(INDIRECT("'3.09.1a (6)'!o19"))=TRUE,"",INDIRECT("'3.09.1a (6)'!o19")) ->  | M127: =IF(ISERROR(INDIRECT("'3.09.1a (6)'!p19"))=TRUE,"",INDIRECT("'3.09.1a (6)'!p19")) ->  | N127: =IF(ISERROR(INDIRECT("'3.09.1a (6)'!q19"))=TRUE,"",INDIRECT("'3.09.1a (6)'!q19")) ->  | O127: =IF(ISERROR(INDIRECT("'3.09.1a (6)'!s19"))=TRUE,"",INDIRECT("'3.09.1a (6)'!s19")) ->  | P127: =IF(ISERROR(INDIRECT("'3.09.1a (6)'!t19"))=TRUE,"",INDIRECT("'3.09.1a (6)'!t19")) ->  | Q127: =IF(ISERROR(INDIRECT("'3.09.1a (6)'!u19"))=TRUE,"",INDIRECT("'3.09.1a (6)'!u19")) ->  | R127: =IF(ISERROR(INDIRECT("'3.09.1a (6)'!v19"))=TRUE,"",INDIRECT("'3.09.1a (6)'!v19")) ->  | S127: =IF(ISERROR(INDIRECT("'3.09.1a (6)'!w19"))=TRUE,"",INDIRECT("'3.09.1a (6)'!w19")) ->  | T127: =IF(ISERROR(INDIRECT("'3.09.1a (6)'!x19"))=TRUE,"",INDIRECT("'3.09.1a (6)'!x19")) ->  | U127: =IF(ISERROR(INDIRECT("'3.09.1a (6)'!aa19"))=TRUE,"",INDIRECT("'3.09.1a (6)'!aa19")) ->  | V127: =IF(ISERROR(INDIRECT("'3.09.1a (6)'!ad19"))=TRUE,"",INDIRECT("'3.09.1a (6)'!ad19")) ->  | W127: =IF(ISERROR(INDIRECT("'3.09.1a (6)'!ah19"))=TRUE,"",INDIRECT("'3.09.1a (6)'!ah19")) ->  | X127: =IF(ISERROR(INDIRECT("'3.09.1a (6)'!am19"))=TRUE,"",INDIRECT("'3.09.1a (6)'!am19")) -> 
A128: 0 | B128: 3.09.1a (6) | C128: =IF(ISERROR(INDIRECT("'3.09.1a (6)'!b20"))=TRUE,"",INDIRECT("'3.09.1a (6)'!b20")) ->  | D128: =IF(ISERROR(INDIRECT("'3.09.1a (6)'!c20"))=TRUE,"",INDIRECT("'3.09.1a (6)'!c20")) ->  | E128: =IF(ISERROR(INDIRECT("'3.09.1a (6)'!d20"))=TRUE,"",INDIRECT("'3.09.1a (6)'!d20")) ->  | F128: =IF(ISERROR(INDIRECT("'3.09.1a (6)'!e20"))=TRUE,"",INDIRECT("'3.09.1a (6)'!e20")) ->  | G128: =IF(ISERROR(INDIRECT("'3.09.1a (6)'!f20"))=TRUE,"",INDIRECT("'3.09.1a (6)'!f20")) ->  | H128: =IF(ISERROR(INDIRECT("'3.09.1a (6)'!g20"))=TRUE,"",INDIRECT("'3.09.1a (6)'!g20")) ->  | I128: =IF(ISERROR(INDIRECT("'3.09.1a (6)'!h20"))=TRUE,"",INDIRECT("'3.09.1a (6)'!h20")) ->  | J128: =IF(ISERROR(INDIRECT("'3.09.1a (6)'!i20"))=TRUE,"",INDIRECT("'3.09.1a (6)'!i20")) ->  | K128: =IF(ISERROR(INDIRECT("'3.09.1a (6)'!j20"))=TRUE,"",INDIRECT("'3.09.1a (6)'!j20")) ->  | L128: =IF(ISERROR(INDIRECT("'3.09.1a (6)'!o20"))=TRUE,"",INDIRECT("'3.09.1a (6)'!o20")) ->  | M128: =IF(ISERROR(INDIRECT("'3.09.1a (6)'!p20"))=TRUE,"",INDIRECT("'3.09.1a (6)'!p20")) ->  | N128: =IF(ISERROR(INDIRECT("'3.09.1a (6)'!q20"))=TRUE,"",INDIRECT("'3.09.1a (6)'!q20")) ->  | O128: =IF(ISERROR(INDIRECT("'3.09.1a (6)'!s20"))=TRUE,"",INDIRECT("'3.09.1a (6)'!s20")) ->  | P128: =IF(ISERROR(INDIRECT("'3.09.1a (6)'!t20"))=TRUE,"",INDIRECT("'3.09.1a (6)'!t20")) ->  | Q128: =IF(ISERROR(INDIRECT("'3.09.1a (6)'!u20"))=TRUE,"",INDIRECT("'3.09.1a (6)'!u20")) ->  | R128: =IF(ISERROR(INDIRECT("'3.09.1a (6)'!v20"))=TRUE,"",INDIRECT("'3.09.1a (6)'!v20")) ->  | S128: =IF(ISERROR(INDIRECT("'3.09.1a (6)'!w20"))=TRUE,"",INDIRECT("'3.09.1a (6)'!w20")) ->  | T128: =IF(ISERROR(INDIRECT("'3.09.1a (6)'!x20"))=TRUE,"",INDIRECT("'3.09.1a (6)'!x20")) ->  | U128: =IF(ISERROR(INDIRECT("'3.09.1a (6)'!aa20"))=TRUE,"",INDIRECT("'3.09.1a (6)'!aa20")) ->  | V128: =IF(ISERROR(INDIRECT("'3.09.1a (6)'!ad20"))=TRUE,"",INDIRECT("'3.09.1a (6)'!ad20")) ->  | W128: =IF(ISERROR(INDIRECT("'3.09.1a (6)'!ah20"))=TRUE,"",INDIRECT("'3.09.1a (6)'!ah20")) ->  | X128: =IF(ISERROR(INDIRECT("'3.09.1a (6)'!am20"))=TRUE,"",INDIRECT("'3.09.1a (6)'!am20")) -> 
A129: 0 | B129: 3.09.1a (6) | C129: =IF(ISERROR(INDIRECT("'3.09.1a (6)'!b21"))=TRUE,"",INDIRECT("'3.09.1a (6)'!b21")) ->  | D129: =IF(ISERROR(INDIRECT("'3.09.1a (6)'!c21"))=TRUE,"",INDIRECT("'3.09.1a (6)'!c21")) ->  | E129: =IF(ISERROR(INDIRECT("'3.09.1a (6)'!d21"))=TRUE,"",INDIRECT("'3.09.1a (6)'!d21")) ->  | F129: =IF(ISERROR(INDIRECT("'3.09.1a (6)'!e21"))=TRUE,"",INDIRECT("'3.09.1a (6)'!e21")) ->  | G129: =IF(ISERROR(INDIRECT("'3.09.1a (6)'!f21"))=TRUE,"",INDIRECT("'3.09.1a (6)'!f21")) ->  | H129: =IF(ISERROR(INDIRECT("'3.09.1a (6)'!g21"))=TRUE,"",INDIRECT("'3.09.1a (6)'!g21")) ->  | I129: =IF(ISERROR(INDIRECT("'3.09.1a (6)'!h21"))=TRUE,"",INDIRECT("'3.09.1a (6)'!h21")) ->  | J129: =IF(ISERROR(INDIRECT("'3.09.1a (6)'!i21"))=TRUE,"",INDIRECT("'3.09.1a (6)'!i21")) ->  | K129: =IF(ISERROR(INDIRECT("'3.09.1a (6)'!j21"))=TRUE,"",INDIRECT("'3.09.1a (6)'!j21")) ->  | L129: =IF(ISERROR(INDIRECT("'3.09.1a (6)'!o21"))=TRUE,"",INDIRECT("'3.09.1a (6)'!o21")) ->  | M129: =IF(ISERROR(INDIRECT("'3.09.1a (6)'!p21"))=TRUE,"",INDIRECT("'3.09.1a (6)'!p21")) ->  | N129: =IF(ISERROR(INDIRECT("'3.09.1a (6)'!q21"))=TRUE,"",INDIRECT("'3.09.1a (6)'!q21")) ->  | O129: =IF(ISERROR(INDIRECT("'3.09.1a (6)'!s21"))=TRUE,"",INDIRECT("'3.09.1a (6)'!s21")) ->  | P129: =IF(ISERROR(INDIRECT("'3.09.1a (6)'!t21"))=TRUE,"",INDIRECT("'3.09.1a (6)'!t21")) ->  | Q129: =IF(ISERROR(INDIRECT("'3.09.1a (6)'!u21"))=TRUE,"",INDIRECT("'3.09.1a (6)'!u21")) ->  | R129: =IF(ISERROR(INDIRECT("'3.09.1a (6)'!v21"))=TRUE,"",INDIRECT("'3.09.1a (6)'!v21")) ->  | S129: =IF(ISERROR(INDIRECT("'3.09.1a (6)'!w21"))=TRUE,"",INDIRECT("'3.09.1a (6)'!w21")) ->  | T129: =IF(ISERROR(INDIRECT("'3.09.1a (6)'!x21"))=TRUE,"",INDIRECT("'3.09.1a (6)'!x21")) ->  | U129: =IF(ISERROR(INDIRECT("'3.09.1a (6)'!aa21"))=TRUE,"",INDIRECT("'3.09.1a (6)'!aa21")) ->  | V129: =IF(ISERROR(INDIRECT("'3.09.1a (6)'!ad21"))=TRUE,"",INDIRECT("'3.09.1a (6)'!ad21")) ->  | W129: =IF(ISERROR(INDIRECT("'3.09.1a (6)'!ah21"))=TRUE,"",INDIRECT("'3.09.1a (6)'!ah21")) ->  | X129: =IF(ISERROR(INDIRECT("'3.09.1a (6)'!am21"))=TRUE,"",INDIRECT("'3.09.1a (6)'!am21")) -> 
A130: 0 | B130: 3.09.1a (6) | C130: =IF(ISERROR(INDIRECT("'3.09.1a (6)'!b22"))=TRUE,"",INDIRECT("'3.09.1a (6)'!b22")) ->  | D130: =IF(ISERROR(INDIRECT("'3.09.1a (6)'!c22"))=TRUE,"",INDIRECT("'3.09.1a (6)'!c22")) ->  | E130: =IF(ISERROR(INDIRECT("'3.09.1a (6)'!d22"))=TRUE,"",INDIRECT("'3.09.1a (6)'!d22")) ->  | F130: =IF(ISERROR(INDIRECT("'3.09.1a (6)'!e22"))=TRUE,"",INDIRECT("'3.09.1a (6)'!e22")) ->  | G130: =IF(ISERROR(INDIRECT("'3.09.1a (6)'!f22"))=TRUE,"",INDIRECT("'3.09.1a (6)'!f22")) ->  | H130: =IF(ISERROR(INDIRECT("'3.09.1a (6)'!g22"))=TRUE,"",INDIRECT("'3.09.1a (6)'!g22")) ->  | I130: =IF(ISERROR(INDIRECT("'3.09.1a (6)'!h22"))=TRUE,"",INDIRECT("'3.09.1a (6)'!h22")) ->  | J130: =IF(ISERROR(INDIRECT("'3.09.1a (6)'!i22"))=TRUE,"",INDIRECT("'3.09.1a (6)'!i22")) ->  | K130: =IF(ISERROR(INDIRECT("'3.09.1a (6)'!j22"))=TRUE,"",INDIRECT("'3.09.1a (6)'!j22")) ->  | L130: =IF(ISERROR(INDIRECT("'3.09.1a (6)'!o22"))=TRUE,"",INDIRECT("'3.09.1a (6)'!o22")) ->  | M130: =IF(ISERROR(INDIRECT("'3.09.1a (6)'!p22"))=TRUE,"",INDIRECT("'3.09.1a (6)'!p22")) ->  | N130: =IF(ISERROR(INDIRECT("'3.09.1a (6)'!q22"))=TRUE,"",INDIRECT("'3.09.1a (6)'!q22")) ->  | O130: =IF(ISERROR(INDIRECT("'3.09.1a (6)'!s22"))=TRUE,"",INDIRECT("'3.09.1a (6)'!s22")) ->  | P130: =IF(ISERROR(INDIRECT("'3.09.1a (6)'!t22"))=TRUE,"",INDIRECT("'3.09.1a (6)'!t22")) ->  | Q130: =IF(ISERROR(INDIRECT("'3.09.1a (6)'!u22"))=TRUE,"",INDIRECT("'3.09.1a (6)'!u22")) ->  | R130: =IF(ISERROR(INDIRECT("'3.09.1a (6)'!v22"))=TRUE,"",INDIRECT("'3.09.1a (6)'!v22")) ->  | S130: =IF(ISERROR(INDIRECT("'3.09.1a (6)'!w22"))=TRUE,"",INDIRECT("'3.09.1a (6)'!w22")) ->  | T130: =IF(ISERROR(INDIRECT("'3.09.1a (6)'!x22"))=TRUE,"",INDIRECT("'3.09.1a (6)'!x22")) ->  | U130: =IF(ISERROR(INDIRECT("'3.09.1a (6)'!aa22"))=TRUE,"",INDIRECT("'3.09.1a (6)'!aa22")) ->  | V130: =IF(ISERROR(INDIRECT("'3.09.1a (6)'!ad22"))=TRUE,"",INDIRECT("'3.09.1a (6)'!ad22")) ->  | W130: =IF(ISERROR(INDIRECT("'3.09.1a (6)'!ah22"))=TRUE,"",INDIRECT("'3.09.1a (6)'!ah22")) ->  | X130: =IF(ISERROR(INDIRECT("'3.09.1a (6)'!am22"))=TRUE,"",INDIRECT("'3.09.1a (6)'!am22")) -> 
A131: 0 | B131: 3.09.1a (6) | C131: =IF(ISERROR(INDIRECT("'3.09.1a (6)'!b23"))=TRUE,"",INDIRECT("'3.09.1a (6)'!b23")) ->  | D131: =IF(ISERROR(INDIRECT("'3.09.1a (6)'!c23"))=TRUE,"",INDIRECT("'3.09.1a (6)'!c23")) ->  | E131: =IF(ISERROR(INDIRECT("'3.09.1a (6)'!d23"))=TRUE,"",INDIRECT("'3.09.1a (6)'!d23")) ->  | F131: =IF(ISERROR(INDIRECT("'3.09.1a (6)'!e23"))=TRUE,"",INDIRECT("'3.09.1a (6)'!e23")) ->  | G131: =IF(ISERROR(INDIRECT("'3.09.1a (6)'!f23"))=TRUE,"",INDIRECT("'3.09.1a (6)'!f23")) ->  | H131: =IF(ISERROR(INDIRECT("'3.09.1a (6)'!g23"))=TRUE,"",INDIRECT("'3.09.1a (6)'!g23")) ->  | I131: =IF(ISERROR(INDIRECT("'3.09.1a (6)'!h23"))=TRUE,"",INDIRECT("'3.09.1a (6)'!h23")) ->  | J131: =IF(ISERROR(INDIRECT("'3.09.1a (6)'!i23"))=TRUE,"",INDIRECT("'3.09.1a (6)'!i23")) ->  | K131: =IF(ISERROR(INDIRECT("'3.09.1a (6)'!j23"))=TRUE,"",INDIRECT("'3.09.1a (6)'!j23")) ->  | L131: =IF(ISERROR(INDIRECT("'3.09.1a (6)'!o23"))=TRUE,"",INDIRECT("'3.09.1a (6)'!o23")) ->  | M131: =IF(ISERROR(INDIRECT("'3.09.1a (6)'!p23"))=TRUE,"",INDIRECT("'3.09.1a (6)'!p23")) ->  | N131: =IF(ISERROR(INDIRECT("'3.09.1a (6)'!q23"))=TRUE,"",INDIRECT("'3.09.1a (6)'!q23")) ->  | O131: =IF(ISERROR(INDIRECT("'3.09.1a (6)'!s23"))=TRUE,"",INDIRECT("'3.09.1a (6)'!s23")) ->  | P131: =IF(ISERROR(INDIRECT("'3.09.1a (6)'!t23"))=TRUE,"",INDIRECT("'3.09.1a (6)'!t23")) ->  | Q131: =IF(ISERROR(INDIRECT("'3.09.1a (6)'!u23"))=TRUE,"",INDIRECT("'3.09.1a (6)'!u23")) ->  | R131: =IF(ISERROR(INDIRECT("'3.09.1a (6)'!v23"))=TRUE,"",INDIRECT("'3.09.1a (6)'!v23")) ->  | S131: =IF(ISERROR(INDIRECT("'3.09.1a (6)'!w23"))=TRUE,"",INDIRECT("'3.09.1a (6)'!w23")) ->  | T131: =IF(ISERROR(INDIRECT("'3.09.1a (6)'!x23"))=TRUE,"",INDIRECT("'3.09.1a (6)'!x23")) ->  | U131: =IF(ISERROR(INDIRECT("'3.09.1a (6)'!aa23"))=TRUE,"",INDIRECT("'3.09.1a (6)'!aa23")) ->  | V131: =IF(ISERROR(INDIRECT("'3.09.1a (6)'!ad23"))=TRUE,"",INDIRECT("'3.09.1a (6)'!ad23")) ->  | W131: =IF(ISERROR(INDIRECT("'3.09.1a (6)'!ah23"))=TRUE,"",INDIRECT("'3.09.1a (6)'!ah23")) ->  | X131: =IF(ISERROR(INDIRECT("'3.09.1a (6)'!am23"))=TRUE,"",INDIRECT("'3.09.1a (6)'!am23")) -> 
A132: 0 | B132: 3.09.1a (6) | C132: =IF(ISERROR(INDIRECT("'3.09.1a (6)'!b24"))=TRUE,"",INDIRECT("'3.09.1a (6)'!b24")) ->  | D132: =IF(ISERROR(INDIRECT("'3.09.1a (6)'!c24"))=TRUE,"",INDIRECT("'3.09.1a (6)'!c24")) ->  | E132: =IF(ISERROR(INDIRECT("'3.09.1a (6)'!d24"))=TRUE,"",INDIRECT("'3.09.1a (6)'!d24")) ->  | F132: =IF(ISERROR(INDIRECT("'3.09.1a (6)'!e24"))=TRUE,"",INDIRECT("'3.09.1a (6)'!e24")) ->  | G132: =IF(ISERROR(INDIRECT("'3.09.1a (6)'!f24"))=TRUE,"",INDIRECT("'3.09.1a (6)'!f24")) ->  | H132: =IF(ISERROR(INDIRECT("'3.09.1a (6)'!g24"))=TRUE,"",INDIRECT("'3.09.1a (6)'!g24")) ->  | I132: =IF(ISERROR(INDIRECT("'3.09.1a (6)'!h24"))=TRUE,"",INDIRECT("'3.09.1a (6)'!h24")) ->  | J132: =IF(ISERROR(INDIRECT("'3.09.1a (6)'!i24"))=TRUE,"",INDIRECT("'3.09.1a (6)'!i24")) ->  | K132: =IF(ISERROR(INDIRECT("'3.09.1a (6)'!j24"))=TRUE,"",INDIRECT("'3.09.1a (6)'!j24")) ->  | L132: =IF(ISERROR(INDIRECT("'3.09.1a (6)'!o24"))=TRUE,"",INDIRECT("'3.09.1a (6)'!o24")) ->  | M132: =IF(ISERROR(INDIRECT("'3.09.1a (6)'!p24"))=TRUE,"",INDIRECT("'3.09.1a (6)'!p24")) ->  | N132: =IF(ISERROR(INDIRECT("'3.09.1a (6)'!q24"))=TRUE,"",INDIRECT("'3.09.1a (6)'!q24")) ->  | O132: =IF(ISERROR(INDIRECT("'3.09.1a (6)'!s24"))=TRUE,"",INDIRECT("'3.09.1a (6)'!s24")) ->  | P132: =IF(ISERROR(INDIRECT("'3.09.1a (6)'!t24"))=TRUE,"",INDIRECT("'3.09.1a (6)'!t24")) ->  | Q132: =IF(ISERROR(INDIRECT("'3.09.1a (6)'!u24"))=TRUE,"",INDIRECT("'3.09.1a (6)'!u24")) ->  | R132: =IF(ISERROR(INDIRECT("'3.09.1a (6)'!v24"))=TRUE,"",INDIRECT("'3.09.1a (6)'!v24")) ->  | S132: =IF(ISERROR(INDIRECT("'3.09.1a (6)'!w24"))=TRUE,"",INDIRECT("'3.09.1a (6)'!w24")) ->  | T132: =IF(ISERROR(INDIRECT("'3.09.1a (6)'!x24"))=TRUE,"",INDIRECT("'3.09.1a (6)'!x24")) ->  | U132: =IF(ISERROR(INDIRECT("'3.09.1a (6)'!aa24"))=TRUE,"",INDIRECT("'3.09.1a (6)'!aa24")) ->  | V132: =IF(ISERROR(INDIRECT("'3.09.1a (6)'!ad24"))=TRUE,"",INDIRECT("'3.09.1a (6)'!ad24")) ->  | W132: =IF(ISERROR(INDIRECT("'3.09.1a (6)'!ah24"))=TRUE,"",INDIRECT("'3.09.1a (6)'!ah24")) ->  | X132: =IF(ISERROR(INDIRECT("'3.09.1a (6)'!am24"))=TRUE,"",INDIRECT("'3.09.1a (6)'!am24")) -> 
